Workbook

Sheet Übersicht
B1: Resturlaub | D1: Januar | E1: Soll | F1: Korrektur | G1: Ist-M | H1: NZ-St | I1: SFZ-St | J1: Februar | K1: Soll | L1: Korrektur | M1: Ist-M | N1: Ist-G | O1: NZ-St | P1: SFZ-St | Q1: März | R1: Soll | S1: Korrektur | T1: Ist-M | U1: Ist-G | V1: NZ-St | W1: SFZ-St | X1: April | Y1: Soll | Z1: Korrektur | AA1: Ist-M | AB1: Ist-G | AC1: NZ-St | AD1: SFZ-St | AE1: Mai | AF1: Soll | AG1: Korrektur | AH1: Ist-M | AI1: Ist-G | AJ1: NZ-St | AK1: SFZ-St | AL1: Juni | AM1: Soll | AN1: Korrektur | AO1: Ist-M | AP1: Ist-G | AQ1: NZ-St | AR1: SFZ-St | AS1: Juli | AT1: Soll | AU1: Korrektur | AV1: Ist-M | AW1: Ist-G | AX1: NZ-St | AY1: SFZ-St | AZ1: August | BA1: Soll | BB1: Korrektur | BC1: Ist-M | BD1: Ist-G | BE1: NZ-St | BF1: SFZ-St | BG1: September | BH1: Soll | BI1: Korrektur | BJ1: Ist-M | BK1: Ist-G | BL1: NZ-St | BM1: SFZ-St | BN1: Oktober | BO1: Soll | BP1: Korrektur | BQ1: Ist-M | BR1: Ist-G | BS1: NZ-St | BT1: SFZ-St | BU1: November | BV1: Soll | BW1: Korrektur | BX1: Ist-M | BY1: Ist-G | BZ1: NZ-St | CA1: SFZ-St | CB1: Dezember | CC1: Soll | CD1: Korrektur | CE1: Ist-M | CF1: Ist-G | CG1: NZ-St | CH1: SFZ-St
A2: =IF(Einstellungen!F2<>"",Einstellungen!F2,"") -> Max | B2: =IF(A2<>"",Einstellungen!G2-COUNTIF(INDIRECT(D$1&"!$C$41:$AG$51",TRUE),A2)-COUNTIF(INDIRECT(J$1&"!$C$41:$AG$51",TRUE),A2)-COUNTIF(INDIRECT(Q$1&"!$C$41:$AG$51",TRUE),A2)-COUNTIF(INDIRECT(X$1&"!$C$41:$AG$51",TRUE),A2)-COUNTIF(INDIRECT(AE$1&"!$C$41:$AG$51",TRUE),A2)-COUNTIF(INDIRECT(AL$1&"!$C$41:$AG$51",TRUE),A2)-COUNTIF(INDIRECT(AS$1&"!$C$41:$AG$51",TRUE),A2)-COUNTIF(INDIRECT(AZ$1&"!$C$41:$AG$51",TRUE),A2)-COUNTIF(INDIRECT(BG$1&"!$C$41:$AG$51",TRUE),A2)-COUNTIF(INDIRECT(BN$1&"!$C$41:$AG$51",TRUE),A2)-COUNTIF(INDIRECT(BU$1&"!$C$41:$AG$51",TRUE),A2)-COUNTIF(INDIRECT(CB$1&"!$C$41:$AG$51",TRUE),A2),"") -> 30 | D2: =IF($A2<>"",SUMIFS(INDIRECT(D$1&"!$C$22:$AG$22",TRUE),INDIRECT(D$1&"!$C$19:$AG$19",TRUE),$A2)+SUMIFS(INDIRECT(D$1&"!$C$26:$AG$26",TRUE),INDIRECT(D$1&"!$C$23:$AG$23",TRUE),$A2)+SUMIFS(INDIRECT(D$1&"!$C$30:$AG$30",TRUE),INDIRECT(D$1&"!$C$27:$AG$27",TRUE),$A2)+SUMIFS(INDIRECT(D$1&"!$C$34:$AG$34",TRUE),INDIRECT(D$1&"!$C$31:$AG$31",TRUE),$A2)+SUMIFS(INDIRECT(D$1&"!$C$38:$AG$38",TRUE),INDIRECT(D$1&"!$C$35:$AG$35",TRUE),$A2)+(COUNTIFS(INDIRECT(D$1&"!$C$41:$AG$51",TRUE),$A2)*ROUND(Einstellungen!$H2/30.44,2)),"") -> 0 | E2: =IF($A2<>"",Einstellungen!$H2,"") -> 150 | G2: =IF(OR(D2<>"",F2<>"",E2<>""),D2-E2+F2,"") -> -150 | H2: =IF(D2<>"",SUMIFS(INDIRECT(D$1&"!$C$54:$AG$54",TRUE),INDIRECT(D$1&"!$C$19:$AG$19",TRUE),$A2)+SUMIFS(INDIRECT(D$1&"!$C$55:$AG$55",TRUE),INDIRECT(D$1&"!$C$23:$AG$23",TRUE),$A2)+SUMIFS(INDIRECT(D$1&"!$C$56:$AG$56",TRUE),INDIRECT(D$1&"!$C$27:$AG$27",TRUE),$A2)+SUMIFS(INDIRECT(D$1&"!$C$57:$AG$57",TRUE),INDIRECT(D$1&"!$C$31:$AG$31",TRUE),$A2)+SUMIFS(INDIRECT(D$1&"!$C$58:$AG$58",TRUE),INDIRECT(D$1&"!$C$35:$AG$35",TRUE),$A2),"") -> 0 | I2: =IF(D2<>"",SUMIFS(INDIRECT(D$1&"!$C$66:$AG$66",TRUE),INDIRECT(D$1&"!$C$19:$AG$19",TRUE),$A2)+SUMIFS(INDIRECT(D$1&"!$C$67:$AG$67",TRUE),INDIRECT(D$1&"!$C$23:$AG$23",TRUE),$A2)+SUMIFS(INDIRECT(D$1&"!$C$68:$AG$68",TRUE),INDIRECT(D$1&"!$C$27:$AG$27",TRUE),$A2)+SUMIFS(INDIRECT(D$1&"!$C$69:$AG$69",TRUE),INDIRECT(D$1&"!$C$31:$AG$31",TRUE),$A2)+SUMIFS(INDIRECT(D$1&"!$C$70:$AG$70",TRUE),INDIRECT(D$1&"!$C$35:$AG$35",TRUE),$A2),"") -> 0 | J2: =IF($A2<>"",SUMIFS(INDIRECT(J$1&"!$C$22:$AG$22",TRUE),INDIRECT(J$1&"!$C$19:$AG$19",TRUE),$A2)+SUMIFS(INDIRECT(J$1&"!$C$26:$AG$26",TRUE),INDIRECT(J$1&"!$C$23:$AG$23",TRUE),$A2)+SUMIFS(INDIRECT(J$1&"!$C$30:$AG$30",TRUE),INDIRECT(J$1&"!$C$27:$AG$27",TRUE),$A2)+SUMIFS(INDIRECT(J$1&"!$C$34:$AG$34",TRUE),INDIRECT(J$1&"!$C$31:$AG$31",TRUE),$A2)+SUMIFS(INDIRECT(J$1&"!$C$38:$AG$38",TRUE),INDIRECT(J$1&"!$C$35:$AG$35",TRUE),$A2)+(COUNTIFS(INDIRECT(J$1&"!$C$41:$AG$51",TRUE),$A2)*ROUND(Einstellungen!$H2/30.44,2)),"") -> 0 | K2: =IF($A2<>"",Einstellungen!$H2,"") -> 150 | M2: =IF(OR(J2<>"",L2<>"",K2<>""),J2-K2+L2,"") -> -150 | N2: =IF(G2<>"",M2+G2,M2) -> -300 | O2: =IF(J2<>"",SUMIFS(INDIRECT(J$1&"!$C$54:$AG$54",TRUE),INDIRECT(J$1&"!$C$19:$AG$19",TRUE),$A2)+SUMIFS(INDIRECT(J$1&"!$C$55:$AG$55",TRUE),INDIRECT(J$1&"!$C$23:$AG$23",TRUE),$A2)+SUMIFS(INDIRECT(J$1&"!$C$56:$AG$56",TRUE),INDIRECT(J$1&"!$C$27:$AG$27",TRUE),$A2)+SUMIFS(INDIRECT(J$1&"!$C$57:$AG$57",TRUE),INDIRECT(J$1&"!$C$31:$AG$31",TRUE),$A2)+SUMIFS(INDIRECT(J$1&"!$C$58:$AG$58",TRUE),INDIRECT(J$1&"!$C$35:$AG$35",TRUE),$A2),"") -> 0 | P2: =IF(J2<>"",SUMIFS(INDIRECT(J$1&"!$C$66:$AG$66",TRUE),INDIRECT(J$1&"!$C$19:$AG$19",TRUE),$A2)+SUMIFS(INDIRECT(J$1&"!$C$67:$AG$67",TRUE),INDIRECT(J$1&"!$C$23:$AG$23",TRUE),$A2)+SUMIFS(INDIRECT(J$1&"!$C$68:$AG$68",TRUE),INDIRECT(J$1&"!$C$27:$AG$27",TRUE),$A2)+SUMIFS(INDIRECT(J$1&"!$C$69:$AG$69",TRUE),INDIRECT(J$1&"!$C$31:$AG$31",TRUE),$A2)+SUMIFS(INDIRECT(J$1&"!$C$70:$AG$70",TRUE),INDIRECT(J$1&"!$C$35:$AG$35",TRUE),$A2),"") -> 0 | Q2: =IF($A2<>"",SUMIFS(INDIRECT(Q$1&"!$C$22:$AG$22",TRUE),INDIRECT(Q$1&"!$C$19:$AG$19",TRUE),$A2)+SUMIFS(INDIRECT(Q$1&"!$C$26:$AG$26",TRUE),INDIRECT(Q$1&"!$C$23:$AG$23",TRUE),$A2)+SUMIFS(INDIRECT(Q$1&"!$C$30:$AG$30",TRUE),INDIRECT(Q$1&"!$C$27:$AG$27",TRUE),$A2)+SUMIFS(INDIRECT(Q$1&"!$C$34:$AG$34",TRUE),INDIRECT(Q$1&"!$C$31:$AG$31",TRUE),$A2)+SUMIFS(INDIRECT(Q$1&"!$C$38:$AG$38",TRUE),INDIRECT(Q$1&"!$C$35:$AG$35",TRUE),$A2)+(COUNTIFS(INDIRECT(Q$1&"!$C$41:$AG$51",TRUE),$A2)*ROUND(Einstellungen!$H2/30.44,2)),"") -> 0 | R2: =IF($A2<>"",Einstellungen!$H2,"") -> 150 | T2: =IF(OR(Q2<>"",S2<>"",R2<>""),Q2-R2+S2,"") -> -150 | U2: =IF(N2<>"",T2+N2,T2) -> -450 | V2: =IF(Q2<>"",SUMIFS(INDIRECT(Q$1&"!$C$54:$AG$54",TRUE),INDIRECT(Q$1&"!$C$19:$AG$19",TRUE),$A2)+SUMIFS(INDIRECT(Q$1&"!$C$55:$AG$55",TRUE),INDIRECT(Q$1&"!$C$23:$AG$23",TRUE),$A2)+SUMIFS(INDIRECT(Q$1&"!$C$56:$AG$56",TRUE),INDIRECT(Q$1&"!$C$27:$AG$27",TRUE),$A2)+SUMIFS(INDIRECT(Q$1&"!$C$57:$AG$57",TRUE),INDIRECT(Q$1&"!$C$31:$AG$31",TRUE),$A2)+SUMIFS(INDIRECT(Q$1&"!$C$58:$AG$58",TRUE),INDIRECT(Q$1&"!$C$35:$AG$35",TRUE),$A2),"") -> 0 | W2: =IF(Q2<>"",SUMIFS(INDIRECT(Q$1&"!$C$66:$AG$66",TRUE),INDIRECT(Q$1&"!$C$19:$AG$19",TRUE),$A2)+SUMIFS(INDIRECT(Q$1&"!$C$67:$AG$67",TRUE),INDIRECT(Q$1&"!$C$23:$AG$23",TRUE),$A2)+SUMIFS(INDIRECT(Q$1&"!$C$68:$AG$68",TRUE),INDIRECT(Q$1&"!$C$27:$AG$27",TRUE),$A2)+SUMIFS(INDIRECT(Q$1&"!$C$69:$AG$69",TRUE),INDIRECT(Q$1&"!$C$31:$AG$31",TRUE),$A2)+SUMIFS(INDIRECT(Q$1&"!$C$70:$AG$70",TRUE),INDIRECT(Q$1&"!$C$35:$AG$35",TRUE),$A2),"") -> 0 | X2: =IF($A2<>"",SUMIFS(INDIRECT(X$1&"!$C$22:$AG$22",TRUE),INDIRECT(X$1&"!$C$19:$AG$19",TRUE),$A2)+SUMIFS(INDIRECT(X$1&"!$C$26:$AG$26",TRUE),INDIRECT(X$1&"!$C$23:$AG$23",TRUE),$A2)+SUMIFS(INDIRECT(X$1&"!$C$30:$AG$30",TRUE),INDIRECT(X$1&"!$C$27:$AG$27",TRUE),$A2)+SUMIFS(INDIRECT(X$1&"!$C$34:$AG$34",TRUE),INDIRECT(X$1&"!$C$31:$AG$31",TRUE),$A2)+SUMIFS(INDIRECT(X$1&"!$C$38:$AG$38",TRUE),INDIRECT(X$1&"!$C$35:$AG$35",TRUE),$A2)+(COUNTIFS(INDIRECT(X$1&"!$C$41:$AG$51",TRUE),$A2)*ROUND(Einstellungen!$H2/30.44,2)),"") -> 0 | Y2: =IF($A2<>"",Einstellungen!$H2,"") -> 150 | AA2: =IF(OR(X2<>"",Z2<>"",Y2<>""),X2-Y2+Z2,"") -> -150 | AB2: =IF(U2<>"",AA2+U2,AA2) -> -600 | AC2: =IF(X2<>"",SUMIFS(INDIRECT(X$1&"!$C$54:$AG$54",TRUE),INDIRECT(X$1&"!$C$19:$AG$19",TRUE),$A2)+SUMIFS(INDIRECT(X$1&"!$C$55:$AG$55",TRUE),INDIRECT(X$1&"!$C$23:$AG$23",TRUE),$A2)+SUMIFS(INDIRECT(X$1&"!$C$56:$AG$56",TRUE),INDIRECT(X$1&"!$C$27:$AG$27",TRUE),$A2)+SUMIFS(INDIRECT(X$1&"!$C$57:$AG$57",TRUE),INDIRECT(X$1&"!$C$31:$AG$31",TRUE),$A2)+SUMIFS(INDIRECT(X$1&"!$C$58:$AG$58",TRUE),INDIRECT(X$1&"!$C$35:$AG$35",TRUE),$A2),"") -> 0 | AD2: =IF(X2<>"",SUMIFS(INDIRECT(X$1&"!$C$66:$AG$66",TRUE),INDIRECT(X$1&"!$C$19:$AG$19",TRUE),$A2)+SUMIFS(INDIRECT(X$1&"!$C$67:$AG$67",TRUE),INDIRECT(X$1&"!$C$23:$AG$23",TRUE),$A2)+SUMIFS(INDIRECT(X$1&"!$C$68:$AG$68",TRUE),INDIRECT(X$1&"!$C$27:$AG$27",TRUE),$A2)+SUMIFS(INDIRECT(X$1&"!$C$69:$AG$69",TRUE),INDIRECT(X$1&"!$C$31:$AG$31",TRUE),$A2)+SUMIFS(INDIRECT(X$1&"!$C$70:$AG$70",TRUE),INDIRECT(X$1&"!$C$35:$AG$35",TRUE),$A2),"") -> 0 | AE2: =IF($A2<>"",SUMIFS(INDIRECT(AE$1&"!$C$22:$AG$22",TRUE),INDIRECT(AE$1&"!$C$19:$AG$19",TRUE),$A2)+SUMIFS(INDIRECT(AE$1&"!$C$26:$AG$26",TRUE),INDIRECT(AE$1&"!$C$23:$AG$23",TRUE),$A2)+SUMIFS(INDIRECT(AE$1&"!$C$30:$AG$30",TRUE),INDIRECT(AE$1&"!$C$27:$AG$27",TRUE),$A2)+SUMIFS(INDIRECT(AE$1&"!$C$34:$AG$34",TRUE),INDIRECT(AE$1&"!$C$31:$AG$31",TRUE),$A2)+SUMIFS(INDIRECT(AE$1&"!$C$38:$AG$38",TRUE),INDIRECT(AE$1&"!$C$35:$AG$35",TRUE),$A2)+(COUNTIFS(INDIRECT(AE$1&"!$C$41:$AG$51",TRUE),$A2)*ROUND(Einstellungen!$H2/30.44,2)),"") -> 0 | AF2: =IF($A2<>"",Einstellungen!$H2,"") -> 150 | AH2: =IF(OR(AE2<>"",AG2<>"",AF2<>""),AE2-AF2+AG2,"") -> -150 | AI2: =IF(AB2<>"",AH2+AB2,AH2) -> -750 | AJ2: =IF(AE2<>"",SUMIFS(INDIRECT(AE$1&"!$C$54:$AG$54",TRUE),INDIRECT(AE$1&"!$C$19:$AG$19",TRUE),$A2)+SUMIFS(INDIRECT(AE$1&"!$C$55:$AG$55",TRUE),INDIRECT(AE$1&"!$C$23:$AG$23",TRUE),$A2)+SUMIFS(INDIRECT(AE$1&"!$C$56:$AG$56",TRUE),INDIRECT(AE$1&"!$C$27:$AG$27",TRUE),$A2)+SUMIFS(INDIRECT(AE$1&"!$C$57:$AG$57",TRUE),INDIRECT(AE$1&"!$C$31:$AG$31",TRUE),$A2)+SUMIFS(INDIRECT(AE$1&"!$C$58:$AG$58",TRUE),INDIRECT(AE$1&"!$C$35:$AG$35",TRUE),$A2),"") -> 0 | AK2: =IF(AE2<>"",SUMIFS(INDIRECT(AE$1&"!$C$66:$AG$66",TRUE),INDIRECT(AE$1&"!$C$19:$AG$19",TRUE),$A2)+SUMIFS(INDIRECT(AE$1&"!$C$67:$AG$67",TRUE),INDIRECT(AE$1&"!$C$23:$AG$23",TRUE),$A2)+SUMIFS(INDIRECT(AE$1&"!$C$68:$AG$68",TRUE),INDIRECT(AE$1&"!$C$27:$AG$27",TRUE),$A2)+SUMIFS(INDIRECT(AE$1&"!$C$69:$AG$69",TRUE),INDIRECT(AE$1&"!$C$31:$AG$31",TRUE),$A2)+SUMIFS(INDIRECT(AE$1&"!$C$70:$AG$70",TRUE),INDIRECT(AE$1&"!$C$35:$AG$35",TRUE),$A2),"") -> 0 | AL2: =IF($A2<>"",SUMIFS(INDIRECT(AL$1&"!$C$22:$AG$22",TRUE),INDIRECT(AL$1&"!$C$19:$AG$19",TRUE),$A2)+SUMIFS(INDIRECT(AL$1&"!$C$26:$AG$26",TRUE),INDIRECT(AL$1&"!$C$23:$AG$23",TRUE),$A2)+SUMIFS(INDIRECT(AL$1&"!$C$30:$AG$30",TRUE),INDIRECT(AL$1&"!$C$27:$AG$27",TRUE),$A2)+SUMIFS(INDIRECT(AL$1&"!$C$34:$AG$34",TRUE),INDIRECT(AL$1&"!$C$31:$AG$31",TRUE),$A2)+SUMIFS(INDIRECT(AL$1&"!$C$38:$AG$38",TRUE),INDIRECT(AL$1&"!$C$35:$AG$35",TRUE),$A2)+(COUNTIFS(INDIRECT(AL$1&"!$C$41:$AG$51",TRUE),$A2)*ROUND(Einstellungen!$H2/30.44,2)),"") -> 0 | AM2: =IF($A2<>"",Einstellungen!$H2,"") -> 150 | AO2: =IF(OR(AL2<>"",AN2<>"",AM2<>""),AL2-AM2+AN2,"") -> -150 | AP2: =IF(AI2<>"",AO2+AI2,AO2) -> -900 | AQ2: =IF(AL2<>"",SUMIFS(INDIRECT(AL$1&"!$C$54:$AG$54",TRUE),INDIRECT(AL$1&"!$C$19:$AG$19",TRUE),$A2)+SUMIFS(INDIRECT(AL$1&"!$C$55:$AG$55",TRUE),INDIRECT(AL$1&"!$C$23:$AG$23",TRUE),$A2)+SUMIFS(INDIRECT(AL$1&"!$C$56:$AG$56",TRUE),INDIRECT(AL$1&"!$C$27:$AG$27",TRUE),$A2)+SUMIFS(INDIRECT(AL$1&"!$C$57:$AG$57",TRUE),INDIRECT(AL$1&"!$C$31:$AG$31",TRUE),$A2)+SUMIFS(INDIRECT(AL$1&"!$C$58:$AG$58",TRUE),INDIRECT(AL$1&"!$C$35:$AG$35",TRUE),$A2),"") -> 0 | AR2: =IF(AL2<>"",SUMIFS(INDIRECT(AL$1&"!$C$66:$AG$66",TRUE),INDIRECT(AL$1&"!$C$19:$AG$19",TRUE),$A2)+SUMIFS(INDIRECT(AL$1&"!$C$67:$AG$67",TRUE),INDIRECT(AL$1&"!$C$23:$AG$23",TRUE),$A2)+SUMIFS(INDIRECT(AL$1&"!$C$68:$AG$68",TRUE),INDIRECT(AL$1&"!$C$27:$AG$27",TRUE),$A2)+SUMIFS(INDIRECT(AL$1&"!$C$69:$AG$69",TRUE),INDIRECT(AL$1&"!$C$31:$AG$31",TRUE),$A2)+SUMIFS(INDIRECT(AL$1&"!$C$70:$AG$70",TRUE),INDIRECT(AL$1&"!$C$35:$AG$35",TRUE),$A2),"") -> 0 | AS2: =IF($A2<>"",SUMIFS(INDIRECT(AS$1&"!$C$22:$AG$22",TRUE),INDIRECT(AS$1&"!$C$19:$AG$19",TRUE),$A2)+SUMIFS(INDIRECT(AS$1&"!$C$26:$AG$26",TRUE),INDIRECT(AS$1&"!$C$23:$AG$23",TRUE),$A2)+SUMIFS(INDIRECT(AS$1&"!$C$30:$AG$30",TRUE),INDIRECT(AS$1&"!$C$27:$AG$27",TRUE),$A2)+SUMIFS(INDIRECT(AS$1&"!$C$34:$AG$34",TRUE),INDIRECT(AS$1&"!$C$31:$AG$31",TRUE),$A2)+SUMIFS(INDIRECT(AS$1&"!$C$38:$AG$38",TRUE),INDIRECT(AS$1&"!$C$35:$AG$35",TRUE),$A2)+(COUNTIFS(INDIRECT(AS$1&"!$C$41:$AG$51",TRUE),$A2)*ROUND(Einstellungen!$H2/30.44,2)),"") -> 0 | AT2: =IF($A2<>"",Einstellungen!$H2,"") -> 150 | AV2: =IF(OR(AS2<>"",AU2<>"",AT2<>""),AS2-AT2+AU2,"") -> -150 | AW2: =IF(AP2<>"",AV2+AP2,AV2) -> -1050 | AX2: =IF(AS2<>"",SUMIFS(INDIRECT(AS$1&"!$C$54:$AG$54",TRUE),INDIRECT(AS$1&"!$C$19:$AG$19",TRUE),$A2)+SUMIFS(INDIRECT(AS$1&"!$C$55:$AG$55",TRUE),INDIRECT(AS$1&"!$C$23:$AG$23",TRUE),$A2)+SUMIFS(INDIRECT(AS$1&"!$C$56:$AG$56",TRUE),INDIRECT(AS$1&"!$C$27:$AG$27",TRUE),$A2)+SUMIFS(INDIRECT(AS$1&"!$C$57:$AG$57",TRUE),INDIRECT(AS$1&"!$C$31:$AG$31",TRUE),$A2)+SUMIFS(INDIRECT(AS$1&"!$C$58:$AG$58",TRUE),INDIRECT(AS$1&"!$C$35:$AG$35",TRUE),$A2),"") -> 0 | AY2: =IF(AS2<>"",SUMIFS(INDIRECT(AS$1&"!$C$66:$AG$66",TRUE),INDIRECT(AS$1&"!$C$19:$AG$19",TRUE),$A2)+SUMIFS(INDIRECT(AS$1&"!$C$67:$AG$67",TRUE),INDIRECT(AS$1&"!$C$23:$AG$23",TRUE),$A2)+SUMIFS(INDIRECT(AS$1&"!$C$68:$AG$68",TRUE),INDIRECT(AS$1&"!$C$27:$AG$27",TRUE),$A2)+SUMIFS(INDIRECT(AS$1&"!$C$69:$AG$69",TRUE),INDIRECT(AS$1&"!$C$31:$AG$31",TRUE),$A2)+SUMIFS(INDIRECT(AS$1&"!$C$70:$AG$70",TRUE),INDIRECT(AS$1&"!$C$35:$AG$35",TRUE),$A2),"") -> 0 | AZ2: =IF($A2<>"",SUMIFS(INDIRECT(AZ$1&"!$C$22:$AG$22",TRUE),INDIRECT(AZ$1&"!$C$19:$AG$19",TRUE),$A2)+SUMIFS(INDIRECT(AZ$1&"!$C$26:$AG$26",TRUE),INDIRECT(AZ$1&"!$C$23:$AG$23",TRUE),$A2)+SUMIFS(INDIRECT(AZ$1&"!$C$30:$AG$30",TRUE),INDIRECT(AZ$1&"!$C$27:$AG$27",TRUE),$A2)+SUMIFS(INDIRECT(AZ$1&"!$C$34:$AG$34",TRUE),INDIRECT(AZ$1&"!$C$31:$AG$31",TRUE),$A2)+SUMIFS(INDIRECT(AZ$1&"!$C$38:$AG$38",TRUE),INDIRECT(AZ$1&"!$C$35:$AG$35",TRUE),$A2)+(COUNTIFS(INDIRECT(AZ$1&"!$C$41:$AG$51",TRUE),$A2)*ROUND(Einstellungen!$H2/30.44,2)),"") -> 0 | BA2: =IF($A2<>"",Einstellungen!$H2,"") -> 150 | BC2: =IF(OR(AZ2<>"",BB2<>"",BA2<>""),AZ2-BA2+BB2,"") -> -150 | BD2: =IF(AW2<>"",BC2+AW2,BC2) -> -1200 | BE2: =IF(AZ2<>"",SUMIFS(INDIRECT(AZ$1&"!$C$54:$AG$54",TRUE),INDIRECT(AZ$1&"!$C$19:$AG$19",TRUE),$A2)+SUMIFS(INDIRECT(AZ$1&"!$C$55:$AG$55",TRUE),INDIRECT(AZ$1&"!$C$23:$AG$23",TRUE),$A2)+SUMIFS(INDIRECT(AZ$1&"!$C$56:$AG$56",TRUE),INDIRECT(AZ$1&"!$C$27:$AG$27",TRUE),$A2)+SUMIFS(INDIRECT(AZ$1&"!$C$57:$AG$57",TRUE),INDIRECT(AZ$1&"!$C$31:$AG$31",TRUE),$A2)+SUMIFS(INDIRECT(AZ$1&"!$C$58:$AG$58",TRUE),INDIRECT(AZ$1&"!$C$35:$AG$35",TRUE),$A2),"") -> 0 | BF2: =IF(AZ2<>"",SUMIFS(INDIRECT(AZ$1&"!$C$66:$AG$66",TRUE),INDIRECT(AZ$1&"!$C$19:$AG$19",TRUE),$A2)+SUMIFS(INDIRECT(AZ$1&"!$C$67:$AG$67",TRUE),INDIRECT(AZ$1&"!$C$23:$AG$23",TRUE),$A2)+SUMIFS(INDIRECT(AZ$1&"!$C$68:$AG$68",TRUE),INDIRECT(AZ$1&"!$C$27:$AG$27",TRUE),$A2)+SUMIFS(INDIRECT(AZ$1&"!$C$69:$AG$69",TRUE),INDIRECT(AZ$1&"!$C$31:$AG$31",TRUE),$A2)+SUMIFS(INDIRECT(AZ$1&"!$C$70:$AG$70",TRUE),INDIRECT(AZ$1&"!$C$35:$AG$35",TRUE),$A2),"") -> 0 | BG2: =IF($A2<>"",SUMIFS(INDIRECT(BG$1&"!$C$22:$AG$22",TRUE),INDIRECT(BG$1&"!$C$19:$AG$19",TRUE),$A2)+SUMIFS(INDIRECT(BG$1&"!$C$26:$AG$26",TRUE),INDIRECT(BG$1&"!$C$23:$AG$23",TRUE),$A2)+SUMIFS(INDIRECT(BG$1&"!$C$30:$AG$30",TRUE),INDIRECT(BG$1&"!$C$27:$AG$27",TRUE),$A2)+SUMIFS(INDIRECT(BG$1&"!$C$34:$AG$34",TRUE),INDIRECT(BG$1&"!$C$31:$AG$31",TRUE),$A2)+SUMIFS(INDIRECT(BG$1&"!$C$38:$AG$38",TRUE),INDIRECT(BG$1&"!$C$35:$AG$35",TRUE),$A2)+(COUNTIFS(INDIRECT(BG$1&"!$C$41:$AG$51",TRUE),$A2)*ROUND(Einstellungen!$H2/30.44,2)),"") -> 0 | BH2: =IF($A2<>"",Einstellungen!$H2,"") -> 150 | BJ2: =IF(OR(BG2<>"",BI2<>"",BH2<>""),BG2-BH2+BI2,"") -> -150 | BK2: =IF(BD2<>"",BJ2+BD2,BJ2) -> -1350 | BL2: =IF(BG2<>"",SUMIFS(INDIRECT(BG$1&"!$C$54:$AG$54",TRUE),INDIRECT(BG$1&"!$C$19:$AG$19",TRUE),$A2)+SUMIFS(INDIRECT(BG$1&"!$C$55:$AG$55",TRUE),INDIRECT(BG$1&"!$C$23:$AG$23",TRUE),$A2)+SUMIFS(INDIRECT(BG$1&"!$C$56:$AG$56",TRUE),INDIRECT(BG$1&"!$C$27:$AG$27",TRUE),$A2)+SUMIFS(INDIRECT(BG$1&"!$C$57:$AG$57",TRUE),INDIRECT(BG$1&"!$C$31:$AG$31",TRUE),$A2)+SUMIFS(INDIRECT(BG$1&"!$C$58:$AG$58",TRUE),INDIRECT(BG$1&"!$C$35:$AG$35",TRUE),$A2),"") -> 0 | BM2: =IF(BG2<>"",SUMIFS(INDIRECT(BG$1&"!$C$66:$AG$66",TRUE),INDIRECT(BG$1&"!$C$19:$AG$19",TRUE),$A2)+SUMIFS(INDIRECT(BG$1&"!$C$67:$AG$67",TRUE),INDIRECT(BG$1&"!$C$23:$AG$23",TRUE),$A2)+SUMIFS(INDIRECT(BG$1&"!$C$68:$AG$68",TRUE),INDIRECT(BG$1&"!$C$27:$AG$27",TRUE),$A2)+SUMIFS(INDIRECT(BG$1&"!$C$69:$AG$69",TRUE),INDIRECT(BG$1&"!$C$31:$AG$31",TRUE),$A2)+SUMIFS(INDIRECT(BG$1&"!$C$70:$AG$70",TRUE),INDIRECT(BG$1&"!$C$35:$AG$35",TRUE),$A2),"") -> 0 | BN2: =IF($A2<>"",SUMIFS(INDIRECT(BN$1&"!$C$22:$AG$22",TRUE),INDIRECT(BN$1&"!$C$19:$AG$19",TRUE),$A2)+SUMIFS(INDIRECT(BN$1&"!$C$26:$AG$26",TRUE),INDIRECT(BN$1&"!$C$23:$AG$23",TRUE),$A2)+SUMIFS(INDIRECT(BN$1&"!$C$30:$AG$30",TRUE),INDIRECT(BN$1&"!$C$27:$AG$27",TRUE),$A2)+SUMIFS(INDIRECT(BN$1&"!$C$34:$AG$34",TRUE),INDIRECT(BN$1&"!$C$31:$AG$31",TRUE),$A2)+SUMIFS(INDIRECT(BN$1&"!$C$38:$AG$38",TRUE),INDIRECT(BN$1&"!$C$35:$AG$35",TRUE),$A2)+(COUNTIFS(INDIRECT(BN$1&"!$C$41:$AG$51",TRUE),$A2)*ROUND(Einstellungen!$H2/30.44,2)),"") -> 0 | BO2: =IF($A2<>"",Einstellungen!$H2,"") -> 150 | BQ2: =IF(OR(BN2<>"",BP2<>"",BO2<>""),BN2-BO2+BP2,"") -> -150 | BR2: =IF(BK2<>"",BQ2+BK2,BQ2) -> -1500 | BS2: =IF(BN2<>"",SUMIFS(INDIRECT(BN$1&"!$C$54:$AG$54",TRUE),INDIRECT(BN$1&"!$C$19:$AG$19",TRUE),$A2)+SUMIFS(INDIRECT(BN$1&"!$C$55:$AG$55",TRUE),INDIRECT(BN$1&"!$C$23:$AG$23",TRUE),$A2)+SUMIFS(INDIRECT(BN$1&"!$C$56:$AG$56",TRUE),INDIRECT(BN$1&"!$C$27:$AG$27",TRUE),$A2)+SUMIFS(INDIRECT(BN$1&"!$C$57:$AG$57",TRUE),INDIRECT(BN$1&"!$C$31:$AG$31",TRUE),$A2)+SUMIFS(INDIRECT(BN$1&"!$C$58:$AG$58",TRUE),INDIRECT(BN$1&"!$C$35:$AG$35",TRUE),$A2),"") -> 0 | BT2: =IF(BN2<>"",SUMIFS(INDIRECT(BN$1&"!$C$66:$AG$66",TRUE),INDIRECT(BN$1&"!$C$19:$AG$19",TRUE),$A2)+SUMIFS(INDIRECT(BN$1&"!$C$67:$AG$67",TRUE),INDIRECT(BN$1&"!$C$23:$AG$23",TRUE),$A2)+SUMIFS(INDIRECT(BN$1&"!$C$68:$AG$68",TRUE),INDIRECT(BN$1&"!$C$27:$AG$27",TRUE),$A2)+SUMIFS(INDIRECT(BN$1&"!$C$69:$AG$69",TRUE),INDIRECT(BN$1&"!$C$31:$AG$31",TRUE),$A2)+SUMIFS(INDIRECT(BN$1&"!$C$70:$AG$70",TRUE),INDIRECT(BN$1&"!$C$35:$AG$35",TRUE),$A2),"") -> 0 | BU2: =IF($A2<>"",SUMIFS(INDIRECT(BU$1&"!$C$22:$AG$22",TRUE),INDIRECT(BU$1&"!$C$19:$AG$19",TRUE),$A2)+SUMIFS(INDIRECT(BU$1&"!$C$26:$AG$26",TRUE),INDIRECT(BU$1&"!$C$23:$AG$23",TRUE),$A2)+SUMIFS(INDIRECT(BU$1&"!$C$30:$AG$30",TRUE),INDIRECT(BU$1&"!$C$27:$AG$27",TRUE),$A2)+SUMIFS(INDIRECT(BU$1&"!$C$34:$AG$34",TRUE),INDIRECT(BU$1&"!$C$31:$AG$31",TRUE),$A2)+SUMIFS(INDIRECT(BU$1&"!$C$38:$AG$38",TRUE),INDIRECT(BU$1&"!$C$35:$AG$35",TRUE),$A2)+(COUNTIFS(INDIRECT(BU$1&"!$C$41:$AG$51",TRUE),$A2)*ROUND(Einstellungen!$H2/30.44,2)),"") -> 0 | BV2: =IF($A2<>"",Einstellungen!$H2,"") -> 150 | BX2: =IF(OR(BU2<>"",BW2<>"",BV2<>""),BU2-BV2+BW2,"") -> -150 | BY2: =IF(BR2<>"",BX2+BR2,BX2) -> -1650 | BZ2: =IF(BU2<>"",SUMIFS(INDIRECT(BU$1&"!$C$54:$AG$54",TRUE),INDIRECT(BU$1&"!$C$19:$AG$19",TRUE),$A2)+SUMIFS(INDIRECT(BU$1&"!$C$55:$AG$55",TRUE),INDIRECT(BU$1&"!$C$23:$AG$23",TRUE),$A2)+SUMIFS(INDIRECT(BU$1&"!$C$56:$AG$56",TRUE),INDIRECT(BU$1&"!$C$27:$AG$27",TRUE),$A2)+SUMIFS(INDIRECT(BU$1&"!$C$57:$AG$57",TRUE),INDIRECT(BU$1&"!$C$31:$AG$31",TRUE),$A2)+SUMIFS(INDIRECT(BU$1&"!$C$58:$AG$58",TRUE),INDIRECT(BU$1&"!$C$35:$AG$35",TRUE),$A2),"") -> 0 | CA2: =IF(BU2<>"",SUMIFS(INDIRECT(BU$1&"!$C$66:$AG$66",TRUE),INDIRECT(BU$1&"!$C$19:$AG$19",TRUE),$A2)+SUMIFS(INDIRECT(BU$1&"!$C$67:$AG$67",TRUE),INDIRECT(BU$1&"!$C$23:$AG$23",TRUE),$A2)+SUMIFS(INDIRECT(BU$1&"!$C$68:$AG$68",TRUE),INDIRECT(BU$1&"!$C$27:$AG$27",TRUE),$A2)+SUMIFS(INDIRECT(BU$1&"!$C$69:$AG$69",TRUE),INDIRECT(BU$1&"!$C$31:$AG$31",TRUE),$A2)+SUMIFS(INDIRECT(BU$1&"!$C$70:$AG$70",TRUE),INDIRECT(BU$1&"!$C$35:$AG$35",TRUE),$A2),"") -> 0 | CB2: =IF($A2<>"",SUMIFS(INDIRECT(CB$1&"!$C$22:$AG$22",TRUE),INDIRECT(CB$1&"!$C$19:$AG$19",TRUE),$A2)+SUMIFS(INDIRECT(CB$1&"!$C$26:$AG$26",TRUE),INDIRECT(CB$1&"!$C$23:$AG$23",TRUE),$A2)+SUMIFS(INDIRECT(CB$1&"!$C$30:$AG$30",TRUE),INDIRECT(CB$1&"!$C$27:$AG$27",TRUE),$A2)+SUMIFS(INDIRECT(CB$1&"!$C$34:$AG$34",TRUE),INDIRECT(CB$1&"!$C$31:$AG$31",TRUE),$A2)+SUMIFS(INDIRECT(CB$1&"!$C$38:$AG$38",TRUE),INDIRECT(CB$1&"!$C$35:$AG$35",TRUE),$A2)+(COUNTIFS(INDIRECT(CB$1&"!$C$41:$AG$51",TRUE),$A2)*ROUND(Einstellungen!$H2/30.44,2)),"") -> 0 | CC2: =IF($A2<>"",Einstellungen!$H2,"") -> 150 | CE2: =IF(OR(CB2<>"",CD2<>"",CC2<>""),CB2-CC2+CD2,"") -> -150 | CF2: =IF(BY2<>"",CE2+BY2,CE2) -> -1800 | CG2: =IF(CB2<>"",SUMIFS(INDIRECT(CB$1&"!$C$54:$AG$54",TRUE),INDIRECT(CB$1&"!$C$19:$AG$19",TRUE),$A2)+SUMIFS(INDIRECT(CB$1&"!$C$55:$AG$55",TRUE),INDIRECT(CB$1&"!$C$23:$AG$23",TRUE),$A2)+SUMIFS(INDIRECT(CB$1&"!$C$56:$AG$56",TRUE),INDIRECT(CB$1&"!$C$27:$AG$27",TRUE),$A2)+SUMIFS(INDIRECT(CB$1&"!$C$57:$AG$57",TRUE),INDIRECT(CB$1&"!$C$31:$AG$31",TRUE),$A2)+SUMIFS(INDIRECT(CB$1&"!$C$58:$AG$58",TRUE),INDIRECT(CB$1&"!$C$35:$AG$35",TRUE),$A2),"") -> 0 | CH2: =IF(CB2<>"",SUMIFS(INDIRECT(CB$1&"!$C$66:$AG$66",TRUE),INDIRECT(CB$1&"!$C$19:$AG$19",TRUE),$A2)+SUMIFS(INDIRECT(CB$1&"!$C$67:$AG$67",TRUE),INDIRECT(CB$1&"!$C$23:$AG$23",TRUE),$A2)+SUMIFS(INDIRECT(CB$1&"!$C$68:$AG$68",TRUE),INDIRECT(CB$1&"!$C$27:$AG$27",TRUE),$A2)+SUMIFS(INDIRECT(CB$1&"!$C$69:$AG$69",TRUE),INDIRECT(CB$1&"!$C$31:$AG$31",TRUE),$A2)+SUMIFS(INDIRECT(CB$1&"!$C$70:$AG$70",TRUE),INDIRECT(CB$1&"!$C$35:$AG$35",TRUE),$A2),"") -> 0
A3: =IF(Einstellungen!F3<>"",Einstellungen!F3,"") ->  | B3: =IF(A3<>"",Einstellungen!G3-COUNTIF(INDIRECT(D$1&"!$C$41:$AG$51",TRUE),A3)-COUNTIF(INDIRECT(J$1&"!$C$41:$AG$51",TRUE),A3)-COUNTIF(INDIRECT(Q$1&"!$C$41:$AG$51",TRUE),A3)-COUNTIF(INDIRECT(X$1&"!$C$41:$AG$51",TRUE),A3)-COUNTIF(INDIRECT(AE$1&"!$C$41:$AG$51",TRUE),A3)-COUNTIF(INDIRECT(AL$1&"!$C$41:$AG$51",TRUE),A3)-COUNTIF(INDIRECT(AS$1&"!$C$41:$AG$51",TRUE),A3)-COUNTIF(INDIRECT(AZ$1&"!$C$41:$AG$51",TRUE),A3)-COUNTIF(INDIRECT(BG$1&"!$C$41:$AG$51",TRUE),A3)-COUNTIF(INDIRECT(BN$1&"!$C$41:$AG$51",TRUE),A3)-COUNTIF(INDIRECT(BU$1&"!$C$41:$AG$51",TRUE),A3)-COUNTIF(INDIRECT(CB$1&"!$C$41:$AG$51",TRUE),A3),"") ->  | D3: =IF($A3<>"",SUMIFS(INDIRECT(D$1&"!$C$22:$AG$22",TRUE),INDIRECT(D$1&"!$C$19:$AG$19",TRUE),$A3)+SUMIFS(INDIRECT(D$1&"!$C$26:$AG$26",TRUE),INDIRECT(D$1&"!$C$23:$AG$23",TRUE),$A3)+SUMIFS(INDIRECT(D$1&"!$C$30:$AG$30",TRUE),INDIRECT(D$1&"!$C$27:$AG$27",TRUE),$A3)+SUMIFS(INDIRECT(D$1&"!$C$34:$AG$34",TRUE),INDIRECT(D$1&"!$C$31:$AG$31",TRUE),$A3)+SUMIFS(INDIRECT(D$1&"!$C$38:$AG$38",TRUE),INDIRECT(D$1&"!$C$35:$AG$35",TRUE),$A3)+(COUNTIFS(INDIRECT(D$1&"!$C$41:$AG$51",TRUE),$A3)*ROUND(Einstellungen!$H3/30.44,2)),"") ->  | E3: =IF($A3<>"",Einstellungen!$H3,"") ->  | G3: =IF(OR(D3<>"",F3<>"",E3<>""),D3-E3+F3,"") ->  | J3: =IF($A3<>"",SUMIFS(INDIRECT(J$1&"!$C$22:$AG$22",TRUE),INDIRECT(J$1&"!$C$19:$AG$19",TRUE),$A3)+SUMIFS(INDIRECT(J$1&"!$C$26:$AG$26",TRUE),INDIRECT(J$1&"!$C$23:$AG$23",TRUE),$A3)+SUMIFS(INDIRECT(J$1&"!$C$30:$AG$30",TRUE),INDIRECT(J$1&"!$C$27:$AG$27",TRUE),$A3)+SUMIFS(INDIRECT(J$1&"!$C$34:$AG$34",TRUE),INDIRECT(J$1&"!$C$31:$AG$31",TRUE),$A3)+SUMIFS(INDIRECT(J$1&"!$C$38:$AG$38",TRUE),INDIRECT(J$1&"!$C$35:$AG$35",TRUE),$A3)+(COUNTIFS(INDIRECT(J$1&"!$C$41:$AG$51",TRUE),$A3)*ROUND(Einstellungen!$H3/30.44,2)),"") ->  | K3: =IF($A3<>"",Einstellungen!$H3,"") ->  | M3: =IF(OR(J3<>"",L3<>"",K3<>""),J3-K3+L3,"") ->  | N3: =IF(G3<>"",M3+G3,M3) ->  | O3: =IF(J3<>"",SUMIFS(INDIRECT(J$1&"!$C$54:$AG$54",TRUE),INDIRECT(J$1&"!$C$19:$AG$19",TRUE),$A3)+SUMIFS(INDIRECT(J$1&"!$C$55:$AG$55",TRUE),INDIRECT(J$1&"!$C$23:$AG$23",TRUE),$A3)+SUMIFS(INDIRECT(J$1&"!$C$56:$AG$56",TRUE),INDIRECT(J$1&"!$C$27:$AG$27",TRUE),$A3)+SUMIFS(INDIRECT(J$1&"!$C$57:$AG$57",TRUE),INDIRECT(J$1&"!$C$31:$AG$31",TRUE),$A3)+SUMIFS(INDIRECT(J$1&"!$C$58:$AG$58",TRUE),INDIRECT(J$1&"!$C$35:$AG$35",TRUE),$A3),"") ->  | P3: =IF(J3<>"",SUMIFS(INDIRECT(J$1&"!$C$66:$AG$66",TRUE),INDIRECT(J$1&"!$C$19:$AG$19",TRUE),$A3)+SUMIFS(INDIRECT(J$1&"!$C$67:$AG$67",TRUE),INDIRECT(J$1&"!$C$23:$AG$23",TRUE),$A3)+SUMIFS(INDIRECT(J$1&"!$C$68:$AG$68",TRUE),INDIRECT(J$1&"!$C$27:$AG$27",TRUE),$A3)+SUMIFS(INDIRECT(J$1&"!$C$69:$AG$69",TRUE),INDIRECT(J$1&"!$C$31:$AG$31",TRUE),$A3)+SUMIFS(INDIRECT(J$1&"!$C$70:$AG$70",TRUE),INDIRECT(J$1&"!$C$35:$AG$35",TRUE),$A3),"") ->  | Q3: =IF($A3<>"",SUMIFS(INDIRECT(Q$1&"!$C$22:$AG$22",TRUE),INDIRECT(Q$1&"!$C$19:$AG$19",TRUE),$A3)+SUMIFS(INDIRECT(Q$1&"!$C$26:$AG$26",TRUE),INDIRECT(Q$1&"!$C$23:$AG$23",TRUE),$A3)+SUMIFS(INDIRECT(Q$1&"!$C$30:$AG$30",TRUE),INDIRECT(Q$1&"!$C$27:$AG$27",TRUE),$A3)+SUMIFS(INDIRECT(Q$1&"!$C$34:$AG$34",TRUE),INDIRECT(Q$1&"!$C$31:$AG$31",TRUE),$A3)+SUMIFS(INDIRECT(Q$1&"!$C$38:$AG$38",TRUE),INDIRECT(Q$1&"!$C$35:$AG$35",TRUE),$A3)+(COUNTIFS(INDIRECT(Q$1&"!$C$41:$AG$51",TRUE),$A3)*ROUND(Einstellungen!$H3/30.44,2)),"") ->  | R3: =IF($A3<>"",Einstellungen!$H3,"") ->  | T3: =IF(OR(Q3<>"",S3<>"",R3<>""),Q3-R3+S3,"") ->  | U3: =IF(N3<>"",T3+N3,T3) ->  | V3: =IF(Q3<>"",SUMIFS(INDIRECT(Q$1&"!$C$54:$AG$54",TRUE),INDIRECT(Q$1&"!$C$19:$AG$19",TRUE),$A3)+SUMIFS(INDIRECT(Q$1&"!$C$55:$AG$55",TRUE),INDIRECT(Q$1&"!$C$23:$AG$23",TRUE),$A3)+SUMIFS(INDIRECT(Q$1&"!$C$56:$AG$56",TRUE),INDIRECT(Q$1&"!$C$27:$AG$27",TRUE),$A3)+SUMIFS(INDIRECT(Q$1&"!$C$57:$AG$57",TRUE),INDIRECT(Q$1&"!$C$31:$AG$31",TRUE),$A3)+SUMIFS(INDIRECT(Q$1&"!$C$58:$AG$58",TRUE),INDIRECT(Q$1&"!$C$35:$AG$35",TRUE),$A3),"") ->  | W3: =IF(Q3<>"",SUMIFS(INDIRECT(Q$1&"!$C$66:$AG$66",TRUE),INDIRECT(Q$1&"!$C$19:$AG$19",TRUE),$A3)+SUMIFS(INDIRECT(Q$1&"!$C$67:$AG$67",TRUE),INDIRECT(Q$1&"!$C$23:$AG$23",TRUE),$A3)+SUMIFS(INDIRECT(Q$1&"!$C$68:$AG$68",TRUE),INDIRECT(Q$1&"!$C$27:$AG$27",TRUE),$A3)+SUMIFS(INDIRECT(Q$1&"!$C$69:$AG$69",TRUE),INDIRECT(Q$1&"!$C$31:$AG$31",TRUE),$A3)+SUMIFS(INDIRECT(Q$1&"!$C$70:$AG$70",TRUE),INDIRECT(Q$1&"!$C$35:$AG$35",TRUE),$A3),"") ->  | X3: =IF($A3<>"",SUMIFS(INDIRECT(X$1&"!$C$22:$AG$22",TRUE),INDIRECT(X$1&"!$C$19:$AG$19",TRUE),$A3)+SUMIFS(INDIRECT(X$1&"!$C$26:$AG$26",TRUE),INDIRECT(X$1&"!$C$23:$AG$23",TRUE),$A3)+SUMIFS(INDIRECT(X$1&"!$C$30:$AG$30",TRUE),INDIRECT(X$1&"!$C$27:$AG$27",TRUE),$A3)+SUMIFS(INDIRECT(X$1&"!$C$34:$AG$34",TRUE),INDIRECT(X$1&"!$C$31:$AG$31",TRUE),$A3)+SUMIFS(INDIRECT(X$1&"!$C$38:$AG$38",TRUE),INDIRECT(X$1&"!$C$35:$AG$35",TRUE),$A3)+(COUNTIFS(INDIRECT(X$1&"!$C$41:$AG$51",TRUE),$A3)*ROUND(Einstellungen!$H3/30.44,2)),"") ->  | Y3: =IF($A3<>"",Einstellungen!$H3,"") ->  | AA3: =IF(OR(X3<>"",Z3<>"",Y3<>""),X3-Y3+Z3,"") ->  | AB3: =IF(U3<>"",AA3+U3,AA3) ->  | AC3: =IF(X3<>"",SUMIFS(INDIRECT(X$1&"!$C$54:$AG$54",TRUE),INDIRECT(X$1&"!$C$19:$AG$19",TRUE),$A3)+SUMIFS(INDIRECT(X$1&"!$C$55:$AG$55",TRUE),INDIRECT(X$1&"!$C$23:$AG$23",TRUE),$A3)+SUMIFS(INDIRECT(X$1&"!$C$56:$AG$56",TRUE),INDIRECT(X$1&"!$C$27:$AG$27",TRUE),$A3)+SUMIFS(INDIRECT(X$1&"!$C$57:$AG$57",TRUE),INDIRECT(X$1&"!$C$31:$AG$31",TRUE),$A3)+SUMIFS(INDIRECT(X$1&"!$C$58:$AG$58",TRUE),INDIRECT(X$1&"!$C$35:$AG$35",TRUE),$A3),"") ->  | AD3: =IF(X3<>"",SUMIFS(INDIRECT(X$1&"!$C$66:$AG$66",TRUE),INDIRECT(X$1&"!$C$19:$AG$19",TRUE),$A3)+SUMIFS(INDIRECT(X$1&"!$C$67:$AG$67",TRUE),INDIRECT(X$1&"!$C$23:$AG$23",TRUE),$A3)+SUMIFS(INDIRECT(X$1&"!$C$68:$AG$68",TRUE),INDIRECT(X$1&"!$C$27:$AG$27",TRUE),$A3)+SUMIFS(INDIRECT(X$1&"!$C$69:$AG$69",TRUE),INDIRECT(X$1&"!$C$31:$AG$31",TRUE),$A3)+SUMIFS(INDIRECT(X$1&"!$C$70:$AG$70",TRUE),INDIRECT(X$1&"!$C$35:$AG$35",TRUE),$A3),"") ->  | AE3: =IF($A3<>"",SUMIFS(INDIRECT(AE$1&"!$C$22:$AG$22",TRUE),INDIRECT(AE$1&"!$C$19:$AG$19",TRUE),$A3)+SUMIFS(INDIRECT(AE$1&"!$C$26:$AG$26",TRUE),INDIRECT(AE$1&"!$C$23:$AG$23",TRUE),$A3)+SUMIFS(INDIRECT(AE$1&"!$C$30:$AG$30",TRUE),INDIRECT(AE$1&"!$C$27:$AG$27",TRUE),$A3)+SUMIFS(INDIRECT(AE$1&"!$C$34:$AG$34",TRUE),INDIRECT(AE$1&"!$C$31:$AG$31",TRUE),$A3)+SUMIFS(INDIRECT(AE$1&"!$C$38:$AG$38",TRUE),INDIRECT(AE$1&"!$C$35:$AG$35",TRUE),$A3)+(COUNTIFS(INDIRECT(AE$1&"!$C$41:$AG$51",TRUE),$A3)*ROUND(Einstellungen!$H3/30.44,2)),"") ->  | AF3: =IF($A3<>"",Einstellungen!$H3,"") ->  | AH3: =IF(OR(AE3<>"",AG3<>"",AF3<>""),AE3-AF3+AG3,"") ->  | AI3: =IF(AB3<>"",AH3+AB3,AH3) ->  | AJ3: =IF(AE3<>"",SUMIFS(INDIRECT(AE$1&"!$C$54:$AG$54",TRUE),INDIRECT(AE$1&"!$C$19:$AG$19",TRUE),$A3)+SUMIFS(INDIRECT(AE$1&"!$C$55:$AG$55",TRUE),INDIRECT(AE$1&"!$C$23:$AG$23",TRUE),$A3)+SUMIFS(INDIRECT(AE$1&"!$C$56:$AG$56",TRUE),INDIRECT(AE$1&"!$C$27:$AG$27",TRUE),$A3)+SUMIFS(INDIRECT(AE$1&"!$C$57:$AG$57",TRUE),INDIRECT(AE$1&"!$C$31:$AG$31",TRUE),$A3)+SUMIFS(INDIRECT(AE$1&"!$C$58:$AG$58",TRUE),INDIRECT(AE$1&"!$C$35:$AG$35",TRUE),$A3),"") ->  | AK3: =IF(AE3<>"",SUMIFS(INDIRECT(AE$1&"!$C$66:$AG$66",TRUE),INDIRECT(AE$1&"!$C$19:$AG$19",TRUE),$A3)+SUMIFS(INDIRECT(AE$1&"!$C$67:$AG$67",TRUE),INDIRECT(AE$1&"!$C$23:$AG$23",TRUE),$A3)+SUMIFS(INDIRECT(AE$1&"!$C$68:$AG$68",TRUE),INDIRECT(AE$1&"!$C$27:$AG$27",TRUE),$A3)+SUMIFS(INDIRECT(AE$1&"!$C$69:$AG$69",TRUE),INDIRECT(AE$1&"!$C$31:$AG$31",TRUE),$A3)+SUMIFS(INDIRECT(AE$1&"!$C$70:$AG$70",TRUE),INDIRECT(AE$1&"!$C$35:$AG$35",TRUE),$A3),"") ->  | AL3: =IF($A3<>"",SUMIFS(INDIRECT(AL$1&"!$C$22:$AG$22",TRUE),INDIRECT(AL$1&"!$C$19:$AG$19",TRUE),$A3)+SUMIFS(INDIRECT(AL$1&"!$C$26:$AG$26",TRUE),INDIRECT(AL$1&"!$C$23:$AG$23",TRUE),$A3)+SUMIFS(INDIRECT(AL$1&"!$C$30:$AG$30",TRUE),INDIRECT(AL$1&"!$C$27:$AG$27",TRUE),$A3)+SUMIFS(INDIRECT(AL$1&"!$C$34:$AG$34",TRUE),INDIRECT(AL$1&"!$C$31:$AG$31",TRUE),$A3)+SUMIFS(INDIRECT(AL$1&"!$C$38:$AG$38",TRUE),INDIRECT(AL$1&"!$C$35:$AG$35",TRUE),$A3)+(COUNTIFS(INDIRECT(AL$1&"!$C$41:$AG$51",TRUE),$A3)*ROUND(Einstellungen!$H3/30.44,2)),"") ->  | AM3: =IF($A3<>"",Einstellungen!$H3,"") ->  | AO3: =IF(OR(AL3<>"",AN3<>"",AM3<>""),AL3-AM3+AN3,"") ->  | AP3: =IF(AI3<>"",AO3+AI3,AO3) ->  | AQ3: =IF(AL3<>"",SUMIFS(INDIRECT(AL$1&"!$C$54:$AG$54",TRUE),INDIRECT(AL$1&"!$C$19:$AG$19",TRUE),$A3)+SUMIFS(INDIRECT(AL$1&"!$C$55:$AG$55",TRUE),INDIRECT(AL$1&"!$C$23:$AG$23",TRUE),$A3)+SUMIFS(INDIRECT(AL$1&"!$C$56:$AG$56",TRUE),INDIRECT(AL$1&"!$C$27:$AG$27",TRUE),$A3)+SUMIFS(INDIRECT(AL$1&"!$C$57:$AG$57",TRUE),INDIRECT(AL$1&"!$C$31:$AG$31",TRUE),$A3)+SUMIFS(INDIRECT(AL$1&"!$C$58:$AG$58",TRUE),INDIRECT(AL$1&"!$C$35:$AG$35",TRUE),$A3),"") ->  | AR3: =IF(AL3<>"",SUMIFS(INDIRECT(AL$1&"!$C$66:$AG$66",TRUE),INDIRECT(AL$1&"!$C$19:$AG$19",TRUE),$A3)+SUMIFS(INDIRECT(AL$1&"!$C$67:$AG$67",TRUE),INDIRECT(AL$1&"!$C$23:$AG$23",TRUE),$A3)+SUMIFS(INDIRECT(AL$1&"!$C$68:$AG$68",TRUE),INDIRECT(AL$1&"!$C$27:$AG$27",TRUE),$A3)+SUMIFS(INDIRECT(AL$1&"!$C$69:$AG$69",TRUE),INDIRECT(AL$1&"!$C$31:$AG$31",TRUE),$A3)+SUMIFS(INDIRECT(AL$1&"!$C$70:$AG$70",TRUE),INDIRECT(AL$1&"!$C$35:$AG$35",TRUE),$A3),"") ->  | AS3: =IF($A3<>"",SUMIFS(INDIRECT(AS$1&"!$C$22:$AG$22",TRUE),INDIRECT(AS$1&"!$C$19:$AG$19",TRUE),$A3)+SUMIFS(INDIRECT(AS$1&"!$C$26:$AG$26",TRUE),INDIRECT(AS$1&"!$C$23:$AG$23",TRUE),$A3)+SUMIFS(INDIRECT(AS$1&"!$C$30:$AG$30",TRUE),INDIRECT(AS$1&"!$C$27:$AG$27",TRUE),$A3)+SUMIFS(INDIRECT(AS$1&"!$C$34:$AG$34",TRUE),INDIRECT(AS$1&"!$C$31:$AG$31",TRUE),$A3)+SUMIFS(INDIRECT(AS$1&"!$C$38:$AG$38",TRUE),INDIRECT(AS$1&"!$C$35:$AG$35",TRUE),$A3)+(COUNTIFS(INDIRECT(AS$1&"!$C$41:$AG$51",TRUE),$A3)*ROUND(Einstellungen!$H3/30.44,2)),"") ->  | AT3: =IF($A3<>"",Einstellungen!$H3,"") ->  | AV3: =IF(OR(AS3<>"",AU3<>"",AT3<>""),AS3-AT3+AU3,"") ->  | AW3: =IF(AP3<>"",AV3+AP3,AV3) ->  | AX3: =IF(AS3<>"",SUMIFS(INDIRECT(AS$1&"!$C$54:$AG$54",TRUE),INDIRECT(AS$1&"!$C$19:$AG$19",TRUE),$A3)+SUMIFS(INDIRECT(AS$1&"!$C$55:$AG$55",TRUE),INDIRECT(AS$1&"!$C$23:$AG$23",TRUE),$A3)+SUMIFS(INDIRECT(AS$1&"!$C$56:$AG$56",TRUE),INDIRECT(AS$1&"!$C$27:$AG$27",TRUE),$A3)+SUMIFS(INDIRECT(AS$1&"!$C$57:$AG$57",TRUE),INDIRECT(AS$1&"!$C$31:$AG$31",TRUE),$A3)+SUMIFS(INDIRECT(AS$1&"!$C$58:$AG$58",TRUE),INDIRECT(AS$1&"!$C$35:$AG$35",TRUE),$A3),"") ->  | AY3: =IF(AS3<>"",SUMIFS(INDIRECT(AS$1&"!$C$66:$AG$66",TRUE),INDIRECT(AS$1&"!$C$19:$AG$19",TRUE),$A3)+SUMIFS(INDIRECT(AS$1&"!$C$67:$AG$67",TRUE),INDIRECT(AS$1&"!$C$23:$AG$23",TRUE),$A3)+SUMIFS(INDIRECT(AS$1&"!$C$68:$AG$68",TRUE),INDIRECT(AS$1&"!$C$27:$AG$27",TRUE),$A3)+SUMIFS(INDIRECT(AS$1&"!$C$69:$AG$69",TRUE),INDIRECT(AS$1&"!$C$31:$AG$31",TRUE),$A3)+SUMIFS(INDIRECT(AS$1&"!$C$70:$AG$70",TRUE),INDIRECT(AS$1&"!$C$35:$AG$35",TRUE),$A3),"") ->  | AZ3: =IF($A3<>"",SUMIFS(INDIRECT(AZ$1&"!$C$22:$AG$22",TRUE),INDIRECT(AZ$1&"!$C$19:$AG$19",TRUE),$A3)+SUMIFS(INDIRECT(AZ$1&"!$C$26:$AG$26",TRUE),INDIRECT(AZ$1&"!$C$23:$AG$23",TRUE),$A3)+SUMIFS(INDIRECT(AZ$1&"!$C$30:$AG$30",TRUE),INDIRECT(AZ$1&"!$C$27:$AG$27",TRUE),$A3)+SUMIFS(INDIRECT(AZ$1&"!$C$34:$AG$34",TRUE),INDIRECT(AZ$1&"!$C$31:$AG$31",TRUE),$A3)+SUMIFS(INDIRECT(AZ$1&"!$C$38:$AG$38",TRUE),INDIRECT(AZ$1&"!$C$35:$AG$35",TRUE),$A3)+(COUNTIFS(INDIRECT(AZ$1&"!$C$41:$AG$51",TRUE),$A3)*ROUND(Einstellungen!$H3/30.44,2)),"") ->  | BA3: =IF($A3<>"",Einstellungen!$H3,"") ->  | BC3: =IF(OR(AZ3<>"",BB3<>"",BA3<>""),AZ3-BA3+BB3,"") ->  | BD3: =IF(AW3<>"",BC3+AW3,BC3) ->  | BE3: =IF(AZ3<>"",SUMIFS(INDIRECT(AZ$1&"!$C$54:$AG$54",TRUE),INDIRECT(AZ$1&"!$C$19:$AG$19",TRUE),$A3)+SUMIFS(INDIRECT(AZ$1&"!$C$55:$AG$55",TRUE),INDIRECT(AZ$1&"!$C$23:$AG$23",TRUE),$A3)+SUMIFS(INDIRECT(AZ$1&"!$C$56:$AG$56",TRUE),INDIRECT(AZ$1&"!$C$27:$AG$27",TRUE),$A3)+SUMIFS(INDIRECT(AZ$1&"!$C$57:$AG$57",TRUE),INDIRECT(AZ$1&"!$C$31:$AG$31",TRUE),$A3)+SUMIFS(INDIRECT(AZ$1&"!$C$58:$AG$58",TRUE),INDIRECT(AZ$1&"!$C$35:$AG$35",TRUE),$A3),"") ->  | BF3: =IF(AZ3<>"",SUMIFS(INDIRECT(AZ$1&"!$C$66:$AG$66",TRUE),INDIRECT(AZ$1&"!$C$19:$AG$19",TRUE),$A3)+SUMIFS(INDIRECT(AZ$1&"!$C$67:$AG$67",TRUE),INDIRECT(AZ$1&"!$C$23:$AG$23",TRUE),$A3)+SUMIFS(INDIRECT(AZ$1&"!$C$68:$AG$68",TRUE),INDIRECT(AZ$1&"!$C$27:$AG$27",TRUE),$A3)+SUMIFS(INDIRECT(AZ$1&"!$C$69:$AG$69",TRUE),INDIRECT(AZ$1&"!$C$31:$AG$31",TRUE),$A3)+SUMIFS(INDIRECT(AZ$1&"!$C$70:$AG$70",TRUE),INDIRECT(AZ$1&"!$C$35:$AG$35",TRUE),$A3),"") ->  | BG3: =IF($A3<>"",SUMIFS(INDIRECT(BG$1&"!$C$22:$AG$22",TRUE),INDIRECT(BG$1&"!$C$19:$AG$19",TRUE),$A3)+SUMIFS(INDIRECT(BG$1&"!$C$26:$AG$26",TRUE),INDIRECT(BG$1&"!$C$23:$AG$23",TRUE),$A3)+SUMIFS(INDIRECT(BG$1&"!$C$30:$AG$30",TRUE),INDIRECT(BG$1&"!$C$27:$AG$27",TRUE),$A3)+SUMIFS(INDIRECT(BG$1&"!$C$34:$AG$34",TRUE),INDIRECT(BG$1&"!$C$31:$AG$31",TRUE),$A3)+SUMIFS(INDIRECT(BG$1&"!$C$38:$AG$38",TRUE),INDIRECT(BG$1&"!$C$35:$AG$35",TRUE),$A3)+(COUNTIFS(INDIRECT(BG$1&"!$C$41:$AG$51",TRUE),$A3)*ROUND(Einstellungen!$H3/30.44,2)),"") ->  | BH3: =IF($A3<>"",Einstellungen!$H3,"") ->  | BJ3: =IF(OR(BG3<>"",BI3<>"",BH3<>""),BG3-BH3+BI3,"") ->  | BK3: =IF(BD3<>"",BJ3+BD3,BJ3) ->  | BL3: =IF(BG3<>"",SUMIFS(INDIRECT(BG$1&"!$C$54:$AG$54",TRUE),INDIRECT(BG$1&"!$C$19:$AG$19",TRUE),$A3)+SUMIFS(INDIRECT(BG$1&"!$C$55:$AG$55",TRUE),INDIRECT(BG$1&"!$C$23:$AG$23",TRUE),$A3)+SUMIFS(INDIRECT(BG$1&"!$C$56:$AG$56",TRUE),INDIRECT(BG$1&"!$C$27:$AG$27",TRUE),$A3)+SUMIFS(INDIRECT(BG$1&"!$C$57:$AG$57",TRUE),INDIRECT(BG$1&"!$C$31:$AG$31",TRUE),$A3)+SUMIFS(INDIRECT(BG$1&"!$C$58:$AG$58",TRUE),INDIRECT(BG$1&"!$C$35:$AG$35",TRUE),$A3),"") ->  | BM3: =IF(BG3<>"",SUMIFS(INDIRECT(BG$1&"!$C$66:$AG$66",TRUE),INDIRECT(BG$1&"!$C$19:$AG$19",TRUE),$A3)+SUMIFS(INDIRECT(BG$1&"!$C$67:$AG$67",TRUE),INDIRECT(BG$1&"!$C$23:$AG$23",TRUE),$A3)+SUMIFS(INDIRECT(BG$1&"!$C$68:$AG$68",TRUE),INDIRECT(BG$1&"!$C$27:$AG$27",TRUE),$A3)+SUMIFS(INDIRECT(BG$1&"!$C$69:$AG$69",TRUE),INDIRECT(BG$1&"!$C$31:$AG$31",TRUE),$A3)+SUMIFS(INDIRECT(BG$1&"!$C$70:$AG$70",TRUE),INDIRECT(BG$1&"!$C$35:$AG$35",TRUE),$A3),"") ->  | BN3: =IF($A3<>"",SUMIFS(INDIRECT(BN$1&"!$C$22:$AG$22",TRUE),INDIRECT(BN$1&"!$C$19:$AG$19",TRUE),$A3)+SUMIFS(INDIRECT(BN$1&"!$C$26:$AG$26",TRUE),INDIRECT(BN$1&"!$C$23:$AG$23",TRUE),$A3)+SUMIFS(INDIRECT(BN$1&"!$C$30:$AG$30",TRUE),INDIRECT(BN$1&"!$C$27:$AG$27",TRUE),$A3)+SUMIFS(INDIRECT(BN$1&"!$C$34:$AG$34",TRUE),INDIRECT(BN$1&"!$C$31:$AG$31",TRUE),$A3)+SUMIFS(INDIRECT(BN$1&"!$C$38:$AG$38",TRUE),INDIRECT(BN$1&"!$C$35:$AG$35",TRUE),$A3)+(COUNTIFS(INDIRECT(BN$1&"!$C$41:$AG$51",TRUE),$A3)*ROUND(Einstellungen!$H3/30.44,2)),"") ->  | BO3: =IF($A3<>"",Einstellungen!$H3,"") ->  | BQ3: =IF(OR(BN3<>"",BP3<>"",BO3<>""),BN3-BO3+BP3,"") ->  | BR3: =IF(BK3<>"",BQ3+BK3,BQ3) ->  | BS3: =IF(BN3<>"",SUMIFS(INDIRECT(BN$1&"!$C$54:$AG$54",TRUE),INDIRECT(BN$1&"!$C$19:$AG$19",TRUE),$A3)+SUMIFS(INDIRECT(BN$1&"!$C$55:$AG$55",TRUE),INDIRECT(BN$1&"!$C$23:$AG$23",TRUE),$A3)+SUMIFS(INDIRECT(BN$1&"!$C$56:$AG$56",TRUE),INDIRECT(BN$1&"!$C$27:$AG$27",TRUE),$A3)+SUMIFS(INDIRECT(BN$1&"!$C$57:$AG$57",TRUE),INDIRECT(BN$1&"!$C$31:$AG$31",TRUE),$A3)+SUMIFS(INDIRECT(BN$1&"!$C$58:$AG$58",TRUE),INDIRECT(BN$1&"!$C$35:$AG$35",TRUE),$A3),"") ->  | BT3: =IF(BN3<>"",SUMIFS(INDIRECT(BN$1&"!$C$66:$AG$66",TRUE),INDIRECT(BN$1&"!$C$19:$AG$19",TRUE),$A3)+SUMIFS(INDIRECT(BN$1&"!$C$67:$AG$67",TRUE),INDIRECT(BN$1&"!$C$23:$AG$23",TRUE),$A3)+SUMIFS(INDIRECT(BN$1&"!$C$68:$AG$68",TRUE),INDIRECT(BN$1&"!$C$27:$AG$27",TRUE),$A3)+SUMIFS(INDIRECT(BN$1&"!$C$69:$AG$69",TRUE),INDIRECT(BN$1&"!$C$31:$AG$31",TRUE),$A3)+SUMIFS(INDIRECT(BN$1&"!$C$70:$AG$70",TRUE),INDIRECT(BN$1&"!$C$35:$AG$35",TRUE),$A3),"") ->  | BU3: =IF($A3<>"",SUMIFS(INDIRECT(BU$1&"!$C$22:$AG$22",TRUE),INDIRECT(BU$1&"!$C$19:$AG$19",TRUE),$A3)+SUMIFS(INDIRECT(BU$1&"!$C$26:$AG$26",TRUE),INDIRECT(BU$1&"!$C$23:$AG$23",TRUE),$A3)+SUMIFS(INDIRECT(BU$1&"!$C$30:$AG$30",TRUE),INDIRECT(BU$1&"!$C$27:$AG$27",TRUE),$A3)+SUMIFS(INDIRECT(BU$1&"!$C$34:$AG$34",TRUE),INDIRECT(BU$1&"!$C$31:$AG$31",TRUE),$A3)+SUMIFS(INDIRECT(BU$1&"!$C$38:$AG$38",TRUE),INDIRECT(BU$1&"!$C$35:$AG$35",TRUE),$A3)+(COUNTIFS(INDIRECT(BU$1&"!$C$41:$AG$51",TRUE),$A3)*ROUND(Einstellungen!$H3/30.44,2)),"") ->  | BV3: =IF($A3<>"",Einstellungen!$H3,"") ->  | BX3: =IF(OR(BU3<>"",BW3<>"",BV3<>""),BU3-BV3+BW3,"") ->  | BY3: =IF(BR3<>"",BX3+BR3,BX3) ->  | BZ3: =IF(BU3<>"",SUMIFS(INDIRECT(BU$1&"!$C$54:$AG$54",TRUE),INDIRECT(BU$1&"!$C$19:$AG$19",TRUE),$A3)+SUMIFS(INDIRECT(BU$1&"!$C$55:$AG$55",TRUE),INDIRECT(BU$1&"!$C$23:$AG$23",TRUE),$A3)+SUMIFS(INDIRECT(BU$1&"!$C$56:$AG$56",TRUE),INDIRECT(BU$1&"!$C$27:$AG$27",TRUE),$A3)+SUMIFS(INDIRECT(BU$1&"!$C$57:$AG$57",TRUE),INDIRECT(BU$1&"!$C$31:$AG$31",TRUE),$A3)+SUMIFS(INDIRECT(BU$1&"!$C$58:$AG$58",TRUE),INDIRECT(BU$1&"!$C$35:$AG$35",TRUE),$A3),"") ->  | CA3: =IF(BU3<>"",SUMIFS(INDIRECT(BU$1&"!$C$66:$AG$66",TRUE),INDIRECT(BU$1&"!$C$19:$AG$19",TRUE),$A3)+SUMIFS(INDIRECT(BU$1&"!$C$67:$AG$67",TRUE),INDIRECT(BU$1&"!$C$23:$AG$23",TRUE),$A3)+SUMIFS(INDIRECT(BU$1&"!$C$68:$AG$68",TRUE),INDIRECT(BU$1&"!$C$27:$AG$27",TRUE),$A3)+SUMIFS(INDIRECT(BU$1&"!$C$69:$AG$69",TRUE),INDIRECT(BU$1&"!$C$31:$AG$31",TRUE),$A3)+SUMIFS(INDIRECT(BU$1&"!$C$70:$AG$70",TRUE),INDIRECT(BU$1&"!$C$35:$AG$35",TRUE),$A3),"") ->  | CB3: =IF($A3<>"",SUMIFS(INDIRECT(CB$1&"!$C$22:$AG$22",TRUE),INDIRECT(CB$1&"!$C$19:$AG$19",TRUE),$A3)+SUMIFS(INDIRECT(CB$1&"!$C$26:$AG$26",TRUE),INDIRECT(CB$1&"!$C$23:$AG$23",TRUE),$A3)+SUMIFS(INDIRECT(CB$1&"!$C$30:$AG$30",TRUE),INDIRECT(CB$1&"!$C$27:$AG$27",TRUE),$A3)+SUMIFS(INDIRECT(CB$1&"!$C$34:$AG$34",TRUE),INDIRECT(CB$1&"!$C$31:$AG$31",TRUE),$A3)+SUMIFS(INDIRECT(CB$1&"!$C$38:$AG$38",TRUE),INDIRECT(CB$1&"!$C$35:$AG$35",TRUE),$A3)+(COUNTIFS(INDIRECT(CB$1&"!$C$41:$AG$51",TRUE),$A3)*ROUND(Einstellungen!$H3/30.44,2)),"") ->  | CC3: =IF($A3<>"",Einstellungen!$H3,"") ->  | CE3: =IF(OR(CB3<>"",CD3<>"",CC3<>""),CB3-CC3+CD3,"") ->  | CF3: =IF(BY3<>"",CE3+BY3,CE3) ->  | CG3: =IF(CB3<>"",SUMIFS(INDIRECT(CB$1&"!$C$54:$AG$54",TRUE),INDIRECT(CB$1&"!$C$19:$AG$19",TRUE),$A3)+SUMIFS(INDIRECT(CB$1&"!$C$55:$AG$55",TRUE),INDIRECT(CB$1&"!$C$23:$AG$23",TRUE),$A3)+SUMIFS(INDIRECT(CB$1&"!$C$56:$AG$56",TRUE),INDIRECT(CB$1&"!$C$27:$AG$27",TRUE),$A3)+SUMIFS(INDIRECT(CB$1&"!$C$57:$AG$57",TRUE),INDIRECT(CB$1&"!$C$31:$AG$31",TRUE),$A3)+SUMIFS(INDIRECT(CB$1&"!$C$58:$AG$58",TRUE),INDIRECT(CB$1&"!$C$35:$AG$35",TRUE),$A3),"") ->  | CH3: =IF(CB3<>"",SUMIFS(INDIRECT(CB$1&"!$C$66:$AG$66",TRUE),INDIRECT(CB$1&"!$C$19:$AG$19",TRUE),$A3)+SUMIFS(INDIRECT(CB$1&"!$C$67:$AG$67",TRUE),INDIRECT(CB$1&"!$C$23:$AG$23",TRUE),$A3)+SUMIFS(INDIRECT(CB$1&"!$C$68:$AG$68",TRUE),INDIRECT(CB$1&"!$C$27:$AG$27",TRUE),$A3)+SUMIFS(INDIRECT(CB$1&"!$C$69:$AG$69",TRUE),INDIRECT(CB$1&"!$C$31:$AG$31",TRUE),$A3)+SUMIFS(INDIRECT(CB$1&"!$C$70:$AG$70",TRUE),INDIRECT(CB$1&"!$C$35:$AG$35",TRUE),$A3),"") -> 
A4: =IF(Einstellungen!F4<>"",Einstellungen!F4,"") ->  | B4: =IF(A4<>"",Einstellungen!G4-COUNTIF(INDIRECT(D$1&"!$C$41:$AG$51",TRUE),A4)-COUNTIF(INDIRECT(J$1&"!$C$41:$AG$51",TRUE),A4)-COUNTIF(INDIRECT(Q$1&"!$C$41:$AG$51",TRUE),A4)-COUNTIF(INDIRECT(X$1&"!$C$41:$AG$51",TRUE),A4)-COUNTIF(INDIRECT(AE$1&"!$C$41:$AG$51",TRUE),A4)-COUNTIF(INDIRECT(AL$1&"!$C$41:$AG$51",TRUE),A4)-COUNTIF(INDIRECT(AS$1&"!$C$41:$AG$51",TRUE),A4)-COUNTIF(INDIRECT(AZ$1&"!$C$41:$AG$51",TRUE),A4)-COUNTIF(INDIRECT(BG$1&"!$C$41:$AG$51",TRUE),A4)-COUNTIF(INDIRECT(BN$1&"!$C$41:$AG$51",TRUE),A4)-COUNTIF(INDIRECT(BU$1&"!$C$41:$AG$51",TRUE),A4)-COUNTIF(INDIRECT(CB$1&"!$C$41:$AG$51",TRUE),A4),"") ->  | D4: =IF($A4<>"",SUMIFS(INDIRECT(D$1&"!$C$22:$AG$22",TRUE),INDIRECT(D$1&"!$C$19:$AG$19",TRUE),$A4)+SUMIFS(INDIRECT(D$1&"!$C$26:$AG$26",TRUE),INDIRECT(D$1&"!$C$23:$AG$23",TRUE),$A4)+SUMIFS(INDIRECT(D$1&"!$C$30:$AG$30",TRUE),INDIRECT(D$1&"!$C$27:$AG$27",TRUE),$A4)+SUMIFS(INDIRECT(D$1&"!$C$34:$AG$34",TRUE),INDIRECT(D$1&"!$C$31:$AG$31",TRUE),$A4)+SUMIFS(INDIRECT(D$1&"!$C$38:$AG$38",TRUE),INDIRECT(D$1&"!$C$35:$AG$35",TRUE),$A4)+(COUNTIFS(INDIRECT(D$1&"!$C$41:$AG$51",TRUE),$A4)*ROUND(Einstellungen!$H4/30.44,2)),"") ->  | E4: =IF($A4<>"",Einstellungen!$H4,"") ->  | J4: =IF($A4<>"",SUMIFS(INDIRECT(J$1&"!$C$22:$AG$22",TRUE),INDIRECT(J$1&"!$C$19:$AG$19",TRUE),$A4)+SUMIFS(INDIRECT(J$1&"!$C$26:$AG$26",TRUE),INDIRECT(J$1&"!$C$23:$AG$23",TRUE),$A4)+SUMIFS(INDIRECT(J$1&"!$C$30:$AG$30",TRUE),INDIRECT(J$1&"!$C$27:$AG$27",TRUE),$A4)+SUMIFS(INDIRECT(J$1&"!$C$34:$AG$34",TRUE),INDIRECT(J$1&"!$C$31:$AG$31",TRUE),$A4)+SUMIFS(INDIRECT(J$1&"!$C$38:$AG$38",TRUE),INDIRECT(J$1&"!$C$35:$AG$35",TRUE),$A4)+(COUNTIFS(INDIRECT(J$1&"!$C$41:$AG$51",TRUE),$A4)*ROUND(Einstellungen!$H4/30.44,2)),"") ->  | K4: =IF($A4<>"",Einstellungen!$H4,"") ->  | Q4: =IF($A4<>"",SUMIFS(INDIRECT(Q$1&"!$C$22:$AG$22",TRUE),INDIRECT(Q$1&"!$C$19:$AG$19",TRUE),$A4)+SUMIFS(INDIRECT(Q$1&"!$C$26:$AG$26",TRUE),INDIRECT(Q$1&"!$C$23:$AG$23",TRUE),$A4)+SUMIFS(INDIRECT(Q$1&"!$C$30:$AG$30",TRUE),INDIRECT(Q$1&"!$C$27:$AG$27",TRUE),$A4)+SUMIFS(INDIRECT(Q$1&"!$C$34:$AG$34",TRUE),INDIRECT(Q$1&"!$C$31:$AG$31",TRUE),$A4)+SUMIFS(INDIRECT(Q$1&"!$C$38:$AG$38",TRUE),INDIRECT(Q$1&"!$C$35:$AG$35",TRUE),$A4)+(COUNTIFS(INDIRECT(Q$1&"!$C$41:$AG$51",TRUE),$A4)*ROUND(Einstellungen!$H4/30.44,2)),"") ->  | R4: =IF($A4<>"",Einstellungen!$H4,"") ->  | X4: =IF($A4<>"",SUMIFS(INDIRECT(X$1&"!$C$22:$AG$22",TRUE),INDIRECT(X$1&"!$C$19:$AG$19",TRUE),$A4)+SUMIFS(INDIRECT(X$1&"!$C$26:$AG$26",TRUE),INDIRECT(X$1&"!$C$23:$AG$23",TRUE),$A4)+SUMIFS(INDIRECT(X$1&"!$C$30:$AG$30",TRUE),INDIRECT(X$1&"!$C$27:$AG$27",TRUE),$A4)+SUMIFS(INDIRECT(X$1&"!$C$34:$AG$34",TRUE),INDIRECT(X$1&"!$C$31:$AG$31",TRUE),$A4)+SUMIFS(INDIRECT(X$1&"!$C$38:$AG$38",TRUE),INDIRECT(X$1&"!$C$35:$AG$35",TRUE),$A4)+(COUNTIFS(INDIRECT(X$1&"!$C$41:$AG$51",TRUE),$A4)*ROUND(Einstellungen!$H4/30.44,2)),"") ->  | Y4: =IF($A4<>"",Einstellungen!$H4,"") ->  | AE4: =IF($A4<>"",SUMIFS(INDIRECT(AE$1&"!$C$22:$AG$22",TRUE),INDIRECT(AE$1&"!$C$19:$AG$19",TRUE),$A4)+SUMIFS(INDIRECT(AE$1&"!$C$26:$AG$26",TRUE),INDIRECT(AE$1&"!$C$23:$AG$23",TRUE),$A4)+SUMIFS(INDIRECT(AE$1&"!$C$30:$AG$30",TRUE),INDIRECT(AE$1&"!$C$27:$AG$27",TRUE),$A4)+SUMIFS(INDIRECT(AE$1&"!$C$34:$AG$34",TRUE),INDIRECT(AE$1&"!$C$31:$AG$31",TRUE),$A4)+SUMIFS(INDIRECT(AE$1&"!$C$38:$AG$38",TRUE),INDIRECT(AE$1&"!$C$35:$AG$35",TRUE),$A4)+(COUNTIFS(INDIRECT(AE$1&"!$C$41:$AG$51",TRUE),$A4)*ROUND(Einstellungen!$H4/30.44,2)),"") ->  | AF4: =IF($A4<>"",Einstellungen!$H4,"") ->  | AL4: =IF($A4<>"",SUMIFS(INDIRECT(AL$1&"!$C$22:$AG$22",TRUE),INDIRECT(AL$1&"!$C$19:$AG$19",TRUE),$A4)+SUMIFS(INDIRECT(AL$1&"!$C$26:$AG$26",TRUE),INDIRECT(AL$1&"!$C$23:$AG$23",TRUE),$A4)+SUMIFS(INDIRECT(AL$1&"!$C$30:$AG$30",TRUE),INDIRECT(AL$1&"!$C$27:$AG$27",TRUE),$A4)+SUMIFS(INDIRECT(AL$1&"!$C$34:$AG$34",TRUE),INDIRECT(AL$1&"!$C$31:$AG$31",TRUE),$A4)+SUMIFS(INDIRECT(AL$1&"!$C$38:$AG$38",TRUE),INDIRECT(AL$1&"!$C$35:$AG$35",TRUE),$A4)+(COUNTIFS(INDIRECT(AL$1&"!$C$41:$AG$51",TRUE),$A4)*ROUND(Einstellungen!$H4/30.44,2)),"") ->  | AM4: =IF($A4<>"",Einstellungen!$H4,"") ->  | AS4: =IF($A4<>"",SUMIFS(INDIRECT(AS$1&"!$C$22:$AG$22",TRUE),INDIRECT(AS$1&"!$C$19:$AG$19",TRUE),$A4)+SUMIFS(INDIRECT(AS$1&"!$C$26:$AG$26",TRUE),INDIRECT(AS$1&"!$C$23:$AG$23",TRUE),$A4)+SUMIFS(INDIRECT(AS$1&"!$C$30:$AG$30",TRUE),INDIRECT(AS$1&"!$C$27:$AG$27",TRUE),$A4)+SUMIFS(INDIRECT(AS$1&"!$C$34:$AG$34",TRUE),INDIRECT(AS$1&"!$C$31:$AG$31",TRUE),$A4)+SUMIFS(INDIRECT(AS$1&"!$C$38:$AG$38",TRUE),INDIRECT(AS$1&"!$C$35:$AG$35",TRUE),$A4)+(COUNTIFS(INDIRECT(AS$1&"!$C$41:$AG$51",TRUE),$A4)*ROUND(Einstellungen!$H4/30.44,2)),"") ->  | AT4: =IF($A4<>"",Einstellungen!$H4,"") ->  | AZ4: =IF($A4<>"",SUMIFS(INDIRECT(AZ$1&"!$C$22:$AG$22",TRUE),INDIRECT(AZ$1&"!$C$19:$AG$19",TRUE),$A4)+SUMIFS(INDIRECT(AZ$1&"!$C$26:$AG$26",TRUE),INDIRECT(AZ$1&"!$C$23:$AG$23",TRUE),$A4)+SUMIFS(INDIRECT(AZ$1&"!$C$30:$AG$30",TRUE),INDIRECT(AZ$1&"!$C$27:$AG$27",TRUE),$A4)+SUMIFS(INDIRECT(AZ$1&"!$C$34:$AG$34",TRUE),INDIRECT(AZ$1&"!$C$31:$AG$31",TRUE),$A4)+SUMIFS(INDIRECT(AZ$1&"!$C$38:$AG$38",TRUE),INDIRECT(AZ$1&"!$C$35:$AG$35",TRUE),$A4)+(COUNTIFS(INDIRECT(AZ$1&"!$C$41:$AG$51",TRUE),$A4)*ROUND(Einstellungen!$H4/30.44,2)),"") ->  | BA4: =IF($A4<>"",Einstellungen!$H4,"") ->  | BG4: =IF($A4<>"",SUMIFS(INDIRECT(BG$1&"!$C$22:$AG$22",TRUE),INDIRECT(BG$1&"!$C$19:$AG$19",TRUE),$A4)+SUMIFS(INDIRECT(BG$1&"!$C$26:$AG$26",TRUE),INDIRECT(BG$1&"!$C$23:$AG$23",TRUE),$A4)+SUMIFS(INDIRECT(BG$1&"!$C$30:$AG$30",TRUE),INDIRECT(BG$1&"!$C$27:$AG$27",TRUE),$A4)+SUMIFS(INDIRECT(BG$1&"!$C$34:$AG$34",TRUE),INDIRECT(BG$1&"!$C$31:$AG$31",TRUE),$A4)+SUMIFS(INDIRECT(BG$1&"!$C$38:$AG$38",TRUE),INDIRECT(BG$1&"!$C$35:$AG$35",TRUE),$A4)+(COUNTIFS(INDIRECT(BG$1&"!$C$41:$AG$51",TRUE),$A4)*ROUND(Einstellungen!$H4/30.44,2)),"") ->  | BH4: =IF($A4<>"",Einstellungen!$H4,"") ->  | BN4: =IF($A4<>"",SUMIFS(INDIRECT(BN$1&"!$C$22:$AG$22",TRUE),INDIRECT(BN$1&"!$C$19:$AG$19",TRUE),$A4)+SUMIFS(INDIRECT(BN$1&"!$C$26:$AG$26",TRUE),INDIRECT(BN$1&"!$C$23:$AG$23",TRUE),$A4)+SUMIFS(INDIRECT(BN$1&"!$C$30:$AG$30",TRUE),INDIRECT(BN$1&"!$C$27:$AG$27",TRUE),$A4)+SUMIFS(INDIRECT(BN$1&"!$C$34:$AG$34",TRUE),INDIRECT(BN$1&"!$C$31:$AG$31",TRUE),$A4)+SUMIFS(INDIRECT(BN$1&"!$C$38:$AG$38",TRUE),INDIRECT(BN$1&"!$C$35:$AG$35",TRUE),$A4)+(COUNTIFS(INDIRECT(BN$1&"!$C$41:$AG$51",TRUE),$A4)*ROUND(Einstellungen!$H4/30.44,2)),"") ->  | BO4: =IF($A4<>"",Einstellungen!$H4,"") ->  | BU4: =IF($A4<>"",SUMIFS(INDIRECT(BU$1&"!$C$22:$AG$22",TRUE),INDIRECT(BU$1&"!$C$19:$AG$19",TRUE),$A4)+SUMIFS(INDIRECT(BU$1&"!$C$26:$AG$26",TRUE),INDIRECT(BU$1&"!$C$23:$AG$23",TRUE),$A4)+SUMIFS(INDIRECT(BU$1&"!$C$30:$AG$30",TRUE),INDIRECT(BU$1&"!$C$27:$AG$27",TRUE),$A4)+SUMIFS(INDIRECT(BU$1&"!$C$34:$AG$34",TRUE),INDIRECT(BU$1&"!$C$31:$AG$31",TRUE),$A4)+SUMIFS(INDIRECT(BU$1&"!$C$38:$AG$38",TRUE),INDIRECT(BU$1&"!$C$35:$AG$35",TRUE),$A4)+(COUNTIFS(INDIRECT(BU$1&"!$C$41:$AG$51",TRUE),$A4)*ROUND(Einstellungen!$H4/30.44,2)),"") ->  | BV4: =IF($A4<>"",Einstellungen!$H4,"") ->  | CB4: =IF($A4<>"",SUMIFS(INDIRECT(CB$1&"!$C$22:$AG$22",TRUE),INDIRECT(CB$1&"!$C$19:$AG$19",TRUE),$A4)+SUMIFS(INDIRECT(CB$1&"!$C$26:$AG$26",TRUE),INDIRECT(CB$1&"!$C$23:$AG$23",TRUE),$A4)+SUMIFS(INDIRECT(CB$1&"!$C$30:$AG$30",TRUE),INDIRECT(CB$1&"!$C$27:$AG$27",TRUE),$A4)+SUMIFS(INDIRECT(CB$1&"!$C$34:$AG$34",TRUE),INDIRECT(CB$1&"!$C$31:$AG$31",TRUE),$A4)+SUMIFS(INDIRECT(CB$1&"!$C$38:$AG$38",TRUE),INDIRECT(CB$1&"!$C$35:$AG$35",TRUE),$A4)+(COUNTIFS(INDIRECT(CB$1&"!$C$41:$AG$51",TRUE),$A4)*ROUND(Einstellungen!$H4/30.44,2)),"") ->  | CC4: =IF($A4<>"",Einstellungen!$H4,"") -> 
A5: =IF(Einstellungen!F5<>"",Einstellungen!F5,"") ->  | B5: =IF(A5<>"",Einstellungen!G5-COUNTIF(INDIRECT(D$1&"!$C$41:$AG$51",TRUE),A5)-COUNTIF(INDIRECT(J$1&"!$C$41:$AG$51",TRUE),A5)-COUNTIF(INDIRECT(Q$1&"!$C$41:$AG$51",TRUE),A5)-COUNTIF(INDIRECT(X$1&"!$C$41:$AG$51",TRUE),A5)-COUNTIF(INDIRECT(AE$1&"!$C$41:$AG$51",TRUE),A5)-COUNTIF(INDIRECT(AL$1&"!$C$41:$AG$51",TRUE),A5)-COUNTIF(INDIRECT(AS$1&"!$C$41:$AG$51",TRUE),A5)-COUNTIF(INDIRECT(AZ$1&"!$C$41:$AG$51",TRUE),A5)-COUNTIF(INDIRECT(BG$1&"!$C$41:$AG$51",TRUE),A5)-COUNTIF(INDIRECT(BN$1&"!$C$41:$AG$51",TRUE),A5)-COUNTIF(INDIRECT(BU$1&"!$C$41:$AG$51",TRUE),A5)-COUNTIF(INDIRECT(CB$1&"!$C$41:$AG$51",TRUE),A5),"") ->  | D5: =IF($A5<>"",SUMIFS(INDIRECT(D$1&"!$C$22:$AG$22",TRUE),INDIRECT(D$1&"!$C$19:$AG$19",TRUE),$A5)+SUMIFS(INDIRECT(D$1&"!$C$26:$AG$26",TRUE),INDIRECT(D$1&"!$C$23:$AG$23",TRUE),$A5)+SUMIFS(INDIRECT(D$1&"!$C$30:$AG$30",TRUE),INDIRECT(D$1&"!$C$27:$AG$27",TRUE),$A5)+SUMIFS(INDIRECT(D$1&"!$C$34:$AG$34",TRUE),INDIRECT(D$1&"!$C$31:$AG$31",TRUE),$A5)+SUMIFS(INDIRECT(D$1&"!$C$38:$AG$38",TRUE),INDIRECT(D$1&"!$C$35:$AG$35",TRUE),$A5)+(COUNTIFS(INDIRECT(D$1&"!$C$41:$AG$51",TRUE),$A5)*ROUND(Einstellungen!$H5/30.44,2)),"") ->  | E5: =IF($A5<>"",Einstellungen!$H5,"") ->  | J5: =IF($A5<>"",SUMIFS(INDIRECT(J$1&"!$C$22:$AG$22",TRUE),INDIRECT(J$1&"!$C$19:$AG$19",TRUE),$A5)+SUMIFS(INDIRECT(J$1&"!$C$26:$AG$26",TRUE),INDIRECT(J$1&"!$C$23:$AG$23",TRUE),$A5)+SUMIFS(INDIRECT(J$1&"!$C$30:$AG$30",TRUE),INDIRECT(J$1&"!$C$27:$AG$27",TRUE),$A5)+SUMIFS(INDIRECT(J$1&"!$C$34:$AG$34",TRUE),INDIRECT(J$1&"!$C$31:$AG$31",TRUE),$A5)+SUMIFS(INDIRECT(J$1&"!$C$38:$AG$38",TRUE),INDIRECT(J$1&"!$C$35:$AG$35",TRUE),$A5)+(COUNTIFS(INDIRECT(J$1&"!$C$41:$AG$51",TRUE),$A5)*ROUND(Einstellungen!$H5/30.44,2)),"") ->  | K5: =IF($A5<>"",Einstellungen!$H5,"") ->  | Q5: =IF($A5<>"",SUMIFS(INDIRECT(Q$1&"!$C$22:$AG$22",TRUE),INDIRECT(Q$1&"!$C$19:$AG$19",TRUE),$A5)+SUMIFS(INDIRECT(Q$1&"!$C$26:$AG$26",TRUE),INDIRECT(Q$1&"!$C$23:$AG$23",TRUE),$A5)+SUMIFS(INDIRECT(Q$1&"!$C$30:$AG$30",TRUE),INDIRECT(Q$1&"!$C$27:$AG$27",TRUE),$A5)+SUMIFS(INDIRECT(Q$1&"!$C$34:$AG$34",TRUE),INDIRECT(Q$1&"!$C$31:$AG$31",TRUE),$A5)+SUMIFS(INDIRECT(Q$1&"!$C$38:$AG$38",TRUE),INDIRECT(Q$1&"!$C$35:$AG$35",TRUE),$A5)+(COUNTIFS(INDIRECT(Q$1&"!$C$41:$AG$51",TRUE),$A5)*ROUND(Einstellungen!$H5/30.44,2)),"") ->  | R5: =IF($A5<>"",Einstellungen!$H5,"") ->  | X5: =IF($A5<>"",SUMIFS(INDIRECT(X$1&"!$C$22:$AG$22",TRUE),INDIRECT(X$1&"!$C$19:$AG$19",TRUE),$A5)+SUMIFS(INDIRECT(X$1&"!$C$26:$AG$26",TRUE),INDIRECT(X$1&"!$C$23:$AG$23",TRUE),$A5)+SUMIFS(INDIRECT(X$1&"!$C$30:$AG$30",TRUE),INDIRECT(X$1&"!$C$27:$AG$27",TRUE),$A5)+SUMIFS(INDIRECT(X$1&"!$C$34:$AG$34",TRUE),INDIRECT(X$1&"!$C$31:$AG$31",TRUE),$A5)+SUMIFS(INDIRECT(X$1&"!$C$38:$AG$38",TRUE),INDIRECT(X$1&"!$C$35:$AG$35",TRUE),$A5)+(COUNTIFS(INDIRECT(X$1&"!$C$41:$AG$51",TRUE),$A5)*ROUND(Einstellungen!$H5/30.44,2)),"") ->  | Y5: =IF($A5<>"",Einstellungen!$H5,"") ->  | AE5: =IF($A5<>"",SUMIFS(INDIRECT(AE$1&"!$C$22:$AG$22",TRUE),INDIRECT(AE$1&"!$C$19:$AG$19",TRUE),$A5)+SUMIFS(INDIRECT(AE$1&"!$C$26:$AG$26",TRUE),INDIRECT(AE$1&"!$C$23:$AG$23",TRUE),$A5)+SUMIFS(INDIRECT(AE$1&"!$C$30:$AG$30",TRUE),INDIRECT(AE$1&"!$C$27:$AG$27",TRUE),$A5)+SUMIFS(INDIRECT(AE$1&"!$C$34:$AG$34",TRUE),INDIRECT(AE$1&"!$C$31:$AG$31",TRUE),$A5)+SUMIFS(INDIRECT(AE$1&"!$C$38:$AG$38",TRUE),INDIRECT(AE$1&"!$C$35:$AG$35",TRUE),$A5)+(COUNTIFS(INDIRECT(AE$1&"!$C$41:$AG$51",TRUE),$A5)*ROUND(Einstellungen!$H5/30.44,2)),"") ->  | AF5: =IF($A5<>"",Einstellungen!$H5,"") ->  | AL5: =IF($A5<>"",SUMIFS(INDIRECT(AL$1&"!$C$22:$AG$22",TRUE),INDIRECT(AL$1&"!$C$19:$AG$19",TRUE),$A5)+SUMIFS(INDIRECT(AL$1&"!$C$26:$AG$26",TRUE),INDIRECT(AL$1&"!$C$23:$AG$23",TRUE),$A5)+SUMIFS(INDIRECT(AL$1&"!$C$30:$AG$30",TRUE),INDIRECT(AL$1&"!$C$27:$AG$27",TRUE),$A5)+SUMIFS(INDIRECT(AL$1&"!$C$34:$AG$34",TRUE),INDIRECT(AL$1&"!$C$31:$AG$31",TRUE),$A5)+SUMIFS(INDIRECT(AL$1&"!$C$38:$AG$38",TRUE),INDIRECT(AL$1&"!$C$35:$AG$35",TRUE),$A5)+(COUNTIFS(INDIRECT(AL$1&"!$C$41:$AG$51",TRUE),$A5)*ROUND(Einstellungen!$H5/30.44,2)),"") ->  | AM5: =IF($A5<>"",Einstellungen!$H5,"") ->  | AS5: =IF($A5<>"",SUMIFS(INDIRECT(AS$1&"!$C$22:$AG$22",TRUE),INDIRECT(AS$1&"!$C$19:$AG$19",TRUE),$A5)+SUMIFS(INDIRECT(AS$1&"!$C$26:$AG$26",TRUE),INDIRECT(AS$1&"!$C$23:$AG$23",TRUE),$A5)+SUMIFS(INDIRECT(AS$1&"!$C$30:$AG$30",TRUE),INDIRECT(AS$1&"!$C$27:$AG$27",TRUE),$A5)+SUMIFS(INDIRECT(AS$1&"!$C$34:$AG$34",TRUE),INDIRECT(AS$1&"!$C$31:$AG$31",TRUE),$A5)+SUMIFS(INDIRECT(AS$1&"!$C$38:$AG$38",TRUE),INDIRECT(AS$1&"!$C$35:$AG$35",TRUE),$A5)+(COUNTIFS(INDIRECT(AS$1&"!$C$41:$AG$51",TRUE),$A5)*ROUND(Einstellungen!$H5/30.44,2)),"") ->  | AT5: =IF($A5<>"",Einstellungen!$H5,"") ->  | AZ5: =IF($A5<>"",SUMIFS(INDIRECT(AZ$1&"!$C$22:$AG$22",TRUE),INDIRECT(AZ$1&"!$C$19:$AG$19",TRUE),$A5)+SUMIFS(INDIRECT(AZ$1&"!$C$26:$AG$26",TRUE),INDIRECT(AZ$1&"!$C$23:$AG$23",TRUE),$A5)+SUMIFS(INDIRECT(AZ$1&"!$C$30:$AG$30",TRUE),INDIRECT(AZ$1&"!$C$27:$AG$27",TRUE),$A5)+SUMIFS(INDIRECT(AZ$1&"!$C$34:$AG$34",TRUE),INDIRECT(AZ$1&"!$C$31:$AG$31",TRUE),$A5)+SUMIFS(INDIRECT(AZ$1&"!$C$38:$AG$38",TRUE),INDIRECT(AZ$1&"!$C$35:$AG$35",TRUE),$A5)+(COUNTIFS(INDIRECT(AZ$1&"!$C$41:$AG$51",TRUE),$A5)*ROUND(Einstellungen!$H5/30.44,2)),"") ->  | BA5: =IF($A5<>"",Einstellungen!$H5,"") ->  | BG5: =IF($A5<>"",SUMIFS(INDIRECT(BG$1&"!$C$22:$AG$22",TRUE),INDIRECT(BG$1&"!$C$19:$AG$19",TRUE),$A5)+SUMIFS(INDIRECT(BG$1&"!$C$26:$AG$26",TRUE),INDIRECT(BG$1&"!$C$23:$AG$23",TRUE),$A5)+SUMIFS(INDIRECT(BG$1&"!$C$30:$AG$30",TRUE),INDIRECT(BG$1&"!$C$27:$AG$27",TRUE),$A5)+SUMIFS(INDIRECT(BG$1&"!$C$34:$AG$34",TRUE),INDIRECT(BG$1&"!$C$31:$AG$31",TRUE),$A5)+SUMIFS(INDIRECT(BG$1&"!$C$38:$AG$38",TRUE),INDIRECT(BG$1&"!$C$35:$AG$35",TRUE),$A5)+(COUNTIFS(INDIRECT(BG$1&"!$C$41:$AG$51",TRUE),$A5)*ROUND(Einstellungen!$H5/30.44,2)),"") ->  | BH5: =IF($A5<>"",Einstellungen!$H5,"") ->  | BN5: =IF($A5<>"",SUMIFS(INDIRECT(BN$1&"!$C$22:$AG$22",TRUE),INDIRECT(BN$1&"!$C$19:$AG$19",TRUE),$A5)+SUMIFS(INDIRECT(BN$1&"!$C$26:$AG$26",TRUE),INDIRECT(BN$1&"!$C$23:$AG$23",TRUE),$A5)+SUMIFS(INDIRECT(BN$1&"!$C$30:$AG$30",TRUE),INDIRECT(BN$1&"!$C$27:$AG$27",TRUE),$A5)+SUMIFS(INDIRECT(BN$1&"!$C$34:$AG$34",TRUE),INDIRECT(BN$1&"!$C$31:$AG$31",TRUE),$A5)+SUMIFS(INDIRECT(BN$1&"!$C$38:$AG$38",TRUE),INDIRECT(BN$1&"!$C$35:$AG$35",TRUE),$A5)+(COUNTIFS(INDIRECT(BN$1&"!$C$41:$AG$51",TRUE),$A5)*ROUND(Einstellungen!$H5/30.44,2)),"") ->  | BO5: =IF($A5<>"",Einstellungen!$H5,"") ->  | BU5: =IF($A5<>"",SUMIFS(INDIRECT(BU$1&"!$C$22:$AG$22",TRUE),INDIRECT(BU$1&"!$C$19:$AG$19",TRUE),$A5)+SUMIFS(INDIRECT(BU$1&"!$C$26:$AG$26",TRUE),INDIRECT(BU$1&"!$C$23:$AG$23",TRUE),$A5)+SUMIFS(INDIRECT(BU$1&"!$C$30:$AG$30",TRUE),INDIRECT(BU$1&"!$C$27:$AG$27",TRUE),$A5)+SUMIFS(INDIRECT(BU$1&"!$C$34:$AG$34",TRUE),INDIRECT(BU$1&"!$C$31:$AG$31",TRUE),$A5)+SUMIFS(INDIRECT(BU$1&"!$C$38:$AG$38",TRUE),INDIRECT(BU$1&"!$C$35:$AG$35",TRUE),$A5)+(COUNTIFS(INDIRECT(BU$1&"!$C$41:$AG$51",TRUE),$A5)*ROUND(Einstellungen!$H5/30.44,2)),"") ->  | BV5: =IF($A5<>"",Einstellungen!$H5,"") ->  | CB5: =IF($A5<>"",SUMIFS(INDIRECT(CB$1&"!$C$22:$AG$22",TRUE),INDIRECT(CB$1&"!$C$19:$AG$19",TRUE),$A5)+SUMIFS(INDIRECT(CB$1&"!$C$26:$AG$26",TRUE),INDIRECT(CB$1&"!$C$23:$AG$23",TRUE),$A5)+SUMIFS(INDIRECT(CB$1&"!$C$30:$AG$30",TRUE),INDIRECT(CB$1&"!$C$27:$AG$27",TRUE),$A5)+SUMIFS(INDIRECT(CB$1&"!$C$34:$AG$34",TRUE),INDIRECT(CB$1&"!$C$31:$AG$31",TRUE),$A5)+SUMIFS(INDIRECT(CB$1&"!$C$38:$AG$38",TRUE),INDIRECT(CB$1&"!$C$35:$AG$35",TRUE),$A5)+(COUNTIFS(INDIRECT(CB$1&"!$C$41:$AG$51",TRUE),$A5)*ROUND(Einstellungen!$H5/30.44,2)),"") ->  | CC5: =IF($A5<>"",Einstellungen!$H5,"") -> 
A6: =IF(Einstellungen!F6<>"",Einstellungen!F6,"") ->  | B6: =IF(A6<>"",Einstellungen!G6-COUNTIF(INDIRECT(D$1&"!$C$41:$AG$51",TRUE),A6)-COUNTIF(INDIRECT(J$1&"!$C$41:$AG$51",TRUE),A6)-COUNTIF(INDIRECT(Q$1&"!$C$41:$AG$51",TRUE),A6)-COUNTIF(INDIRECT(X$1&"!$C$41:$AG$51",TRUE),A6)-COUNTIF(INDIRECT(AE$1&"!$C$41:$AG$51",TRUE),A6)-COUNTIF(INDIRECT(AL$1&"!$C$41:$AG$51",TRUE),A6)-COUNTIF(INDIRECT(AS$1&"!$C$41:$AG$51",TRUE),A6)-COUNTIF(INDIRECT(AZ$1&"!$C$41:$AG$51",TRUE),A6)-COUNTIF(INDIRECT(BG$1&"!$C$41:$AG$51",TRUE),A6)-COUNTIF(INDIRECT(BN$1&"!$C$41:$AG$51",TRUE),A6)-COUNTIF(INDIRECT(BU$1&"!$C$41:$AG$51",TRUE),A6)-COUNTIF(INDIRECT(CB$1&"!$C$41:$AG$51",TRUE),A6),"") ->  | D6: =IF($A6<>"",SUMIFS(INDIRECT(D$1&"!$C$22:$AG$22",TRUE),INDIRECT(D$1&"!$C$19:$AG$19",TRUE),$A6)+SUMIFS(INDIRECT(D$1&"!$C$26:$AG$26",TRUE),INDIRECT(D$1&"!$C$23:$AG$23",TRUE),$A6)+SUMIFS(INDIRECT(D$1&"!$C$30:$AG$30",TRUE),INDIRECT(D$1&"!$C$27:$AG$27",TRUE),$A6)+SUMIFS(INDIRECT(D$1&"!$C$34:$AG$34",TRUE),INDIRECT(D$1&"!$C$31:$AG$31",TRUE),$A6)+SUMIFS(INDIRECT(D$1&"!$C$38:$AG$38",TRUE),INDIRECT(D$1&"!$C$35:$AG$35",TRUE),$A6)+(COUNTIFS(INDIRECT(D$1&"!$C$41:$AG$51",TRUE),$A6)*ROUND(Einstellungen!$H6/30.44,2)),"") ->  | E6: =IF($A6<>"",Einstellungen!$H6,"") ->  | J6: =IF($A6<>"",SUMIFS(INDIRECT(J$1&"!$C$22:$AG$22",TRUE),INDIRECT(J$1&"!$C$19:$AG$19",TRUE),$A6)+SUMIFS(INDIRECT(J$1&"!$C$26:$AG$26",TRUE),INDIRECT(J$1&"!$C$23:$AG$23",TRUE),$A6)+SUMIFS(INDIRECT(J$1&"!$C$30:$AG$30",TRUE),INDIRECT(J$1&"!$C$27:$AG$27",TRUE),$A6)+SUMIFS(INDIRECT(J$1&"!$C$34:$AG$34",TRUE),INDIRECT(J$1&"!$C$31:$AG$31",TRUE),$A6)+SUMIFS(INDIRECT(J$1&"!$C$38:$AG$38",TRUE),INDIRECT(J$1&"!$C$35:$AG$35",TRUE),$A6)+(COUNTIFS(INDIRECT(J$1&"!$C$41:$AG$51",TRUE),$A6)*ROUND(Einstellungen!$H6/30.44,2)),"") ->  | K6: =IF($A6<>"",Einstellungen!$H6,"") ->  | Q6: =IF($A6<>"",SUMIFS(INDIRECT(Q$1&"!$C$22:$AG$22",TRUE),INDIRECT(Q$1&"!$C$19:$AG$19",TRUE),$A6)+SUMIFS(INDIRECT(Q$1&"!$C$26:$AG$26",TRUE),INDIRECT(Q$1&"!$C$23:$AG$23",TRUE),$A6)+SUMIFS(INDIRECT(Q$1&"!$C$30:$AG$30",TRUE),INDIRECT(Q$1&"!$C$27:$AG$27",TRUE),$A6)+SUMIFS(INDIRECT(Q$1&"!$C$34:$AG$34",TRUE),INDIRECT(Q$1&"!$C$31:$AG$31",TRUE),$A6)+SUMIFS(INDIRECT(Q$1&"!$C$38:$AG$38",TRUE),INDIRECT(Q$1&"!$C$35:$AG$35",TRUE),$A6)+(COUNTIFS(INDIRECT(Q$1&"!$C$41:$AG$51",TRUE),$A6)*ROUND(Einstellungen!$H6/30.44,2)),"") ->  | R6: =IF($A6<>"",Einstellungen!$H6,"") ->  | X6: =IF($A6<>"",SUMIFS(INDIRECT(X$1&"!$C$22:$AG$22",TRUE),INDIRECT(X$1&"!$C$19:$AG$19",TRUE),$A6)+SUMIFS(INDIRECT(X$1&"!$C$26:$AG$26",TRUE),INDIRECT(X$1&"!$C$23:$AG$23",TRUE),$A6)+SUMIFS(INDIRECT(X$1&"!$C$30:$AG$30",TRUE),INDIRECT(X$1&"!$C$27:$AG$27",TRUE),$A6)+SUMIFS(INDIRECT(X$1&"!$C$34:$AG$34",TRUE),INDIRECT(X$1&"!$C$31:$AG$31",TRUE),$A6)+SUMIFS(INDIRECT(X$1&"!$C$38:$AG$38",TRUE),INDIRECT(X$1&"!$C$35:$AG$35",TRUE),$A6)+(COUNTIFS(INDIRECT(X$1&"!$C$41:$AG$51",TRUE),$A6)*ROUND(Einstellungen!$H6/30.44,2)),"") ->  | Y6: =IF($A6<>"",Einstellungen!$H6,"") ->  | AE6: =IF($A6<>"",SUMIFS(INDIRECT(AE$1&"!$C$22:$AG$22",TRUE),INDIRECT(AE$1&"!$C$19:$AG$19",TRUE),$A6)+SUMIFS(INDIRECT(AE$1&"!$C$26:$AG$26",TRUE),INDIRECT(AE$1&"!$C$23:$AG$23",TRUE),$A6)+SUMIFS(INDIRECT(AE$1&"!$C$30:$AG$30",TRUE),INDIRECT(AE$1&"!$C$27:$AG$27",TRUE),$A6)+SUMIFS(INDIRECT(AE$1&"!$C$34:$AG$34",TRUE),INDIRECT(AE$1&"!$C$31:$AG$31",TRUE),$A6)+SUMIFS(INDIRECT(AE$1&"!$C$38:$AG$38",TRUE),INDIRECT(AE$1&"!$C$35:$AG$35",TRUE),$A6)+(COUNTIFS(INDIRECT(AE$1&"!$C$41:$AG$51",TRUE),$A6)*ROUND(Einstellungen!$H6/30.44,2)),"") ->  | AF6: =IF($A6<>"",Einstellungen!$H6,"") ->  | AL6: =IF($A6<>"",SUMIFS(INDIRECT(AL$1&"!$C$22:$AG$22",TRUE),INDIRECT(AL$1&"!$C$19:$AG$19",TRUE),$A6)+SUMIFS(INDIRECT(AL$1&"!$C$26:$AG$26",TRUE),INDIRECT(AL$1&"!$C$23:$AG$23",TRUE),$A6)+SUMIFS(INDIRECT(AL$1&"!$C$30:$AG$30",TRUE),INDIRECT(AL$1&"!$C$27:$AG$27",TRUE),$A6)+SUMIFS(INDIRECT(AL$1&"!$C$34:$AG$34",TRUE),INDIRECT(AL$1&"!$C$31:$AG$31",TRUE),$A6)+SUMIFS(INDIRECT(AL$1&"!$C$38:$AG$38",TRUE),INDIRECT(AL$1&"!$C$35:$AG$35",TRUE),$A6)+(COUNTIFS(INDIRECT(AL$1&"!$C$41:$AG$51",TRUE),$A6)*ROUND(Einstellungen!$H6/30.44,2)),"") ->  | AM6: =IF($A6<>"",Einstellungen!$H6,"") ->  | AS6: =IF($A6<>"",SUMIFS(INDIRECT(AS$1&"!$C$22:$AG$22",TRUE),INDIRECT(AS$1&"!$C$19:$AG$19",TRUE),$A6)+SUMIFS(INDIRECT(AS$1&"!$C$26:$AG$26",TRUE),INDIRECT(AS$1&"!$C$23:$AG$23",TRUE),$A6)+SUMIFS(INDIRECT(AS$1&"!$C$30:$AG$30",TRUE),INDIRECT(AS$1&"!$C$27:$AG$27",TRUE),$A6)+SUMIFS(INDIRECT(AS$1&"!$C$34:$AG$34",TRUE),INDIRECT(AS$1&"!$C$31:$AG$31",TRUE),$A6)+SUMIFS(INDIRECT(AS$1&"!$C$38:$AG$38",TRUE),INDIRECT(AS$1&"!$C$35:$AG$35",TRUE),$A6)+(COUNTIFS(INDIRECT(AS$1&"!$C$41:$AG$51",TRUE),$A6)*ROUND(Einstellungen!$H6/30.44,2)),"") ->  | AT6: =IF($A6<>"",Einstellungen!$H6,"") ->  | AZ6: =IF($A6<>"",SUMIFS(INDIRECT(AZ$1&"!$C$22:$AG$22",TRUE),INDIRECT(AZ$1&"!$C$19:$AG$19",TRUE),$A6)+SUMIFS(INDIRECT(AZ$1&"!$C$26:$AG$26",TRUE),INDIRECT(AZ$1&"!$C$23:$AG$23",TRUE),$A6)+SUMIFS(INDIRECT(AZ$1&"!$C$30:$AG$30",TRUE),INDIRECT(AZ$1&"!$C$27:$AG$27",TRUE),$A6)+SUMIFS(INDIRECT(AZ$1&"!$C$34:$AG$34",TRUE),INDIRECT(AZ$1&"!$C$31:$AG$31",TRUE),$A6)+SUMIFS(INDIRECT(AZ$1&"!$C$38:$AG$38",TRUE),INDIRECT(AZ$1&"!$C$35:$AG$35",TRUE),$A6)+(COUNTIFS(INDIRECT(AZ$1&"!$C$41:$AG$51",TRUE),$A6)*ROUND(Einstellungen!$H6/30.44,2)),"") ->  | BA6: =IF($A6<>"",Einstellungen!$H6,"") ->  | BG6: =IF($A6<>"",SUMIFS(INDIRECT(BG$1&"!$C$22:$AG$22",TRUE),INDIRECT(BG$1&"!$C$19:$AG$19",TRUE),$A6)+SUMIFS(INDIRECT(BG$1&"!$C$26:$AG$26",TRUE),INDIRECT(BG$1&"!$C$23:$AG$23",TRUE),$A6)+SUMIFS(INDIRECT(BG$1&"!$C$30:$AG$30",TRUE),INDIRECT(BG$1&"!$C$27:$AG$27",TRUE),$A6)+SUMIFS(INDIRECT(BG$1&"!$C$34:$AG$34",TRUE),INDIRECT(BG$1&"!$C$31:$AG$31",TRUE),$A6)+SUMIFS(INDIRECT(BG$1&"!$C$38:$AG$38",TRUE),INDIRECT(BG$1&"!$C$35:$AG$35",TRUE),$A6)+(COUNTIFS(INDIRECT(BG$1&"!$C$41:$AG$51",TRUE),$A6)*ROUND(Einstellungen!$H6/30.44,2)),"") ->  | BH6: =IF($A6<>"",Einstellungen!$H6,"") ->  | BN6: =IF($A6<>"",SUMIFS(INDIRECT(BN$1&"!$C$22:$AG$22",TRUE),INDIRECT(BN$1&"!$C$19:$AG$19",TRUE),$A6)+SUMIFS(INDIRECT(BN$1&"!$C$26:$AG$26",TRUE),INDIRECT(BN$1&"!$C$23:$AG$23",TRUE),$A6)+SUMIFS(INDIRECT(BN$1&"!$C$30:$AG$30",TRUE),INDIRECT(BN$1&"!$C$27:$AG$27",TRUE),$A6)+SUMIFS(INDIRECT(BN$1&"!$C$34:$AG$34",TRUE),INDIRECT(BN$1&"!$C$31:$AG$31",TRUE),$A6)+SUMIFS(INDIRECT(BN$1&"!$C$38:$AG$38",TRUE),INDIRECT(BN$1&"!$C$35:$AG$35",TRUE),$A6)+(COUNTIFS(INDIRECT(BN$1&"!$C$41:$AG$51",TRUE),$A6)*ROUND(Einstellungen!$H6/30.44,2)),"") ->  | BO6: =IF($A6<>"",Einstellungen!$H6,"") ->  | BU6: =IF($A6<>"",SUMIFS(INDIRECT(BU$1&"!$C$22:$AG$22",TRUE),INDIRECT(BU$1&"!$C$19:$AG$19",TRUE),$A6)+SUMIFS(INDIRECT(BU$1&"!$C$26:$AG$26",TRUE),INDIRECT(BU$1&"!$C$23:$AG$23",TRUE),$A6)+SUMIFS(INDIRECT(BU$1&"!$C$30:$AG$30",TRUE),INDIRECT(BU$1&"!$C$27:$AG$27",TRUE),$A6)+SUMIFS(INDIRECT(BU$1&"!$C$34:$AG$34",TRUE),INDIRECT(BU$1&"!$C$31:$AG$31",TRUE),$A6)+SUMIFS(INDIRECT(BU$1&"!$C$38:$AG$38",TRUE),INDIRECT(BU$1&"!$C$35:$AG$35",TRUE),$A6)+(COUNTIFS(INDIRECT(BU$1&"!$C$41:$AG$51",TRUE),$A6)*ROUND(Einstellungen!$H6/30.44,2)),"") ->  | BV6: =IF($A6<>"",Einstellungen!$H6,"") ->  | CB6: =IF($A6<>"",SUMIFS(INDIRECT(CB$1&"!$C$22:$AG$22",TRUE),INDIRECT(CB$1&"!$C$19:$AG$19",TRUE),$A6)+SUMIFS(INDIRECT(CB$1&"!$C$26:$AG$26",TRUE),INDIRECT(CB$1&"!$C$23:$AG$23",TRUE),$A6)+SUMIFS(INDIRECT(CB$1&"!$C$30:$AG$30",TRUE),INDIRECT(CB$1&"!$C$27:$AG$27",TRUE),$A6)+SUMIFS(INDIRECT(CB$1&"!$C$34:$AG$34",TRUE),INDIRECT(CB$1&"!$C$31:$AG$31",TRUE),$A6)+SUMIFS(INDIRECT(CB$1&"!$C$38:$AG$38",TRUE),INDIRECT(CB$1&"!$C$35:$AG$35",TRUE),$A6)+(COUNTIFS(INDIRECT(CB$1&"!$C$41:$AG$51",TRUE),$A6)*ROUND(Einstellungen!$H6/30.44,2)),"") ->  | CC6: =IF($A6<>"",Einstellungen!$H6,"") -> 
A7: =IF(Einstellungen!F7<>"",Einstellungen!F7,"") ->  | B7: =IF(A7<>"",Einstellungen!G7-COUNTIF(INDIRECT(D$1&"!$C$41:$AG$51",TRUE),A7)-COUNTIF(INDIRECT(J$1&"!$C$41:$AG$51",TRUE),A7)-COUNTIF(INDIRECT(Q$1&"!$C$41:$AG$51",TRUE),A7)-COUNTIF(INDIRECT(X$1&"!$C$41:$AG$51",TRUE),A7)-COUNTIF(INDIRECT(AE$1&"!$C$41:$AG$51",TRUE),A7)-COUNTIF(INDIRECT(AL$1&"!$C$41:$AG$51",TRUE),A7)-COUNTIF(INDIRECT(AS$1&"!$C$41:$AG$51",TRUE),A7)-COUNTIF(INDIRECT(AZ$1&"!$C$41:$AG$51",TRUE),A7)-COUNTIF(INDIRECT(BG$1&"!$C$41:$AG$51",TRUE),A7)-COUNTIF(INDIRECT(BN$1&"!$C$41:$AG$51",TRUE),A7)-COUNTIF(INDIRECT(BU$1&"!$C$41:$AG$51",TRUE),A7)-COUNTIF(INDIRECT(CB$1&"!$C$41:$AG$51",TRUE),A7),"") ->  | D7: =IF($A7<>"",SUMIFS(INDIRECT(D$1&"!$C$22:$AG$22",TRUE),INDIRECT(D$1&"!$C$19:$AG$19",TRUE),$A7)+SUMIFS(INDIRECT(D$1&"!$C$26:$AG$26",TRUE),INDIRECT(D$1&"!$C$23:$AG$23",TRUE),$A7)+SUMIFS(INDIRECT(D$1&"!$C$30:$AG$30",TRUE),INDIRECT(D$1&"!$C$27:$AG$27",TRUE),$A7)+SUMIFS(INDIRECT(D$1&"!$C$34:$AG$34",TRUE),INDIRECT(D$1&"!$C$31:$AG$31",TRUE),$A7)+SUMIFS(INDIRECT(D$1&"!$C$38:$AG$38",TRUE),INDIRECT(D$1&"!$C$35:$AG$35",TRUE),$A7)+(COUNTIFS(INDIRECT(D$1&"!$C$41:$AG$51",TRUE),$A7)*ROUND(Einstellungen!$H7/30.44,2)),"") ->  | E7: =IF($A7<>"",Einstellungen!$H7,"") ->  | J7: =IF($A7<>"",SUMIFS(INDIRECT(J$1&"!$C$22:$AG$22",TRUE),INDIRECT(J$1&"!$C$19:$AG$19",TRUE),$A7)+SUMIFS(INDIRECT(J$1&"!$C$26:$AG$26",TRUE),INDIRECT(J$1&"!$C$23:$AG$23",TRUE),$A7)+SUMIFS(INDIRECT(J$1&"!$C$30:$AG$30",TRUE),INDIRECT(J$1&"!$C$27:$AG$27",TRUE),$A7)+SUMIFS(INDIRECT(J$1&"!$C$34:$AG$34",TRUE),INDIRECT(J$1&"!$C$31:$AG$31",TRUE),$A7)+SUMIFS(INDIRECT(J$1&"!$C$38:$AG$38",TRUE),INDIRECT(J$1&"!$C$35:$AG$35",TRUE),$A7)+(COUNTIFS(INDIRECT(J$1&"!$C$41:$AG$51",TRUE),$A7)*ROUND(Einstellungen!$H7/30.44,2)),"") ->  | K7: =IF($A7<>"",Einstellungen!$H7,"") ->  | Q7: =IF($A7<>"",SUMIFS(INDIRECT(Q$1&"!$C$22:$AG$22",TRUE),INDIRECT(Q$1&"!$C$19:$AG$19",TRUE),$A7)+SUMIFS(INDIRECT(Q$1&"!$C$26:$AG$26",TRUE),INDIRECT(Q$1&"!$C$23:$AG$23",TRUE),$A7)+SUMIFS(INDIRECT(Q$1&"!$C$30:$AG$30",TRUE),INDIRECT(Q$1&"!$C$27:$AG$27",TRUE),$A7)+SUMIFS(INDIRECT(Q$1&"!$C$34:$AG$34",TRUE),INDIRECT(Q$1&"!$C$31:$AG$31",TRUE),$A7)+SUMIFS(INDIRECT(Q$1&"!$C$38:$AG$38",TRUE),INDIRECT(Q$1&"!$C$35:$AG$35",TRUE),$A7)+(COUNTIFS(INDIRECT(Q$1&"!$C$41:$AG$51",TRUE),$A7)*ROUND(Einstellungen!$H7/30.44,2)),"") ->  | R7: =IF($A7<>"",Einstellungen!$H7,"") ->  | X7: =IF($A7<>"",SUMIFS(INDIRECT(X$1&"!$C$22:$AG$22",TRUE),INDIRECT(X$1&"!$C$19:$AG$19",TRUE),$A7)+SUMIFS(INDIRECT(X$1&"!$C$26:$AG$26",TRUE),INDIRECT(X$1&"!$C$23:$AG$23",TRUE),$A7)+SUMIFS(INDIRECT(X$1&"!$C$30:$AG$30",TRUE),INDIRECT(X$1&"!$C$27:$AG$27",TRUE),$A7)+SUMIFS(INDIRECT(X$1&"!$C$34:$AG$34",TRUE),INDIRECT(X$1&"!$C$31:$AG$31",TRUE),$A7)+SUMIFS(INDIRECT(X$1&"!$C$38:$AG$38",TRUE),INDIRECT(X$1&"!$C$35:$AG$35",TRUE),$A7)+(COUNTIFS(INDIRECT(X$1&"!$C$41:$AG$51",TRUE),$A7)*ROUND(Einstellungen!$H7/30.44,2)),"") ->  | Y7: =IF($A7<>"",Einstellungen!$H7,"") ->  | AE7: =IF($A7<>"",SUMIFS(INDIRECT(AE$1&"!$C$22:$AG$22",TRUE),INDIRECT(AE$1&"!$C$19:$AG$19",TRUE),$A7)+SUMIFS(INDIRECT(AE$1&"!$C$26:$AG$26",TRUE),INDIRECT(AE$1&"!$C$23:$AG$23",TRUE),$A7)+SUMIFS(INDIRECT(AE$1&"!$C$30:$AG$30",TRUE),INDIRECT(AE$1&"!$C$27:$AG$27",TRUE),$A7)+SUMIFS(INDIRECT(AE$1&"!$C$34:$AG$34",TRUE),INDIRECT(AE$1&"!$C$31:$AG$31",TRUE),$A7)+SUMIFS(INDIRECT(AE$1&"!$C$38:$AG$38",TRUE),INDIRECT(AE$1&"!$C$35:$AG$35",TRUE),$A7)+(COUNTIFS(INDIRECT(AE$1&"!$C$41:$AG$51",TRUE),$A7)*ROUND(Einstellungen!$H7/30.44,2)),"") ->  | AF7: =IF($A7<>"",Einstellungen!$H7,"") ->  | AL7: =IF($A7<>"",SUMIFS(INDIRECT(AL$1&"!$C$22:$AG$22",TRUE),INDIRECT(AL$1&"!$C$19:$AG$19",TRUE),$A7)+SUMIFS(INDIRECT(AL$1&"!$C$26:$AG$26",TRUE),INDIRECT(AL$1&"!$C$23:$AG$23",TRUE),$A7)+SUMIFS(INDIRECT(AL$1&"!$C$30:$AG$30",TRUE),INDIRECT(AL$1&"!$C$27:$AG$27",TRUE),$A7)+SUMIFS(INDIRECT(AL$1&"!$C$34:$AG$34",TRUE),INDIRECT(AL$1&"!$C$31:$AG$31",TRUE),$A7)+SUMIFS(INDIRECT(AL$1&"!$C$38:$AG$38",TRUE),INDIRECT(AL$1&"!$C$35:$AG$35",TRUE),$A7)+(COUNTIFS(INDIRECT(AL$1&"!$C$41:$AG$51",TRUE),$A7)*ROUND(Einstellungen!$H7/30.44,2)),"") ->  | AM7: =IF($A7<>"",Einstellungen!$H7,"") ->  | AS7: =IF($A7<>"",SUMIFS(INDIRECT(AS$1&"!$C$22:$AG$22",TRUE),INDIRECT(AS$1&"!$C$19:$AG$19",TRUE),$A7)+SUMIFS(INDIRECT(AS$1&"!$C$26:$AG$26",TRUE),INDIRECT(AS$1&"!$C$23:$AG$23",TRUE),$A7)+SUMIFS(INDIRECT(AS$1&"!$C$30:$AG$30",TRUE),INDIRECT(AS$1&"!$C$27:$AG$27",TRUE),$A7)+SUMIFS(INDIRECT(AS$1&"!$C$34:$AG$34",TRUE),INDIRECT(AS$1&"!$C$31:$AG$31",TRUE),$A7)+SUMIFS(INDIRECT(AS$1&"!$C$38:$AG$38",TRUE),INDIRECT(AS$1&"!$C$35:$AG$35",TRUE),$A7)+(COUNTIFS(INDIRECT(AS$1&"!$C$41:$AG$51",TRUE),$A7)*ROUND(Einstellungen!$H7/30.44,2)),"") ->  | AT7: =IF($A7<>"",Einstellungen!$H7,"") ->  | AZ7: =IF($A7<>"",SUMIFS(INDIRECT(AZ$1&"!$C$22:$AG$22",TRUE),INDIRECT(AZ$1&"!$C$19:$AG$19",TRUE),$A7)+SUMIFS(INDIRECT(AZ$1&"!$C$26:$AG$26",TRUE),INDIRECT(AZ$1&"!$C$23:$AG$23",TRUE),$A7)+SUMIFS(INDIRECT(AZ$1&"!$C$30:$AG$30",TRUE),INDIRECT(AZ$1&"!$C$27:$AG$27",TRUE),$A7)+SUMIFS(INDIRECT(AZ$1&"!$C$34:$AG$34",TRUE),INDIRECT(AZ$1&"!$C$31:$AG$31",TRUE),$A7)+SUMIFS(INDIRECT(AZ$1&"!$C$38:$AG$38",TRUE),INDIRECT(AZ$1&"!$C$35:$AG$35",TRUE),$A7)+(COUNTIFS(INDIRECT(AZ$1&"!$C$41:$AG$51",TRUE),$A7)*ROUND(Einstellungen!$H7/30.44,2)),"") ->  | BA7: =IF($A7<>"",Einstellungen!$H7,"") ->  | BG7: =IF($A7<>"",SUMIFS(INDIRECT(BG$1&"!$C$22:$AG$22",TRUE),INDIRECT(BG$1&"!$C$19:$AG$19",TRUE),$A7)+SUMIFS(INDIRECT(BG$1&"!$C$26:$AG$26",TRUE),INDIRECT(BG$1&"!$C$23:$AG$23",TRUE),$A7)+SUMIFS(INDIRECT(BG$1&"!$C$30:$AG$30",TRUE),INDIRECT(BG$1&"!$C$27:$AG$27",TRUE),$A7)+SUMIFS(INDIRECT(BG$1&"!$C$34:$AG$34",TRUE),INDIRECT(BG$1&"!$C$31:$AG$31",TRUE),$A7)+SUMIFS(INDIRECT(BG$1&"!$C$38:$AG$38",TRUE),INDIRECT(BG$1&"!$C$35:$AG$35",TRUE),$A7)+(COUNTIFS(INDIRECT(BG$1&"!$C$41:$AG$51",TRUE),$A7)*ROUND(Einstellungen!$H7/30.44,2)),"") ->  | BH7: =IF($A7<>"",Einstellungen!$H7,"") ->  | BN7: =IF($A7<>"",SUMIFS(INDIRECT(BN$1&"!$C$22:$AG$22",TRUE),INDIRECT(BN$1&"!$C$19:$AG$19",TRUE),$A7)+SUMIFS(INDIRECT(BN$1&"!$C$26:$AG$26",TRUE),INDIRECT(BN$1&"!$C$23:$AG$23",TRUE),$A7)+SUMIFS(INDIRECT(BN$1&"!$C$30:$AG$30",TRUE),INDIRECT(BN$1&"!$C$27:$AG$27",TRUE),$A7)+SUMIFS(INDIRECT(BN$1&"!$C$34:$AG$34",TRUE),INDIRECT(BN$1&"!$C$31:$AG$31",TRUE),$A7)+SUMIFS(INDIRECT(BN$1&"!$C$38:$AG$38",TRUE),INDIRECT(BN$1&"!$C$35:$AG$35",TRUE),$A7)+(COUNTIFS(INDIRECT(BN$1&"!$C$41:$AG$51",TRUE),$A7)*ROUND(Einstellungen!$H7/30.44,2)),"") ->  | BO7: =IF($A7<>"",Einstellungen!$H7,"") ->  | BU7: =IF($A7<>"",SUMIFS(INDIRECT(BU$1&"!$C$22:$AG$22",TRUE),INDIRECT(BU$1&"!$C$19:$AG$19",TRUE),$A7)+SUMIFS(INDIRECT(BU$1&"!$C$26:$AG$26",TRUE),INDIRECT(BU$1&"!$C$23:$AG$23",TRUE),$A7)+SUMIFS(INDIRECT(BU$1&"!$C$30:$AG$30",TRUE),INDIRECT(BU$1&"!$C$27:$AG$27",TRUE),$A7)+SUMIFS(INDIRECT(BU$1&"!$C$34:$AG$34",TRUE),INDIRECT(BU$1&"!$C$31:$AG$31",TRUE),$A7)+SUMIFS(INDIRECT(BU$1&"!$C$38:$AG$38",TRUE),INDIRECT(BU$1&"!$C$35:$AG$35",TRUE),$A7)+(COUNTIFS(INDIRECT(BU$1&"!$C$41:$AG$51",TRUE),$A7)*ROUND(Einstellungen!$H7/30.44,2)),"") ->  | BV7: =IF($A7<>"",Einstellungen!$H7,"") ->  | CB7: =IF($A7<>"",SUMIFS(INDIRECT(CB$1&"!$C$22:$AG$22",TRUE),INDIRECT(CB$1&"!$C$19:$AG$19",TRUE),$A7)+SUMIFS(INDIRECT(CB$1&"!$C$26:$AG$26",TRUE),INDIRECT(CB$1&"!$C$23:$AG$23",TRUE),$A7)+SUMIFS(INDIRECT(CB$1&"!$C$30:$AG$30",TRUE),INDIRECT(CB$1&"!$C$27:$AG$27",TRUE),$A7)+SUMIFS(INDIRECT(CB$1&"!$C$34:$AG$34",TRUE),INDIRECT(CB$1&"!$C$31:$AG$31",TRUE),$A7)+SUMIFS(INDIRECT(CB$1&"!$C$38:$AG$38",TRUE),INDIRECT(CB$1&"!$C$35:$AG$35",TRUE),$A7)+(COUNTIFS(INDIRECT(CB$1&"!$C$41:$AG$51",TRUE),$A7)*ROUND(Einstellungen!$H7/30.44,2)),"") ->  | CC7: =IF($A7<>"",Einstellungen!$H7,"") -> 
A8: =IF(Einstellungen!F8<>"",Einstellungen!F8,"") ->  | B8: =IF(A8<>"",Einstellungen!G8-COUNTIF(INDIRECT(D$1&"!$C$41:$AG$51",TRUE),A8)-COUNTIF(INDIRECT(J$1&"!$C$41:$AG$51",TRUE),A8)-COUNTIF(INDIRECT(Q$1&"!$C$41:$AG$51",TRUE),A8)-COUNTIF(INDIRECT(X$1&"!$C$41:$AG$51",TRUE),A8)-COUNTIF(INDIRECT(AE$1&"!$C$41:$AG$51",TRUE),A8)-COUNTIF(INDIRECT(AL$1&"!$C$41:$AG$51",TRUE),A8)-COUNTIF(INDIRECT(AS$1&"!$C$41:$AG$51",TRUE),A8)-COUNTIF(INDIRECT(AZ$1&"!$C$41:$AG$51",TRUE),A8)-COUNTIF(INDIRECT(BG$1&"!$C$41:$AG$51",TRUE),A8)-COUNTIF(INDIRECT(BN$1&"!$C$41:$AG$51",TRUE),A8)-COUNTIF(INDIRECT(BU$1&"!$C$41:$AG$51",TRUE),A8)-COUNTIF(INDIRECT(CB$1&"!$C$41:$AG$51",TRUE),A8),"") ->  | D8: =IF($A8<>"",SUMIFS(INDIRECT(D$1&"!$C$22:$AG$22",TRUE),INDIRECT(D$1&"!$C$19:$AG$19",TRUE),$A8)+SUMIFS(INDIRECT(D$1&"!$C$26:$AG$26",TRUE),INDIRECT(D$1&"!$C$23:$AG$23",TRUE),$A8)+SUMIFS(INDIRECT(D$1&"!$C$30:$AG$30",TRUE),INDIRECT(D$1&"!$C$27:$AG$27",TRUE),$A8)+SUMIFS(INDIRECT(D$1&"!$C$34:$AG$34",TRUE),INDIRECT(D$1&"!$C$31:$AG$31",TRUE),$A8)+SUMIFS(INDIRECT(D$1&"!$C$38:$AG$38",TRUE),INDIRECT(D$1&"!$C$35:$AG$35",TRUE),$A8)+(COUNTIFS(INDIRECT(D$1&"!$C$41:$AG$51",TRUE),$A8)*ROUND(Einstellungen!$H8/30.44,2)),"") ->  | E8: =IF($A8<>"",Einstellungen!$H8,"") ->  | J8: =IF($A8<>"",SUMIFS(INDIRECT(J$1&"!$C$22:$AG$22",TRUE),INDIRECT(J$1&"!$C$19:$AG$19",TRUE),$A8)+SUMIFS(INDIRECT(J$1&"!$C$26:$AG$26",TRUE),INDIRECT(J$1&"!$C$23:$AG$23",TRUE),$A8)+SUMIFS(INDIRECT(J$1&"!$C$30:$AG$30",TRUE),INDIRECT(J$1&"!$C$27:$AG$27",TRUE),$A8)+SUMIFS(INDIRECT(J$1&"!$C$34:$AG$34",TRUE),INDIRECT(J$1&"!$C$31:$AG$31",TRUE),$A8)+SUMIFS(INDIRECT(J$1&"!$C$38:$AG$38",TRUE),INDIRECT(J$1&"!$C$35:$AG$35",TRUE),$A8)+(COUNTIFS(INDIRECT(J$1&"!$C$41:$AG$51",TRUE),$A8)*ROUND(Einstellungen!$H8/30.44,2)),"") ->  | K8: =IF($A8<>"",Einstellungen!$H8,"") ->  | Q8: =IF($A8<>"",SUMIFS(INDIRECT(Q$1&"!$C$22:$AG$22",TRUE),INDIRECT(Q$1&"!$C$19:$AG$19",TRUE),$A8)+SUMIFS(INDIRECT(Q$1&"!$C$26:$AG$26",TRUE),INDIRECT(Q$1&"!$C$23:$AG$23",TRUE),$A8)+SUMIFS(INDIRECT(Q$1&"!$C$30:$AG$30",TRUE),INDIRECT(Q$1&"!$C$27:$AG$27",TRUE),$A8)+SUMIFS(INDIRECT(Q$1&"!$C$34:$AG$34",TRUE),INDIRECT(Q$1&"!$C$31:$AG$31",TRUE),$A8)+SUMIFS(INDIRECT(Q$1&"!$C$38:$AG$38",TRUE),INDIRECT(Q$1&"!$C$35:$AG$35",TRUE),$A8)+(COUNTIFS(INDIRECT(Q$1&"!$C$41:$AG$51",TRUE),$A8)*ROUND(Einstellungen!$H8/30.44,2)),"") ->  | R8: =IF($A8<>"",Einstellungen!$H8,"") ->  | X8: =IF($A8<>"",SUMIFS(INDIRECT(X$1&"!$C$22:$AG$22",TRUE),INDIRECT(X$1&"!$C$19:$AG$19",TRUE),$A8)+SUMIFS(INDIRECT(X$1&"!$C$26:$AG$26",TRUE),INDIRECT(X$1&"!$C$23:$AG$23",TRUE),$A8)+SUMIFS(INDIRECT(X$1&"!$C$30:$AG$30",TRUE),INDIRECT(X$1&"!$C$27:$AG$27",TRUE),$A8)+SUMIFS(INDIRECT(X$1&"!$C$34:$AG$34",TRUE),INDIRECT(X$1&"!$C$31:$AG$31",TRUE),$A8)+SUMIFS(INDIRECT(X$1&"!$C$38:$AG$38",TRUE),INDIRECT(X$1&"!$C$35:$AG$35",TRUE),$A8)+(COUNTIFS(INDIRECT(X$1&"!$C$41:$AG$51",TRUE),$A8)*ROUND(Einstellungen!$H8/30.44,2)),"") ->  | Y8: =IF($A8<>"",Einstellungen!$H8,"") ->  | AE8: =IF($A8<>"",SUMIFS(INDIRECT(AE$1&"!$C$22:$AG$22",TRUE),INDIRECT(AE$1&"!$C$19:$AG$19",TRUE),$A8)+SUMIFS(INDIRECT(AE$1&"!$C$26:$AG$26",TRUE),INDIRECT(AE$1&"!$C$23:$AG$23",TRUE),$A8)+SUMIFS(INDIRECT(AE$1&"!$C$30:$AG$30",TRUE),INDIRECT(AE$1&"!$C$27:$AG$27",TRUE),$A8)+SUMIFS(INDIRECT(AE$1&"!$C$34:$AG$34",TRUE),INDIRECT(AE$1&"!$C$31:$AG$31",TRUE),$A8)+SUMIFS(INDIRECT(AE$1&"!$C$38:$AG$38",TRUE),INDIRECT(AE$1&"!$C$35:$AG$35",TRUE),$A8)+(COUNTIFS(INDIRECT(AE$1&"!$C$41:$AG$51",TRUE),$A8)*ROUND(Einstellungen!$H8/30.44,2)),"") ->  | AF8: =IF($A8<>"",Einstellungen!$H8,"") ->  | AL8: =IF($A8<>"",SUMIFS(INDIRECT(AL$1&"!$C$22:$AG$22",TRUE),INDIRECT(AL$1&"!$C$19:$AG$19",TRUE),$A8)+SUMIFS(INDIRECT(AL$1&"!$C$26:$AG$26",TRUE),INDIRECT(AL$1&"!$C$23:$AG$23",TRUE),$A8)+SUMIFS(INDIRECT(AL$1&"!$C$30:$AG$30",TRUE),INDIRECT(AL$1&"!$C$27:$AG$27",TRUE),$A8)+SUMIFS(INDIRECT(AL$1&"!$C$34:$AG$34",TRUE),INDIRECT(AL$1&"!$C$31:$AG$31",TRUE),$A8)+SUMIFS(INDIRECT(AL$1&"!$C$38:$AG$38",TRUE),INDIRECT(AL$1&"!$C$35:$AG$35",TRUE),$A8)+(COUNTIFS(INDIRECT(AL$1&"!$C$41:$AG$51",TRUE),$A8)*ROUND(Einstellungen!$H8/30.44,2)),"") ->  | AM8: =IF($A8<>"",Einstellungen!$H8,"") ->  | AS8: =IF($A8<>"",SUMIFS(INDIRECT(AS$1&"!$C$22:$AG$22",TRUE),INDIRECT(AS$1&"!$C$19:$AG$19",TRUE),$A8)+SUMIFS(INDIRECT(AS$1&"!$C$26:$AG$26",TRUE),INDIRECT(AS$1&"!$C$23:$AG$23",TRUE),$A8)+SUMIFS(INDIRECT(AS$1&"!$C$30:$AG$30",TRUE),INDIRECT(AS$1&"!$C$27:$AG$27",TRUE),$A8)+SUMIFS(INDIRECT(AS$1&"!$C$34:$AG$34",TRUE),INDIRECT(AS$1&"!$C$31:$AG$31",TRUE),$A8)+SUMIFS(INDIRECT(AS$1&"!$C$38:$AG$38",TRUE),INDIRECT(AS$1&"!$C$35:$AG$35",TRUE),$A8)+(COUNTIFS(INDIRECT(AS$1&"!$C$41:$AG$51",TRUE),$A8)*ROUND(Einstellungen!$H8/30.44,2)),"") ->  | AT8: =IF($A8<>"",Einstellungen!$H8,"") ->  | AZ8: =IF($A8<>"",SUMIFS(INDIRECT(AZ$1&"!$C$22:$AG$22",TRUE),INDIRECT(AZ$1&"!$C$19:$AG$19",TRUE),$A8)+SUMIFS(INDIRECT(AZ$1&"!$C$26:$AG$26",TRUE),INDIRECT(AZ$1&"!$C$23:$AG$23",TRUE),$A8)+SUMIFS(INDIRECT(AZ$1&"!$C$30:$AG$30",TRUE),INDIRECT(AZ$1&"!$C$27:$AG$27",TRUE),$A8)+SUMIFS(INDIRECT(AZ$1&"!$C$34:$AG$34",TRUE),INDIRECT(AZ$1&"!$C$31:$AG$31",TRUE),$A8)+SUMIFS(INDIRECT(AZ$1&"!$C$38:$AG$38",TRUE),INDIRECT(AZ$1&"!$C$35:$AG$35",TRUE),$A8)+(COUNTIFS(INDIRECT(AZ$1&"!$C$41:$AG$51",TRUE),$A8)*ROUND(Einstellungen!$H8/30.44,2)),"") ->  | BA8: =IF($A8<>"",Einstellungen!$H8,"") ->  | BG8: =IF($A8<>"",SUMIFS(INDIRECT(BG$1&"!$C$22:$AG$22",TRUE),INDIRECT(BG$1&"!$C$19:$AG$19",TRUE),$A8)+SUMIFS(INDIRECT(BG$1&"!$C$26:$AG$26",TRUE),INDIRECT(BG$1&"!$C$23:$AG$23",TRUE),$A8)+SUMIFS(INDIRECT(BG$1&"!$C$30:$AG$30",TRUE),INDIRECT(BG$1&"!$C$27:$AG$27",TRUE),$A8)+SUMIFS(INDIRECT(BG$1&"!$C$34:$AG$34",TRUE),INDIRECT(BG$1&"!$C$31:$AG$31",TRUE),$A8)+SUMIFS(INDIRECT(BG$1&"!$C$38:$AG$38",TRUE),INDIRECT(BG$1&"!$C$35:$AG$35",TRUE),$A8)+(COUNTIFS(INDIRECT(BG$1&"!$C$41:$AG$51",TRUE),$A8)*ROUND(Einstellungen!$H8/30.44,2)),"") ->  | BH8: =IF($A8<>"",Einstellungen!$H8,"") ->  | BN8: =IF($A8<>"",SUMIFS(INDIRECT(BN$1&"!$C$22:$AG$22",TRUE),INDIRECT(BN$1&"!$C$19:$AG$19",TRUE),$A8)+SUMIFS(INDIRECT(BN$1&"!$C$26:$AG$26",TRUE),INDIRECT(BN$1&"!$C$23:$AG$23",TRUE),$A8)+SUMIFS(INDIRECT(BN$1&"!$C$30:$AG$30",TRUE),INDIRECT(BN$1&"!$C$27:$AG$27",TRUE),$A8)+SUMIFS(INDIRECT(BN$1&"!$C$34:$AG$34",TRUE),INDIRECT(BN$1&"!$C$31:$AG$31",TRUE),$A8)+SUMIFS(INDIRECT(BN$1&"!$C$38:$AG$38",TRUE),INDIRECT(BN$1&"!$C$35:$AG$35",TRUE),$A8)+(COUNTIFS(INDIRECT(BN$1&"!$C$41:$AG$51",TRUE),$A8)*ROUND(Einstellungen!$H8/30.44,2)),"") ->  | BO8: =IF($A8<>"",Einstellungen!$H8,"") ->  | BU8: =IF($A8<>"",SUMIFS(INDIRECT(BU$1&"!$C$22:$AG$22",TRUE),INDIRECT(BU$1&"!$C$19:$AG$19",TRUE),$A8)+SUMIFS(INDIRECT(BU$1&"!$C$26:$AG$26",TRUE),INDIRECT(BU$1&"!$C$23:$AG$23",TRUE),$A8)+SUMIFS(INDIRECT(BU$1&"!$C$30:$AG$30",TRUE),INDIRECT(BU$1&"!$C$27:$AG$27",TRUE),$A8)+SUMIFS(INDIRECT(BU$1&"!$C$34:$AG$34",TRUE),INDIRECT(BU$1&"!$C$31:$AG$31",TRUE),$A8)+SUMIFS(INDIRECT(BU$1&"!$C$38:$AG$38",TRUE),INDIRECT(BU$1&"!$C$35:$AG$35",TRUE),$A8)+(COUNTIFS(INDIRECT(BU$1&"!$C$41:$AG$51",TRUE),$A8)*ROUND(Einstellungen!$H8/30.44,2)),"") ->  | BV8: =IF($A8<>"",Einstellungen!$H8,"") ->  | CB8: =IF($A8<>"",SUMIFS(INDIRECT(CB$1&"!$C$22:$AG$22",TRUE),INDIRECT(CB$1&"!$C$19:$AG$19",TRUE),$A8)+SUMIFS(INDIRECT(CB$1&"!$C$26:$AG$26",TRUE),INDIRECT(CB$1&"!$C$23:$AG$23",TRUE),$A8)+SUMIFS(INDIRECT(CB$1&"!$C$30:$AG$30",TRUE),INDIRECT(CB$1&"!$C$27:$AG$27",TRUE),$A8)+SUMIFS(INDIRECT(CB$1&"!$C$34:$AG$34",TRUE),INDIRECT(CB$1&"!$C$31:$AG$31",TRUE),$A8)+SUMIFS(INDIRECT(CB$1&"!$C$38:$AG$38",TRUE),INDIRECT(CB$1&"!$C$35:$AG$35",TRUE),$A8)+(COUNTIFS(INDIRECT(CB$1&"!$C$41:$AG$51",TRUE),$A8)*ROUND(Einstellungen!$H8/30.44,2)),"") ->  | CC8: =IF($A8<>"",Einstellungen!$H8,"") -> 
A9: =IF(Einstellungen!F9<>"",Einstellungen!F9,"") ->  | B9: =IF(A9<>"",Einstellungen!G9-COUNTIF(INDIRECT(D$1&"!$C$41:$AG$51",TRUE),A9)-COUNTIF(INDIRECT(J$1&"!$C$41:$AG$51",TRUE),A9)-COUNTIF(INDIRECT(Q$1&"!$C$41:$AG$51",TRUE),A9)-COUNTIF(INDIRECT(X$1&"!$C$41:$AG$51",TRUE),A9)-COUNTIF(INDIRECT(AE$1&"!$C$41:$AG$51",TRUE),A9)-COUNTIF(INDIRECT(AL$1&"!$C$41:$AG$51",TRUE),A9)-COUNTIF(INDIRECT(AS$1&"!$C$41:$AG$51",TRUE),A9)-COUNTIF(INDIRECT(AZ$1&"!$C$41:$AG$51",TRUE),A9)-COUNTIF(INDIRECT(BG$1&"!$C$41:$AG$51",TRUE),A9)-COUNTIF(INDIRECT(BN$1&"!$C$41:$AG$51",TRUE),A9)-COUNTIF(INDIRECT(BU$1&"!$C$41:$AG$51",TRUE),A9)-COUNTIF(INDIRECT(CB$1&"!$C$41:$AG$51",TRUE),A9),"") ->  | D9: =IF($A9<>"",SUMIFS(INDIRECT(D$1&"!$C$22:$AG$22",TRUE),INDIRECT(D$1&"!$C$19:$AG$19",TRUE),$A9)+SUMIFS(INDIRECT(D$1&"!$C$26:$AG$26",TRUE),INDIRECT(D$1&"!$C$23:$AG$23",TRUE),$A9)+SUMIFS(INDIRECT(D$1&"!$C$30:$AG$30",TRUE),INDIRECT(D$1&"!$C$27:$AG$27",TRUE),$A9)+SUMIFS(INDIRECT(D$1&"!$C$34:$AG$34",TRUE),INDIRECT(D$1&"!$C$31:$AG$31",TRUE),$A9)+SUMIFS(INDIRECT(D$1&"!$C$38:$AG$38",TRUE),INDIRECT(D$1&"!$C$35:$AG$35",TRUE),$A9)+(COUNTIFS(INDIRECT(D$1&"!$C$41:$AG$51",TRUE),$A9)*ROUND(Einstellungen!$H9/30.44,2)),"") ->  | E9: =IF($A9<>"",Einstellungen!$H9,"") ->  | J9: =IF($A9<>"",SUMIFS(INDIRECT(J$1&"!$C$22:$AG$22",TRUE),INDIRECT(J$1&"!$C$19:$AG$19",TRUE),$A9)+SUMIFS(INDIRECT(J$1&"!$C$26:$AG$26",TRUE),INDIRECT(J$1&"!$C$23:$AG$23",TRUE),$A9)+SUMIFS(INDIRECT(J$1&"!$C$30:$AG$30",TRUE),INDIRECT(J$1&"!$C$27:$AG$27",TRUE),$A9)+SUMIFS(INDIRECT(J$1&"!$C$34:$AG$34",TRUE),INDIRECT(J$1&"!$C$31:$AG$31",TRUE),$A9)+SUMIFS(INDIRECT(J$1&"!$C$38:$AG$38",TRUE),INDIRECT(J$1&"!$C$35:$AG$35",TRUE),$A9)+(COUNTIFS(INDIRECT(J$1&"!$C$41:$AG$51",TRUE),$A9)*ROUND(Einstellungen!$H9/30.44,2)),"") ->  | K9: =IF($A9<>"",Einstellungen!$H9,"") ->  | Q9: =IF($A9<>"",SUMIFS(INDIRECT(Q$1&"!$C$22:$AG$22",TRUE),INDIRECT(Q$1&"!$C$19:$AG$19",TRUE),$A9)+SUMIFS(INDIRECT(Q$1&"!$C$26:$AG$26",TRUE),INDIRECT(Q$1&"!$C$23:$AG$23",TRUE),$A9)+SUMIFS(INDIRECT(Q$1&"!$C$30:$AG$30",TRUE),INDIRECT(Q$1&"!$C$27:$AG$27",TRUE),$A9)+SUMIFS(INDIRECT(Q$1&"!$C$34:$AG$34",TRUE),INDIRECT(Q$1&"!$C$31:$AG$31",TRUE),$A9)+SUMIFS(INDIRECT(Q$1&"!$C$38:$AG$38",TRUE),INDIRECT(Q$1&"!$C$35:$AG$35",TRUE),$A9)+(COUNTIFS(INDIRECT(Q$1&"!$C$41:$AG$51",TRUE),$A9)*ROUND(Einstellungen!$H9/30.44,2)),"") ->  | R9: =IF($A9<>"",Einstellungen!$H9,"") ->  | X9: =IF($A9<>"",SUMIFS(INDIRECT(X$1&"!$C$22:$AG$22",TRUE),INDIRECT(X$1&"!$C$19:$AG$19",TRUE),$A9)+SUMIFS(INDIRECT(X$1&"!$C$26:$AG$26",TRUE),INDIRECT(X$1&"!$C$23:$AG$23",TRUE),$A9)+SUMIFS(INDIRECT(X$1&"!$C$30:$AG$30",TRUE),INDIRECT(X$1&"!$C$27:$AG$27",TRUE),$A9)+SUMIFS(INDIRECT(X$1&"!$C$34:$AG$34",TRUE),INDIRECT(X$1&"!$C$31:$AG$31",TRUE),$A9)+SUMIFS(INDIRECT(X$1&"!$C$38:$AG$38",TRUE),INDIRECT(X$1&"!$C$35:$AG$35",TRUE),$A9)+(COUNTIFS(INDIRECT(X$1&"!$C$41:$AG$51",TRUE),$A9)*ROUND(Einstellungen!$H9/30.44,2)),"") ->  | Y9: =IF($A9<>"",Einstellungen!$H9,"") ->  | AE9: =IF($A9<>"",SUMIFS(INDIRECT(AE$1&"!$C$22:$AG$22",TRUE),INDIRECT(AE$1&"!$C$19:$AG$19",TRUE),$A9)+SUMIFS(INDIRECT(AE$1&"!$C$26:$AG$26",TRUE),INDIRECT(AE$1&"!$C$23:$AG$23",TRUE),$A9)+SUMIFS(INDIRECT(AE$1&"!$C$30:$AG$30",TRUE),INDIRECT(AE$1&"!$C$27:$AG$27",TRUE),$A9)+SUMIFS(INDIRECT(AE$1&"!$C$34:$AG$34",TRUE),INDIRECT(AE$1&"!$C$31:$AG$31",TRUE),$A9)+SUMIFS(INDIRECT(AE$1&"!$C$38:$AG$38",TRUE),INDIRECT(AE$1&"!$C$35:$AG$35",TRUE),$A9)+(COUNTIFS(INDIRECT(AE$1&"!$C$41:$AG$51",TRUE),$A9)*ROUND(Einstellungen!$H9/30.44,2)),"") ->  | AF9: =IF($A9<>"",Einstellungen!$H9,"") ->  | AL9: =IF($A9<>"",SUMIFS(INDIRECT(AL$1&"!$C$22:$AG$22",TRUE),INDIRECT(AL$1&"!$C$19:$AG$19",TRUE),$A9)+SUMIFS(INDIRECT(AL$1&"!$C$26:$AG$26",TRUE),INDIRECT(AL$1&"!$C$23:$AG$23",TRUE),$A9)+SUMIFS(INDIRECT(AL$1&"!$C$30:$AG$30",TRUE),INDIRECT(AL$1&"!$C$27:$AG$27",TRUE),$A9)+SUMIFS(INDIRECT(AL$1&"!$C$34:$AG$34",TRUE),INDIRECT(AL$1&"!$C$31:$AG$31",TRUE),$A9)+SUMIFS(INDIRECT(AL$1&"!$C$38:$AG$38",TRUE),INDIRECT(AL$1&"!$C$35:$AG$35",TRUE),$A9)+(COUNTIFS(INDIRECT(AL$1&"!$C$41:$AG$51",TRUE),$A9)*ROUND(Einstellungen!$H9/30.44,2)),"") ->  | AM9: =IF($A9<>"",Einstellungen!$H9,"") ->  | AS9: =IF($A9<>"",SUMIFS(INDIRECT(AS$1&"!$C$22:$AG$22",TRUE),INDIRECT(AS$1&"!$C$19:$AG$19",TRUE),$A9)+SUMIFS(INDIRECT(AS$1&"!$C$26:$AG$26",TRUE),INDIRECT(AS$1&"!$C$23:$AG$23",TRUE),$A9)+SUMIFS(INDIRECT(AS$1&"!$C$30:$AG$30",TRUE),INDIRECT(AS$1&"!$C$27:$AG$27",TRUE),$A9)+SUMIFS(INDIRECT(AS$1&"!$C$34:$AG$34",TRUE),INDIRECT(AS$1&"!$C$31:$AG$31",TRUE),$A9)+SUMIFS(INDIRECT(AS$1&"!$C$38:$AG$38",TRUE),INDIRECT(AS$1&"!$C$35:$AG$35",TRUE),$A9)+(COUNTIFS(INDIRECT(AS$1&"!$C$41:$AG$51",TRUE),$A9)*ROUND(Einstellungen!$H9/30.44,2)),"") ->  | AT9: =IF($A9<>"",Einstellungen!$H9,"") ->  | AZ9: =IF($A9<>"",SUMIFS(INDIRECT(AZ$1&"!$C$22:$AG$22",TRUE),INDIRECT(AZ$1&"!$C$19:$AG$19",TRUE),$A9)+SUMIFS(INDIRECT(AZ$1&"!$C$26:$AG$26",TRUE),INDIRECT(AZ$1&"!$C$23:$AG$23",TRUE),$A9)+SUMIFS(INDIRECT(AZ$1&"!$C$30:$AG$30",TRUE),INDIRECT(AZ$1&"!$C$27:$AG$27",TRUE),$A9)+SUMIFS(INDIRECT(AZ$1&"!$C$34:$AG$34",TRUE),INDIRECT(AZ$1&"!$C$31:$AG$31",TRUE),$A9)+SUMIFS(INDIRECT(AZ$1&"!$C$38:$AG$38",TRUE),INDIRECT(AZ$1&"!$C$35:$AG$35",TRUE),$A9)+(COUNTIFS(INDIRECT(AZ$1&"!$C$41:$AG$51",TRUE),$A9)*ROUND(Einstellungen!$H9/30.44,2)),"") ->  | BA9: =IF($A9<>"",Einstellungen!$H9,"") ->  | BG9: =IF($A9<>"",SUMIFS(INDIRECT(BG$1&"!$C$22:$AG$22",TRUE),INDIRECT(BG$1&"!$C$19:$AG$19",TRUE),$A9)+SUMIFS(INDIRECT(BG$1&"!$C$26:$AG$26",TRUE),INDIRECT(BG$1&"!$C$23:$AG$23",TRUE),$A9)+SUMIFS(INDIRECT(BG$1&"!$C$30:$AG$30",TRUE),INDIRECT(BG$1&"!$C$27:$AG$27",TRUE),$A9)+SUMIFS(INDIRECT(BG$1&"!$C$34:$AG$34",TRUE),INDIRECT(BG$1&"!$C$31:$AG$31",TRUE),$A9)+SUMIFS(INDIRECT(BG$1&"!$C$38:$AG$38",TRUE),INDIRECT(BG$1&"!$C$35:$AG$35",TRUE),$A9)+(COUNTIFS(INDIRECT(BG$1&"!$C$41:$AG$51",TRUE),$A9)*ROUND(Einstellungen!$H9/30.44,2)),"") ->  | BH9: =IF($A9<>"",Einstellungen!$H9,"") ->  | BN9: =IF($A9<>"",SUMIFS(INDIRECT(BN$1&"!$C$22:$AG$22",TRUE),INDIRECT(BN$1&"!$C$19:$AG$19",TRUE),$A9)+SUMIFS(INDIRECT(BN$1&"!$C$26:$AG$26",TRUE),INDIRECT(BN$1&"!$C$23:$AG$23",TRUE),$A9)+SUMIFS(INDIRECT(BN$1&"!$C$30:$AG$30",TRUE),INDIRECT(BN$1&"!$C$27:$AG$27",TRUE),$A9)+SUMIFS(INDIRECT(BN$1&"!$C$34:$AG$34",TRUE),INDIRECT(BN$1&"!$C$31:$AG$31",TRUE),$A9)+SUMIFS(INDIRECT(BN$1&"!$C$38:$AG$38",TRUE),INDIRECT(BN$1&"!$C$35:$AG$35",TRUE),$A9)+(COUNTIFS(INDIRECT(BN$1&"!$C$41:$AG$51",TRUE),$A9)*ROUND(Einstellungen!$H9/30.44,2)),"") ->  | BO9: =IF($A9<>"",Einstellungen!$H9,"") ->  | BU9: =IF($A9<>"",SUMIFS(INDIRECT(BU$1&"!$C$22:$AG$22",TRUE),INDIRECT(BU$1&"!$C$19:$AG$19",TRUE),$A9)+SUMIFS(INDIRECT(BU$1&"!$C$26:$AG$26",TRUE),INDIRECT(BU$1&"!$C$23:$AG$23",TRUE),$A9)+SUMIFS(INDIRECT(BU$1&"!$C$30:$AG$30",TRUE),INDIRECT(BU$1&"!$C$27:$AG$27",TRUE),$A9)+SUMIFS(INDIRECT(BU$1&"!$C$34:$AG$34",TRUE),INDIRECT(BU$1&"!$C$31:$AG$31",TRUE),$A9)+SUMIFS(INDIRECT(BU$1&"!$C$38:$AG$38",TRUE),INDIRECT(BU$1&"!$C$35:$AG$35",TRUE),$A9)+(COUNTIFS(INDIRECT(BU$1&"!$C$41:$AG$51",TRUE),$A9)*ROUND(Einstellungen!$H9/30.44,2)),"") ->  | BV9: =IF($A9<>"",Einstellungen!$H9,"") ->  | CB9: =IF($A9<>"",SUMIFS(INDIRECT(CB$1&"!$C$22:$AG$22",TRUE),INDIRECT(CB$1&"!$C$19:$AG$19",TRUE),$A9)+SUMIFS(INDIRECT(CB$1&"!$C$26:$AG$26",TRUE),INDIRECT(CB$1&"!$C$23:$AG$23",TRUE),$A9)+SUMIFS(INDIRECT(CB$1&"!$C$30:$AG$30",TRUE),INDIRECT(CB$1&"!$C$27:$AG$27",TRUE),$A9)+SUMIFS(INDIRECT(CB$1&"!$C$34:$AG$34",TRUE),INDIRECT(CB$1&"!$C$31:$AG$31",TRUE),$A9)+SUMIFS(INDIRECT(CB$1&"!$C$38:$AG$38",TRUE),INDIRECT(CB$1&"!$C$35:$AG$35",TRUE),$A9)+(COUNTIFS(INDIRECT(CB$1&"!$C$41:$AG$51",TRUE),$A9)*ROUND(Einstellungen!$H9/30.44,2)),"") ->  | CC9: =IF($A9<>"",Einstellungen!$H9,"") -> 
A10: =IF(Einstellungen!F10<>"",Einstellungen!F10,"") ->  | B10: =IF(A10<>"",Einstellungen!G10-COUNTIF(INDIRECT(D$1&"!$C$41:$AG$51",TRUE),A10)-COUNTIF(INDIRECT(J$1&"!$C$41:$AG$51",TRUE),A10)-COUNTIF(INDIRECT(Q$1&"!$C$41:$AG$51",TRUE),A10)-COUNTIF(INDIRECT(X$1&"!$C$41:$AG$51",TRUE),A10)-COUNTIF(INDIRECT(AE$1&"!$C$41:$AG$51",TRUE),A10)-COUNTIF(INDIRECT(AL$1&"!$C$41:$AG$51",TRUE),A10)-COUNTIF(INDIRECT(AS$1&"!$C$41:$AG$51",TRUE),A10)-COUNTIF(INDIRECT(AZ$1&"!$C$41:$AG$51",TRUE),A10)-COUNTIF(INDIRECT(BG$1&"!$C$41:$AG$51",TRUE),A10)-COUNTIF(INDIRECT(BN$1&"!$C$41:$AG$51",TRUE),A10)-COUNTIF(INDIRECT(BU$1&"!$C$41:$AG$51",TRUE),A10)-COUNTIF(INDIRECT(CB$1&"!$C$41:$AG$51",TRUE),A10),"") ->  | D10: =IF($A10<>"",SUMIFS(INDIRECT(D$1&"!$C$22:$AG$22",TRUE),INDIRECT(D$1&"!$C$19:$AG$19",TRUE),$A10)+SUMIFS(INDIRECT(D$1&"!$C$26:$AG$26",TRUE),INDIRECT(D$1&"!$C$23:$AG$23",TRUE),$A10)+SUMIFS(INDIRECT(D$1&"!$C$30:$AG$30",TRUE),INDIRECT(D$1&"!$C$27:$AG$27",TRUE),$A10)+SUMIFS(INDIRECT(D$1&"!$C$34:$AG$34",TRUE),INDIRECT(D$1&"!$C$31:$AG$31",TRUE),$A10)+SUMIFS(INDIRECT(D$1&"!$C$38:$AG$38",TRUE),INDIRECT(D$1&"!$C$35:$AG$35",TRUE),$A10)+(COUNTIFS(INDIRECT(D$1&"!$C$41:$AG$51",TRUE),$A10)*ROUND(Einstellungen!$H10/30.44,2)),"") ->  | E10: =IF($A10<>"",Einstellungen!$H10,"") ->  | J10: =IF($A10<>"",SUMIFS(INDIRECT(J$1&"!$C$22:$AG$22",TRUE),INDIRECT(J$1&"!$C$19:$AG$19",TRUE),$A10)+SUMIFS(INDIRECT(J$1&"!$C$26:$AG$26",TRUE),INDIRECT(J$1&"!$C$23:$AG$23",TRUE),$A10)+SUMIFS(INDIRECT(J$1&"!$C$30:$AG$30",TRUE),INDIRECT(J$1&"!$C$27:$AG$27",TRUE),$A10)+SUMIFS(INDIRECT(J$1&"!$C$34:$AG$34",TRUE),INDIRECT(J$1&"!$C$31:$AG$31",TRUE),$A10)+SUMIFS(INDIRECT(J$1&"!$C$38:$AG$38",TRUE),INDIRECT(J$1&"!$C$35:$AG$35",TRUE),$A10)+(COUNTIFS(INDIRECT(J$1&"!$C$41:$AG$51",TRUE),$A10)*ROUND(Einstellungen!$H10/30.44,2)),"") ->  | K10: =IF($A10<>"",Einstellungen!$H10,"") ->  | Q10: =IF($A10<>"",SUMIFS(INDIRECT(Q$1&"!$C$22:$AG$22",TRUE),INDIRECT(Q$1&"!$C$19:$AG$19",TRUE),$A10)+SUMIFS(INDIRECT(Q$1&"!$C$26:$AG$26",TRUE),INDIRECT(Q$1&"!$C$23:$AG$23",TRUE),$A10)+SUMIFS(INDIRECT(Q$1&"!$C$30:$AG$30",TRUE),INDIRECT(Q$1&"!$C$27:$AG$27",TRUE),$A10)+SUMIFS(INDIRECT(Q$1&"!$C$34:$AG$34",TRUE),INDIRECT(Q$1&"!$C$31:$AG$31",TRUE),$A10)+SUMIFS(INDIRECT(Q$1&"!$C$38:$AG$38",TRUE),INDIRECT(Q$1&"!$C$35:$AG$35",TRUE),$A10)+(COUNTIFS(INDIRECT(Q$1&"!$C$41:$AG$51",TRUE),$A10)*ROUND(Einstellungen!$H10/30.44,2)),"") ->  | R10: =IF($A10<>"",Einstellungen!$H10,"") ->  | X10: =IF($A10<>"",SUMIFS(INDIRECT(X$1&"!$C$22:$AG$22",TRUE),INDIRECT(X$1&"!$C$19:$AG$19",TRUE),$A10)+SUMIFS(INDIRECT(X$1&"!$C$26:$AG$26",TRUE),INDIRECT(X$1&"!$C$23:$AG$23",TRUE),$A10)+SUMIFS(INDIRECT(X$1&"!$C$30:$AG$30",TRUE),INDIRECT(X$1&"!$C$27:$AG$27",TRUE),$A10)+SUMIFS(INDIRECT(X$1&"!$C$34:$AG$34",TRUE),INDIRECT(X$1&"!$C$31:$AG$31",TRUE),$A10)+SUMIFS(INDIRECT(X$1&"!$C$38:$AG$38",TRUE),INDIRECT(X$1&"!$C$35:$AG$35",TRUE),$A10)+(COUNTIFS(INDIRECT(X$1&"!$C$41:$AG$51",TRUE),$A10)*ROUND(Einstellungen!$H10/30.44,2)),"") ->  | Y10: =IF($A10<>"",Einstellungen!$H10,"") ->  | AE10: =IF($A10<>"",SUMIFS(INDIRECT(AE$1&"!$C$22:$AG$22",TRUE),INDIRECT(AE$1&"!$C$19:$AG$19",TRUE),$A10)+SUMIFS(INDIRECT(AE$1&"!$C$26:$AG$26",TRUE),INDIRECT(AE$1&"!$C$23:$AG$23",TRUE),$A10)+SUMIFS(INDIRECT(AE$1&"!$C$30:$AG$30",TRUE),INDIRECT(AE$1&"!$C$27:$AG$27",TRUE),$A10)+SUMIFS(INDIRECT(AE$1&"!$C$34:$AG$34",TRUE),INDIRECT(AE$1&"!$C$31:$AG$31",TRUE),$A10)+SUMIFS(INDIRECT(AE$1&"!$C$38:$AG$38",TRUE),INDIRECT(AE$1&"!$C$35:$AG$35",TRUE),$A10)+(COUNTIFS(INDIRECT(AE$1&"!$C$41:$AG$51",TRUE),$A10)*ROUND(Einstellungen!$H10/30.44,2)),"") ->  | AF10: =IF($A10<>"",Einstellungen!$H10,"") ->  | AL10: =IF($A10<>"",SUMIFS(INDIRECT(AL$1&"!$C$22:$AG$22",TRUE),INDIRECT(AL$1&"!$C$19:$AG$19",TRUE),$A10)+SUMIFS(INDIRECT(AL$1&"!$C$26:$AG$26",TRUE),INDIRECT(AL$1&"!$C$23:$AG$23",TRUE),$A10)+SUMIFS(INDIRECT(AL$1&"!$C$30:$AG$30",TRUE),INDIRECT(AL$1&"!$C$27:$AG$27",TRUE),$A10)+SUMIFS(INDIRECT(AL$1&"!$C$34:$AG$34",TRUE),INDIRECT(AL$1&"!$C$31:$AG$31",TRUE),$A10)+SUMIFS(INDIRECT(AL$1&"!$C$38:$AG$38",TRUE),INDIRECT(AL$1&"!$C$35:$AG$35",TRUE),$A10)+(COUNTIFS(INDIRECT(AL$1&"!$C$41:$AG$51",TRUE),$A10)*ROUND(Einstellungen!$H10/30.44,2)),"") ->  | AM10: =IF($A10<>"",Einstellungen!$H10,"") ->  | AS10: =IF($A10<>"",SUMIFS(INDIRECT(AS$1&"!$C$22:$AG$22",TRUE),INDIRECT(AS$1&"!$C$19:$AG$19",TRUE),$A10)+SUMIFS(INDIRECT(AS$1&"!$C$26:$AG$26",TRUE),INDIRECT(AS$1&"!$C$23:$AG$23",TRUE),$A10)+SUMIFS(INDIRECT(AS$1&"!$C$30:$AG$30",TRUE),INDIRECT(AS$1&"!$C$27:$AG$27",TRUE),$A10)+SUMIFS(INDIRECT(AS$1&"!$C$34:$AG$34",TRUE),INDIRECT(AS$1&"!$C$31:$AG$31",TRUE),$A10)+SUMIFS(INDIRECT(AS$1&"!$C$38:$AG$38",TRUE),INDIRECT(AS$1&"!$C$35:$AG$35",TRUE),$A10)+(COUNTIFS(INDIRECT(AS$1&"!$C$41:$AG$51",TRUE),$A10)*ROUND(Einstellungen!$H10/30.44,2)),"") ->  | AT10: =IF($A10<>"",Einstellungen!$H10,"") ->  | AZ10: =IF($A10<>"",SUMIFS(INDIRECT(AZ$1&"!$C$22:$AG$22",TRUE),INDIRECT(AZ$1&"!$C$19:$AG$19",TRUE),$A10)+SUMIFS(INDIRECT(AZ$1&"!$C$26:$AG$26",TRUE),INDIRECT(AZ$1&"!$C$23:$AG$23",TRUE),$A10)+SUMIFS(INDIRECT(AZ$1&"!$C$30:$AG$30",TRUE),INDIRECT(AZ$1&"!$C$27:$AG$27",TRUE),$A10)+SUMIFS(INDIRECT(AZ$1&"!$C$34:$AG$34",TRUE),INDIRECT(AZ$1&"!$C$31:$AG$31",TRUE),$A10)+SUMIFS(INDIRECT(AZ$1&"!$C$38:$AG$38",TRUE),INDIRECT(AZ$1&"!$C$35:$AG$35",TRUE),$A10)+(COUNTIFS(INDIRECT(AZ$1&"!$C$41:$AG$51",TRUE),$A10)*ROUND(Einstellungen!$H10/30.44,2)),"") ->  | BA10: =IF($A10<>"",Einstellungen!$H10,"") ->  | BG10: =IF($A10<>"",SUMIFS(INDIRECT(BG$1&"!$C$22:$AG$22",TRUE),INDIRECT(BG$1&"!$C$19:$AG$19",TRUE),$A10)+SUMIFS(INDIRECT(BG$1&"!$C$26:$AG$26",TRUE),INDIRECT(BG$1&"!$C$23:$AG$23",TRUE),$A10)+SUMIFS(INDIRECT(BG$1&"!$C$30:$AG$30",TRUE),INDIRECT(BG$1&"!$C$27:$AG$27",TRUE),$A10)+SUMIFS(INDIRECT(BG$1&"!$C$34:$AG$34",TRUE),INDIRECT(BG$1&"!$C$31:$AG$31",TRUE),$A10)+SUMIFS(INDIRECT(BG$1&"!$C$38:$AG$38",TRUE),INDIRECT(BG$1&"!$C$35:$AG$35",TRUE),$A10)+(COUNTIFS(INDIRECT(BG$1&"!$C$41:$AG$51",TRUE),$A10)*ROUND(Einstellungen!$H10/30.44,2)),"") ->  | BH10: =IF($A10<>"",Einstellungen!$H10,"") ->  | BN10: =IF($A10<>"",SUMIFS(INDIRECT(BN$1&"!$C$22:$AG$22",TRUE),INDIRECT(BN$1&"!$C$19:$AG$19",TRUE),$A10)+SUMIFS(INDIRECT(BN$1&"!$C$26:$AG$26",TRUE),INDIRECT(BN$1&"!$C$23:$AG$23",TRUE),$A10)+SUMIFS(INDIRECT(BN$1&"!$C$30:$AG$30",TRUE),INDIRECT(BN$1&"!$C$27:$AG$27",TRUE),$A10)+SUMIFS(INDIRECT(BN$1&"!$C$34:$AG$34",TRUE),INDIRECT(BN$1&"!$C$31:$AG$31",TRUE),$A10)+SUMIFS(INDIRECT(BN$1&"!$C$38:$AG$38",TRUE),INDIRECT(BN$1&"!$C$35:$AG$35",TRUE),$A10)+(COUNTIFS(INDIRECT(BN$1&"!$C$41:$AG$51",TRUE),$A10)*ROUND(Einstellungen!$H10/30.44,2)),"") ->  | BO10: =IF($A10<>"",Einstellungen!$H10,"") ->  | BU10: =IF($A10<>"",SUMIFS(INDIRECT(BU$1&"!$C$22:$AG$22",TRUE),INDIRECT(BU$1&"!$C$19:$AG$19",TRUE),$A10)+SUMIFS(INDIRECT(BU$1&"!$C$26:$AG$26",TRUE),INDIRECT(BU$1&"!$C$23:$AG$23",TRUE),$A10)+SUMIFS(INDIRECT(BU$1&"!$C$30:$AG$30",TRUE),INDIRECT(BU$1&"!$C$27:$AG$27",TRUE),$A10)+SUMIFS(INDIRECT(BU$1&"!$C$34:$AG$34",TRUE),INDIRECT(BU$1&"!$C$31:$AG$31",TRUE),$A10)+SUMIFS(INDIRECT(BU$1&"!$C$38:$AG$38",TRUE),INDIRECT(BU$1&"!$C$35:$AG$35",TRUE),$A10)+(COUNTIFS(INDIRECT(BU$1&"!$C$41:$AG$51",TRUE),$A10)*ROUND(Einstellungen!$H10/30.44,2)),"") ->  | BV10: =IF($A10<>"",Einstellungen!$H10,"") ->  | CB10: =IF($A10<>"",SUMIFS(INDIRECT(CB$1&"!$C$22:$AG$22",TRUE),INDIRECT(CB$1&"!$C$19:$AG$19",TRUE),$A10)+SUMIFS(INDIRECT(CB$1&"!$C$26:$AG$26",TRUE),INDIRECT(CB$1&"!$C$23:$AG$23",TRUE),$A10)+SUMIFS(INDIRECT(CB$1&"!$C$30:$AG$30",TRUE),INDIRECT(CB$1&"!$C$27:$AG$27",TRUE),$A10)+SUMIFS(INDIRECT(CB$1&"!$C$34:$AG$34",TRUE),INDIRECT(CB$1&"!$C$31:$AG$31",TRUE),$A10)+SUMIFS(INDIRECT(CB$1&"!$C$38:$AG$38",TRUE),INDIRECT(CB$1&"!$C$35:$AG$35",TRUE),$A10)+(COUNTIFS(INDIRECT(CB$1&"!$C$41:$AG$51",TRUE),$A10)*ROUND(Einstellungen!$H10/30.44,2)),"") ->  | CC10: =IF($A10<>"",Einstellungen!$H10,"") -> 
A11: =IF(Einstellungen!F11<>"",Einstellungen!F11,"") ->  | B11: =IF(A11<>"",Einstellungen!G11-COUNTIF(INDIRECT(D$1&"!$C$41:$AG$51",TRUE),A11)-COUNTIF(INDIRECT(J$1&"!$C$41:$AG$51",TRUE),A11)-COUNTIF(INDIRECT(Q$1&"!$C$41:$AG$51",TRUE),A11)-COUNTIF(INDIRECT(X$1&"!$C$41:$AG$51",TRUE),A11)-COUNTIF(INDIRECT(AE$1&"!$C$41:$AG$51",TRUE),A11)-COUNTIF(INDIRECT(AL$1&"!$C$41:$AG$51",TRUE),A11)-COUNTIF(INDIRECT(AS$1&"!$C$41:$AG$51",TRUE),A11)-COUNTIF(INDIRECT(AZ$1&"!$C$41:$AG$51",TRUE),A11)-COUNTIF(INDIRECT(BG$1&"!$C$41:$AG$51",TRUE),A11)-COUNTIF(INDIRECT(BN$1&"!$C$41:$AG$51",TRUE),A11)-COUNTIF(INDIRECT(BU$1&"!$C$41:$AG$51",TRUE),A11)-COUNTIF(INDIRECT(CB$1&"!$C$41:$AG$51",TRUE),A11),"") ->  | D11: =IF($A11<>"",SUMIFS(INDIRECT(D$1&"!$C$22:$AG$22",TRUE),INDIRECT(D$1&"!$C$19:$AG$19",TRUE),$A11)+SUMIFS(INDIRECT(D$1&"!$C$26:$AG$26",TRUE),INDIRECT(D$1&"!$C$23:$AG$23",TRUE),$A11)+SUMIFS(INDIRECT(D$1&"!$C$30:$AG$30",TRUE),INDIRECT(D$1&"!$C$27:$AG$27",TRUE),$A11)+SUMIFS(INDIRECT(D$1&"!$C$34:$AG$34",TRUE),INDIRECT(D$1&"!$C$31:$AG$31",TRUE),$A11)+SUMIFS(INDIRECT(D$1&"!$C$38:$AG$38",TRUE),INDIRECT(D$1&"!$C$35:$AG$35",TRUE),$A11)+(COUNTIFS(INDIRECT(D$1&"!$C$41:$AG$51",TRUE),$A11)*ROUND(Einstellungen!$H11/30.44,2)),"") ->  | E11: =IF($A11<>"",Einstellungen!$H11,"") ->  | J11: =IF($A11<>"",SUMIFS(INDIRECT(J$1&"!$C$22:$AG$22",TRUE),INDIRECT(J$1&"!$C$19:$AG$19",TRUE),$A11)+SUMIFS(INDIRECT(J$1&"!$C$26:$AG$26",TRUE),INDIRECT(J$1&"!$C$23:$AG$23",TRUE),$A11)+SUMIFS(INDIRECT(J$1&"!$C$30:$AG$30",TRUE),INDIRECT(J$1&"!$C$27:$AG$27",TRUE),$A11)+SUMIFS(INDIRECT(J$1&"!$C$34:$AG$34",TRUE),INDIRECT(J$1&"!$C$31:$AG$31",TRUE),$A11)+SUMIFS(INDIRECT(J$1&"!$C$38:$AG$38",TRUE),INDIRECT(J$1&"!$C$35:$AG$35",TRUE),$A11)+(COUNTIFS(INDIRECT(J$1&"!$C$41:$AG$51",TRUE),$A11)*ROUND(Einstellungen!$H11/30.44,2)),"") ->  | K11: =IF($A11<>"",Einstellungen!$H11,"") ->  | Q11: =IF($A11<>"",SUMIFS(INDIRECT(Q$1&"!$C$22:$AG$22",TRUE),INDIRECT(Q$1&"!$C$19:$AG$19",TRUE),$A11)+SUMIFS(INDIRECT(Q$1&"!$C$26:$AG$26",TRUE),INDIRECT(Q$1&"!$C$23:$AG$23",TRUE),$A11)+SUMIFS(INDIRECT(Q$1&"!$C$30:$AG$30",TRUE),INDIRECT(Q$1&"!$C$27:$AG$27",TRUE),$A11)+SUMIFS(INDIRECT(Q$1&"!$C$34:$AG$34",TRUE),INDIRECT(Q$1&"!$C$31:$AG$31",TRUE),$A11)+SUMIFS(INDIRECT(Q$1&"!$C$38:$AG$38",TRUE),INDIRECT(Q$1&"!$C$35:$AG$35",TRUE),$A11)+(COUNTIFS(INDIRECT(Q$1&"!$C$41:$AG$51",TRUE),$A11)*ROUND(Einstellungen!$H11/30.44,2)),"") ->  | R11: =IF($A11<>"",Einstellungen!$H11,"") ->  | X11: =IF($A11<>"",SUMIFS(INDIRECT(X$1&"!$C$22:$AG$22",TRUE),INDIRECT(X$1&"!$C$19:$AG$19",TRUE),$A11)+SUMIFS(INDIRECT(X$1&"!$C$26:$AG$26",TRUE),INDIRECT(X$1&"!$C$23:$AG$23",TRUE),$A11)+SUMIFS(INDIRECT(X$1&"!$C$30:$AG$30",TRUE),INDIRECT(X$1&"!$C$27:$AG$27",TRUE),$A11)+SUMIFS(INDIRECT(X$1&"!$C$34:$AG$34",TRUE),INDIRECT(X$1&"!$C$31:$AG$31",TRUE),$A11)+SUMIFS(INDIRECT(X$1&"!$C$38:$AG$38",TRUE),INDIRECT(X$1&"!$C$35:$AG$35",TRUE),$A11)+(COUNTIFS(INDIRECT(X$1&"!$C$41:$AG$51",TRUE),$A11)*ROUND(Einstellungen!$H11/30.44,2)),"") ->  | Y11: =IF($A11<>"",Einstellungen!$H11,"") ->  | AE11: =IF($A11<>"",SUMIFS(INDIRECT(AE$1&"!$C$22:$AG$22",TRUE),INDIRECT(AE$1&"!$C$19:$AG$19",TRUE),$A11)+SUMIFS(INDIRECT(AE$1&"!$C$26:$AG$26",TRUE),INDIRECT(AE$1&"!$C$23:$AG$23",TRUE),$A11)+SUMIFS(INDIRECT(AE$1&"!$C$30:$AG$30",TRUE),INDIRECT(AE$1&"!$C$27:$AG$27",TRUE),$A11)+SUMIFS(INDIRECT(AE$1&"!$C$34:$AG$34",TRUE),INDIRECT(AE$1&"!$C$31:$AG$31",TRUE),$A11)+SUMIFS(INDIRECT(AE$1&"!$C$38:$AG$38",TRUE),INDIRECT(AE$1&"!$C$35:$AG$35",TRUE),$A11)+(COUNTIFS(INDIRECT(AE$1&"!$C$41:$AG$51",TRUE),$A11)*ROUND(Einstellungen!$H11/30.44,2)),"") ->  | AF11: =IF($A11<>"",Einstellungen!$H11,"") ->  | AL11: =IF($A11<>"",SUMIFS(INDIRECT(AL$1&"!$C$22:$AG$22",TRUE),INDIRECT(AL$1&"!$C$19:$AG$19",TRUE),$A11)+SUMIFS(INDIRECT(AL$1&"!$C$26:$AG$26",TRUE),INDIRECT(AL$1&"!$C$23:$AG$23",TRUE),$A11)+SUMIFS(INDIRECT(AL$1&"!$C$30:$AG$30",TRUE),INDIRECT(AL$1&"!$C$27:$AG$27",TRUE),$A11)+SUMIFS(INDIRECT(AL$1&"!$C$34:$AG$34",TRUE),INDIRECT(AL$1&"!$C$31:$AG$31",TRUE),$A11)+SUMIFS(INDIRECT(AL$1&"!$C$38:$AG$38",TRUE),INDIRECT(AL$1&"!$C$35:$AG$35",TRUE),$A11)+(COUNTIFS(INDIRECT(AL$1&"!$C$41:$AG$51",TRUE),$A11)*ROUND(Einstellungen!$H11/30.44,2)),"") ->  | AM11: =IF($A11<>"",Einstellungen!$H11,"") ->  | AS11: =IF($A11<>"",SUMIFS(INDIRECT(AS$1&"!$C$22:$AG$22",TRUE),INDIRECT(AS$1&"!$C$19:$AG$19",TRUE),$A11)+SUMIFS(INDIRECT(AS$1&"!$C$26:$AG$26",TRUE),INDIRECT(AS$1&"!$C$23:$AG$23",TRUE),$A11)+SUMIFS(INDIRECT(AS$1&"!$C$30:$AG$30",TRUE),INDIRECT(AS$1&"!$C$27:$AG$27",TRUE),$A11)+SUMIFS(INDIRECT(AS$1&"!$C$34:$AG$34",TRUE),INDIRECT(AS$1&"!$C$31:$AG$31",TRUE),$A11)+SUMIFS(INDIRECT(AS$1&"!$C$38:$AG$38",TRUE),INDIRECT(AS$1&"!$C$35:$AG$35",TRUE),$A11)+(COUNTIFS(INDIRECT(AS$1&"!$C$41:$AG$51",TRUE),$A11)*ROUND(Einstellungen!$H11/30.44,2)),"") ->  | AT11: =IF($A11<>"",Einstellungen!$H11,"") ->  | AZ11: =IF($A11<>"",SUMIFS(INDIRECT(AZ$1&"!$C$22:$AG$22",TRUE),INDIRECT(AZ$1&"!$C$19:$AG$19",TRUE),$A11)+SUMIFS(INDIRECT(AZ$1&"!$C$26:$AG$26",TRUE),INDIRECT(AZ$1&"!$C$23:$AG$23",TRUE),$A11)+SUMIFS(INDIRECT(AZ$1&"!$C$30:$AG$30",TRUE),INDIRECT(AZ$1&"!$C$27:$AG$27",TRUE),$A11)+SUMIFS(INDIRECT(AZ$1&"!$C$34:$AG$34",TRUE),INDIRECT(AZ$1&"!$C$31:$AG$31",TRUE),$A11)+SUMIFS(INDIRECT(AZ$1&"!$C$38:$AG$38",TRUE),INDIRECT(AZ$1&"!$C$35:$AG$35",TRUE),$A11)+(COUNTIFS(INDIRECT(AZ$1&"!$C$41:$AG$51",TRUE),$A11)*ROUND(Einstellungen!$H11/30.44,2)),"") ->  | BA11: =IF($A11<>"",Einstellungen!$H11,"") ->  | BG11: =IF($A11<>"",SUMIFS(INDIRECT(BG$1&"!$C$22:$AG$22",TRUE),INDIRECT(BG$1&"!$C$19:$AG$19",TRUE),$A11)+SUMIFS(INDIRECT(BG$1&"!$C$26:$AG$26",TRUE),INDIRECT(BG$1&"!$C$23:$AG$23",TRUE),$A11)+SUMIFS(INDIRECT(BG$1&"!$C$30:$AG$30",TRUE),INDIRECT(BG$1&"!$C$27:$AG$27",TRUE),$A11)+SUMIFS(INDIRECT(BG$1&"!$C$34:$AG$34",TRUE),INDIRECT(BG$1&"!$C$31:$AG$31",TRUE),$A11)+SUMIFS(INDIRECT(BG$1&"!$C$38:$AG$38",TRUE),INDIRECT(BG$1&"!$C$35:$AG$35",TRUE),$A11)+(COUNTIFS(INDIRECT(BG$1&"!$C$41:$AG$51",TRUE),$A11)*ROUND(Einstellungen!$H11/30.44,2)),"") ->  | BH11: =IF($A11<>"",Einstellungen!$H11,"") ->  | BN11: =IF($A11<>"",SUMIFS(INDIRECT(BN$1&"!$C$22:$AG$22",TRUE),INDIRECT(BN$1&"!$C$19:$AG$19",TRUE),$A11)+SUMIFS(INDIRECT(BN$1&"!$C$26:$AG$26",TRUE),INDIRECT(BN$1&"!$C$23:$AG$23",TRUE),$A11)+SUMIFS(INDIRECT(BN$1&"!$C$30:$AG$30",TRUE),INDIRECT(BN$1&"!$C$27:$AG$27",TRUE),$A11)+SUMIFS(INDIRECT(BN$1&"!$C$34:$AG$34",TRUE),INDIRECT(BN$1&"!$C$31:$AG$31",TRUE),$A11)+SUMIFS(INDIRECT(BN$1&"!$C$38:$AG$38",TRUE),INDIRECT(BN$1&"!$C$35:$AG$35",TRUE),$A11)+(COUNTIFS(INDIRECT(BN$1&"!$C$41:$AG$51",TRUE),$A11)*ROUND(Einstellungen!$H11/30.44,2)),"") ->  | BO11: =IF($A11<>"",Einstellungen!$H11,"") ->  | BU11: =IF($A11<>"",SUMIFS(INDIRECT(BU$1&"!$C$22:$AG$22",TRUE),INDIRECT(BU$1&"!$C$19:$AG$19",TRUE),$A11)+SUMIFS(INDIRECT(BU$1&"!$C$26:$AG$26",TRUE),INDIRECT(BU$1&"!$C$23:$AG$23",TRUE),$A11)+SUMIFS(INDIRECT(BU$1&"!$C$30:$AG$30",TRUE),INDIRECT(BU$1&"!$C$27:$AG$27",TRUE),$A11)+SUMIFS(INDIRECT(BU$1&"!$C$34:$AG$34",TRUE),INDIRECT(BU$1&"!$C$31:$AG$31",TRUE),$A11)+SUMIFS(INDIRECT(BU$1&"!$C$38:$AG$38",TRUE),INDIRECT(BU$1&"!$C$35:$AG$35",TRUE),$A11)+(COUNTIFS(INDIRECT(BU$1&"!$C$41:$AG$51",TRUE),$A11)*ROUND(Einstellungen!$H11/30.44,2)),"") ->  | BV11: =IF($A11<>"",Einstellungen!$H11,"") ->  | CB11: =IF($A11<>"",SUMIFS(INDIRECT(CB$1&"!$C$22:$AG$22",TRUE),INDIRECT(CB$1&"!$C$19:$AG$19",TRUE),$A11)+SUMIFS(INDIRECT(CB$1&"!$C$26:$AG$26",TRUE),INDIRECT(CB$1&"!$C$23:$AG$23",TRUE),$A11)+SUMIFS(INDIRECT(CB$1&"!$C$30:$AG$30",TRUE),INDIRECT(CB$1&"!$C$27:$AG$27",TRUE),$A11)+SUMIFS(INDIRECT(CB$1&"!$C$34:$AG$34",TRUE),INDIRECT(CB$1&"!$C$31:$AG$31",TRUE),$A11)+SUMIFS(INDIRECT(CB$1&"!$C$38:$AG$38",TRUE),INDIRECT(CB$1&"!$C$35:$AG$35",TRUE),$A11)+(COUNTIFS(INDIRECT(CB$1&"!$C$41:$AG$51",TRUE),$A11)*ROUND(Einstellungen!$H11/30.44,2)),"") ->  | CC11: =IF($A11<>"",Einstellungen!$H11,"") -> 
A12: =IF(Einstellungen!F12<>"",Einstellungen!F12,"") ->  | B12: =IF(A12<>"",Einstellungen!G12-COUNTIF(INDIRECT(D$1&"!$C$41:$AG$51",TRUE),A12)-COUNTIF(INDIRECT(J$1&"!$C$41:$AG$51",TRUE),A12)-COUNTIF(INDIRECT(Q$1&"!$C$41:$AG$51",TRUE),A12)-COUNTIF(INDIRECT(X$1&"!$C$41:$AG$51",TRUE),A12)-COUNTIF(INDIRECT(AE$1&"!$C$41:$AG$51",TRUE),A12)-COUNTIF(INDIRECT(AL$1&"!$C$41:$AG$51",TRUE),A12)-COUNTIF(INDIRECT(AS$1&"!$C$41:$AG$51",TRUE),A12)-COUNTIF(INDIRECT(AZ$1&"!$C$41:$AG$51",TRUE),A12)-COUNTIF(INDIRECT(BG$1&"!$C$41:$AG$51",TRUE),A12)-COUNTIF(INDIRECT(BN$1&"!$C$41:$AG$51",TRUE),A12)-COUNTIF(INDIRECT(BU$1&"!$C$41:$AG$51",TRUE),A12)-COUNTIF(INDIRECT(CB$1&"!$C$41:$AG$51",TRUE),A12),"") ->  | D12: =IF($A12<>"",SUMIFS(INDIRECT(D$1&"!$C$22:$AG$22",TRUE),INDIRECT(D$1&"!$C$19:$AG$19",TRUE),$A12)+SUMIFS(INDIRECT(D$1&"!$C$26:$AG$26",TRUE),INDIRECT(D$1&"!$C$23:$AG$23",TRUE),$A12)+SUMIFS(INDIRECT(D$1&"!$C$30:$AG$30",TRUE),INDIRECT(D$1&"!$C$27:$AG$27",TRUE),$A12)+SUMIFS(INDIRECT(D$1&"!$C$34:$AG$34",TRUE),INDIRECT(D$1&"!$C$31:$AG$31",TRUE),$A12)+SUMIFS(INDIRECT(D$1&"!$C$38:$AG$38",TRUE),INDIRECT(D$1&"!$C$35:$AG$35",TRUE),$A12)+(COUNTIFS(INDIRECT(D$1&"!$C$41:$AG$51",TRUE),$A12)*ROUND(Einstellungen!$H12/30.44,2)),"") ->  | E12: =IF($A12<>"",Einstellungen!$H12,"") ->  | J12: =IF($A12<>"",SUMIFS(INDIRECT(J$1&"!$C$22:$AG$22",TRUE),INDIRECT(J$1&"!$C$19:$AG$19",TRUE),$A12)+SUMIFS(INDIRECT(J$1&"!$C$26:$AG$26",TRUE),INDIRECT(J$1&"!$C$23:$AG$23",TRUE),$A12)+SUMIFS(INDIRECT(J$1&"!$C$30:$AG$30",TRUE),INDIRECT(J$1&"!$C$27:$AG$27",TRUE),$A12)+SUMIFS(INDIRECT(J$1&"!$C$34:$AG$34",TRUE),INDIRECT(J$1&"!$C$31:$AG$31",TRUE),$A12)+SUMIFS(INDIRECT(J$1&"!$C$38:$AG$38",TRUE),INDIRECT(J$1&"!$C$35:$AG$35",TRUE),$A12)+(COUNTIFS(INDIRECT(J$1&"!$C$41:$AG$51",TRUE),$A12)*ROUND(Einstellungen!$H12/30.44,2)),"") ->  | K12: =IF($A12<>"",Einstellungen!$H12,"") ->  | Q12: =IF($A12<>"",SUMIFS(INDIRECT(Q$1&"!$C$22:$AG$22",TRUE),INDIRECT(Q$1&"!$C$19:$AG$19",TRUE),$A12)+SUMIFS(INDIRECT(Q$1&"!$C$26:$AG$26",TRUE),INDIRECT(Q$1&"!$C$23:$AG$23",TRUE),$A12)+SUMIFS(INDIRECT(Q$1&"!$C$30:$AG$30",TRUE),INDIRECT(Q$1&"!$C$27:$AG$27",TRUE),$A12)+SUMIFS(INDIRECT(Q$1&"!$C$34:$AG$34",TRUE),INDIRECT(Q$1&"!$C$31:$AG$31",TRUE),$A12)+SUMIFS(INDIRECT(Q$1&"!$C$38:$AG$38",TRUE),INDIRECT(Q$1&"!$C$35:$AG$35",TRUE),$A12)+(COUNTIFS(INDIRECT(Q$1&"!$C$41:$AG$51",TRUE),$A12)*ROUND(Einstellungen!$H12/30.44,2)),"") ->  | R12: =IF($A12<>"",Einstellungen!$H12,"") ->  | X12: =IF($A12<>"",SUMIFS(INDIRECT(X$1&"!$C$22:$AG$22",TRUE),INDIRECT(X$1&"!$C$19:$AG$19",TRUE),$A12)+SUMIFS(INDIRECT(X$1&"!$C$26:$AG$26",TRUE),INDIRECT(X$1&"!$C$23:$AG$23",TRUE),$A12)+SUMIFS(INDIRECT(X$1&"!$C$30:$AG$30",TRUE),INDIRECT(X$1&"!$C$27:$AG$27",TRUE),$A12)+SUMIFS(INDIRECT(X$1&"!$C$34:$AG$34",TRUE),INDIRECT(X$1&"!$C$31:$AG$31",TRUE),$A12)+SUMIFS(INDIRECT(X$1&"!$C$38:$AG$38",TRUE),INDIRECT(X$1&"!$C$35:$AG$35",TRUE),$A12)+(COUNTIFS(INDIRECT(X$1&"!$C$41:$AG$51",TRUE),$A12)*ROUND(Einstellungen!$H12/30.44,2)),"") ->  | Y12: =IF($A12<>"",Einstellungen!$H12,"") ->  | AE12: =IF($A12<>"",SUMIFS(INDIRECT(AE$1&"!$C$22:$AG$22",TRUE),INDIRECT(AE$1&"!$C$19:$AG$19",TRUE),$A12)+SUMIFS(INDIRECT(AE$1&"!$C$26:$AG$26",TRUE),INDIRECT(AE$1&"!$C$23:$AG$23",TRUE),$A12)+SUMIFS(INDIRECT(AE$1&"!$C$30:$AG$30",TRUE),INDIRECT(AE$1&"!$C$27:$AG$27",TRUE),$A12)+SUMIFS(INDIRECT(AE$1&"!$C$34:$AG$34",TRUE),INDIRECT(AE$1&"!$C$31:$AG$31",TRUE),$A12)+SUMIFS(INDIRECT(AE$1&"!$C$38:$AG$38",TRUE),INDIRECT(AE$1&"!$C$35:$AG$35",TRUE),$A12)+(COUNTIFS(INDIRECT(AE$1&"!$C$41:$AG$51",TRUE),$A12)*ROUND(Einstellungen!$H12/30.44,2)),"") ->  | AF12: =IF($A12<>"",Einstellungen!$H12,"") ->  | AL12: =IF($A12<>"",SUMIFS(INDIRECT(AL$1&"!$C$22:$AG$22",TRUE),INDIRECT(AL$1&"!$C$19:$AG$19",TRUE),$A12)+SUMIFS(INDIRECT(AL$1&"!$C$26:$AG$26",TRUE),INDIRECT(AL$1&"!$C$23:$AG$23",TRUE),$A12)+SUMIFS(INDIRECT(AL$1&"!$C$30:$AG$30",TRUE),INDIRECT(AL$1&"!$C$27:$AG$27",TRUE),$A12)+SUMIFS(INDIRECT(AL$1&"!$C$34:$AG$34",TRUE),INDIRECT(AL$1&"!$C$31:$AG$31",TRUE),$A12)+SUMIFS(INDIRECT(AL$1&"!$C$38:$AG$38",TRUE),INDIRECT(AL$1&"!$C$35:$AG$35",TRUE),$A12)+(COUNTIFS(INDIRECT(AL$1&"!$C$41:$AG$51",TRUE),$A12)*ROUND(Einstellungen!$H12/30.44,2)),"") ->  | AM12: =IF($A12<>"",Einstellungen!$H12,"") ->  | AS12: =IF($A12<>"",SUMIFS(INDIRECT(AS$1&"!$C$22:$AG$22",TRUE),INDIRECT(AS$1&"!$C$19:$AG$19",TRUE),$A12)+SUMIFS(INDIRECT(AS$1&"!$C$26:$AG$26",TRUE),INDIRECT(AS$1&"!$C$23:$AG$23",TRUE),$A12)+SUMIFS(INDIRECT(AS$1&"!$C$30:$AG$30",TRUE),INDIRECT(AS$1&"!$C$27:$AG$27",TRUE),$A12)+SUMIFS(INDIRECT(AS$1&"!$C$34:$AG$34",TRUE),INDIRECT(AS$1&"!$C$31:$AG$31",TRUE),$A12)+SUMIFS(INDIRECT(AS$1&"!$C$38:$AG$38",TRUE),INDIRECT(AS$1&"!$C$35:$AG$35",TRUE),$A12)+(COUNTIFS(INDIRECT(AS$1&"!$C$41:$AG$51",TRUE),$A12)*ROUND(Einstellungen!$H12/30.44,2)),"") ->  | AT12: =IF($A12<>"",Einstellungen!$H12,"") ->  | AZ12: =IF($A12<>"",SUMIFS(INDIRECT(AZ$1&"!$C$22:$AG$22",TRUE),INDIRECT(AZ$1&"!$C$19:$AG$19",TRUE),$A12)+SUMIFS(INDIRECT(AZ$1&"!$C$26:$AG$26",TRUE),INDIRECT(AZ$1&"!$C$23:$AG$23",TRUE),$A12)+SUMIFS(INDIRECT(AZ$1&"!$C$30:$AG$30",TRUE),INDIRECT(AZ$1&"!$C$27:$AG$27",TRUE),$A12)+SUMIFS(INDIRECT(AZ$1&"!$C$34:$AG$34",TRUE),INDIRECT(AZ$1&"!$C$31:$AG$31",TRUE),$A12)+SUMIFS(INDIRECT(AZ$1&"!$C$38:$AG$38",TRUE),INDIRECT(AZ$1&"!$C$35:$AG$35",TRUE),$A12)+(COUNTIFS(INDIRECT(AZ$1&"!$C$41:$AG$51",TRUE),$A12)*ROUND(Einstellungen!$H12/30.44,2)),"") ->  | BA12: =IF($A12<>"",Einstellungen!$H12,"") ->  | BG12: =IF($A12<>"",SUMIFS(INDIRECT(BG$1&"!$C$22:$AG$22",TRUE),INDIRECT(BG$1&"!$C$19:$AG$19",TRUE),$A12)+SUMIFS(INDIRECT(BG$1&"!$C$26:$AG$26",TRUE),INDIRECT(BG$1&"!$C$23:$AG$23",TRUE),$A12)+SUMIFS(INDIRECT(BG$1&"!$C$30:$AG$30",TRUE),INDIRECT(BG$1&"!$C$27:$AG$27",TRUE),$A12)+SUMIFS(INDIRECT(BG$1&"!$C$34:$AG$34",TRUE),INDIRECT(BG$1&"!$C$31:$AG$31",TRUE),$A12)+SUMIFS(INDIRECT(BG$1&"!$C$38:$AG$38",TRUE),INDIRECT(BG$1&"!$C$35:$AG$35",TRUE),$A12)+(COUNTIFS(INDIRECT(BG$1&"!$C$41:$AG$51",TRUE),$A12)*ROUND(Einstellungen!$H12/30.44,2)),"") ->  | BH12: =IF($A12<>"",Einstellungen!$H12,"") ->  | BN12: =IF($A12<>"",SUMIFS(INDIRECT(BN$1&"!$C$22:$AG$22",TRUE),INDIRECT(BN$1&"!$C$19:$AG$19",TRUE),$A12)+SUMIFS(INDIRECT(BN$1&"!$C$26:$AG$26",TRUE),INDIRECT(BN$1&"!$C$23:$AG$23",TRUE),$A12)+SUMIFS(INDIRECT(BN$1&"!$C$30:$AG$30",TRUE),INDIRECT(BN$1&"!$C$27:$AG$27",TRUE),$A12)+SUMIFS(INDIRECT(BN$1&"!$C$34:$AG$34",TRUE),INDIRECT(BN$1&"!$C$31:$AG$31",TRUE),$A12)+SUMIFS(INDIRECT(BN$1&"!$C$38:$AG$38",TRUE),INDIRECT(BN$1&"!$C$35:$AG$35",TRUE),$A12)+(COUNTIFS(INDIRECT(BN$1&"!$C$41:$AG$51",TRUE),$A12)*ROUND(Einstellungen!$H12/30.44,2)),"") ->  | BO12: =IF($A12<>"",Einstellungen!$H12,"") ->  | BU12: =IF($A12<>"",SUMIFS(INDIRECT(BU$1&"!$C$22:$AG$22",TRUE),INDIRECT(BU$1&"!$C$19:$AG$19",TRUE),$A12)+SUMIFS(INDIRECT(BU$1&"!$C$26:$AG$26",TRUE),INDIRECT(BU$1&"!$C$23:$AG$23",TRUE),$A12)+SUMIFS(INDIRECT(BU$1&"!$C$30:$AG$30",TRUE),INDIRECT(BU$1&"!$C$27:$AG$27",TRUE),$A12)+SUMIFS(INDIRECT(BU$1&"!$C$34:$AG$34",TRUE),INDIRECT(BU$1&"!$C$31:$AG$31",TRUE),$A12)+SUMIFS(INDIRECT(BU$1&"!$C$38:$AG$38",TRUE),INDIRECT(BU$1&"!$C$35:$AG$35",TRUE),$A12)+(COUNTIFS(INDIRECT(BU$1&"!$C$41:$AG$51",TRUE),$A12)*ROUND(Einstellungen!$H12/30.44,2)),"") ->  | BV12: =IF($A12<>"",Einstellungen!$H12,"") ->  | CB12: =IF($A12<>"",SUMIFS(INDIRECT(CB$1&"!$C$22:$AG$22",TRUE),INDIRECT(CB$1&"!$C$19:$AG$19",TRUE),$A12)+SUMIFS(INDIRECT(CB$1&"!$C$26:$AG$26",TRUE),INDIRECT(CB$1&"!$C$23:$AG$23",TRUE),$A12)+SUMIFS(INDIRECT(CB$1&"!$C$30:$AG$30",TRUE),INDIRECT(CB$1&"!$C$27:$AG$27",TRUE),$A12)+SUMIFS(INDIRECT(CB$1&"!$C$34:$AG$34",TRUE),INDIRECT(CB$1&"!$C$31:$AG$31",TRUE),$A12)+SUMIFS(INDIRECT(CB$1&"!$C$38:$AG$38",TRUE),INDIRECT(CB$1&"!$C$35:$AG$35",TRUE),$A12)+(COUNTIFS(INDIRECT(CB$1&"!$C$41:$AG$51",TRUE),$A12)*ROUND(Einstellungen!$H12/30.44,2)),"") ->  | CC12: =IF($A12<>"",Einstellungen!$H12,"") -> 
A13: =IF(Einstellungen!F13<>"",Einstellungen!F13,"") ->  | B13: =IF(A13<>"",Einstellungen!G13-COUNTIF(INDIRECT(D$1&"!$C$41:$AG$51",TRUE),A13)-COUNTIF(INDIRECT(J$1&"!$C$41:$AG$51",TRUE),A13)-COUNTIF(INDIRECT(Q$1&"!$C$41:$AG$51",TRUE),A13)-COUNTIF(INDIRECT(X$1&"!$C$41:$AG$51",TRUE),A13)-COUNTIF(INDIRECT(AE$1&"!$C$41:$AG$51",TRUE),A13)-COUNTIF(INDIRECT(AL$1&"!$C$41:$AG$51",TRUE),A13)-COUNTIF(INDIRECT(AS$1&"!$C$41:$AG$51",TRUE),A13)-COUNTIF(INDIRECT(AZ$1&"!$C$41:$AG$51",TRUE),A13)-COUNTIF(INDIRECT(BG$1&"!$C$41:$AG$51",TRUE),A13)-COUNTIF(INDIRECT(BN$1&"!$C$41:$AG$51",TRUE),A13)-COUNTIF(INDIRECT(BU$1&"!$C$41:$AG$51",TRUE),A13)-COUNTIF(INDIRECT(CB$1&"!$C$41:$AG$51",TRUE),A13),"") ->  | D13: =IF($A13<>"",SUMIFS(INDIRECT(D$1&"!$C$22:$AG$22",TRUE),INDIRECT(D$1&"!$C$19:$AG$19",TRUE),$A13)+SUMIFS(INDIRECT(D$1&"!$C$26:$AG$26",TRUE),INDIRECT(D$1&"!$C$23:$AG$23",TRUE),$A13)+SUMIFS(INDIRECT(D$1&"!$C$30:$AG$30",TRUE),INDIRECT(D$1&"!$C$27:$AG$27",TRUE),$A13)+SUMIFS(INDIRECT(D$1&"!$C$34:$AG$34",TRUE),INDIRECT(D$1&"!$C$31:$AG$31",TRUE),$A13)+SUMIFS(INDIRECT(D$1&"!$C$38:$AG$38",TRUE),INDIRECT(D$1&"!$C$35:$AG$35",TRUE),$A13)+(COUNTIFS(INDIRECT(D$1&"!$C$41:$AG$51",TRUE),$A13)*ROUND(Einstellungen!$H13/30.44,2)),"") ->  | E13: =IF($A13<>"",Einstellungen!$H13,"") ->  | J13: =IF($A13<>"",SUMIFS(INDIRECT(J$1&"!$C$22:$AG$22",TRUE),INDIRECT(J$1&"!$C$19:$AG$19",TRUE),$A13)+SUMIFS(INDIRECT(J$1&"!$C$26:$AG$26",TRUE),INDIRECT(J$1&"!$C$23:$AG$23",TRUE),$A13)+SUMIFS(INDIRECT(J$1&"!$C$30:$AG$30",TRUE),INDIRECT(J$1&"!$C$27:$AG$27",TRUE),$A13)+SUMIFS(INDIRECT(J$1&"!$C$34:$AG$34",TRUE),INDIRECT(J$1&"!$C$31:$AG$31",TRUE),$A13)+SUMIFS(INDIRECT(J$1&"!$C$38:$AG$38",TRUE),INDIRECT(J$1&"!$C$35:$AG$35",TRUE),$A13)+(COUNTIFS(INDIRECT(J$1&"!$C$41:$AG$51",TRUE),$A13)*ROUND(Einstellungen!$H13/30.44,2)),"") ->  | K13: =IF($A13<>"",Einstellungen!$H13,"") ->  | Q13: =IF($A13<>"",SUMIFS(INDIRECT(Q$1&"!$C$22:$AG$22",TRUE),INDIRECT(Q$1&"!$C$19:$AG$19",TRUE),$A13)+SUMIFS(INDIRECT(Q$1&"!$C$26:$AG$26",TRUE),INDIRECT(Q$1&"!$C$23:$AG$23",TRUE),$A13)+SUMIFS(INDIRECT(Q$1&"!$C$30:$AG$30",TRUE),INDIRECT(Q$1&"!$C$27:$AG$27",TRUE),$A13)+SUMIFS(INDIRECT(Q$1&"!$C$34:$AG$34",TRUE),INDIRECT(Q$1&"!$C$31:$AG$31",TRUE),$A13)+SUMIFS(INDIRECT(Q$1&"!$C$38:$AG$38",TRUE),INDIRECT(Q$1&"!$C$35:$AG$35",TRUE),$A13)+(COUNTIFS(INDIRECT(Q$1&"!$C$41:$AG$51",TRUE),$A13)*ROUND(Einstellungen!$H13/30.44,2)),"") ->  | R13: =IF($A13<>"",Einstellungen!$H13,"") ->  | X13: =IF($A13<>"",SUMIFS(INDIRECT(X$1&"!$C$22:$AG$22",TRUE),INDIRECT(X$1&"!$C$19:$AG$19",TRUE),$A13)+SUMIFS(INDIRECT(X$1&"!$C$26:$AG$26",TRUE),INDIRECT(X$1&"!$C$23:$AG$23",TRUE),$A13)+SUMIFS(INDIRECT(X$1&"!$C$30:$AG$30",TRUE),INDIRECT(X$1&"!$C$27:$AG$27",TRUE),$A13)+SUMIFS(INDIRECT(X$1&"!$C$34:$AG$34",TRUE),INDIRECT(X$1&"!$C$31:$AG$31",TRUE),$A13)+SUMIFS(INDIRECT(X$1&"!$C$38:$AG$38",TRUE),INDIRECT(X$1&"!$C$35:$AG$35",TRUE),$A13)+(COUNTIFS(INDIRECT(X$1&"!$C$41:$AG$51",TRUE),$A13)*ROUND(Einstellungen!$H13/30.44,2)),"") ->  | Y13: =IF($A13<>"",Einstellungen!$H13,"") ->  | AE13: =IF($A13<>"",SUMIFS(INDIRECT(AE$1&"!$C$22:$AG$22",TRUE),INDIRECT(AE$1&"!$C$19:$AG$19",TRUE),$A13)+SUMIFS(INDIRECT(AE$1&"!$C$26:$AG$26",TRUE),INDIRECT(AE$1&"!$C$23:$AG$23",TRUE),$A13)+SUMIFS(INDIRECT(AE$1&"!$C$30:$AG$30",TRUE),INDIRECT(AE$1&"!$C$27:$AG$27",TRUE),$A13)+SUMIFS(INDIRECT(AE$1&"!$C$34:$AG$34",TRUE),INDIRECT(AE$1&"!$C$31:$AG$31",TRUE),$A13)+SUMIFS(INDIRECT(AE$1&"!$C$38:$AG$38",TRUE),INDIRECT(AE$1&"!$C$35:$AG$35",TRUE),$A13)+(COUNTIFS(INDIRECT(AE$1&"!$C$41:$AG$51",TRUE),$A13)*ROUND(Einstellungen!$H13/30.44,2)),"") ->  | AF13: =IF($A13<>"",Einstellungen!$H13,"") ->  | AL13: =IF($A13<>"",SUMIFS(INDIRECT(AL$1&"!$C$22:$AG$22",TRUE),INDIRECT(AL$1&"!$C$19:$AG$19",TRUE),$A13)+SUMIFS(INDIRECT(AL$1&"!$C$26:$AG$26",TRUE),INDIRECT(AL$1&"!$C$23:$AG$23",TRUE),$A13)+SUMIFS(INDIRECT(AL$1&"!$C$30:$AG$30",TRUE),INDIRECT(AL$1&"!$C$27:$AG$27",TRUE),$A13)+SUMIFS(INDIRECT(AL$1&"!$C$34:$AG$34",TRUE),INDIRECT(AL$1&"!$C$31:$AG$31",TRUE),$A13)+SUMIFS(INDIRECT(AL$1&"!$C$38:$AG$38",TRUE),INDIRECT(AL$1&"!$C$35:$AG$35",TRUE),$A13)+(COUNTIFS(INDIRECT(AL$1&"!$C$41:$AG$51",TRUE),$A13)*ROUND(Einstellungen!$H13/30.44,2)),"") ->  | AM13: =IF($A13<>"",Einstellungen!$H13,"") ->  | AS13: =IF($A13<>"",SUMIFS(INDIRECT(AS$1&"!$C$22:$AG$22",TRUE),INDIRECT(AS$1&"!$C$19:$AG$19",TRUE),$A13)+SUMIFS(INDIRECT(AS$1&"!$C$26:$AG$26",TRUE),INDIRECT(AS$1&"!$C$23:$AG$23",TRUE),$A13)+SUMIFS(INDIRECT(AS$1&"!$C$30:$AG$30",TRUE),INDIRECT(AS$1&"!$C$27:$AG$27",TRUE),$A13)+SUMIFS(INDIRECT(AS$1&"!$C$34:$AG$34",TRUE),INDIRECT(AS$1&"!$C$31:$AG$31",TRUE),$A13)+SUMIFS(INDIRECT(AS$1&"!$C$38:$AG$38",TRUE),INDIRECT(AS$1&"!$C$35:$AG$35",TRUE),$A13)+(COUNTIFS(INDIRECT(AS$1&"!$C$41:$AG$51",TRUE),$A13)*ROUND(Einstellungen!$H13/30.44,2)),"") ->  | AT13: =IF($A13<>"",Einstellungen!$H13,"") ->  | AZ13: =IF($A13<>"",SUMIFS(INDIRECT(AZ$1&"!$C$22:$AG$22",TRUE),INDIRECT(AZ$1&"!$C$19:$AG$19",TRUE),$A13)+SUMIFS(INDIRECT(AZ$1&"!$C$26:$AG$26",TRUE),INDIRECT(AZ$1&"!$C$23:$AG$23",TRUE),$A13)+SUMIFS(INDIRECT(AZ$1&"!$C$30:$AG$30",TRUE),INDIRECT(AZ$1&"!$C$27:$AG$27",TRUE),$A13)+SUMIFS(INDIRECT(AZ$1&"!$C$34:$AG$34",TRUE),INDIRECT(AZ$1&"!$C$31:$AG$31",TRUE),$A13)+SUMIFS(INDIRECT(AZ$1&"!$C$38:$AG$38",TRUE),INDIRECT(AZ$1&"!$C$35:$AG$35",TRUE),$A13)+(COUNTIFS(INDIRECT(AZ$1&"!$C$41:$AG$51",TRUE),$A13)*ROUND(Einstellungen!$H13/30.44,2)),"") ->  | BA13: =IF($A13<>"",Einstellungen!$H13,"") ->  | BG13: =IF($A13<>"",SUMIFS(INDIRECT(BG$1&"!$C$22:$AG$22",TRUE),INDIRECT(BG$1&"!$C$19:$AG$19",TRUE),$A13)+SUMIFS(INDIRECT(BG$1&"!$C$26:$AG$26",TRUE),INDIRECT(BG$1&"!$C$23:$AG$23",TRUE),$A13)+SUMIFS(INDIRECT(BG$1&"!$C$30:$AG$30",TRUE),INDIRECT(BG$1&"!$C$27:$AG$27",TRUE),$A13)+SUMIFS(INDIRECT(BG$1&"!$C$34:$AG$34",TRUE),INDIRECT(BG$1&"!$C$31:$AG$31",TRUE),$A13)+SUMIFS(INDIRECT(BG$1&"!$C$38:$AG$38",TRUE),INDIRECT(BG$1&"!$C$35:$AG$35",TRUE),$A13)+(COUNTIFS(INDIRECT(BG$1&"!$C$41:$AG$51",TRUE),$A13)*ROUND(Einstellungen!$H13/30.44,2)),"") ->  | BH13: =IF($A13<>"",Einstellungen!$H13,"") ->  | BN13: =IF($A13<>"",SUMIFS(INDIRECT(BN$1&"!$C$22:$AG$22",TRUE),INDIRECT(BN$1&"!$C$19:$AG$19",TRUE),$A13)+SUMIFS(INDIRECT(BN$1&"!$C$26:$AG$26",TRUE),INDIRECT(BN$1&"!$C$23:$AG$23",TRUE),$A13)+SUMIFS(INDIRECT(BN$1&"!$C$30:$AG$30",TRUE),INDIRECT(BN$1&"!$C$27:$AG$27",TRUE),$A13)+SUMIFS(INDIRECT(BN$1&"!$C$34:$AG$34",TRUE),INDIRECT(BN$1&"!$C$31:$AG$31",TRUE),$A13)+SUMIFS(INDIRECT(BN$1&"!$C$38:$AG$38",TRUE),INDIRECT(BN$1&"!$C$35:$AG$35",TRUE),$A13)+(COUNTIFS(INDIRECT(BN$1&"!$C$41:$AG$51",TRUE),$A13)*ROUND(Einstellungen!$H13/30.44,2)),"") ->  | BO13: =IF($A13<>"",Einstellungen!$H13,"") ->  | BU13: =IF($A13<>"",SUMIFS(INDIRECT(BU$1&"!$C$22:$AG$22",TRUE),INDIRECT(BU$1&"!$C$19:$AG$19",TRUE),$A13)+SUMIFS(INDIRECT(BU$1&"!$C$26:$AG$26",TRUE),INDIRECT(BU$1&"!$C$23:$AG$23",TRUE),$A13)+SUMIFS(INDIRECT(BU$1&"!$C$30:$AG$30",TRUE),INDIRECT(BU$1&"!$C$27:$AG$27",TRUE),$A13)+SUMIFS(INDIRECT(BU$1&"!$C$34:$AG$34",TRUE),INDIRECT(BU$1&"!$C$31:$AG$31",TRUE),$A13)+SUMIFS(INDIRECT(BU$1&"!$C$38:$AG$38",TRUE),INDIRECT(BU$1&"!$C$35:$AG$35",TRUE),$A13)+(COUNTIFS(INDIRECT(BU$1&"!$C$41:$AG$51",TRUE),$A13)*ROUND(Einstellungen!$H13/30.44,2)),"") ->  | BV13: =IF($A13<>"",Einstellungen!$H13,"") ->  | CB13: =IF($A13<>"",SUMIFS(INDIRECT(CB$1&"!$C$22:$AG$22",TRUE),INDIRECT(CB$1&"!$C$19:$AG$19",TRUE),$A13)+SUMIFS(INDIRECT(CB$1&"!$C$26:$AG$26",TRUE),INDIRECT(CB$1&"!$C$23:$AG$23",TRUE),$A13)+SUMIFS(INDIRECT(CB$1&"!$C$30:$AG$30",TRUE),INDIRECT(CB$1&"!$C$27:$AG$27",TRUE),$A13)+SUMIFS(INDIRECT(CB$1&"!$C$34:$AG$34",TRUE),INDIRECT(CB$1&"!$C$31:$AG$31",TRUE),$A13)+SUMIFS(INDIRECT(CB$1&"!$C$38:$AG$38",TRUE),INDIRECT(CB$1&"!$C$35:$AG$35",TRUE),$A13)+(COUNTIFS(INDIRECT(CB$1&"!$C$41:$AG$51",TRUE),$A13)*ROUND(Einstellungen!$H13/30.44,2)),"") ->  | CC13: =IF($A13<>"",Einstellungen!$H13,"") -> 
A15: Gesamt | B15: =SUM(B2:B13) -> 30 | D15: =SUM(D2:D13) -> 0 | E15: 150 | G15: -150 | H15: 0 | I15: 0 | J15: =SUM(J2:J13) -> 0 | K15: 150 | M15: =SUM(M2:M13) -> -150 | N15: -300 | O15: 0 | P15: 0 | Q15: 0 | R15: 150 | T15: =SUM(T2:T13) -> -150 | U15: -450 | V15: 0 | W15: 0 | X15: 0 | Y15: 150 | AA15: =SUM(AA2:AA13) -> -150 | AB15: -600 | AC15: 0 | AD15: 0 | AE15: 0 | AF15: 150 | AH15: =SUM(AH2:AH13) -> -150 | AI15: -750 | AJ15: 0 | AK15: 0 | AL15: 0 | AM15: 150 | AO15: =SUM(AO2:AO13) -> -150 | AP15: -900 | AQ15: 0 | AR15: 0 | AS15: 0 | AT15: 150 | AV15: =SUM(AV2:AV13) -> -150 | AW15: -1050 | AX15: 0 | AY15: 0 | AZ15: 0 | BA15: 150 | BC15: =SUM(BC2:BC13) -> -150 | BD15: -1200 | BE15: 0 | BF15: 0 | BG15: 0 | BH15: 150 | BJ15: =SUM(BJ2:BJ13) -> -150 | BK15: -1350 | BL15: 0 | BM15: 0 | BN15: 0 | BO15: 150 | BQ15: =SUM(BQ2:BQ13) -> -150 | BR15: -1500 | BS15: 0 | BT15: 0 | BU15: 0 | BV15: 150 | BX15: =SUM(BX2:BX13) -> -150 | BY15: -1650 | BZ15: 0 | CA15: 0 | CB15: 0 | CC15: 150 | CE15: =SUM(CE2:CE13) -> -150 | CF15: -1800 | CG15: 0 | CH15: 0

Sheet Einstellungen
G1: Urlaubstage | H1: Monatsstunden | T1: K | AF1: April | AM1: Mai | AT1: Juni | BA1: Juli | BH1: August | BO1: September | BV1: Oktober | CC1: November | CJ1: Dezember
A2: Jahr: | B2: 2017 | E2: Assistent 1 | F2: Max | G2: 30 | H2: 150 | J2: Maximale Nachtzuschlag Std: | K2: 8
E3: Assistent 2 | J3: Nachtzuschlag von | K3: 22 | L3: bis | M3: 6
E4: Assistent 3 | J4: Nachtzuschlag Prozent: | K4: 0.25
A5: Schichten max.: | B5: 3 | C5: Maximal 5 Schichten | E5: Assistent 4
E6: Assistent 5 | J6: Bereitschaft von | K6: 0 | L6: bis | M6: 6
E7: Assistent 6 | J7: Bereitschaft Bewertung | K7: 0.7 | L7: der Stunden | O7: Zuschläge bleiben während Bereitschaft erhalten
E8: Assistent 7
E9: Assistent 8 | J9: Sonntagszuschlag? | K9: 1 | L9: 0=Nein;1=Ja
E10: Assistent 9 | J10: Sonntagszuschlag Prozent: | K10: 0.5
E11: Assistent 10 | J11: Nacht- und Sonntagszuschlag gleichzeitig?
E12: Assistent 11 | K12: 1 | L12: 0=Nein;1=Ja | O12: Bei Nein wird der Sonntagszuschlag priorisiert
E13: Assistent 12
J14: Pausen | K14: 1 | L14: 0=Nein;1=Ja | O14: Bereitschaftszeiten begründen keine Pausen
J15: Pause ab | K15: 6 | L15: Stunden: | O15: 0.5 | P15: Stunden
J16: Pause ab | K16: 9 | L16: Stunden: | O16: 0.75 | P16: Stunden
A24: Version: 0.11

Sheet Januar
C1: =C3 -> 2017-01-01
A2: Feiertag:
C3: =DATE(Einstellungen!$B$2,1,1) -> 2017-01-01 | D3: =C3+1 -> 2017-01-02 | E3: =D3+1 -> 2017-01-03 | F3: 2017-01-04 | G3: 2017-01-05 | H3: 2017-01-06 | I3: 2017-01-07 | J3: 2017-01-08 | K3: 2017-01-09 | L3: 2017-01-10 | M3: 2017-01-11 | N3: 2017-01-12 | O3: 2017-01-13 | P3: 2017-01-14 | Q3: 2017-01-15 | R3: 2017-01-16 | S3: 2017-01-17 | T3: 2017-01-18 | U3: 2017-01-19 | V3: 2017-01-20 | W3: 2017-01-21 | X3: 2017-01-22 | Y3: 2017-01-23 | Z3: 2017-01-24 | AA3: 2017-01-25 | AB3: 2017-01-26 | AC3: 2017-01-27 | AD3: 2017-01-28 | AE3: =IF(EOMONTH($C$3,0)<(AD3+1),"",AD3+1) -> 2017-01-29 | AF3: =IF(OR(AE3="",EOMONTH($C$3,0)<(AD3+2)),"",AD3+2) -> 2017-01-30 | AG3: =IF(OR(AF3="",EOMONTH($C$3,0)<(AD3+3)),"",AD3+3) -> 2017-01-31
A4: Es können: | C4: =WEEKDAY(C3,1) -> 1900-01-01 | D4: =WEEKDAY(D3,1) -> 1900-01-02 | E4: 1900-01-03 | F4: 1900-01-04 | G4: 1900-01-05 | H4: 1900-01-06 | I4: 1900-01-07 | J4: 1900-01-01 | K4: 1900-01-02 | L4: 1900-01-03 | M4: 1900-01-04 | N4: 1900-01-05 | O4: 1900-01-06 | P4: 1900-01-07 | Q4: 1900-01-01 | R4: 1900-01-02 | S4: 1900-01-03 | T4: 1900-01-04 | U4: 1900-01-05 | V4: 1900-01-06 | W4: 1900-01-07 | X4: 1900-01-01 | Y4: 1900-01-02 | Z4: 1900-01-03 | AA4: 1900-01-04 | AB4: 1900-01-05 | AC4: 1900-01-06 | AD4: =WEEKDAY(AD3,1) -> 1900-01-07 | AE4: =IF(AE3<>"",WEEKDAY(AE3,1),"") -> 1900-01-01 | AF4: =IF(AF3<>"",WEEKDAY(AF3,1),"") -> 1900-01-02 | AG4: 1900-01-03
A5: =IF(Einstellungen!F2="","",Einstellungen!F2) -> Max
A6: =IF(Einstellungen!F3="","",Einstellungen!F3) -> 
A7: =IF(Einstellungen!F4="","",Einstellungen!F4) -> 
A8: =IF(Einstellungen!F5="","",Einstellungen!F5) -> 
A9: =IF(Einstellungen!F6="","",Einstellungen!F6) -> 
A10: =IF(Einstellungen!F7="","",Einstellungen!F7) -> 
A11: =IF(Einstellungen!F8="","",Einstellungen!F8) -> 
A12: =IF(Einstellungen!F9="","",Einstellungen!F9) -> 
A13: =IF(Einstellungen!F10="","",Einstellungen!F10) -> 
A14: =IF(Einstellungen!F11="","",Einstellungen!F11) -> 
A15: =IF(Einstellungen!F12="","",Einstellungen!F12) -> 
A16: =IF(Einstellungen!F13="","",Einstellungen!F13) -> 
A19: Schicht 1
A20: von
A21: bis
B22: h | C22: =IF(C20<>"",C21-C20-C60-C72,"") ->  | D22: =IF(D20<>"",D21-D20-D60-D72,"") -> 
A23: =IF(Einstellungen!B5>1,"Schicht 2","") -> Schicht 2
A24: =IF(A23="","","von") -> von
A25: =IF(A23="","","bis") -> bis
B26: h | C26: =IF(C24<>"",C25-C24-C61-C73,"") ->  | D26: =IF(D24<>"",D25-D24-D61-D73,"") -> 
A27: =IF(Einstellungen!B$5>2,"Schicht 3","") -> Schicht 3
A28: =IF(A27="","","von") -> von
A29: =IF(A27="","","bis") -> bis
B30: h | C30: =IF(C28<>"",C29-C28-C62-C74,"") ->  | D30: =IF(D28<>"",D29-D28-D62-D74,"") -> 
A31: =IF(Einstellungen!B$5>3,"Schicht 4","") -> 
A32: =IF(A31="","","von") -> 
A33: =IF(A31="","","bis") -> 
B34: h | C34: =IF(C32<>"",C33-C32-C63-C75,"") ->  | D34: =IF(D32<>"",D33-D32-D63-D75,"") -> 
A35: =IF(Einstellungen!B$5>4,"Schicht 5","") -> 
A36: =IF(A35="","","von") -> 
A37: =IF(A35="","","bis") -> 
B38: h | C38: =IF(C36<>"",C37-C36-C64-C76,"") ->  | D38: =IF(D36<>"",D37-D36-D64-D76,"") -> 
A41: Urlaub | B41: 1
B42: 2
B43: 3
B44: 4
B45: 5
B46: 6
B47: 7
B48: 8
B49: 9
B50: 10
B51: 12
A54: Nachtzuschlag | B54: 1 | C54: =IF(AND(C66>0,Einstellungen!$K$12=1,C20<>""),MIN(IF(Einstellungen!$K$3>Einstellungen!$M$3,(IF(C21<Einstellungen!$K$3,0,C21-IF(C20>Einstellungen!$K$3,C20,Einstellungen!$K$3)))+(IF(C21>Einstellungen!$M$3,Einstellungen!$M$3,C21)-C20),IF(OR(C20>Einstellungen!$M$3,C21<Einstellungen!$K$3),0,IF(C21>Einstellungen!$M$3,Einstellungen!$M$3,C21)-IF(C20<Einstellungen!$K$3,Einstellungen!$K$3,C20))),Einstellungen!$K$2),"") ->  | D54: =IF(AND(D66>0,Einstellungen!$K$12=1,D20<>""),MIN(IF(Einstellungen!$K$3>Einstellungen!$M$3,(IF(D21<Einstellungen!$K$3,0,D21-IF(D20>Einstellungen!$K$3,D20,Einstellungen!$K$3)))+(IF(D21>Einstellungen!$M$3,Einstellungen!$M$3,D21)-D20),IF(OR(D20>Einstellungen!$M$3,D21<Einstellungen!$K$3),0,IF(D21>Einstellungen!$M$3,Einstellungen!$M$3,D21)-IF(D20<Einstellungen!$K$3,Einstellungen!$K$3,D20))),Einstellungen!$K$2),"") ->  | E54: =IF(AND(E66>0,Einstellungen!$K$12=1,E20<>""),MIN(IF(Einstellungen!$K$3>Einstellungen!$M$3,(IF(E21<Einstellungen!$K$3,0,E21-IF(E20>Einstellungen!$K$3,E20,Einstellungen!$K$3)))+(IF(E21>Einstellungen!$M$3,Einstellungen!$M$3,E21)-E20),IF(OR(E20>Einstellungen!$M$3,E21<Einstellungen!$K$3),0,IF(E21>Einstellungen!$M$3,Einstellungen!$M$3,E21)-IF(E20<Einstellungen!$K$3,Einstellungen!$K$3,E20))),Einstellungen!$K$2),"") ->  | F54: =IF(AND(F66>0,Einstellungen!$K$12=1,F20<>""),MIN(IF(Einstellungen!$K$3>Einstellungen!$M$3,(IF(F21<Einstellungen!$K$3,0,F21-IF(F20>Einstellungen!$K$3,F20,Einstellungen!$K$3)))+(IF(F21>Einstellungen!$M$3,Einstellungen!$M$3,F21)-F20),IF(OR(F20>Einstellungen!$M$3,F21<Einstellungen!$K$3),0,IF(F21>Einstellungen!$M$3,Einstellungen!$M$3,F21)-IF(F20<Einstellungen!$K$3,Einstellungen!$K$3,F20))),Einstellungen!$K$2),"") ->  | G54: =IF(AND(G66>0,Einstellungen!$K$12=1,G20<>""),MIN(IF(Einstellungen!$K$3>Einstellungen!$M$3,(IF(G21<Einstellungen!$K$3,0,G21-IF(G20>Einstellungen!$K$3,G20,Einstellungen!$K$3)))+(IF(G21>Einstellungen!$M$3,Einstellungen!$M$3,G21)-G20),IF(OR(G20>Einstellungen!$M$3,G21<Einstellungen!$K$3),0,IF(G21>Einstellungen!$M$3,Einstellungen!$M$3,G21)-IF(G20<Einstellungen!$K$3,Einstellungen!$K$3,G20))),Einstellungen!$K$2),"") ->  | H54: =IF(AND(H66>0,Einstellungen!$K$12=1,H20<>""),MIN(IF(Einstellungen!$K$3>Einstellungen!$M$3,(IF(H21<Einstellungen!$K$3,0,H21-IF(H20>Einstellungen!$K$3,H20,Einstellungen!$K$3)))+(IF(H21>Einstellungen!$M$3,Einstellungen!$M$3,H21)-H20),IF(OR(H20>Einstellungen!$M$3,H21<Einstellungen!$K$3),0,IF(H21>Einstellungen!$M$3,Einstellungen!$M$3,H21)-IF(H20<Einstellungen!$K$3,Einstellungen!$K$3,H20))),Einstellungen!$K$2),"") ->  | I54: =IF(AND(I66>0,Einstellungen!$K$12=1,I20<>""),MIN(IF(Einstellungen!$K$3>Einstellungen!$M$3,(IF(I21<Einstellungen!$K$3,0,I21-IF(I20>Einstellungen!$K$3,I20,Einstellungen!$K$3)))+(IF(I21>Einstellungen!$M$3,Einstellungen!$M$3,I21)-I20),IF(OR(I20>Einstellungen!$M$3,I21<Einstellungen!$K$3),0,IF(I21>Einstellungen!$M$3,Einstellungen!$M$3,I21)-IF(I20<Einstellungen!$K$3,Einstellungen!$K$3,I20))),Einstellungen!$K$2),"") ->  | J54: =IF(AND(J66>0,Einstellungen!$K$12=1,J20<>""),MIN(IF(Einstellungen!$K$3>Einstellungen!$M$3,(IF(J21<Einstellungen!$K$3,0,J21-IF(J20>Einstellungen!$K$3,J20,Einstellungen!$K$3)))+(IF(J21>Einstellungen!$M$3,Einstellungen!$M$3,J21)-J20),IF(OR(J20>Einstellungen!$M$3,J21<Einstellungen!$K$3),0,IF(J21>Einstellungen!$M$3,Einstellungen!$M$3,J21)-IF(J20<Einstellungen!$K$3,Einstellungen!$K$3,J20))),Einstellungen!$K$2),"") ->  | K54: =IF(AND(K66>0,Einstellungen!$K$12=1,K20<>""),MIN(IF(Einstellungen!$K$3>Einstellungen!$M$3,(IF(K21<Einstellungen!$K$3,0,K21-IF(K20>Einstellungen!$K$3,K20,Einstellungen!$K$3)))+(IF(K21>Einstellungen!$M$3,Einstellungen!$M$3,K21)-K20),IF(OR(K20>Einstellungen!$M$3,K21<Einstellungen!$K$3),0,IF(K21>Einstellungen!$M$3,Einstellungen!$M$3,K21)-IF(K20<Einstellungen!$K$3,Einstellungen!$K$3,K20))),Einstellungen!$K$2),"") ->  | L54: =IF(AND(L66>0,Einstellungen!$K$12=1,L20<>""),MIN(IF(Einstellungen!$K$3>Einstellungen!$M$3,(IF(L21<Einstellungen!$K$3,0,L21-IF(L20>Einstellungen!$K$3,L20,Einstellungen!$K$3)))+(IF(L21>Einstellungen!$M$3,Einstellungen!$M$3,L21)-L20),IF(OR(L20>Einstellungen!$M$3,L21<Einstellungen!$K$3),0,IF(L21>Einstellungen!$M$3,Einstellungen!$M$3,L21)-IF(L20<Einstellungen!$K$3,Einstellungen!$K$3,L20))),Einstellungen!$K$2),"") ->  | M54: =IF(AND(M66>0,Einstellungen!$K$12=1,M20<>""),MIN(IF(Einstellungen!$K$3>Einstellungen!$M$3,(IF(M21<Einstellungen!$K$3,0,M21-IF(M20>Einstellungen!$K$3,M20,Einstellungen!$K$3)))+(IF(M21>Einstellungen!$M$3,Einstellungen!$M$3,M21)-M20),IF(OR(M20>Einstellungen!$M$3,M21<Einstellungen!$K$3),0,IF(M21>Einstellungen!$M$3,Einstellungen!$M$3,M21)-IF(M20<Einstellungen!$K$3,Einstellungen!$K$3,M20))),Einstellungen!$K$2),"") ->  | N54: =IF(AND(N66>0,Einstellungen!$K$12=1,N20<>""),MIN(IF(Einstellungen!$K$3>Einstellungen!$M$3,(IF(N21<Einstellungen!$K$3,0,N21-IF(N20>Einstellungen!$K$3,N20,Einstellungen!$K$3)))+(IF(N21>Einstellungen!$M$3,Einstellungen!$M$3,N21)-N20),IF(OR(N20>Einstellungen!$M$3,N21<Einstellungen!$K$3),0,IF(N21>Einstellungen!$M$3,Einstellungen!$M$3,N21)-IF(N20<Einstellungen!$K$3,Einstellungen!$K$3,N20))),Einstellungen!$K$2),"") ->  | O54: =IF(AND(O66>0,Einstellungen!$K$12=1,O20<>""),MIN(IF(Einstellungen!$K$3>Einstellungen!$M$3,(IF(O21<Einstellungen!$K$3,0,O21-IF(O20>Einstellungen!$K$3,O20,Einstellungen!$K$3)))+(IF(O21>Einstellungen!$M$3,Einstellungen!$M$3,O21)-O20),IF(OR(O20>Einstellungen!$M$3,O21<Einstellungen!$K$3),0,IF(O21>Einstellungen!$M$3,Einstellungen!$M$3,O21)-IF(O20<Einstellungen!$K$3,Einstellungen!$K$3,O20))),Einstellungen!$K$2),"") ->  | P54: =IF(AND(P66>0,Einstellungen!$K$12=1,P20<>""),MIN(IF(Einstellungen!$K$3>Einstellungen!$M$3,(IF(P21<Einstellungen!$K$3,0,P21-IF(P20>Einstellungen!$K$3,P20,Einstellungen!$K$3)))+(IF(P21>Einstellungen!$M$3,Einstellungen!$M$3,P21)-P20),IF(OR(P20>Einstellungen!$M$3,P21<Einstellungen!$K$3),0,IF(P21>Einstellungen!$M$3,Einstellungen!$M$3,P21)-IF(P20<Einstellungen!$K$3,Einstellungen!$K$3,P20))),Einstellungen!$K$2),"") ->  | Q54: =IF(AND(Q66>0,Einstellungen!$K$12=1,Q20<>""),MIN(IF(Einstellungen!$K$3>Einstellungen!$M$3,(IF(Q21<Einstellungen!$K$3,0,Q21-IF(Q20>Einstellungen!$K$3,Q20,Einstellungen!$K$3)))+(IF(Q21>Einstellungen!$M$3,Einstellungen!$M$3,Q21)-Q20),IF(OR(Q20>Einstellungen!$M$3,Q21<Einstellungen!$K$3),0,IF(Q21>Einstellungen!$M$3,Einstellungen!$M$3,Q21)-IF(Q20<Einstellungen!$K$3,Einstellungen!$K$3,Q20))),Einstellungen!$K$2),"") ->  | R54: =IF(AND(R66>0,Einstellungen!$K$12=1,R20<>""),MIN(IF(Einstellungen!$K$3>Einstellungen!$M$3,(IF(R21<Einstellungen!$K$3,0,R21-IF(R20>Einstellungen!$K$3,R20,Einstellungen!$K$3)))+(IF(R21>Einstellungen!$M$3,Einstellungen!$M$3,R21)-R20),IF(OR(R20>Einstellungen!$M$3,R21<Einstellungen!$K$3),0,IF(R21>Einstellungen!$M$3,Einstellungen!$M$3,R21)-IF(R20<Einstellungen!$K$3,Einstellungen!$K$3,R20))),Einstellungen!$K$2),"") ->  | S54: =IF(AND(S66>0,Einstellungen!$K$12=1,S20<>""),MIN(IF(Einstellungen!$K$3>Einstellungen!$M$3,(IF(S21<Einstellungen!$K$3,0,S21-IF(S20>Einstellungen!$K$3,S20,Einstellungen!$K$3)))+(IF(S21>Einstellungen!$M$3,Einstellungen!$M$3,S21)-S20),IF(OR(S20>Einstellungen!$M$3,S21<Einstellungen!$K$3),0,IF(S21>Einstellungen!$M$3,Einstellungen!$M$3,S21)-IF(S20<Einstellungen!$K$3,Einstellungen!$K$3,S20))),Einstellungen!$K$2),"") ->  | T54: =IF(AND(T66>0,Einstellungen!$K$12=1,T20<>""),MIN(IF(Einstellungen!$K$3>Einstellungen!$M$3,(IF(T21<Einstellungen!$K$3,0,T21-IF(T20>Einstellungen!$K$3,T20,Einstellungen!$K$3)))+(IF(T21>Einstellungen!$M$3,Einstellungen!$M$3,T21)-T20),IF(OR(T20>Einstellungen!$M$3,T21<Einstellungen!$K$3),0,IF(T21>Einstellungen!$M$3,Einstellungen!$M$3,T21)-IF(T20<Einstellungen!$K$3,Einstellungen!$K$3,T20))),Einstellungen!$K$2),"") ->  | U54: =IF(AND(U66>0,Einstellungen!$K$12=1,U20<>""),MIN(IF(Einstellungen!$K$3>Einstellungen!$M$3,(IF(U21<Einstellungen!$K$3,0,U21-IF(U20>Einstellungen!$K$3,U20,Einstellungen!$K$3)))+(IF(U21>Einstellungen!$M$3,Einstellungen!$M$3,U21)-U20),IF(OR(U20>Einstellungen!$M$3,U21<Einstellungen!$K$3),0,IF(U21>Einstellungen!$M$3,Einstellungen!$M$3,U21)-IF(U20<Einstellungen!$K$3,Einstellungen!$K$3,U20))),Einstellungen!$K$2),"") ->  | V54: =IF(AND(V66>0,Einstellungen!$K$12=1,V20<>""),MIN(IF(Einstellungen!$K$3>Einstellungen!$M$3,(IF(V21<Einstellungen!$K$3,0,V21-IF(V20>Einstellungen!$K$3,V20,Einstellungen!$K$3)))+(IF(V21>Einstellungen!$M$3,Einstellungen!$M$3,V21)-V20),IF(OR(V20>Einstellungen!$M$3,V21<Einstellungen!$K$3),0,IF(V21>Einstellungen!$M$3,Einstellungen!$M$3,V21)-IF(V20<Einstellungen!$K$3,Einstellungen!$K$3,V20))),Einstellungen!$K$2),"") ->  | W54: =IF(AND(W66>0,Einstellungen!$K$12=1,W20<>""),MIN(IF(Einstellungen!$K$3>Einstellungen!$M$3,(IF(W21<Einstellungen!$K$3,0,W21-IF(W20>Einstellungen!$K$3,W20,Einstellungen!$K$3)))+(IF(W21>Einstellungen!$M$3,Einstellungen!$M$3,W21)-W20),IF(OR(W20>Einstellungen!$M$3,W21<Einstellungen!$K$3),0,IF(W21>Einstellungen!$M$3,Einstellungen!$M$3,W21)-IF(W20<Einstellungen!$K$3,Einstellungen!$K$3,W20))),Einstellungen!$K$2),"") ->  | X54: =IF(AND(X66>0,Einstellungen!$K$12=1,X20<>""),MIN(IF(Einstellungen!$K$3>Einstellungen!$M$3,(IF(X21<Einstellungen!$K$3,0,X21-IF(X20>Einstellungen!$K$3,X20,Einstellungen!$K$3)))+(IF(X21>Einstellungen!$M$3,Einstellungen!$M$3,X21)-X20),IF(OR(X20>Einstellungen!$M$3,X21<Einstellungen!$K$3),0,IF(X21>Einstellungen!$M$3,Einstellungen!$M$3,X21)-IF(X20<Einstellungen!$K$3,Einstellungen!$K$3,X20))),Einstellungen!$K$2),"") ->  | Y54: =IF(AND(Y66>0,Einstellungen!$K$12=1,Y20<>""),MIN(IF(Einstellungen!$K$3>Einstellungen!$M$3,(IF(Y21<Einstellungen!$K$3,0,Y21-IF(Y20>Einstellungen!$K$3,Y20,Einstellungen!$K$3)))+(IF(Y21>Einstellungen!$M$3,Einstellungen!$M$3,Y21)-Y20),IF(OR(Y20>Einstellungen!$M$3,Y21<Einstellungen!$K$3),0,IF(Y21>Einstellungen!$M$3,Einstellungen!$M$3,Y21)-IF(Y20<Einstellungen!$K$3,Einstellungen!$K$3,Y20))),Einstellungen!$K$2),"") ->  | Z54: =IF(AND(Z66>0,Einstellungen!$K$12=1,Z20<>""),MIN(IF(Einstellungen!$K$3>Einstellungen!$M$3,(IF(Z21<Einstellungen!$K$3,0,Z21-IF(Z20>Einstellungen!$K$3,Z20,Einstellungen!$K$3)))+(IF(Z21>Einstellungen!$M$3,Einstellungen!$M$3,Z21)-Z20),IF(OR(Z20>Einstellungen!$M$3,Z21<Einstellungen!$K$3),0,IF(Z21>Einstellungen!$M$3,Einstellungen!$M$3,Z21)-IF(Z20<Einstellungen!$K$3,Einstellungen!$K$3,Z20))),Einstellungen!$K$2),"") ->  | AA54: =IF(AND(AA66>0,Einstellungen!$K$12=1,AA20<>""),MIN(IF(Einstellungen!$K$3>Einstellungen!$M$3,(IF(AA21<Einstellungen!$K$3,0,AA21-IF(AA20>Einstellungen!$K$3,AA20,Einstellungen!$K$3)))+(IF(AA21>Einstellungen!$M$3,Einstellungen!$M$3,AA21)-AA20),IF(OR(AA20>Einstellungen!$M$3,AA21<Einstellungen!$K$3),0,IF(AA21>Einstellungen!$M$3,Einstellungen!$M$3,AA21)-IF(AA20<Einstellungen!$K$3,Einstellungen!$K$3,AA20))),Einstellungen!$K$2),"") ->  | AB54: =IF(AND(AB66>0,Einstellungen!$K$12=1,AB20<>""),MIN(IF(Einstellungen!$K$3>Einstellungen!$M$3,(IF(AB21<Einstellungen!$K$3,0,AB21-IF(AB20>Einstellungen!$K$3,AB20,Einstellungen!$K$3)))+(IF(AB21>Einstellungen!$M$3,Einstellungen!$M$3,AB21)-AB20),IF(OR(AB20>Einstellungen!$M$3,AB21<Einstellungen!$K$3),0,IF(AB21>Einstellungen!$M$3,Einstellungen!$M$3,AB21)-IF(AB20<Einstellungen!$K$3,Einstellungen!$K$3,AB20))),Einstellungen!$K$2),"") ->  | AC54: =IF(AND(AC66>0,Einstellungen!$K$12=1,AC20<>""),MIN(IF(Einstellungen!$K$3>Einstellungen!$M$3,(IF(AC21<Einstellungen!$K$3,0,AC21-IF(AC20>Einstellungen!$K$3,AC20,Einstellungen!$K$3)))+(IF(AC21>Einstellungen!$M$3,Einstellungen!$M$3,AC21)-AC20),IF(OR(AC20>Einstellungen!$M$3,AC21<Einstellungen!$K$3),0,IF(AC21>Einstellungen!$M$3,Einstellungen!$M$3,AC21)-IF(AC20<Einstellungen!$K$3,Einstellungen!$K$3,AC20))),Einstellungen!$K$2),"") ->  | AD54: =IF(AND(AD66>0,Einstellungen!$K$12=1,AD20<>""),MIN(IF(Einstellungen!$K$3>Einstellungen!$M$3,(IF(AD21<Einstellungen!$K$3,0,AD21-IF(AD20>Einstellungen!$K$3,AD20,Einstellungen!$K$3)))+(IF(AD21>Einstellungen!$M$3,Einstellungen!$M$3,AD21)-AD20),IF(OR(AD20>Einstellungen!$M$3,AD21<Einstellungen!$K$3),0,IF(AD21>Einstellungen!$M$3,Einstellungen!$M$3,AD21)-IF(AD20<Einstellungen!$K$3,Einstellungen!$K$3,AD20))),Einstellungen!$K$2),"") ->  | AE54: =IF(AND(AE66>0,Einstellungen!$K$12=1,AE20<>""),MIN(IF(Einstellungen!$K$3>Einstellungen!$M$3,(IF(AE21<Einstellungen!$K$3,0,AE21-IF(AE20>Einstellungen!$K$3,AE20,Einstellungen!$K$3)))+(IF(AE21>Einstellungen!$M$3,Einstellungen!$M$3,AE21)-AE20),IF(OR(AE20>Einstellungen!$M$3,AE21<Einstellungen!$K$3),0,IF(AE21>Einstellungen!$M$3,Einstellungen!$M$3,AE21)-IF(AE20<Einstellungen!$K$3,Einstellungen!$K$3,AE20))),Einstellungen!$K$2),"") ->  | AF54: =IF(AND(AF66>0,Einstellungen!$K$12=1,AF20<>""),MIN(IF(Einstellungen!$K$3>Einstellungen!$M$3,(IF(AF21<Einstellungen!$K$3,0,AF21-IF(AF20>Einstellungen!$K$3,AF20,Einstellungen!$K$3)))+(IF(AF21>Einstellungen!$M$3,Einstellungen!$M$3,AF21)-AF20),IF(OR(AF20>Einstellungen!$M$3,AF21<Einstellungen!$K$3),0,IF(AF21>Einstellungen!$M$3,Einstellungen!$M$3,AF21)-IF(AF20<Einstellungen!$K$3,Einstellungen!$K$3,AF20))),Einstellungen!$K$2),"") ->  | AG54: =IF(AND(AG66>0,Einstellungen!$K$12=1,AG20<>""),MIN(IF(Einstellungen!$K$3>Einstellungen!$M$3,(IF(AG21<Einstellungen!$K$3,0,AG21-IF(AG20>Einstellungen!$K$3,AG20,Einstellungen!$K$3)))+(IF(AG21>Einstellungen!$M$3,Einstellungen!$M$3,AG21)-AG20),IF(OR(AG20>Einstellungen!$M$3,AG21<Einstellungen!$K$3),0,IF(AG21>Einstellungen!$M$3,Einstellungen!$M$3,AG21)-IF(AG20<Einstellungen!$K$3,Einstellungen!$K$3,AG20))),Einstellungen!$K$2),"") -> 
B55: =IF(Einstellungen!$B$5>1,"2","") -> 2 | C55: =IF(AND(C67>0,Einstellungen!$K$12=1,C24<>""),MIN(IF(Einstellungen!$K$3>Einstellungen!$M$3,(IF(C25<Einstellungen!$K$3,0,C25-IF(C24>Einstellungen!$K$3,C24,Einstellungen!$K$3)))+(IF(C25>Einstellungen!$M$3,Einstellungen!$M$3,C25)-C24),IF(OR(C24>Einstellungen!$M$3,C25<Einstellungen!$K$3),0,IF(C25>Einstellungen!$M$3,Einstellungen!$M$3,C25)-IF(C24<Einstellungen!$K$3,Einstellungen!$K$3,C24))),Einstellungen!$K$2),"") ->  | D55: =IF(AND(D67>0,Einstellungen!$K$12=1,D24<>""),MIN(IF(Einstellungen!$K$3>Einstellungen!$M$3,(IF(D25<Einstellungen!$K$3,0,D25-IF(D24>Einstellungen!$K$3,D24,Einstellungen!$K$3)))+(IF(D25>Einstellungen!$M$3,Einstellungen!$M$3,D25)-D24),IF(OR(D24>Einstellungen!$M$3,D25<Einstellungen!$K$3),0,IF(D25>Einstellungen!$M$3,Einstellungen!$M$3,D25)-IF(D24<Einstellungen!$K$3,Einstellungen!$K$3,D24))),Einstellungen!$K$2),"") ->  | E55: =IF(AND(E67>0,Einstellungen!$K$12=1,E24<>""),MIN(IF(Einstellungen!$K$3>Einstellungen!$M$3,(IF(E25<Einstellungen!$K$3,0,E25-IF(E24>Einstellungen!$K$3,E24,Einstellungen!$K$3)))+(IF(E25>Einstellungen!$M$3,Einstellungen!$M$3,E25)-E24),IF(OR(E24>Einstellungen!$M$3,E25<Einstellungen!$K$3),0,IF(E25>Einstellungen!$M$3,Einstellungen!$M$3,E25)-IF(E24<Einstellungen!$K$3,Einstellungen!$K$3,E24))),Einstellungen!$K$2),"") ->  | F55: =IF(AND(F67>0,Einstellungen!$K$12=1,F24<>""),MIN(IF(Einstellungen!$K$3>Einstellungen!$M$3,(IF(F25<Einstellungen!$K$3,0,F25-IF(F24>Einstellungen!$K$3,F24,Einstellungen!$K$3)))+(IF(F25>Einstellungen!$M$3,Einstellungen!$M$3,F25)-F24),IF(OR(F24>Einstellungen!$M$3,F25<Einstellungen!$K$3),0,IF(F25>Einstellungen!$M$3,Einstellungen!$M$3,F25)-IF(F24<Einstellungen!$K$3,Einstellungen!$K$3,F24))),Einstellungen!$K$2),"") ->  | G55: =IF(AND(G67>0,Einstellungen!$K$12=1,G24<>""),MIN(IF(Einstellungen!$K$3>Einstellungen!$M$3,(IF(G25<Einstellungen!$K$3,0,G25-IF(G24>Einstellungen!$K$3,G24,Einstellungen!$K$3)))+(IF(G25>Einstellungen!$M$3,Einstellungen!$M$3,G25)-G24),IF(OR(G24>Einstellungen!$M$3,G25<Einstellungen!$K$3),0,IF(G25>Einstellungen!$M$3,Einstellungen!$M$3,G25)-IF(G24<Einstellungen!$K$3,Einstellungen!$K$3,G24))),Einstellungen!$K$2),"") ->  | H55: =IF(AND(H67>0,Einstellungen!$K$12=1,H24<>""),MIN(IF(Einstellungen!$K$3>Einstellungen!$M$3,(IF(H25<Einstellungen!$K$3,0,H25-IF(H24>Einstellungen!$K$3,H24,Einstellungen!$K$3)))+(IF(H25>Einstellungen!$M$3,Einstellungen!$M$3,H25)-H24),IF(OR(H24>Einstellungen!$M$3,H25<Einstellungen!$K$3),0,IF(H25>Einstellungen!$M$3,Einstellungen!$M$3,H25)-IF(H24<Einstellungen!$K$3,Einstellungen!$K$3,H24))),Einstellungen!$K$2),"") ->  | I55: =IF(AND(I67>0,Einstellungen!$K$12=1,I24<>""),MIN(IF(Einstellungen!$K$3>Einstellungen!$M$3,(IF(I25<Einstellungen!$K$3,0,I25-IF(I24>Einstellungen!$K$3,I24,Einstellungen!$K$3)))+(IF(I25>Einstellungen!$M$3,Einstellungen!$M$3,I25)-I24),IF(OR(I24>Einstellungen!$M$3,I25<Einstellungen!$K$3),0,IF(I25>Einstellungen!$M$3,Einstellungen!$M$3,I25)-IF(I24<Einstellungen!$K$3,Einstellungen!$K$3,I24))),Einstellungen!$K$2),"") ->  | J55: =IF(AND(J67>0,Einstellungen!$K$12=1,J24<>""),MIN(IF(Einstellungen!$K$3>Einstellungen!$M$3,(IF(J25<Einstellungen!$K$3,0,J25-IF(J24>Einstellungen!$K$3,J24,Einstellungen!$K$3)))+(IF(J25>Einstellungen!$M$3,Einstellungen!$M$3,J25)-J24),IF(OR(J24>Einstellungen!$M$3,J25<Einstellungen!$K$3),0,IF(J25>Einstellungen!$M$3,Einstellungen!$M$3,J25)-IF(J24<Einstellungen!$K$3,Einstellungen!$K$3,J24))),Einstellungen!$K$2),"") ->  | K55: =IF(AND(K67>0,Einstellungen!$K$12=1,K24<>""),MIN(IF(Einstellungen!$K$3>Einstellungen!$M$3,(IF(K25<Einstellungen!$K$3,0,K25-IF(K24>Einstellungen!$K$3,K24,Einstellungen!$K$3)))+(IF(K25>Einstellungen!$M$3,Einstellungen!$M$3,K25)-K24),IF(OR(K24>Einstellungen!$M$3,K25<Einstellungen!$K$3),0,IF(K25>Einstellungen!$M$3,Einstellungen!$M$3,K25)-IF(K24<Einstellungen!$K$3,Einstellungen!$K$3,K24))),Einstellungen!$K$2),"") ->  | L55: =IF(AND(L67>0,Einstellungen!$K$12=1,L24<>""),MIN(IF(Einstellungen!$K$3>Einstellungen!$M$3,(IF(L25<Einstellungen!$K$3,0,L25-IF(L24>Einstellungen!$K$3,L24,Einstellungen!$K$3)))+(IF(L25>Einstellungen!$M$3,Einstellungen!$M$3,L25)-L24),IF(OR(L24>Einstellungen!$M$3,L25<Einstellungen!$K$3),0,IF(L25>Einstellungen!$M$3,Einstellungen!$M$3,L25)-IF(L24<Einstellungen!$K$3,Einstellungen!$K$3,L24))),Einstellungen!$K$2),"") ->  | M55: =IF(AND(M67>0,Einstellungen!$K$12=1,M24<>""),MIN(IF(Einstellungen!$K$3>Einstellungen!$M$3,(IF(M25<Einstellungen!$K$3,0,M25-IF(M24>Einstellungen!$K$3,M24,Einstellungen!$K$3)))+(IF(M25>Einstellungen!$M$3,Einstellungen!$M$3,M25)-M24),IF(OR(M24>Einstellungen!$M$3,M25<Einstellungen!$K$3),0,IF(M25>Einstellungen!$M$3,Einstellungen!$M$3,M25)-IF(M24<Einstellungen!$K$3,Einstellungen!$K$3,M24))),Einstellungen!$K$2),"") ->  | N55: =IF(AND(N67>0,Einstellungen!$K$12=1,N24<>""),MIN(IF(Einstellungen!$K$3>Einstellungen!$M$3,(IF(N25<Einstellungen!$K$3,0,N25-IF(N24>Einstellungen!$K$3,N24,Einstellungen!$K$3)))+(IF(N25>Einstellungen!$M$3,Einstellungen!$M$3,N25)-N24),IF(OR(N24>Einstellungen!$M$3,N25<Einstellungen!$K$3),0,IF(N25>Einstellungen!$M$3,Einstellungen!$M$3,N25)-IF(N24<Einstellungen!$K$3,Einstellungen!$K$3,N24))),Einstellungen!$K$2),"") ->  | O55: =IF(AND(O67>0,Einstellungen!$K$12=1,O24<>""),MIN(IF(Einstellungen!$K$3>Einstellungen!$M$3,(IF(O25<Einstellungen!$K$3,0,O25-IF(O24>Einstellungen!$K$3,O24,Einstellungen!$K$3)))+(IF(O25>Einstellungen!$M$3,Einstellungen!$M$3,O25)-O24),IF(OR(O24>Einstellungen!$M$3,O25<Einstellungen!$K$3),0,IF(O25>Einstellungen!$M$3,Einstellungen!$M$3,O25)-IF(O24<Einstellungen!$K$3,Einstellungen!$K$3,O24))),Einstellungen!$K$2),"") ->  | P55: =IF(AND(P67>0,Einstellungen!$K$12=1,P24<>""),MIN(IF(Einstellungen!$K$3>Einstellungen!$M$3,(IF(P25<Einstellungen!$K$3,0,P25-IF(P24>Einstellungen!$K$3,P24,Einstellungen!$K$3)))+(IF(P25>Einstellungen!$M$3,Einstellungen!$M$3,P25)-P24),IF(OR(P24>Einstellungen!$M$3,P25<Einstellungen!$K$3),0,IF(P25>Einstellungen!$M$3,Einstellungen!$M$3,P25)-IF(P24<Einstellungen!$K$3,Einstellungen!$K$3,P24))),Einstellungen!$K$2),"") ->  | Q55: =IF(AND(Q67>0,Einstellungen!$K$12=1,Q24<>""),MIN(IF(Einstellungen!$K$3>Einstellungen!$M$3,(IF(Q25<Einstellungen!$K$3,0,Q25-IF(Q24>Einstellungen!$K$3,Q24,Einstellungen!$K$3)))+(IF(Q25>Einstellungen!$M$3,Einstellungen!$M$3,Q25)-Q24),IF(OR(Q24>Einstellungen!$M$3,Q25<Einstellungen!$K$3),0,IF(Q25>Einstellungen!$M$3,Einstellungen!$M$3,Q25)-IF(Q24<Einstellungen!$K$3,Einstellungen!$K$3,Q24))),Einstellungen!$K$2),"") ->  | R55: =IF(AND(R67>0,Einstellungen!$K$12=1,R24<>""),MIN(IF(Einstellungen!$K$3>Einstellungen!$M$3,(IF(R25<Einstellungen!$K$3,0,R25-IF(R24>Einstellungen!$K$3,R24,Einstellungen!$K$3)))+(IF(R25>Einstellungen!$M$3,Einstellungen!$M$3,R25)-R24),IF(OR(R24>Einstellungen!$M$3,R25<Einstellungen!$K$3),0,IF(R25>Einstellungen!$M$3,Einstellungen!$M$3,R25)-IF(R24<Einstellungen!$K$3,Einstellungen!$K$3,R24))),Einstellungen!$K$2),"") ->  | S55: =IF(AND(S67>0,Einstellungen!$K$12=1,S24<>""),MIN(IF(Einstellungen!$K$3>Einstellungen!$M$3,(IF(S25<Einstellungen!$K$3,0,S25-IF(S24>Einstellungen!$K$3,S24,Einstellungen!$K$3)))+(IF(S25>Einstellungen!$M$3,Einstellungen!$M$3,S25)-S24),IF(OR(S24>Einstellungen!$M$3,S25<Einstellungen!$K$3),0,IF(S25>Einstellungen!$M$3,Einstellungen!$M$3,S25)-IF(S24<Einstellungen!$K$3,Einstellungen!$K$3,S24))),Einstellungen!$K$2),"") ->  | T55: =IF(AND(T67>0,Einstellungen!$K$12=1,T24<>""),MIN(IF(Einstellungen!$K$3>Einstellungen!$M$3,(IF(T25<Einstellungen!$K$3,0,T25-IF(T24>Einstellungen!$K$3,T24,Einstellungen!$K$3)))+(IF(T25>Einstellungen!$M$3,Einstellungen!$M$3,T25)-T24),IF(OR(T24>Einstellungen!$M$3,T25<Einstellungen!$K$3),0,IF(T25>Einstellungen!$M$3,Einstellungen!$M$3,T25)-IF(T24<Einstellungen!$K$3,Einstellungen!$K$3,T24))),Einstellungen!$K$2),"") ->  | U55: =IF(AND(U67>0,Einstellungen!$K$12=1,U24<>""),MIN(IF(Einstellungen!$K$3>Einstellungen!$M$3,(IF(U25<Einstellungen!$K$3,0,U25-IF(U24>Einstellungen!$K$3,U24,Einstellungen!$K$3)))+(IF(U25>Einstellungen!$M$3,Einstellungen!$M$3,U25)-U24),IF(OR(U24>Einstellungen!$M$3,U25<Einstellungen!$K$3),0,IF(U25>Einstellungen!$M$3,Einstellungen!$M$3,U25)-IF(U24<Einstellungen!$K$3,Einstellungen!$K$3,U24))),Einstellungen!$K$2),"") ->  | V55: =IF(AND(V67>0,Einstellungen!$K$12=1,V24<>""),MIN(IF(Einstellungen!$K$3>Einstellungen!$M$3,(IF(V25<Einstellungen!$K$3,0,V25-IF(V24>Einstellungen!$K$3,V24,Einstellungen!$K$3)))+(IF(V25>Einstellungen!$M$3,Einstellungen!$M$3,V25)-V24),IF(OR(V24>Einstellungen!$M$3,V25<Einstellungen!$K$3),0,IF(V25>Einstellungen!$M$3,Einstellungen!$M$3,V25)-IF(V24<Einstellungen!$K$3,Einstellungen!$K$3,V24))),Einstellungen!$K$2),"") ->  | W55: =IF(AND(W67>0,Einstellungen!$K$12=1,W24<>""),MIN(IF(Einstellungen!$K$3>Einstellungen!$M$3,(IF(W25<Einstellungen!$K$3,0,W25-IF(W24>Einstellungen!$K$3,W24,Einstellungen!$K$3)))+(IF(W25>Einstellungen!$M$3,Einstellungen!$M$3,W25)-W24),IF(OR(W24>Einstellungen!$M$3,W25<Einstellungen!$K$3),0,IF(W25>Einstellungen!$M$3,Einstellungen!$M$3,W25)-IF(W24<Einstellungen!$K$3,Einstellungen!$K$3,W24))),Einstellungen!$K$2),"") ->  | X55: =IF(AND(X67>0,Einstellungen!$K$12=1,X24<>""),MIN(IF(Einstellungen!$K$3>Einstellungen!$M$3,(IF(X25<Einstellungen!$K$3,0,X25-IF(X24>Einstellungen!$K$3,X24,Einstellungen!$K$3)))+(IF(X25>Einstellungen!$M$3,Einstellungen!$M$3,X25)-X24),IF(OR(X24>Einstellungen!$M$3,X25<Einstellungen!$K$3),0,IF(X25>Einstellungen!$M$3,Einstellungen!$M$3,X25)-IF(X24<Einstellungen!$K$3,Einstellungen!$K$3,X24))),Einstellungen!$K$2),"") ->  | Y55: =IF(AND(Y67>0,Einstellungen!$K$12=1,Y24<>""),MIN(IF(Einstellungen!$K$3>Einstellungen!$M$3,(IF(Y25<Einstellungen!$K$3,0,Y25-IF(Y24>Einstellungen!$K$3,Y24,Einstellungen!$K$3)))+(IF(Y25>Einstellungen!$M$3,Einstellungen!$M$3,Y25)-Y24),IF(OR(Y24>Einstellungen!$M$3,Y25<Einstellungen!$K$3),0,IF(Y25>Einstellungen!$M$3,Einstellungen!$M$3,Y25)-IF(Y24<Einstellungen!$K$3,Einstellungen!$K$3,Y24))),Einstellungen!$K$2),"") ->  | Z55: =IF(AND(Z67>0,Einstellungen!$K$12=1,Z24<>""),MIN(IF(Einstellungen!$K$3>Einstellungen!$M$3,(IF(Z25<Einstellungen!$K$3,0,Z25-IF(Z24>Einstellungen!$K$3,Z24,Einstellungen!$K$3)))+(IF(Z25>Einstellungen!$M$3,Einstellungen!$M$3,Z25)-Z24),IF(OR(Z24>Einstellungen!$M$3,Z25<Einstellungen!$K$3),0,IF(Z25>Einstellungen!$M$3,Einstellungen!$M$3,Z25)-IF(Z24<Einstellungen!$K$3,Einstellungen!$K$3,Z24))),Einstellungen!$K$2),"") ->  | AA55: =IF(AND(AA67>0,Einstellungen!$K$12=1,AA24<>""),MIN(IF(Einstellungen!$K$3>Einstellungen!$M$3,(IF(AA25<Einstellungen!$K$3,0,AA25-IF(AA24>Einstellungen!$K$3,AA24,Einstellungen!$K$3)))+(IF(AA25>Einstellungen!$M$3,Einstellungen!$M$3,AA25)-AA24),IF(OR(AA24>Einstellungen!$M$3,AA25<Einstellungen!$K$3),0,IF(AA25>Einstellungen!$M$3,Einstellungen!$M$3,AA25)-IF(AA24<Einstellungen!$K$3,Einstellungen!$K$3,AA24))),Einstellungen!$K$2),"") ->  | AB55: =IF(AND(AB67>0,Einstellungen!$K$12=1,AB24<>""),MIN(IF(Einstellungen!$K$3>Einstellungen!$M$3,(IF(AB25<Einstellungen!$K$3,0,AB25-IF(AB24>Einstellungen!$K$3,AB24,Einstellungen!$K$3)))+(IF(AB25>Einstellungen!$M$3,Einstellungen!$M$3,AB25)-AB24),IF(OR(AB24>Einstellungen!$M$3,AB25<Einstellungen!$K$3),0,IF(AB25>Einstellungen!$M$3,Einstellungen!$M$3,AB25)-IF(AB24<Einstellungen!$K$3,Einstellungen!$K$3,AB24))),Einstellungen!$K$2),"") ->  | AC55: =IF(AND(AC67>0,Einstellungen!$K$12=1,AC24<>""),MIN(IF(Einstellungen!$K$3>Einstellungen!$M$3,(IF(AC25<Einstellungen!$K$3,0,AC25-IF(AC24>Einstellungen!$K$3,AC24,Einstellungen!$K$3)))+(IF(AC25>Einstellungen!$M$3,Einstellungen!$M$3,AC25)-AC24),IF(OR(AC24>Einstellungen!$M$3,AC25<Einstellungen!$K$3),0,IF(AC25>Einstellungen!$M$3,Einstellungen!$M$3,AC25)-IF(AC24<Einstellungen!$K$3,Einstellungen!$K$3,AC24))),Einstellungen!$K$2),"") ->  | AD55: =IF(AND(AD67>0,Einstellungen!$K$12=1,AD24<>""),MIN(IF(Einstellungen!$K$3>Einstellungen!$M$3,(IF(AD25<Einstellungen!$K$3,0,AD25-IF(AD24>Einstellungen!$K$3,AD24,Einstellungen!$K$3)))+(IF(AD25>Einstellungen!$M$3,Einstellungen!$M$3,AD25)-AD24),IF(OR(AD24>Einstellungen!$M$3,AD25<Einstellungen!$K$3),0,IF(AD25>Einstellungen!$M$3,Einstellungen!$M$3,AD25)-IF(AD24<Einstellungen!$K$3,Einstellungen!$K$3,AD24))),Einstellungen!$K$2),"") ->  | AE55: =IF(AND(AE67>0,Einstellungen!$K$12=1,AE24<>""),MIN(IF(Einstellungen!$K$3>Einstellungen!$M$3,(IF(AE25<Einstellungen!$K$3,0,AE25-IF(AE24>Einstellungen!$K$3,AE24,Einstellungen!$K$3)))+(IF(AE25>Einstellungen!$M$3,Einstellungen!$M$3,AE25)-AE24),IF(OR(AE24>Einstellungen!$M$3,AE25<Einstellungen!$K$3),0,IF(AE25>Einstellungen!$M$3,Einstellungen!$M$3,AE25)-IF(AE24<Einstellungen!$K$3,Einstellungen!$K$3,AE24))),Einstellungen!$K$2),"") ->  | AF55: =IF(AND(AF67>0,Einstellungen!$K$12=1,AF24<>""),MIN(IF(Einstellungen!$K$3>Einstellungen!$M$3,(IF(AF25<Einstellungen!$K$3,0,AF25-IF(AF24>Einstellungen!$K$3,AF24,Einstellungen!$K$3)))+(IF(AF25>Einstellungen!$M$3,Einstellungen!$M$3,AF25)-AF24),IF(OR(AF24>Einstellungen!$M$3,AF25<Einstellungen!$K$3),0,IF(AF25>Einstellungen!$M$3,Einstellungen!$M$3,AF25)-IF(AF24<Einstellungen!$K$3,Einstellungen!$K$3,AF24))),Einstellungen!$K$2),"") ->  | AG55: =IF(AND(AG67>0,Einstellungen!$K$12=1,AG24<>""),MIN(IF(Einstellungen!$K$3>Einstellungen!$M$3,(IF(AG25<Einstellungen!$K$3,0,AG25-IF(AG24>Einstellungen!$K$3,AG24,Einstellungen!$K$3)))+(IF(AG25>Einstellungen!$M$3,Einstellungen!$M$3,AG25)-AG24),IF(OR(AG24>Einstellungen!$M$3,AG25<Einstellungen!$K$3),0,IF(AG25>Einstellungen!$M$3,Einstellungen!$M$3,AG25)-IF(AG24<Einstellungen!$K$3,Einstellungen!$K$3,AG24))),Einstellungen!$K$2),"") -> 
B56: =IF(Einstellungen!$B$5>2,"3","") -> 3 | C56: =IF(AND(C68>0,Einstellungen!$K$12=1,C28<>""),MIN(IF(Einstellungen!$K$3>Einstellungen!$M$3,(IF(C29<Einstellungen!$K$3,0,C29-IF(C28>Einstellungen!$K$3,C28,Einstellungen!$K$3)))+(IF(C29>Einstellungen!$M$3,Einstellungen!$M$3,C29)-C28),IF(OR(C28>Einstellungen!$M$3,C29<Einstellungen!$K$3),0,IF(C29>Einstellungen!$M$3,Einstellungen!$M$3,C29)-IF(C28<Einstellungen!$K$3,Einstellungen!$K$3,C28))),Einstellungen!$K$2),"") ->  | D56: =IF(AND(D68>0,Einstellungen!$K$12=1,D28<>""),MIN(IF(Einstellungen!$K$3>Einstellungen!$M$3,(IF(D29<Einstellungen!$K$3,0,D29-IF(D28>Einstellungen!$K$3,D28,Einstellungen!$K$3)))+(IF(D29>Einstellungen!$M$3,Einstellungen!$M$3,D29)-D28),IF(OR(D28>Einstellungen!$M$3,D29<Einstellungen!$K$3),0,IF(D29>Einstellungen!$M$3,Einstellungen!$M$3,D29)-IF(D28<Einstellungen!$K$3,Einstellungen!$K$3,D28))),Einstellungen!$K$2),"") ->  | E56: =IF(AND(E68>0,Einstellungen!$K$12=1,E28<>""),MIN(IF(Einstellungen!$K$3>Einstellungen!$M$3,(IF(E29<Einstellungen!$K$3,0,E29-IF(E28>Einstellungen!$K$3,E28,Einstellungen!$K$3)))+(IF(E29>Einstellungen!$M$3,Einstellungen!$M$3,E29)-E28),IF(OR(E28>Einstellungen!$M$3,E29<Einstellungen!$K$3),0,IF(E29>Einstellungen!$M$3,Einstellungen!$M$3,E29)-IF(E28<Einstellungen!$K$3,Einstellungen!$K$3,E28))),Einstellungen!$K$2),"") ->  | F56: =IF(AND(F68>0,Einstellungen!$K$12=1,F28<>""),MIN(IF(Einstellungen!$K$3>Einstellungen!$M$3,(IF(F29<Einstellungen!$K$3,0,F29-IF(F28>Einstellungen!$K$3,F28,Einstellungen!$K$3)))+(IF(F29>Einstellungen!$M$3,Einstellungen!$M$3,F29)-F28),IF(OR(F28>Einstellungen!$M$3,F29<Einstellungen!$K$3),0,IF(F29>Einstellungen!$M$3,Einstellungen!$M$3,F29)-IF(F28<Einstellungen!$K$3,Einstellungen!$K$3,F28))),Einstellungen!$K$2),"") ->  | G56: =IF(AND(G68>0,Einstellungen!$K$12=1,G28<>""),MIN(IF(Einstellungen!$K$3>Einstellungen!$M$3,(IF(G29<Einstellungen!$K$3,0,G29-IF(G28>Einstellungen!$K$3,G28,Einstellungen!$K$3)))+(IF(G29>Einstellungen!$M$3,Einstellungen!$M$3,G29)-G28),IF(OR(G28>Einstellungen!$M$3,G29<Einstellungen!$K$3),0,IF(G29>Einstellungen!$M$3,Einstellungen!$M$3,G29)-IF(G28<Einstellungen!$K$3,Einstellungen!$K$3,G28))),Einstellungen!$K$2),"") ->  | H56: =IF(AND(H68>0,Einstellungen!$K$12=1,H28<>""),MIN(IF(Einstellungen!$K$3>Einstellungen!$M$3,(IF(H29<Einstellungen!$K$3,0,H29-IF(H28>Einstellungen!$K$3,H28,Einstellungen!$K$3)))+(IF(H29>Einstellungen!$M$3,Einstellungen!$M$3,H29)-H28),IF(OR(H28>Einstellungen!$M$3,H29<Einstellungen!$K$3),0,IF(H29>Einstellungen!$M$3,Einstellungen!$M$3,H29)-IF(H28<Einstellungen!$K$3,Einstellungen!$K$3,H28))),Einstellungen!$K$2),"") ->  | I56: =IF(AND(I68>0,Einstellungen!$K$12=1,I28<>""),MIN(IF(Einstellungen!$K$3>Einstellungen!$M$3,(IF(I29<Einstellungen!$K$3,0,I29-IF(I28>Einstellungen!$K$3,I28,Einstellungen!$K$3)))+(IF(I29>Einstellungen!$M$3,Einstellungen!$M$3,I29)-I28),IF(OR(I28>Einstellungen!$M$3,I29<Einstellungen!$K$3),0,IF(I29>Einstellungen!$M$3,Einstellungen!$M$3,I29)-IF(I28<Einstellungen!$K$3,Einstellungen!$K$3,I28))),Einstellungen!$K$2),"") ->  | J56: =IF(AND(J68>0,Einstellungen!$K$12=1,J28<>""),MIN(IF(Einstellungen!$K$3>Einstellungen!$M$3,(IF(J29<Einstellungen!$K$3,0,J29-IF(J28>Einstellungen!$K$3,J28,Einstellungen!$K$3)))+(IF(J29>Einstellungen!$M$3,Einstellungen!$M$3,J29)-J28),IF(OR(J28>Einstellungen!$M$3,J29<Einstellungen!$K$3),0,IF(J29>Einstellungen!$M$3,Einstellungen!$M$3,J29)-IF(J28<Einstellungen!$K$3,Einstellungen!$K$3,J28))),Einstellungen!$K$2),"") ->  | K56: =IF(AND(K68>0,Einstellungen!$K$12=1,K28<>""),MIN(IF(Einstellungen!$K$3>Einstellungen!$M$3,(IF(K29<Einstellungen!$K$3,0,K29-IF(K28>Einstellungen!$K$3,K28,Einstellungen!$K$3)))+(IF(K29>Einstellungen!$M$3,Einstellungen!$M$3,K29)-K28),IF(OR(K28>Einstellungen!$M$3,K29<Einstellungen!$K$3),0,IF(K29>Einstellungen!$M$3,Einstellungen!$M$3,K29)-IF(K28<Einstellungen!$K$3,Einstellungen!$K$3,K28))),Einstellungen!$K$2),"") ->  | L56: =IF(AND(L68>0,Einstellungen!$K$12=1,L28<>""),MIN(IF(Einstellungen!$K$3>Einstellungen!$M$3,(IF(L29<Einstellungen!$K$3,0,L29-IF(L28>Einstellungen!$K$3,L28,Einstellungen!$K$3)))+(IF(L29>Einstellungen!$M$3,Einstellungen!$M$3,L29)-L28),IF(OR(L28>Einstellungen!$M$3,L29<Einstellungen!$K$3),0,IF(L29>Einstellungen!$M$3,Einstellungen!$M$3,L29)-IF(L28<Einstellungen!$K$3,Einstellungen!$K$3,L28))),Einstellungen!$K$2),"") ->  | M56: =IF(AND(M68>0,Einstellungen!$K$12=1,M28<>""),MIN(IF(Einstellungen!$K$3>Einstellungen!$M$3,(IF(M29<Einstellungen!$K$3,0,M29-IF(M28>Einstellungen!$K$3,M28,Einstellungen!$K$3)))+(IF(M29>Einstellungen!$M$3,Einstellungen!$M$3,M29)-M28),IF(OR(M28>Einstellungen!$M$3,M29<Einstellungen!$K$3),0,IF(M29>Einstellungen!$M$3,Einstellungen!$M$3,M29)-IF(M28<Einstellungen!$K$3,Einstellungen!$K$3,M28))),Einstellungen!$K$2),"") ->  | N56: =IF(AND(N68>0,Einstellungen!$K$12=1,N28<>""),MIN(IF(Einstellungen!$K$3>Einstellungen!$M$3,(IF(N29<Einstellungen!$K$3,0,N29-IF(N28>Einstellungen!$K$3,N28,Einstellungen!$K$3)))+(IF(N29>Einstellungen!$M$3,Einstellungen!$M$3,N29)-N28),IF(OR(N28>Einstellungen!$M$3,N29<Einstellungen!$K$3),0,IF(N29>Einstellungen!$M$3,Einstellungen!$M$3,N29)-IF(N28<Einstellungen!$K$3,Einstellungen!$K$3,N28))),Einstellungen!$K$2),"") ->  | O56: =IF(AND(O68>0,Einstellungen!$K$12=1,O28<>""),MIN(IF(Einstellungen!$K$3>Einstellungen!$M$3,(IF(O29<Einstellungen!$K$3,0,O29-IF(O28>Einstellungen!$K$3,O28,Einstellungen!$K$3)))+(IF(O29>Einstellungen!$M$3,Einstellungen!$M$3,O29)-O28),IF(OR(O28>Einstellungen!$M$3,O29<Einstellungen!$K$3),0,IF(O29>Einstellungen!$M$3,Einstellungen!$M$3,O29)-IF(O28<Einstellungen!$K$3,Einstellungen!$K$3,O28))),Einstellungen!$K$2),"") ->  | P56: =IF(AND(P68>0,Einstellungen!$K$12=1,P28<>""),MIN(IF(Einstellungen!$K$3>Einstellungen!$M$3,(IF(P29<Einstellungen!$K$3,0,P29-IF(P28>Einstellungen!$K$3,P28,Einstellungen!$K$3)))+(IF(P29>Einstellungen!$M$3,Einstellungen!$M$3,P29)-P28),IF(OR(P28>Einstellungen!$M$3,P29<Einstellungen!$K$3),0,IF(P29>Einstellungen!$M$3,Einstellungen!$M$3,P29)-IF(P28<Einstellungen!$K$3,Einstellungen!$K$3,P28))),Einstellungen!$K$2),"") ->  | Q56: =IF(AND(Q68>0,Einstellungen!$K$12=1,Q28<>""),MIN(IF(Einstellungen!$K$3>Einstellungen!$M$3,(IF(Q29<Einstellungen!$K$3,0,Q29-IF(Q28>Einstellungen!$K$3,Q28,Einstellungen!$K$3)))+(IF(Q29>Einstellungen!$M$3,Einstellungen!$M$3,Q29)-Q28),IF(OR(Q28>Einstellungen!$M$3,Q29<Einstellungen!$K$3),0,IF(Q29>Einstellungen!$M$3,Einstellungen!$M$3,Q29)-IF(Q28<Einstellungen!$K$3,Einstellungen!$K$3,Q28))),Einstellungen!$K$2),"") ->  | R56: =IF(AND(R68>0,Einstellungen!$K$12=1,R28<>""),MIN(IF(Einstellungen!$K$3>Einstellungen!$M$3,(IF(R29<Einstellungen!$K$3,0,R29-IF(R28>Einstellungen!$K$3,R28,Einstellungen!$K$3)))+(IF(R29>Einstellungen!$M$3,Einstellungen!$M$3,R29)-R28),IF(OR(R28>Einstellungen!$M$3,R29<Einstellungen!$K$3),0,IF(R29>Einstellungen!$M$3,Einstellungen!$M$3,R29)-IF(R28<Einstellungen!$K$3,Einstellungen!$K$3,R28))),Einstellungen!$K$2),"") ->  | S56: =IF(AND(S68>0,Einstellungen!$K$12=1,S28<>""),MIN(IF(Einstellungen!$K$3>Einstellungen!$M$3,(IF(S29<Einstellungen!$K$3,0,S29-IF(S28>Einstellungen!$K$3,S28,Einstellungen!$K$3)))+(IF(S29>Einstellungen!$M$3,Einstellungen!$M$3,S29)-S28),IF(OR(S28>Einstellungen!$M$3,S29<Einstellungen!$K$3),0,IF(S29>Einstellungen!$M$3,Einstellungen!$M$3,S29)-IF(S28<Einstellungen!$K$3,Einstellungen!$K$3,S28))),Einstellungen!$K$2),"") ->  | T56: =IF(AND(T68>0,Einstellungen!$K$12=1,T28<>""),MIN(IF(Einstellungen!$K$3>Einstellungen!$M$3,(IF(T29<Einstellungen!$K$3,0,T29-IF(T28>Einstellungen!$K$3,T28,Einstellungen!$K$3)))+(IF(T29>Einstellungen!$M$3,Einstellungen!$M$3,T29)-T28),IF(OR(T28>Einstellungen!$M$3,T29<Einstellungen!$K$3),0,IF(T29>Einstellungen!$M$3,Einstellungen!$M$3,T29)-IF(T28<Einstellungen!$K$3,Einstellungen!$K$3,T28))),Einstellungen!$K$2),"") ->  | U56: =IF(AND(U68>0,Einstellungen!$K$12=1,U28<>""),MIN(IF(Einstellungen!$K$3>Einstellungen!$M$3,(IF(U29<Einstellungen!$K$3,0,U29-IF(U28>Einstellungen!$K$3,U28,Einstellungen!$K$3)))+(IF(U29>Einstellungen!$M$3,Einstellungen!$M$3,U29)-U28),IF(OR(U28>Einstellungen!$M$3,U29<Einstellungen!$K$3),0,IF(U29>Einstellungen!$M$3,Einstellungen!$M$3,U29)-IF(U28<Einstellungen!$K$3,Einstellungen!$K$3,U28))),Einstellungen!$K$2),"") ->  | V56: =IF(AND(V68>0,Einstellungen!$K$12=1,V28<>""),MIN(IF(Einstellungen!$K$3>Einstellungen!$M$3,(IF(V29<Einstellungen!$K$3,0,V29-IF(V28>Einstellungen!$K$3,V28,Einstellungen!$K$3)))+(IF(V29>Einstellungen!$M$3,Einstellungen!$M$3,V29)-V28),IF(OR(V28>Einstellungen!$M$3,V29<Einstellungen!$K$3),0,IF(V29>Einstellungen!$M$3,Einstellungen!$M$3,V29)-IF(V28<Einstellungen!$K$3,Einstellungen!$K$3,V28))),Einstellungen!$K$2),"") ->  | W56: =IF(AND(W68>0,Einstellungen!$K$12=1,W28<>""),MIN(IF(Einstellungen!$K$3>Einstellungen!$M$3,(IF(W29<Einstellungen!$K$3,0,W29-IF(W28>Einstellungen!$K$3,W28,Einstellungen!$K$3)))+(IF(W29>Einstellungen!$M$3,Einstellungen!$M$3,W29)-W28),IF(OR(W28>Einstellungen!$M$3,W29<Einstellungen!$K$3),0,IF(W29>Einstellungen!$M$3,Einstellungen!$M$3,W29)-IF(W28<Einstellungen!$K$3,Einstellungen!$K$3,W28))),Einstellungen!$K$2),"") ->  | X56: =IF(AND(X68>0,Einstellungen!$K$12=1,X28<>""),MIN(IF(Einstellungen!$K$3>Einstellungen!$M$3,(IF(X29<Einstellungen!$K$3,0,X29-IF(X28>Einstellungen!$K$3,X28,Einstellungen!$K$3)))+(IF(X29>Einstellungen!$M$3,Einstellungen!$M$3,X29)-X28),IF(OR(X28>Einstellungen!$M$3,X29<Einstellungen!$K$3),0,IF(X29>Einstellungen!$M$3,Einstellungen!$M$3,X29)-IF(X28<Einstellungen!$K$3,Einstellungen!$K$3,X28))),Einstellungen!$K$2),"") ->  | Y56: =IF(AND(Y68>0,Einstellungen!$K$12=1,Y28<>""),MIN(IF(Einstellungen!$K$3>Einstellungen!$M$3,(IF(Y29<Einstellungen!$K$3,0,Y29-IF(Y28>Einstellungen!$K$3,Y28,Einstellungen!$K$3)))+(IF(Y29>Einstellungen!$M$3,Einstellungen!$M$3,Y29)-Y28),IF(OR(Y28>Einstellungen!$M$3,Y29<Einstellungen!$K$3),0,IF(Y29>Einstellungen!$M$3,Einstellungen!$M$3,Y29)-IF(Y28<Einstellungen!$K$3,Einstellungen!$K$3,Y28))),Einstellungen!$K$2),"") ->  | Z56: =IF(AND(Z68>0,Einstellungen!$K$12=1,Z28<>""),MIN(IF(Einstellungen!$K$3>Einstellungen!$M$3,(IF(Z29<Einstellungen!$K$3,0,Z29-IF(Z28>Einstellungen!$K$3,Z28,Einstellungen!$K$3)))+(IF(Z29>Einstellungen!$M$3,Einstellungen!$M$3,Z29)-Z28),IF(OR(Z28>Einstellungen!$M$3,Z29<Einstellungen!$K$3),0,IF(Z29>Einstellungen!$M$3,Einstellungen!$M$3,Z29)-IF(Z28<Einstellungen!$K$3,Einstellungen!$K$3,Z28))),Einstellungen!$K$2),"") ->  | AA56: =IF(AND(AA68>0,Einstellungen!$K$12=1,AA28<>""),MIN(IF(Einstellungen!$K$3>Einstellungen!$M$3,(IF(AA29<Einstellungen!$K$3,0,AA29-IF(AA28>Einstellungen!$K$3,AA28,Einstellungen!$K$3)))+(IF(AA29>Einstellungen!$M$3,Einstellungen!$M$3,AA29)-AA28),IF(OR(AA28>Einstellungen!$M$3,AA29<Einstellungen!$K$3),0,IF(AA29>Einstellungen!$M$3,Einstellungen!$M$3,AA29)-IF(AA28<Einstellungen!$K$3,Einstellungen!$K$3,AA28))),Einstellungen!$K$2),"") ->  | AB56: =IF(AND(AB68>0,Einstellungen!$K$12=1,AB28<>""),MIN(IF(Einstellungen!$K$3>Einstellungen!$M$3,(IF(AB29<Einstellungen!$K$3,0,AB29-IF(AB28>Einstellungen!$K$3,AB28,Einstellungen!$K$3)))+(IF(AB29>Einstellungen!$M$3,Einstellungen!$M$3,AB29)-AB28),IF(OR(AB28>Einstellungen!$M$3,AB29<Einstellungen!$K$3),0,IF(AB29>Einstellungen!$M$3,Einstellungen!$M$3,AB29)-IF(AB28<Einstellungen!$K$3,Einstellungen!$K$3,AB28))),Einstellungen!$K$2),"") ->  | AC56: =IF(AND(AC68>0,Einstellungen!$K$12=1,AC28<>""),MIN(IF(Einstellungen!$K$3>Einstellungen!$M$3,(IF(AC29<Einstellungen!$K$3,0,AC29-IF(AC28>Einstellungen!$K$3,AC28,Einstellungen!$K$3)))+(IF(AC29>Einstellungen!$M$3,Einstellungen!$M$3,AC29)-AC28),IF(OR(AC28>Einstellungen!$M$3,AC29<Einstellungen!$K$3),0,IF(AC29>Einstellungen!$M$3,Einstellungen!$M$3,AC29)-IF(AC28<Einstellungen!$K$3,Einstellungen!$K$3,AC28))),Einstellungen!$K$2),"") ->  | AD56: =IF(AND(AD68>0,Einstellungen!$K$12=1,AD28<>""),MIN(IF(Einstellungen!$K$3>Einstellungen!$M$3,(IF(AD29<Einstellungen!$K$3,0,AD29-IF(AD28>Einstellungen!$K$3,AD28,Einstellungen!$K$3)))+(IF(AD29>Einstellungen!$M$3,Einstellungen!$M$3,AD29)-AD28),IF(OR(AD28>Einstellungen!$M$3,AD29<Einstellungen!$K$3),0,IF(AD29>Einstellungen!$M$3,Einstellungen!$M$3,AD29)-IF(AD28<Einstellungen!$K$3,Einstellungen!$K$3,AD28))),Einstellungen!$K$2),"") ->  | AE56: =IF(AND(AE68>0,Einstellungen!$K$12=1,AE28<>""),MIN(IF(Einstellungen!$K$3>Einstellungen!$M$3,(IF(AE29<Einstellungen!$K$3,0,AE29-IF(AE28>Einstellungen!$K$3,AE28,Einstellungen!$K$3)))+(IF(AE29>Einstellungen!$M$3,Einstellungen!$M$3,AE29)-AE28),IF(OR(AE28>Einstellungen!$M$3,AE29<Einstellungen!$K$3),0,IF(AE29>Einstellungen!$M$3,Einstellungen!$M$3,AE29)-IF(AE28<Einstellungen!$K$3,Einstellungen!$K$3,AE28))),Einstellungen!$K$2),"") ->  | AF56: =IF(AND(AF68>0,Einstellungen!$K$12=1,AF28<>""),MIN(IF(Einstellungen!$K$3>Einstellungen!$M$3,(IF(AF29<Einstellungen!$K$3,0,AF29-IF(AF28>Einstellungen!$K$3,AF28,Einstellungen!$K$3)))+(IF(AF29>Einstellungen!$M$3,Einstellungen!$M$3,AF29)-AF28),IF(OR(AF28>Einstellungen!$M$3,AF29<Einstellungen!$K$3),0,IF(AF29>Einstellungen!$M$3,Einstellungen!$M$3,AF29)-IF(AF28<Einstellungen!$K$3,Einstellungen!$K$3,AF28))),Einstellungen!$K$2),"") ->  | AG56: =IF(AND(AG68>0,Einstellungen!$K$12=1,AG28<>""),MIN(IF(Einstellungen!$K$3>Einstellungen!$M$3,(IF(AG29<Einstellungen!$K$3,0,AG29-IF(AG28>Einstellungen!$K$3,AG28,Einstellungen!$K$3)))+(IF(AG29>Einstellungen!$M$3,Einstellungen!$M$3,AG29)-AG28),IF(OR(AG28>Einstellungen!$M$3,AG29<Einstellungen!$K$3),0,IF(AG29>Einstellungen!$M$3,Einstellungen!$M$3,AG29)-IF(AG28<Einstellungen!$K$3,Einstellungen!$K$3,AG28))),Einstellungen!$K$2),"") -> 
B57: =IF(Einstellungen!$B$5>3,"4","") ->  | C57: =IF(AND(C69>0,Einstellungen!$K$12=1,C32<>""),MIN(IF(Einstellungen!$K$3>Einstellungen!$M$3,(IF(C33<Einstellungen!$K$3,0,C33-IF(C32>Einstellungen!$K$3,C32,Einstellungen!$K$3)))+(IF(C33>Einstellungen!$M$3,Einstellungen!$M$3,C33)-C32),IF(OR(C32>Einstellungen!$M$3,C33<Einstellungen!$K$3),0,IF(C33>Einstellungen!$M$3,Einstellungen!$M$3,C33)-IF(C32<Einstellungen!$K$3,Einstellungen!$K$3,C32))),Einstellungen!$K$2),"") ->  | D57: =IF(AND(D69>0,Einstellungen!$K$12=1,D32<>""),MIN(IF(Einstellungen!$K$3>Einstellungen!$M$3,(IF(D33<Einstellungen!$K$3,0,D33-IF(D32>Einstellungen!$K$3,D32,Einstellungen!$K$3)))+(IF(D33>Einstellungen!$M$3,Einstellungen!$M$3,D33)-D32),IF(OR(D32>Einstellungen!$M$3,D33<Einstellungen!$K$3),0,IF(D33>Einstellungen!$M$3,Einstellungen!$M$3,D33)-IF(D32<Einstellungen!$K$3,Einstellungen!$K$3,D32))),Einstellungen!$K$2),"") ->  | E57: =IF(AND(E69>0,Einstellungen!$K$12=1,E32<>""),MIN(IF(Einstellungen!$K$3>Einstellungen!$M$3,(IF(E33<Einstellungen!$K$3,0,E33-IF(E32>Einstellungen!$K$3,E32,Einstellungen!$K$3)))+(IF(E33>Einstellungen!$M$3,Einstellungen!$M$3,E33)-E32),IF(OR(E32>Einstellungen!$M$3,E33<Einstellungen!$K$3),0,IF(E33>Einstellungen!$M$3,Einstellungen!$M$3,E33)-IF(E32<Einstellungen!$K$3,Einstellungen!$K$3,E32))),Einstellungen!$K$2),"") ->  | F57: =IF(AND(F69>0,Einstellungen!$K$12=1,F32<>""),MIN(IF(Einstellungen!$K$3>Einstellungen!$M$3,(IF(F33<Einstellungen!$K$3,0,F33-IF(F32>Einstellungen!$K$3,F32,Einstellungen!$K$3)))+(IF(F33>Einstellungen!$M$3,Einstellungen!$M$3,F33)-F32),IF(OR(F32>Einstellungen!$M$3,F33<Einstellungen!$K$3),0,IF(F33>Einstellungen!$M$3,Einstellungen!$M$3,F33)-IF(F32<Einstellungen!$K$3,Einstellungen!$K$3,F32))),Einstellungen!$K$2),"") ->  | G57: =IF(AND(G69>0,Einstellungen!$K$12=1,G32<>""),MIN(IF(Einstellungen!$K$3>Einstellungen!$M$3,(IF(G33<Einstellungen!$K$3,0,G33-IF(G32>Einstellungen!$K$3,G32,Einstellungen!$K$3)))+(IF(G33>Einstellungen!$M$3,Einstellungen!$M$3,G33)-G32),IF(OR(G32>Einstellungen!$M$3,G33<Einstellungen!$K$3),0,IF(G33>Einstellungen!$M$3,Einstellungen!$M$3,G33)-IF(G32<Einstellungen!$K$3,Einstellungen!$K$3,G32))),Einstellungen!$K$2),"") ->  | H57: =IF(AND(H69>0,Einstellungen!$K$12=1,H32<>""),MIN(IF(Einstellungen!$K$3>Einstellungen!$M$3,(IF(H33<Einstellungen!$K$3,0,H33-IF(H32>Einstellungen!$K$3,H32,Einstellungen!$K$3)))+(IF(H33>Einstellungen!$M$3,Einstellungen!$M$3,H33)-H32),IF(OR(H32>Einstellungen!$M$3,H33<Einstellungen!$K$3),0,IF(H33>Einstellungen!$M$3,Einstellungen!$M$3,H33)-IF(H32<Einstellungen!$K$3,Einstellungen!$K$3,H32))),Einstellungen!$K$2),"") ->  | I57: =IF(AND(I69>0,Einstellungen!$K$12=1,I32<>""),MIN(IF(Einstellungen!$K$3>Einstellungen!$M$3,(IF(I33<Einstellungen!$K$3,0,I33-IF(I32>Einstellungen!$K$3,I32,Einstellungen!$K$3)))+(IF(I33>Einstellungen!$M$3,Einstellungen!$M$3,I33)-I32),IF(OR(I32>Einstellungen!$M$3,I33<Einstellungen!$K$3),0,IF(I33>Einstellungen!$M$3,Einstellungen!$M$3,I33)-IF(I32<Einstellungen!$K$3,Einstellungen!$K$3,I32))),Einstellungen!$K$2),"") ->  | J57: =IF(AND(J69>0,Einstellungen!$K$12=1,J32<>""),MIN(IF(Einstellungen!$K$3>Einstellungen!$M$3,(IF(J33<Einstellungen!$K$3,0,J33-IF(J32>Einstellungen!$K$3,J32,Einstellungen!$K$3)))+(IF(J33>Einstellungen!$M$3,Einstellungen!$M$3,J33)-J32),IF(OR(J32>Einstellungen!$M$3,J33<Einstellungen!$K$3),0,IF(J33>Einstellungen!$M$3,Einstellungen!$M$3,J33)-IF(J32<Einstellungen!$K$3,Einstellungen!$K$3,J32))),Einstellungen!$K$2),"") ->  | K57: =IF(AND(K69>0,Einstellungen!$K$12=1,K32<>""),MIN(IF(Einstellungen!$K$3>Einstellungen!$M$3,(IF(K33<Einstellungen!$K$3,0,K33-IF(K32>Einstellungen!$K$3,K32,Einstellungen!$K$3)))+(IF(K33>Einstellungen!$M$3,Einstellungen!$M$3,K33)-K32),IF(OR(K32>Einstellungen!$M$3,K33<Einstellungen!$K$3),0,IF(K33>Einstellungen!$M$3,Einstellungen!$M$3,K33)-IF(K32<Einstellungen!$K$3,Einstellungen!$K$3,K32))),Einstellungen!$K$2),"") ->  | L57: =IF(AND(L69>0,Einstellungen!$K$12=1,L32<>""),MIN(IF(Einstellungen!$K$3>Einstellungen!$M$3,(IF(L33<Einstellungen!$K$3,0,L33-IF(L32>Einstellungen!$K$3,L32,Einstellungen!$K$3)))+(IF(L33>Einstellungen!$M$3,Einstellungen!$M$3,L33)-L32),IF(OR(L32>Einstellungen!$M$3,L33<Einstellungen!$K$3),0,IF(L33>Einstellungen!$M$3,Einstellungen!$M$3,L33)-IF(L32<Einstellungen!$K$3,Einstellungen!$K$3,L32))),Einstellungen!$K$2),"") ->  | M57: =IF(AND(M69>0,Einstellungen!$K$12=1,M32<>""),MIN(IF(Einstellungen!$K$3>Einstellungen!$M$3,(IF(M33<Einstellungen!$K$3,0,M33-IF(M32>Einstellungen!$K$3,M32,Einstellungen!$K$3)))+(IF(M33>Einstellungen!$M$3,Einstellungen!$M$3,M33)-M32),IF(OR(M32>Einstellungen!$M$3,M33<Einstellungen!$K$3),0,IF(M33>Einstellungen!$M$3,Einstellungen!$M$3,M33)-IF(M32<Einstellungen!$K$3,Einstellungen!$K$3,M32))),Einstellungen!$K$2),"") ->  | N57: =IF(AND(N69>0,Einstellungen!$K$12=1,N32<>""),MIN(IF(Einstellungen!$K$3>Einstellungen!$M$3,(IF(N33<Einstellungen!$K$3,0,N33-IF(N32>Einstellungen!$K$3,N32,Einstellungen!$K$3)))+(IF(N33>Einstellungen!$M$3,Einstellungen!$M$3,N33)-N32),IF(OR(N32>Einstellungen!$M$3,N33<Einstellungen!$K$3),0,IF(N33>Einstellungen!$M$3,Einstellungen!$M$3,N33)-IF(N32<Einstellungen!$K$3,Einstellungen!$K$3,N32))),Einstellungen!$K$2),"") ->  | O57: =IF(AND(O69>0,Einstellungen!$K$12=1,O32<>""),MIN(IF(Einstellungen!$K$3>Einstellungen!$M$3,(IF(O33<Einstellungen!$K$3,0,O33-IF(O32>Einstellungen!$K$3,O32,Einstellungen!$K$3)))+(IF(O33>Einstellungen!$M$3,Einstellungen!$M$3,O33)-O32),IF(OR(O32>Einstellungen!$M$3,O33<Einstellungen!$K$3),0,IF(O33>Einstellungen!$M$3,Einstellungen!$M$3,O33)-IF(O32<Einstellungen!$K$3,Einstellungen!$K$3,O32))),Einstellungen!$K$2),"") ->  | P57: =IF(AND(P69>0,Einstellungen!$K$12=1,P32<>""),MIN(IF(Einstellungen!$K$3>Einstellungen!$M$3,(IF(P33<Einstellungen!$K$3,0,P33-IF(P32>Einstellungen!$K$3,P32,Einstellungen!$K$3)))+(IF(P33>Einstellungen!$M$3,Einstellungen!$M$3,P33)-P32),IF(OR(P32>Einstellungen!$M$3,P33<Einstellungen!$K$3),0,IF(P33>Einstellungen!$M$3,Einstellungen!$M$3,P33)-IF(P32<Einstellungen!$K$3,Einstellungen!$K$3,P32))),Einstellungen!$K$2),"") ->  | Q57: =IF(AND(Q69>0,Einstellungen!$K$12=1,Q32<>""),MIN(IF(Einstellungen!$K$3>Einstellungen!$M$3,(IF(Q33<Einstellungen!$K$3,0,Q33-IF(Q32>Einstellungen!$K$3,Q32,Einstellungen!$K$3)))+(IF(Q33>Einstellungen!$M$3,Einstellungen!$M$3,Q33)-Q32),IF(OR(Q32>Einstellungen!$M$3,Q33<Einstellungen!$K$3),0,IF(Q33>Einstellungen!$M$3,Einstellungen!$M$3,Q33)-IF(Q32<Einstellungen!$K$3,Einstellungen!$K$3,Q32))),Einstellungen!$K$2),"") ->  | R57: =IF(AND(R69>0,Einstellungen!$K$12=1,R32<>""),MIN(IF(Einstellungen!$K$3>Einstellungen!$M$3,(IF(R33<Einstellungen!$K$3,0,R33-IF(R32>Einstellungen!$K$3,R32,Einstellungen!$K$3)))+(IF(R33>Einstellungen!$M$3,Einstellungen!$M$3,R33)-R32),IF(OR(R32>Einstellungen!$M$3,R33<Einstellungen!$K$3),0,IF(R33>Einstellungen!$M$3,Einstellungen!$M$3,R33)-IF(R32<Einstellungen!$K$3,Einstellungen!$K$3,R32))),Einstellungen!$K$2),"") ->  | S57: =IF(AND(S69>0,Einstellungen!$K$12=1,S32<>""),MIN(IF(Einstellungen!$K$3>Einstellungen!$M$3,(IF(S33<Einstellungen!$K$3,0,S33-IF(S32>Einstellungen!$K$3,S32,Einstellungen!$K$3)))+(IF(S33>Einstellungen!$M$3,Einstellungen!$M$3,S33)-S32),IF(OR(S32>Einstellungen!$M$3,S33<Einstellungen!$K$3),0,IF(S33>Einstellungen!$M$3,Einstellungen!$M$3,S33)-IF(S32<Einstellungen!$K$3,Einstellungen!$K$3,S32))),Einstellungen!$K$2),"") ->  | T57: =IF(AND(T69>0,Einstellungen!$K$12=1,T32<>""),MIN(IF(Einstellungen!$K$3>Einstellungen!$M$3,(IF(T33<Einstellungen!$K$3,0,T33-IF(T32>Einstellungen!$K$3,T32,Einstellungen!$K$3)))+(IF(T33>Einstellungen!$M$3,Einstellungen!$M$3,T33)-T32),IF(OR(T32>Einstellungen!$M$3,T33<Einstellungen!$K$3),0,IF(T33>Einstellungen!$M$3,Einstellungen!$M$3,T33)-IF(T32<Einstellungen!$K$3,Einstellungen!$K$3,T32))),Einstellungen!$K$2),"") ->  | U57: =IF(AND(U69>0,Einstellungen!$K$12=1,U32<>""),MIN(IF(Einstellungen!$K$3>Einstellungen!$M$3,(IF(U33<Einstellungen!$K$3,0,U33-IF(U32>Einstellungen!$K$3,U32,Einstellungen!$K$3)))+(IF(U33>Einstellungen!$M$3,Einstellungen!$M$3,U33)-U32),IF(OR(U32>Einstellungen!$M$3,U33<Einstellungen!$K$3),0,IF(U33>Einstellungen!$M$3,Einstellungen!$M$3,U33)-IF(U32<Einstellungen!$K$3,Einstellungen!$K$3,U32))),Einstellungen!$K$2),"") ->  | V57: =IF(AND(V69>0,Einstellungen!$K$12=1,V32<>""),MIN(IF(Einstellungen!$K$3>Einstellungen!$M$3,(IF(V33<Einstellungen!$K$3,0,V33-IF(V32>Einstellungen!$K$3,V32,Einstellungen!$K$3)))+(IF(V33>Einstellungen!$M$3,Einstellungen!$M$3,V33)-V32),IF(OR(V32>Einstellungen!$M$3,V33<Einstellungen!$K$3),0,IF(V33>Einstellungen!$M$3,Einstellungen!$M$3,V33)-IF(V32<Einstellungen!$K$3,Einstellungen!$K$3,V32))),Einstellungen!$K$2),"") ->  | W57: =IF(AND(W69>0,Einstellungen!$K$12=1,W32<>""),MIN(IF(Einstellungen!$K$3>Einstellungen!$M$3,(IF(W33<Einstellungen!$K$3,0,W33-IF(W32>Einstellungen!$K$3,W32,Einstellungen!$K$3)))+(IF(W33>Einstellungen!$M$3,Einstellungen!$M$3,W33)-W32),IF(OR(W32>Einstellungen!$M$3,W33<Einstellungen!$K$3),0,IF(W33>Einstellungen!$M$3,Einstellungen!$M$3,W33)-IF(W32<Einstellungen!$K$3,Einstellungen!$K$3,W32))),Einstellungen!$K$2),"") ->  | X57: =IF(AND(X69>0,Einstellungen!$K$12=1,X32<>""),MIN(IF(Einstellungen!$K$3>Einstellungen!$M$3,(IF(X33<Einstellungen!$K$3,0,X33-IF(X32>Einstellungen!$K$3,X32,Einstellungen!$K$3)))+(IF(X33>Einstellungen!$M$3,Einstellungen!$M$3,X33)-X32),IF(OR(X32>Einstellungen!$M$3,X33<Einstellungen!$K$3),0,IF(X33>Einstellungen!$M$3,Einstellungen!$M$3,X33)-IF(X32<Einstellungen!$K$3,Einstellungen!$K$3,X32))),Einstellungen!$K$2),"") ->  | Y57: =IF(AND(Y69>0,Einstellungen!$K$12=1,Y32<>""),MIN(IF(Einstellungen!$K$3>Einstellungen!$M$3,(IF(Y33<Einstellungen!$K$3,0,Y33-IF(Y32>Einstellungen!$K$3,Y32,Einstellungen!$K$3)))+(IF(Y33>Einstellungen!$M$3,Einstellungen!$M$3,Y33)-Y32),IF(OR(Y32>Einstellungen!$M$3,Y33<Einstellungen!$K$3),0,IF(Y33>Einstellungen!$M$3,Einstellungen!$M$3,Y33)-IF(Y32<Einstellungen!$K$3,Einstellungen!$K$3,Y32))),Einstellungen!$K$2),"") ->  | Z57: =IF(AND(Z69>0,Einstellungen!$K$12=1,Z32<>""),MIN(IF(Einstellungen!$K$3>Einstellungen!$M$3,(IF(Z33<Einstellungen!$K$3,0,Z33-IF(Z32>Einstellungen!$K$3,Z32,Einstellungen!$K$3)))+(IF(Z33>Einstellungen!$M$3,Einstellungen!$M$3,Z33)-Z32),IF(OR(Z32>Einstellungen!$M$3,Z33<Einstellungen!$K$3),0,IF(Z33>Einstellungen!$M$3,Einstellungen!$M$3,Z33)-IF(Z32<Einstellungen!$K$3,Einstellungen!$K$3,Z32))),Einstellungen!$K$2),"") ->  | AA57: =IF(AND(AA69>0,Einstellungen!$K$12=1,AA32<>""),MIN(IF(Einstellungen!$K$3>Einstellungen!$M$3,(IF(AA33<Einstellungen!$K$3,0,AA33-IF(AA32>Einstellungen!$K$3,AA32,Einstellungen!$K$3)))+(IF(AA33>Einstellungen!$M$3,Einstellungen!$M$3,AA33)-AA32),IF(OR(AA32>Einstellungen!$M$3,AA33<Einstellungen!$K$3),0,IF(AA33>Einstellungen!$M$3,Einstellungen!$M$3,AA33)-IF(AA32<Einstellungen!$K$3,Einstellungen!$K$3,AA32))),Einstellungen!$K$2),"") ->  | AB57: =IF(AND(AB69>0,Einstellungen!$K$12=1,AB32<>""),MIN(IF(Einstellungen!$K$3>Einstellungen!$M$3,(IF(AB33<Einstellungen!$K$3,0,AB33-IF(AB32>Einstellungen!$K$3,AB32,Einstellungen!$K$3)))+(IF(AB33>Einstellungen!$M$3,Einstellungen!$M$3,AB33)-AB32),IF(OR(AB32>Einstellungen!$M$3,AB33<Einstellungen!$K$3),0,IF(AB33>Einstellungen!$M$3,Einstellungen!$M$3,AB33)-IF(AB32<Einstellungen!$K$3,Einstellungen!$K$3,AB32))),Einstellungen!$K$2),"") ->  | AC57: =IF(AND(AC69>0,Einstellungen!$K$12=1,AC32<>""),MIN(IF(Einstellungen!$K$3>Einstellungen!$M$3,(IF(AC33<Einstellungen!$K$3,0,AC33-IF(AC32>Einstellungen!$K$3,AC32,Einstellungen!$K$3)))+(IF(AC33>Einstellungen!$M$3,Einstellungen!$M$3,AC33)-AC32),IF(OR(AC32>Einstellungen!$M$3,AC33<Einstellungen!$K$3),0,IF(AC33>Einstellungen!$M$3,Einstellungen!$M$3,AC33)-IF(AC32<Einstellungen!$K$3,Einstellungen!$K$3,AC32))),Einstellungen!$K$2),"") ->  | AD57: =IF(AND(AD69>0,Einstellungen!$K$12=1,AD32<>""),MIN(IF(Einstellungen!$K$3>Einstellungen!$M$3,(IF(AD33<Einstellungen!$K$3,0,AD33-IF(AD32>Einstellungen!$K$3,AD32,Einstellungen!$K$3)))+(IF(AD33>Einstellungen!$M$3,Einstellungen!$M$3,AD33)-AD32),IF(OR(AD32>Einstellungen!$M$3,AD33<Einstellungen!$K$3),0,IF(AD33>Einstellungen!$M$3,Einstellungen!$M$3,AD33)-IF(AD32<Einstellungen!$K$3,Einstellungen!$K$3,AD32))),Einstellungen!$K$2),"") ->  | AE57: =IF(AND(AE69>0,Einstellungen!$K$12=1,AE32<>""),MIN(IF(Einstellungen!$K$3>Einstellungen!$M$3,(IF(AE33<Einstellungen!$K$3,0,AE33-IF(AE32>Einstellungen!$K$3,AE32,Einstellungen!$K$3)))+(IF(AE33>Einstellungen!$M$3,Einstellungen!$M$3,AE33)-AE32),IF(OR(AE32>Einstellungen!$M$3,AE33<Einstellungen!$K$3),0,IF(AE33>Einstellungen!$M$3,Einstellungen!$M$3,AE33)-IF(AE32<Einstellungen!$K$3,Einstellungen!$K$3,AE32))),Einstellungen!$K$2),"") ->  | AF57: =IF(AND(AF69>0,Einstellungen!$K$12=1,AF32<>""),MIN(IF(Einstellungen!$K$3>Einstellungen!$M$3,(IF(AF33<Einstellungen!$K$3,0,AF33-IF(AF32>Einstellungen!$K$3,AF32,Einstellungen!$K$3)))+(IF(AF33>Einstellungen!$M$3,Einstellungen!$M$3,AF33)-AF32),IF(OR(AF32>Einstellungen!$M$3,AF33<Einstellungen!$K$3),0,IF(AF33>Einstellungen!$M$3,Einstellungen!$M$3,AF33)-IF(AF32<Einstellungen!$K$3,Einstellungen!$K$3,AF32))),Einstellungen!$K$2),"") ->  | AG57: =IF(AND(AG69>0,Einstellungen!$K$12=1,AG32<>""),MIN(IF(Einstellungen!$K$3>Einstellungen!$M$3,(IF(AG33<Einstellungen!$K$3,0,AG33-IF(AG32>Einstellungen!$K$3,AG32,Einstellungen!$K$3)))+(IF(AG33>Einstellungen!$M$3,Einstellungen!$M$3,AG33)-AG32),IF(OR(AG32>Einstellungen!$M$3,AG33<Einstellungen!$K$3),0,IF(AG33>Einstellungen!$M$3,Einstellungen!$M$3,AG33)-IF(AG32<Einstellungen!$K$3,Einstellungen!$K$3,AG32))),Einstellungen!$K$2),"") -> 
B58: =IF(Einstellungen!$B$5>4,"5","") ->  | C58: =IF(AND(C70>0,Einstellungen!$K$12=1,C36<>""),MIN(IF(Einstellungen!$K$3>Einstellungen!$M$3,(IF(C37<Einstellungen!$K$3,0,C37-IF(C36>Einstellungen!$K$3,C36,Einstellungen!$K$3)))+(IF(C37>Einstellungen!$M$3,Einstellungen!$M$3,C37)-C36),IF(OR(C36>Einstellungen!$M$3,C37<Einstellungen!$K$3),0,IF(C37>Einstellungen!$M$3,Einstellungen!$M$3,C37)-IF(C36<Einstellungen!$K$3,Einstellungen!$K$3,C36))),Einstellungen!$K$2),"") ->  | D58: =IF(AND(D70>0,Einstellungen!$K$12=1,D36<>""),MIN(IF(Einstellungen!$K$3>Einstellungen!$M$3,(IF(D37<Einstellungen!$K$3,0,D37-IF(D36>Einstellungen!$K$3,D36,Einstellungen!$K$3)))+(IF(D37>Einstellungen!$M$3,Einstellungen!$M$3,D37)-D36),IF(OR(D36>Einstellungen!$M$3,D37<Einstellungen!$K$3),0,IF(D37>Einstellungen!$M$3,Einstellungen!$M$3,D37)-IF(D36<Einstellungen!$K$3,Einstellungen!$K$3,D36))),Einstellungen!$K$2),"") ->  | E58: =IF(AND(E70>0,Einstellungen!$K$12=1,E36<>""),MIN(IF(Einstellungen!$K$3>Einstellungen!$M$3,(IF(E37<Einstellungen!$K$3,0,E37-IF(E36>Einstellungen!$K$3,E36,Einstellungen!$K$3)))+(IF(E37>Einstellungen!$M$3,Einstellungen!$M$3,E37)-E36),IF(OR(E36>Einstellungen!$M$3,E37<Einstellungen!$K$3),0,IF(E37>Einstellungen!$M$3,Einstellungen!$M$3,E37)-IF(E36<Einstellungen!$K$3,Einstellungen!$K$3,E36))),Einstellungen!$K$2),"") ->  | F58: =IF(AND(F70>0,Einstellungen!$K$12=1,F36<>""),MIN(IF(Einstellungen!$K$3>Einstellungen!$M$3,(IF(F37<Einstellungen!$K$3,0,F37-IF(F36>Einstellungen!$K$3,F36,Einstellungen!$K$3)))+(IF(F37>Einstellungen!$M$3,Einstellungen!$M$3,F37)-F36),IF(OR(F36>Einstellungen!$M$3,F37<Einstellungen!$K$3),0,IF(F37>Einstellungen!$M$3,Einstellungen!$M$3,F37)-IF(F36<Einstellungen!$K$3,Einstellungen!$K$3,F36))),Einstellungen!$K$2),"") ->  | G58: =IF(AND(G70>0,Einstellungen!$K$12=1,G36<>""),MIN(IF(Einstellungen!$K$3>Einstellungen!$M$3,(IF(G37<Einstellungen!$K$3,0,G37-IF(G36>Einstellungen!$K$3,G36,Einstellungen!$K$3)))+(IF(G37>Einstellungen!$M$3,Einstellungen!$M$3,G37)-G36),IF(OR(G36>Einstellungen!$M$3,G37<Einstellungen!$K$3),0,IF(G37>Einstellungen!$M$3,Einstellungen!$M$3,G37)-IF(G36<Einstellungen!$K$3,Einstellungen!$K$3,G36))),Einstellungen!$K$2),"") ->  | H58: =IF(AND(H70>0,Einstellungen!$K$12=1,H36<>""),MIN(IF(Einstellungen!$K$3>Einstellungen!$M$3,(IF(H37<Einstellungen!$K$3,0,H37-IF(H36>Einstellungen!$K$3,H36,Einstellungen!$K$3)))+(IF(H37>Einstellungen!$M$3,Einstellungen!$M$3,H37)-H36),IF(OR(H36>Einstellungen!$M$3,H37<Einstellungen!$K$3),0,IF(H37>Einstellungen!$M$3,Einstellungen!$M$3,H37)-IF(H36<Einstellungen!$K$3,Einstellungen!$K$3,H36))),Einstellungen!$K$2),"") ->  | I58: =IF(AND(I70>0,Einstellungen!$K$12=1,I36<>""),MIN(IF(Einstellungen!$K$3>Einstellungen!$M$3,(IF(I37<Einstellungen!$K$3,0,I37-IF(I36>Einstellungen!$K$3,I36,Einstellungen!$K$3)))+(IF(I37>Einstellungen!$M$3,Einstellungen!$M$3,I37)-I36),IF(OR(I36>Einstellungen!$M$3,I37<Einstellungen!$K$3),0,IF(I37>Einstellungen!$M$3,Einstellungen!$M$3,I37)-IF(I36<Einstellungen!$K$3,Einstellungen!$K$3,I36))),Einstellungen!$K$2),"") ->  | J58: =IF(AND(J70>0,Einstellungen!$K$12=1,J36<>""),MIN(IF(Einstellungen!$K$3>Einstellungen!$M$3,(IF(J37<Einstellungen!$K$3,0,J37-IF(J36>Einstellungen!$K$3,J36,Einstellungen!$K$3)))+(IF(J37>Einstellungen!$M$3,Einstellungen!$M$3,J37)-J36),IF(OR(J36>Einstellungen!$M$3,J37<Einstellungen!$K$3),0,IF(J37>Einstellungen!$M$3,Einstellungen!$M$3,J37)-IF(J36<Einstellungen!$K$3,Einstellungen!$K$3,J36))),Einstellungen!$K$2),"") ->  | K58: =IF(AND(K70>0,Einstellungen!$K$12=1,K36<>""),MIN(IF(Einstellungen!$K$3>Einstellungen!$M$3,(IF(K37<Einstellungen!$K$3,0,K37-IF(K36>Einstellungen!$K$3,K36,Einstellungen!$K$3)))+(IF(K37>Einstellungen!$M$3,Einstellungen!$M$3,K37)-K36),IF(OR(K36>Einstellungen!$M$3,K37<Einstellungen!$K$3),0,IF(K37>Einstellungen!$M$3,Einstellungen!$M$3,K37)-IF(K36<Einstellungen!$K$3,Einstellungen!$K$3,K36))),Einstellungen!$K$2),"") ->  | L58: =IF(AND(L70>0,Einstellungen!$K$12=1,L36<>""),MIN(IF(Einstellungen!$K$3>Einstellungen!$M$3,(IF(L37<Einstellungen!$K$3,0,L37-IF(L36>Einstellungen!$K$3,L36,Einstellungen!$K$3)))+(IF(L37>Einstellungen!$M$3,Einstellungen!$M$3,L37)-L36),IF(OR(L36>Einstellungen!$M$3,L37<Einstellungen!$K$3),0,IF(L37>Einstellungen!$M$3,Einstellungen!$M$3,L37)-IF(L36<Einstellungen!$K$3,Einstellungen!$K$3,L36))),Einstellungen!$K$2),"") ->  | M58: =IF(AND(M70>0,Einstellungen!$K$12=1,M36<>""),MIN(IF(Einstellungen!$K$3>Einstellungen!$M$3,(IF(M37<Einstellungen!$K$3,0,M37-IF(M36>Einstellungen!$K$3,M36,Einstellungen!$K$3)))+(IF(M37>Einstellungen!$M$3,Einstellungen!$M$3,M37)-M36),IF(OR(M36>Einstellungen!$M$3,M37<Einstellungen!$K$3),0,IF(M37>Einstellungen!$M$3,Einstellungen!$M$3,M37)-IF(M36<Einstellungen!$K$3,Einstellungen!$K$3,M36))),Einstellungen!$K$2),"") ->  | N58: =IF(AND(N70>0,Einstellungen!$K$12=1,N36<>""),MIN(IF(Einstellungen!$K$3>Einstellungen!$M$3,(IF(N37<Einstellungen!$K$3,0,N37-IF(N36>Einstellungen!$K$3,N36,Einstellungen!$K$3)))+(IF(N37>Einstellungen!$M$3,Einstellungen!$M$3,N37)-N36),IF(OR(N36>Einstellungen!$M$3,N37<Einstellungen!$K$3),0,IF(N37>Einstellungen!$M$3,Einstellungen!$M$3,N37)-IF(N36<Einstellungen!$K$3,Einstellungen!$K$3,N36))),Einstellungen!$K$2),"") ->  | O58: =IF(AND(O70>0,Einstellungen!$K$12=1,O36<>""),MIN(IF(Einstellungen!$K$3>Einstellungen!$M$3,(IF(O37<Einstellungen!$K$3,0,O37-IF(O36>Einstellungen!$K$3,O36,Einstellungen!$K$3)))+(IF(O37>Einstellungen!$M$3,Einstellungen!$M$3,O37)-O36),IF(OR(O36>Einstellungen!$M$3,O37<Einstellungen!$K$3),0,IF(O37>Einstellungen!$M$3,Einstellungen!$M$3,O37)-IF(O36<Einstellungen!$K$3,Einstellungen!$K$3,O36))),Einstellungen!$K$2),"") ->  | P58: =IF(AND(P70>0,Einstellungen!$K$12=1,P36<>""),MIN(IF(Einstellungen!$K$3>Einstellungen!$M$3,(IF(P37<Einstellungen!$K$3,0,P37-IF(P36>Einstellungen!$K$3,P36,Einstellungen!$K$3)))+(IF(P37>Einstellungen!$M$3,Einstellungen!$M$3,P37)-P36),IF(OR(P36>Einstellungen!$M$3,P37<Einstellungen!$K$3),0,IF(P37>Einstellungen!$M$3,Einstellungen!$M$3,P37)-IF(P36<Einstellungen!$K$3,Einstellungen!$K$3,P36))),Einstellungen!$K$2),"") ->  | Q58: =IF(AND(Q70>0,Einstellungen!$K$12=1,Q36<>""),MIN(IF(Einstellungen!$K$3>Einstellungen!$M$3,(IF(Q37<Einstellungen!$K$3,0,Q37-IF(Q36>Einstellungen!$K$3,Q36,Einstellungen!$K$3)))+(IF(Q37>Einstellungen!$M$3,Einstellungen!$M$3,Q37)-Q36),IF(OR(Q36>Einstellungen!$M$3,Q37<Einstellungen!$K$3),0,IF(Q37>Einstellungen!$M$3,Einstellungen!$M$3,Q37)-IF(Q36<Einstellungen!$K$3,Einstellungen!$K$3,Q36))),Einstellungen!$K$2),"") ->  | R58: =IF(AND(R70>0,Einstellungen!$K$12=1,R36<>""),MIN(IF(Einstellungen!$K$3>Einstellungen!$M$3,(IF(R37<Einstellungen!$K$3,0,R37-IF(R36>Einstellungen!$K$3,R36,Einstellungen!$K$3)))+(IF(R37>Einstellungen!$M$3,Einstellungen!$M$3,R37)-R36),IF(OR(R36>Einstellungen!$M$3,R37<Einstellungen!$K$3),0,IF(R37>Einstellungen!$M$3,Einstellungen!$M$3,R37)-IF(R36<Einstellungen!$K$3,Einstellungen!$K$3,R36))),Einstellungen!$K$2),"") ->  | S58: =IF(AND(S70>0,Einstellungen!$K$12=1,S36<>""),MIN(IF(Einstellungen!$K$3>Einstellungen!$M$3,(IF(S37<Einstellungen!$K$3,0,S37-IF(S36>Einstellungen!$K$3,S36,Einstellungen!$K$3)))+(IF(S37>Einstellungen!$M$3,Einstellungen!$M$3,S37)-S36),IF(OR(S36>Einstellungen!$M$3,S37<Einstellungen!$K$3),0,IF(S37>Einstellungen!$M$3,Einstellungen!$M$3,S37)-IF(S36<Einstellungen!$K$3,Einstellungen!$K$3,S36))),Einstellungen!$K$2),"") ->  | T58: =IF(AND(T70>0,Einstellungen!$K$12=1,T36<>""),MIN(IF(Einstellungen!$K$3>Einstellungen!$M$3,(IF(T37<Einstellungen!$K$3,0,T37-IF(T36>Einstellungen!$K$3,T36,Einstellungen!$K$3)))+(IF(T37>Einstellungen!$M$3,Einstellungen!$M$3,T37)-T36),IF(OR(T36>Einstellungen!$M$3,T37<Einstellungen!$K$3),0,IF(T37>Einstellungen!$M$3,Einstellungen!$M$3,T37)-IF(T36<Einstellungen!$K$3,Einstellungen!$K$3,T36))),Einstellungen!$K$2),"") ->  | U58: =IF(AND(U70>0,Einstellungen!$K$12=1,U36<>""),MIN(IF(Einstellungen!$K$3>Einstellungen!$M$3,(IF(U37<Einstellungen!$K$3,0,U37-IF(U36>Einstellungen!$K$3,U36,Einstellungen!$K$3)))+(IF(U37>Einstellungen!$M$3,Einstellungen!$M$3,U37)-U36),IF(OR(U36>Einstellungen!$M$3,U37<Einstellungen!$K$3),0,IF(U37>Einstellungen!$M$3,Einstellungen!$M$3,U37)-IF(U36<Einstellungen!$K$3,Einstellungen!$K$3,U36))),Einstellungen!$K$2),"") ->  | V58: =IF(AND(V70>0,Einstellungen!$K$12=1,V36<>""),MIN(IF(Einstellungen!$K$3>Einstellungen!$M$3,(IF(V37<Einstellungen!$K$3,0,V37-IF(V36>Einstellungen!$K$3,V36,Einstellungen!$K$3)))+(IF(V37>Einstellungen!$M$3,Einstellungen!$M$3,V37)-V36),IF(OR(V36>Einstellungen!$M$3,V37<Einstellungen!$K$3),0,IF(V37>Einstellungen!$M$3,Einstellungen!$M$3,V37)-IF(V36<Einstellungen!$K$3,Einstellungen!$K$3,V36))),Einstellungen!$K$2),"") ->  | W58: =IF(AND(W70>0,Einstellungen!$K$12=1,W36<>""),MIN(IF(Einstellungen!$K$3>Einstellungen!$M$3,(IF(W37<Einstellungen!$K$3,0,W37-IF(W36>Einstellungen!$K$3,W36,Einstellungen!$K$3)))+(IF(W37>Einstellungen!$M$3,Einstellungen!$M$3,W37)-W36),IF(OR(W36>Einstellungen!$M$3,W37<Einstellungen!$K$3),0,IF(W37>Einstellungen!$M$3,Einstellungen!$M$3,W37)-IF(W36<Einstellungen!$K$3,Einstellungen!$K$3,W36))),Einstellungen!$K$2),"") ->  | X58: =IF(AND(X70>0,Einstellungen!$K$12=1,X36<>""),MIN(IF(Einstellungen!$K$3>Einstellungen!$M$3,(IF(X37<Einstellungen!$K$3,0,X37-IF(X36>Einstellungen!$K$3,X36,Einstellungen!$K$3)))+(IF(X37>Einstellungen!$M$3,Einstellungen!$M$3,X37)-X36),IF(OR(X36>Einstellungen!$M$3,X37<Einstellungen!$K$3),0,IF(X37>Einstellungen!$M$3,Einstellungen!$M$3,X37)-IF(X36<Einstellungen!$K$3,Einstellungen!$K$3,X36))),Einstellungen!$K$2),"") ->  | Y58: =IF(AND(Y70>0,Einstellungen!$K$12=1,Y36<>""),MIN(IF(Einstellungen!$K$3>Einstellungen!$M$3,(IF(Y37<Einstellungen!$K$3,0,Y37-IF(Y36>Einstellungen!$K$3,Y36,Einstellungen!$K$3)))+(IF(Y37>Einstellungen!$M$3,Einstellungen!$M$3,Y37)-Y36),IF(OR(Y36>Einstellungen!$M$3,Y37<Einstellungen!$K$3),0,IF(Y37>Einstellungen!$M$3,Einstellungen!$M$3,Y37)-IF(Y36<Einstellungen!$K$3,Einstellungen!$K$3,Y36))),Einstellungen!$K$2),"") ->  | Z58: =IF(AND(Z70>0,Einstellungen!$K$12=1,Z36<>""),MIN(IF(Einstellungen!$K$3>Einstellungen!$M$3,(IF(Z37<Einstellungen!$K$3,0,Z37-IF(Z36>Einstellungen!$K$3,Z36,Einstellungen!$K$3)))+(IF(Z37>Einstellungen!$M$3,Einstellungen!$M$3,Z37)-Z36),IF(OR(Z36>Einstellungen!$M$3,Z37<Einstellungen!$K$3),0,IF(Z37>Einstellungen!$M$3,Einstellungen!$M$3,Z37)-IF(Z36<Einstellungen!$K$3,Einstellungen!$K$3,Z36))),Einstellungen!$K$2),"") ->  | AA58: =IF(AND(AA70>0,Einstellungen!$K$12=1,AA36<>""),MIN(IF(Einstellungen!$K$3>Einstellungen!$M$3,(IF(AA37<Einstellungen!$K$3,0,AA37-IF(AA36>Einstellungen!$K$3,AA36,Einstellungen!$K$3)))+(IF(AA37>Einstellungen!$M$3,Einstellungen!$M$3,AA37)-AA36),IF(OR(AA36>Einstellungen!$M$3,AA37<Einstellungen!$K$3),0,IF(AA37>Einstellungen!$M$3,Einstellungen!$M$3,AA37)-IF(AA36<Einstellungen!$K$3,Einstellungen!$K$3,AA36))),Einstellungen!$K$2),"") ->  | AB58: =IF(AND(AB70>0,Einstellungen!$K$12=1,AB36<>""),MIN(IF(Einstellungen!$K$3>Einstellungen!$M$3,(IF(AB37<Einstellungen!$K$3,0,AB37-IF(AB36>Einstellungen!$K$3,AB36,Einstellungen!$K$3)))+(IF(AB37>Einstellungen!$M$3,Einstellungen!$M$3,AB37)-AB36),IF(OR(AB36>Einstellungen!$M$3,AB37<Einstellungen!$K$3),0,IF(AB37>Einstellungen!$M$3,Einstellungen!$M$3,AB37)-IF(AB36<Einstellungen!$K$3,Einstellungen!$K$3,AB36))),Einstellungen!$K$2),"") ->  | AC58: =IF(AND(AC70>0,Einstellungen!$K$12=1,AC36<>""),MIN(IF(Einstellungen!$K$3>Einstellungen!$M$3,(IF(AC37<Einstellungen!$K$3,0,AC37-IF(AC36>Einstellungen!$K$3,AC36,Einstellungen!$K$3)))+(IF(AC37>Einstellungen!$M$3,Einstellungen!$M$3,AC37)-AC36),IF(OR(AC36>Einstellungen!$M$3,AC37<Einstellungen!$K$3),0,IF(AC37>Einstellungen!$M$3,Einstellungen!$M$3,AC37)-IF(AC36<Einstellungen!$K$3,Einstellungen!$K$3,AC36))),Einstellungen!$K$2),"") ->  | AD58: =IF(AND(AD70>0,Einstellungen!$K$12=1,AD36<>""),MIN(IF(Einstellungen!$K$3>Einstellungen!$M$3,(IF(AD37<Einstellungen!$K$3,0,AD37-IF(AD36>Einstellungen!$K$3,AD36,Einstellungen!$K$3)))+(IF(AD37>Einstellungen!$M$3,Einstellungen!$M$3,AD37)-AD36),IF(OR(AD36>Einstellungen!$M$3,AD37<Einstellungen!$K$3),0,IF(AD37>Einstellungen!$M$3,Einstellungen!$M$3,AD37)-IF(AD36<Einstellungen!$K$3,Einstellungen!$K$3,AD36))),Einstellungen!$K$2),"") ->  | AE58: =IF(AND(AE70>0,Einstellungen!$K$12=1,AE36<>""),MIN(IF(Einstellungen!$K$3>Einstellungen!$M$3,(IF(AE37<Einstellungen!$K$3,0,AE37-IF(AE36>Einstellungen!$K$3,AE36,Einstellungen!$K$3)))+(IF(AE37>Einstellungen!$M$3,Einstellungen!$M$3,AE37)-AE36),IF(OR(AE36>Einstellungen!$M$3,AE37<Einstellungen!$K$3),0,IF(AE37>Einstellungen!$M$3,Einstellungen!$M$3,AE37)-IF(AE36<Einstellungen!$K$3,Einstellungen!$K$3,AE36))),Einstellungen!$K$2),"") ->  | AF58: =IF(AND(AF70>0,Einstellungen!$K$12=1,AF36<>""),MIN(IF(Einstellungen!$K$3>Einstellungen!$M$3,(IF(AF37<Einstellungen!$K$3,0,AF37-IF(AF36>Einstellungen!$K$3,AF36,Einstellungen!$K$3)))+(IF(AF37>Einstellungen!$M$3,Einstellungen!$M$3,AF37)-AF36),IF(OR(AF36>Einstellungen!$M$3,AF37<Einstellungen!$K$3),0,IF(AF37>Einstellungen!$M$3,Einstellungen!$M$3,AF37)-IF(AF36<Einstellungen!$K$3,Einstellungen!$K$3,AF36))),Einstellungen!$K$2),"") ->  | AG58: =IF(AND(AG70>0,Einstellungen!$K$12=1,AG36<>""),MIN(IF(Einstellungen!$K$3>Einstellungen!$M$3,(IF(AG37<Einstellungen!$K$3,0,AG37-IF(AG36>Einstellungen!$K$3,AG36,Einstellungen!$K$3)))+(IF(AG37>Einstellungen!$M$3,Einstellungen!$M$3,AG37)-AG36),IF(OR(AG36>Einstellungen!$M$3,AG37<Einstellungen!$K$3),0,IF(AG37>Einstellungen!$M$3,Einstellungen!$M$3,AG37)-IF(AG36<Einstellungen!$K$3,Einstellungen!$K$3,AG36))),Einstellungen!$K$2),"") -> 
A60: Bereitschafts-abzug | B60: 1 | C60: =IF(C20<>"",IF(Einstellungen!$K$6>Einstellungen!$M$6,(IF(C21<Einstellungen!$K$6,0,C21-IF(C20>Einstellungen!$K$6,C20,Einstellungen!$K$6)))+(IF(C21>Einstellungen!$M$6,Einstellungen!$M$6,C21)-C20),IF(OR(C20>Einstellungen!$M$6,C21<Einstellungen!$K$6),0,IF(C21>Einstellungen!$M$6,Einstellungen!$M$6,C21)-IF(C20<Einstellungen!$K$6,Einstellungen!$K$6,C20)))*(1-Einstellungen!$K$7),"") ->  | D60: =IF(D20<>"",IF(Einstellungen!$K$6>Einstellungen!$M$6,(IF(D21<Einstellungen!$K$6,0,D21-IF(D20>Einstellungen!$K$6,D20,Einstellungen!$K$6)))+(IF(D21>Einstellungen!$M$6,Einstellungen!$M$6,D21)-D20),IF(OR(D20>Einstellungen!$M$6,D21<Einstellungen!$K$6),0,IF(D21>Einstellungen!$M$6,Einstellungen!$M$6,D21)-IF(D20<Einstellungen!$K$6,Einstellungen!$K$6,D20)))*(1-Einstellungen!$K$7),"") ->  | E60: =IF(E20<>"",IF(Einstellungen!$K$6>Einstellungen!$M$6,(IF(E21<Einstellungen!$K$6,0,E21-IF(E20>Einstellungen!$K$6,E20,Einstellungen!$K$6)))+(IF(E21>Einstellungen!$M$6,Einstellungen!$M$6,E21)-E20),IF(OR(E20>Einstellungen!$M$6,E21<Einstellungen!$K$6),0,IF(E21>Einstellungen!$M$6,Einstellungen!$M$6,E21)-IF(E20<Einstellungen!$K$6,Einstellungen!$K$6,E20)))*(1-Einstellungen!$K$7),"") ->  | F60: =IF(F20<>"",IF(Einstellungen!$K$6>Einstellungen!$M$6,(IF(F21<Einstellungen!$K$6,0,F21-IF(F20>Einstellungen!$K$6,F20,Einstellungen!$K$6)))+(IF(F21>Einstellungen!$M$6,Einstellungen!$M$6,F21)-F20),IF(OR(F20>Einstellungen!$M$6,F21<Einstellungen!$K$6),0,IF(F21>Einstellungen!$M$6,Einstellungen!$M$6,F21)-IF(F20<Einstellungen!$K$6,Einstellungen!$K$6,F20)))*(1-Einstellungen!$K$7),"") ->  | G60: =IF(G20<>"",IF(Einstellungen!$K$6>Einstellungen!$M$6,(IF(G21<Einstellungen!$K$6,0,G21-IF(G20>Einstellungen!$K$6,G20,Einstellungen!$K$6)))+(IF(G21>Einstellungen!$M$6,Einstellungen!$M$6,G21)-G20),IF(OR(G20>Einstellungen!$M$6,G21<Einstellungen!$K$6),0,IF(G21>Einstellungen!$M$6,Einstellungen!$M$6,G21)-IF(G20<Einstellungen!$K$6,Einstellungen!$K$6,G20)))*(1-Einstellungen!$K$7),"") ->  | H60: =IF(H20<>"",IF(Einstellungen!$K$6>Einstellungen!$M$6,(IF(H21<Einstellungen!$K$6,0,H21-IF(H20>Einstellungen!$K$6,H20,Einstellungen!$K$6)))+(IF(H21>Einstellungen!$M$6,Einstellungen!$M$6,H21)-H20),IF(OR(H20>Einstellungen!$M$6,H21<Einstellungen!$K$6),0,IF(H21>Einstellungen!$M$6,Einstellungen!$M$6,H21)-IF(H20<Einstellungen!$K$6,Einstellungen!$K$6,H20)))*(1-Einstellungen!$K$7),"") ->  | I60: =IF(I20<>"",IF(Einstellungen!$K$6>Einstellungen!$M$6,(IF(I21<Einstellungen!$K$6,0,I21-IF(I20>Einstellungen!$K$6,I20,Einstellungen!$K$6)))+(IF(I21>Einstellungen!$M$6,Einstellungen!$M$6,I21)-I20),IF(OR(I20>Einstellungen!$M$6,I21<Einstellungen!$K$6),0,IF(I21>Einstellungen!$M$6,Einstellungen!$M$6,I21)-IF(I20<Einstellungen!$K$6,Einstellungen!$K$6,I20)))*(1-Einstellungen!$K$7),"") ->  | J60: =IF(J20<>"",IF(Einstellungen!$K$6>Einstellungen!$M$6,(IF(J21<Einstellungen!$K$6,0,J21-IF(J20>Einstellungen!$K$6,J20,Einstellungen!$K$6)))+(IF(J21>Einstellungen!$M$6,Einstellungen!$M$6,J21)-J20),IF(OR(J20>Einstellungen!$M$6,J21<Einstellungen!$K$6),0,IF(J21>Einstellungen!$M$6,Einstellungen!$M$6,J21)-IF(J20<Einstellungen!$K$6,Einstellungen!$K$6,J20)))*(1-Einstellungen!$K$7),"") ->  | K60: =IF(K20<>"",IF(Einstellungen!$K$6>Einstellungen!$M$6,(IF(K21<Einstellungen!$K$6,0,K21-IF(K20>Einstellungen!$K$6,K20,Einstellungen!$K$6)))+(IF(K21>Einstellungen!$M$6,Einstellungen!$M$6,K21)-K20),IF(OR(K20>Einstellungen!$M$6,K21<Einstellungen!$K$6),0,IF(K21>Einstellungen!$M$6,Einstellungen!$M$6,K21)-IF(K20<Einstellungen!$K$6,Einstellungen!$K$6,K20)))*(1-Einstellungen!$K$7),"") ->  | L60: =IF(L20<>"",IF(Einstellungen!$K$6>Einstellungen!$M$6,(IF(L21<Einstellungen!$K$6,0,L21-IF(L20>Einstellungen!$K$6,L20,Einstellungen!$K$6)))+(IF(L21>Einstellungen!$M$6,Einstellungen!$M$6,L21)-L20),IF(OR(L20>Einstellungen!$M$6,L21<Einstellungen!$K$6),0,IF(L21>Einstellungen!$M$6,Einstellungen!$M$6,L21)-IF(L20<Einstellungen!$K$6,Einstellungen!$K$6,L20)))*(1-Einstellungen!$K$7),"") ->  | M60: =IF(M20<>"",IF(Einstellungen!$K$6>Einstellungen!$M$6,(IF(M21<Einstellungen!$K$6,0,M21-IF(M20>Einstellungen!$K$6,M20,Einstellungen!$K$6)))+(IF(M21>Einstellungen!$M$6,Einstellungen!$M$6,M21)-M20),IF(OR(M20>Einstellungen!$M$6,M21<Einstellungen!$K$6),0,IF(M21>Einstellungen!$M$6,Einstellungen!$M$6,M21)-IF(M20<Einstellungen!$K$6,Einstellungen!$K$6,M20)))*(1-Einstellungen!$K$7),"") ->  | N60: =IF(N20<>"",IF(Einstellungen!$K$6>Einstellungen!$M$6,(IF(N21<Einstellungen!$K$6,0,N21-IF(N20>Einstellungen!$K$6,N20,Einstellungen!$K$6)))+(IF(N21>Einstellungen!$M$6,Einstellungen!$M$6,N21)-N20),IF(OR(N20>Einstellungen!$M$6,N21<Einstellungen!$K$6),0,IF(N21>Einstellungen!$M$6,Einstellungen!$M$6,N21)-IF(N20<Einstellungen!$K$6,Einstellungen!$K$6,N20)))*(1-Einstellungen!$K$7),"") ->  | O60: =IF(O20<>"",IF(Einstellungen!$K$6>Einstellungen!$M$6,(IF(O21<Einstellungen!$K$6,0,O21-IF(O20>Einstellungen!$K$6,O20,Einstellungen!$K$6)))+(IF(O21>Einstellungen!$M$6,Einstellungen!$M$6,O21)-O20),IF(OR(O20>Einstellungen!$M$6,O21<Einstellungen!$K$6),0,IF(O21>Einstellungen!$M$6,Einstellungen!$M$6,O21)-IF(O20<Einstellungen!$K$6,Einstellungen!$K$6,O20)))*(1-Einstellungen!$K$7),"") ->  | P60: =IF(P20<>"",IF(Einstellungen!$K$6>Einstellungen!$M$6,(IF(P21<Einstellungen!$K$6,0,P21-IF(P20>Einstellungen!$K$6,P20,Einstellungen!$K$6)))+(IF(P21>Einstellungen!$M$6,Einstellungen!$M$6,P21)-P20),IF(OR(P20>Einstellungen!$M$6,P21<Einstellungen!$K$6),0,IF(P21>Einstellungen!$M$6,Einstellungen!$M$6,P21)-IF(P20<Einstellungen!$K$6,Einstellungen!$K$6,P20)))*(1-Einstellungen!$K$7),"") ->  | Q60: =IF(Q20<>"",IF(Einstellungen!$K$6>Einstellungen!$M$6,(IF(Q21<Einstellungen!$K$6,0,Q21-IF(Q20>Einstellungen!$K$6,Q20,Einstellungen!$K$6)))+(IF(Q21>Einstellungen!$M$6,Einstellungen!$M$6,Q21)-Q20),IF(OR(Q20>Einstellungen!$M$6,Q21<Einstellungen!$K$6),0,IF(Q21>Einstellungen!$M$6,Einstellungen!$M$6,Q21)-IF(Q20<Einstellungen!$K$6,Einstellungen!$K$6,Q20)))*(1-Einstellungen!$K$7),"") ->  | R60: =IF(R20<>"",IF(Einstellungen!$K$6>Einstellungen!$M$6,(IF(R21<Einstellungen!$K$6,0,R21-IF(R20>Einstellungen!$K$6,R20,Einstellungen!$K$6)))+(IF(R21>Einstellungen!$M$6,Einstellungen!$M$6,R21)-R20),IF(OR(R20>Einstellungen!$M$6,R21<Einstellungen!$K$6),0,IF(R21>Einstellungen!$M$6,Einstellungen!$M$6,R21)-IF(R20<Einstellungen!$K$6,Einstellungen!$K$6,R20)))*(1-Einstellungen!$K$7),"") ->  | S60: =IF(S20<>"",IF(Einstellungen!$K$6>Einstellungen!$M$6,(IF(S21<Einstellungen!$K$6,0,S21-IF(S20>Einstellungen!$K$6,S20,Einstellungen!$K$6)))+(IF(S21>Einstellungen!$M$6,Einstellungen!$M$6,S21)-S20),IF(OR(S20>Einstellungen!$M$6,S21<Einstellungen!$K$6),0,IF(S21>Einstellungen!$M$6,Einstellungen!$M$6,S21)-IF(S20<Einstellungen!$K$6,Einstellungen!$K$6,S20)))*(1-Einstellungen!$K$7),"") ->  | T60: =IF(T20<>"",IF(Einstellungen!$K$6>Einstellungen!$M$6,(IF(T21<Einstellungen!$K$6,0,T21-IF(T20>Einstellungen!$K$6,T20,Einstellungen!$K$6)))+(IF(T21>Einstellungen!$M$6,Einstellungen!$M$6,T21)-T20),IF(OR(T20>Einstellungen!$M$6,T21<Einstellungen!$K$6),0,IF(T21>Einstellungen!$M$6,Einstellungen!$M$6,T21)-IF(T20<Einstellungen!$K$6,Einstellungen!$K$6,T20)))*(1-Einstellungen!$K$7),"") ->  | U60: =IF(U20<>"",IF(Einstellungen!$K$6>Einstellungen!$M$6,(IF(U21<Einstellungen!$K$6,0,U21-IF(U20>Einstellungen!$K$6,U20,Einstellungen!$K$6)))+(IF(U21>Einstellungen!$M$6,Einstellungen!$M$6,U21)-U20),IF(OR(U20>Einstellungen!$M$6,U21<Einstellungen!$K$6),0,IF(U21>Einstellungen!$M$6,Einstellungen!$M$6,U21)-IF(U20<Einstellungen!$K$6,Einstellungen!$K$6,U20)))*(1-Einstellungen!$K$7),"") ->  | V60: =IF(V20<>"",IF(Einstellungen!$K$6>Einstellungen!$M$6,(IF(V21<Einstellungen!$K$6,0,V21-IF(V20>Einstellungen!$K$6,V20,Einstellungen!$K$6)))+(IF(V21>Einstellungen!$M$6,Einstellungen!$M$6,V21)-V20),IF(OR(V20>Einstellungen!$M$6,V21<Einstellungen!$K$6),0,IF(V21>Einstellungen!$M$6,Einstellungen!$M$6,V21)-IF(V20<Einstellungen!$K$6,Einstellungen!$K$6,V20)))*(1-Einstellungen!$K$7),"") ->  | W60: =IF(W20<>"",IF(Einstellungen!$K$6>Einstellungen!$M$6,(IF(W21<Einstellungen!$K$6,0,W21-IF(W20>Einstellungen!$K$6,W20,Einstellungen!$K$6)))+(IF(W21>Einstellungen!$M$6,Einstellungen!$M$6,W21)-W20),IF(OR(W20>Einstellungen!$M$6,W21<Einstellungen!$K$6),0,IF(W21>Einstellungen!$M$6,Einstellungen!$M$6,W21)-IF(W20<Einstellungen!$K$6,Einstellungen!$K$6,W20)))*(1-Einstellungen!$K$7),"") ->  | X60: =IF(X20<>"",IF(Einstellungen!$K$6>Einstellungen!$M$6,(IF(X21<Einstellungen!$K$6,0,X21-IF(X20>Einstellungen!$K$6,X20,Einstellungen!$K$6)))+(IF(X21>Einstellungen!$M$6,Einstellungen!$M$6,X21)-X20),IF(OR(X20>Einstellungen!$M$6,X21<Einstellungen!$K$6),0,IF(X21>Einstellungen!$M$6,Einstellungen!$M$6,X21)-IF(X20<Einstellungen!$K$6,Einstellungen!$K$6,X20)))*(1-Einstellungen!$K$7),"") ->  | Y60: =IF(Y20<>"",IF(Einstellungen!$K$6>Einstellungen!$M$6,(IF(Y21<Einstellungen!$K$6,0,Y21-IF(Y20>Einstellungen!$K$6,Y20,Einstellungen!$K$6)))+(IF(Y21>Einstellungen!$M$6,Einstellungen!$M$6,Y21)-Y20),IF(OR(Y20>Einstellungen!$M$6,Y21<Einstellungen!$K$6),0,IF(Y21>Einstellungen!$M$6,Einstellungen!$M$6,Y21)-IF(Y20<Einstellungen!$K$6,Einstellungen!$K$6,Y20)))*(1-Einstellungen!$K$7),"") ->  | Z60: =IF(Z20<>"",IF(Einstellungen!$K$6>Einstellungen!$M$6,(IF(Z21<Einstellungen!$K$6,0,Z21-IF(Z20>Einstellungen!$K$6,Z20,Einstellungen!$K$6)))+(IF(Z21>Einstellungen!$M$6,Einstellungen!$M$6,Z21)-Z20),IF(OR(Z20>Einstellungen!$M$6,Z21<Einstellungen!$K$6),0,IF(Z21>Einstellungen!$M$6,Einstellungen!$M$6,Z21)-IF(Z20<Einstellungen!$K$6,Einstellungen!$K$6,Z20)))*(1-Einstellungen!$K$7),"") ->  | AA60: =IF(AA20<>"",IF(Einstellungen!$K$6>Einstellungen!$M$6,(IF(AA21<Einstellungen!$K$6,0,AA21-IF(AA20>Einstellungen!$K$6,AA20,Einstellungen!$K$6)))+(IF(AA21>Einstellungen!$M$6,Einstellungen!$M$6,AA21)-AA20),IF(OR(AA20>Einstellungen!$M$6,AA21<Einstellungen!$K$6),0,IF(AA21>Einstellungen!$M$6,Einstellungen!$M$6,AA21)-IF(AA20<Einstellungen!$K$6,Einstellungen!$K$6,AA20)))*(1-Einstellungen!$K$7),"") ->  | AB60: =IF(AB20<>"",IF(Einstellungen!$K$6>Einstellungen!$M$6,(IF(AB21<Einstellungen!$K$6,0,AB21-IF(AB20>Einstellungen!$K$6,AB20,Einstellungen!$K$6)))+(IF(AB21>Einstellungen!$M$6,Einstellungen!$M$6,AB21)-AB20),IF(OR(AB20>Einstellungen!$M$6,AB21<Einstellungen!$K$6),0,IF(AB21>Einstellungen!$M$6,Einstellungen!$M$6,AB21)-IF(AB20<Einstellungen!$K$6,Einstellungen!$K$6,AB20)))*(1-Einstellungen!$K$7),"") ->  | AC60: =IF(AC20<>"",IF(Einstellungen!$K$6>Einstellungen!$M$6,(IF(AC21<Einstellungen!$K$6,0,AC21-IF(AC20>Einstellungen!$K$6,AC20,Einstellungen!$K$6)))+(IF(AC21>Einstellungen!$M$6,Einstellungen!$M$6,AC21)-AC20),IF(OR(AC20>Einstellungen!$M$6,AC21<Einstellungen!$K$6),0,IF(AC21>Einstellungen!$M$6,Einstellungen!$M$6,AC21)-IF(AC20<Einstellungen!$K$6,Einstellungen!$K$6,AC20)))*(1-Einstellungen!$K$7),"") ->  | AD60: =IF(AD20<>"",IF(Einstellungen!$K$6>Einstellungen!$M$6,(IF(AD21<Einstellungen!$K$6,0,AD21-IF(AD20>Einstellungen!$K$6,AD20,Einstellungen!$K$6)))+(IF(AD21>Einstellungen!$M$6,Einstellungen!$M$6,AD21)-AD20),IF(OR(AD20>Einstellungen!$M$6,AD21<Einstellungen!$K$6),0,IF(AD21>Einstellungen!$M$6,Einstellungen!$M$6,AD21)-IF(AD20<Einstellungen!$K$6,Einstellungen!$K$6,AD20)))*(1-Einstellungen!$K$7),"") ->  | AE60: =IF(AE20<>"",IF(Einstellungen!$K$6>Einstellungen!$M$6,(IF(AE21<Einstellungen!$K$6,0,AE21-IF(AE20>Einstellungen!$K$6,AE20,Einstellungen!$K$6)))+(IF(AE21>Einstellungen!$M$6,Einstellungen!$M$6,AE21)-AE20),IF(OR(AE20>Einstellungen!$M$6,AE21<Einstellungen!$K$6),0,IF(AE21>Einstellungen!$M$6,Einstellungen!$M$6,AE21)-IF(AE20<Einstellungen!$K$6,Einstellungen!$K$6,AE20)))*(1-Einstellungen!$K$7),"") ->  | AF60: =IF(AF20<>"",IF(Einstellungen!$K$6>Einstellungen!$M$6,(IF(AF21<Einstellungen!$K$6,0,AF21-IF(AF20>Einstellungen!$K$6,AF20,Einstellungen!$K$6)))+(IF(AF21>Einstellungen!$M$6,Einstellungen!$M$6,AF21)-AF20),IF(OR(AF20>Einstellungen!$M$6,AF21<Einstellungen!$K$6),0,IF(AF21>Einstellungen!$M$6,Einstellungen!$M$6,AF21)-IF(AF20<Einstellungen!$K$6,Einstellungen!$K$6,AF20)))*(1-Einstellungen!$K$7),"") ->  | AG60: =IF(AG20<>"",IF(Einstellungen!$K$6>Einstellungen!$M$6,(IF(AG21<Einstellungen!$K$6,0,AG21-IF(AG20>Einstellungen!$K$6,AG20,Einstellungen!$K$6)))+(IF(AG21>Einstellungen!$M$6,Einstellungen!$M$6,AG21)-AG20),IF(OR(AG20>Einstellungen!$M$6,AG21<Einstellungen!$K$6),0,IF(AG21>Einstellungen!$M$6,Einstellungen!$M$6,AG21)-IF(AG20<Einstellungen!$K$6,Einstellungen!$K$6,AG20)))*(1-Einstellungen!$K$7),"") -> 
B61: =IF(Einstellungen!$B$5>1,"2","") -> 2 | C61: =IF(C24<>"",IF(Einstellungen!$K$6>Einstellungen!$M$6,(IF(C25<Einstellungen!$K$6,0,C25-IF(C24>Einstellungen!$K$6,C24,Einstellungen!$K$6)))+(IF(C25>Einstellungen!$M$6,Einstellungen!$M$6,C25)-C24),IF(OR(C24>Einstellungen!$M$6,C25<Einstellungen!$K$6),0,IF(C25>Einstellungen!$M$6,Einstellungen!$M$6,C25)-IF(C24<Einstellungen!$K$6,Einstellungen!$K$6,C24)))*(1-Einstellungen!$K$7),"") ->  | D61: =IF(D24<>"",IF(Einstellungen!$K$6>Einstellungen!$M$6,(IF(D25<Einstellungen!$K$6,0,D25-IF(D24>Einstellungen!$K$6,D24,Einstellungen!$K$6)))+(IF(D25>Einstellungen!$M$6,Einstellungen!$M$6,D25)-D24),IF(OR(D24>Einstellungen!$M$6,D25<Einstellungen!$K$6),0,IF(D25>Einstellungen!$M$6,Einstellungen!$M$6,D25)-IF(D24<Einstellungen!$K$6,Einstellungen!$K$6,D24)))*(1-Einstellungen!$K$7),"") ->  | E61: =IF(E24<>"",IF(Einstellungen!$K$6>Einstellungen!$M$6,(IF(E25<Einstellungen!$K$6,0,E25-IF(E24>Einstellungen!$K$6,E24,Einstellungen!$K$6)))+(IF(E25>Einstellungen!$M$6,Einstellungen!$M$6,E25)-E24),IF(OR(E24>Einstellungen!$M$6,E25<Einstellungen!$K$6),0,IF(E25>Einstellungen!$M$6,Einstellungen!$M$6,E25)-IF(E24<Einstellungen!$K$6,Einstellungen!$K$6,E24)))*(1-Einstellungen!$K$7),"") ->  | F61: =IF(F24<>"",IF(Einstellungen!$K$6>Einstellungen!$M$6,(IF(F25<Einstellungen!$K$6,0,F25-IF(F24>Einstellungen!$K$6,F24,Einstellungen!$K$6)))+(IF(F25>Einstellungen!$M$6,Einstellungen!$M$6,F25)-F24),IF(OR(F24>Einstellungen!$M$6,F25<Einstellungen!$K$6),0,IF(F25>Einstellungen!$M$6,Einstellungen!$M$6,F25)-IF(F24<Einstellungen!$K$6,Einstellungen!$K$6,F24)))*(1-Einstellungen!$K$7),"") ->  | G61: =IF(G24<>"",IF(Einstellungen!$K$6>Einstellungen!$M$6,(IF(G25<Einstellungen!$K$6,0,G25-IF(G24>Einstellungen!$K$6,G24,Einstellungen!$K$6)))+(IF(G25>Einstellungen!$M$6,Einstellungen!$M$6,G25)-G24),IF(OR(G24>Einstellungen!$M$6,G25<Einstellungen!$K$6),0,IF(G25>Einstellungen!$M$6,Einstellungen!$M$6,G25)-IF(G24<Einstellungen!$K$6,Einstellungen!$K$6,G24)))*(1-Einstellungen!$K$7),"") ->  | H61: =IF(H24<>"",IF(Einstellungen!$K$6>Einstellungen!$M$6,(IF(H25<Einstellungen!$K$6,0,H25-IF(H24>Einstellungen!$K$6,H24,Einstellungen!$K$6)))+(IF(H25>Einstellungen!$M$6,Einstellungen!$M$6,H25)-H24),IF(OR(H24>Einstellungen!$M$6,H25<Einstellungen!$K$6),0,IF(H25>Einstellungen!$M$6,Einstellungen!$M$6,H25)-IF(H24<Einstellungen!$K$6,Einstellungen!$K$6,H24)))*(1-Einstellungen!$K$7),"") ->  | I61: =IF(I24<>"",IF(Einstellungen!$K$6>Einstellungen!$M$6,(IF(I25<Einstellungen!$K$6,0,I25-IF(I24>Einstellungen!$K$6,I24,Einstellungen!$K$6)))+(IF(I25>Einstellungen!$M$6,Einstellungen!$M$6,I25)-I24),IF(OR(I24>Einstellungen!$M$6,I25<Einstellungen!$K$6),0,IF(I25>Einstellungen!$M$6,Einstellungen!$M$6,I25)-IF(I24<Einstellungen!$K$6,Einstellungen!$K$6,I24)))*(1-Einstellungen!$K$7),"") ->  | J61: =IF(J24<>"",IF(Einstellungen!$K$6>Einstellungen!$M$6,(IF(J25<Einstellungen!$K$6,0,J25-IF(J24>Einstellungen!$K$6,J24,Einstellungen!$K$6)))+(IF(J25>Einstellungen!$M$6,Einstellungen!$M$6,J25)-J24),IF(OR(J24>Einstellungen!$M$6,J25<Einstellungen!$K$6),0,IF(J25>Einstellungen!$M$6,Einstellungen!$M$6,J25)-IF(J24<Einstellungen!$K$6,Einstellungen!$K$6,J24)))*(1-Einstellungen!$K$7),"") ->  | K61: =IF(K24<>"",IF(Einstellungen!$K$6>Einstellungen!$M$6,(IF(K25<Einstellungen!$K$6,0,K25-IF(K24>Einstellungen!$K$6,K24,Einstellungen!$K$6)))+(IF(K25>Einstellungen!$M$6,Einstellungen!$M$6,K25)-K24),IF(OR(K24>Einstellungen!$M$6,K25<Einstellungen!$K$6),0,IF(K25>Einstellungen!$M$6,Einstellungen!$M$6,K25)-IF(K24<Einstellungen!$K$6,Einstellungen!$K$6,K24)))*(1-Einstellungen!$K$7),"") ->  | L61: =IF(L24<>"",IF(Einstellungen!$K$6>Einstellungen!$M$6,(IF(L25<Einstellungen!$K$6,0,L25-IF(L24>Einstellungen!$K$6,L24,Einstellungen!$K$6)))+(IF(L25>Einstellungen!$M$6,Einstellungen!$M$6,L25)-L24),IF(OR(L24>Einstellungen!$M$6,L25<Einstellungen!$K$6),0,IF(L25>Einstellungen!$M$6,Einstellungen!$M$6,L25)-IF(L24<Einstellungen!$K$6,Einstellungen!$K$6,L24)))*(1-Einstellungen!$K$7),"") ->  | M61: =IF(M24<>"",IF(Einstellungen!$K$6>Einstellungen!$M$6,(IF(M25<Einstellungen!$K$6,0,M25-IF(M24>Einstellungen!$K$6,M24,Einstellungen!$K$6)))+(IF(M25>Einstellungen!$M$6,Einstellungen!$M$6,M25)-M24),IF(OR(M24>Einstellungen!$M$6,M25<Einstellungen!$K$6),0,IF(M25>Einstellungen!$M$6,Einstellungen!$M$6,M25)-IF(M24<Einstellungen!$K$6,Einstellungen!$K$6,M24)))*(1-Einstellungen!$K$7),"") ->  | N61: =IF(N24<>"",IF(Einstellungen!$K$6>Einstellungen!$M$6,(IF(N25<Einstellungen!$K$6,0,N25-IF(N24>Einstellungen!$K$6,N24,Einstellungen!$K$6)))+(IF(N25>Einstellungen!$M$6,Einstellungen!$M$6,N25)-N24),IF(OR(N24>Einstellungen!$M$6,N25<Einstellungen!$K$6),0,IF(N25>Einstellungen!$M$6,Einstellungen!$M$6,N25)-IF(N24<Einstellungen!$K$6,Einstellungen!$K$6,N24)))*(1-Einstellungen!$K$7),"") ->  | O61: =IF(O24<>"",IF(Einstellungen!$K$6>Einstellungen!$M$6,(IF(O25<Einstellungen!$K$6,0,O25-IF(O24>Einstellungen!$K$6,O24,Einstellungen!$K$6)))+(IF(O25>Einstellungen!$M$6,Einstellungen!$M$6,O25)-O24),IF(OR(O24>Einstellungen!$M$6,O25<Einstellungen!$K$6),0,IF(O25>Einstellungen!$M$6,Einstellungen!$M$6,O25)-IF(O24<Einstellungen!$K$6,Einstellungen!$K$6,O24)))*(1-Einstellungen!$K$7),"") ->  | P61: =IF(P24<>"",IF(Einstellungen!$K$6>Einstellungen!$M$6,(IF(P25<Einstellungen!$K$6,0,P25-IF(P24>Einstellungen!$K$6,P24,Einstellungen!$K$6)))+(IF(P25>Einstellungen!$M$6,Einstellungen!$M$6,P25)-P24),IF(OR(P24>Einstellungen!$M$6,P25<Einstellungen!$K$6),0,IF(P25>Einstellungen!$M$6,Einstellungen!$M$6,P25)-IF(P24<Einstellungen!$K$6,Einstellungen!$K$6,P24)))*(1-Einstellungen!$K$7),"") ->  | Q61: =IF(Q24<>"",IF(Einstellungen!$K$6>Einstellungen!$M$6,(IF(Q25<Einstellungen!$K$6,0,Q25-IF(Q24>Einstellungen!$K$6,Q24,Einstellungen!$K$6)))+(IF(Q25>Einstellungen!$M$6,Einstellungen!$M$6,Q25)-Q24),IF(OR(Q24>Einstellungen!$M$6,Q25<Einstellungen!$K$6),0,IF(Q25>Einstellungen!$M$6,Einstellungen!$M$6,Q25)-IF(Q24<Einstellungen!$K$6,Einstellungen!$K$6,Q24)))*(1-Einstellungen!$K$7),"") ->  | R61: =IF(R24<>"",IF(Einstellungen!$K$6>Einstellungen!$M$6,(IF(R25<Einstellungen!$K$6,0,R25-IF(R24>Einstellungen!$K$6,R24,Einstellungen!$K$6)))+(IF(R25>Einstellungen!$M$6,Einstellungen!$M$6,R25)-R24),IF(OR(R24>Einstellungen!$M$6,R25<Einstellungen!$K$6),0,IF(R25>Einstellungen!$M$6,Einstellungen!$M$6,R25)-IF(R24<Einstellungen!$K$6,Einstellungen!$K$6,R24)))*(1-Einstellungen!$K$7),"") ->  | S61: =IF(S24<>"",IF(Einstellungen!$K$6>Einstellungen!$M$6,(IF(S25<Einstellungen!$K$6,0,S25-IF(S24>Einstellungen!$K$6,S24,Einstellungen!$K$6)))+(IF(S25>Einstellungen!$M$6,Einstellungen!$M$6,S25)-S24),IF(OR(S24>Einstellungen!$M$6,S25<Einstellungen!$K$6),0,IF(S25>Einstellungen!$M$6,Einstellungen!$M$6,S25)-IF(S24<Einstellungen!$K$6,Einstellungen!$K$6,S24)))*(1-Einstellungen!$K$7),"") ->  | T61: =IF(T24<>"",IF(Einstellungen!$K$6>Einstellungen!$M$6,(IF(T25<Einstellungen!$K$6,0,T25-IF(T24>Einstellungen!$K$6,T24,Einstellungen!$K$6)))+(IF(T25>Einstellungen!$M$6,Einstellungen!$M$6,T25)-T24),IF(OR(T24>Einstellungen!$M$6,T25<Einstellungen!$K$6),0,IF(T25>Einstellungen!$M$6,Einstellungen!$M$6,T25)-IF(T24<Einstellungen!$K$6,Einstellungen!$K$6,T24)))*(1-Einstellungen!$K$7),"") ->  | U61: =IF(U24<>"",IF(Einstellungen!$K$6>Einstellungen!$M$6,(IF(U25<Einstellungen!$K$6,0,U25-IF(U24>Einstellungen!$K$6,U24,Einstellungen!$K$6)))+(IF(U25>Einstellungen!$M$6,Einstellungen!$M$6,U25)-U24),IF(OR(U24>Einstellungen!$M$6,U25<Einstellungen!$K$6),0,IF(U25>Einstellungen!$M$6,Einstellungen!$M$6,U25)-IF(U24<Einstellungen!$K$6,Einstellungen!$K$6,U24)))*(1-Einstellungen!$K$7),"") ->  | V61: =IF(V24<>"",IF(Einstellungen!$K$6>Einstellungen!$M$6,(IF(V25<Einstellungen!$K$6,0,V25-IF(V24>Einstellungen!$K$6,V24,Einstellungen!$K$6)))+(IF(V25>Einstellungen!$M$6,Einstellungen!$M$6,V25)-V24),IF(OR(V24>Einstellungen!$M$6,V25<Einstellungen!$K$6),0,IF(V25>Einstellungen!$M$6,Einstellungen!$M$6,V25)-IF(V24<Einstellungen!$K$6,Einstellungen!$K$6,V24)))*(1-Einstellungen!$K$7),"") ->  | W61: =IF(W24<>"",IF(Einstellungen!$K$6>Einstellungen!$M$6,(IF(W25<Einstellungen!$K$6,0,W25-IF(W24>Einstellungen!$K$6,W24,Einstellungen!$K$6)))+(IF(W25>Einstellungen!$M$6,Einstellungen!$M$6,W25)-W24),IF(OR(W24>Einstellungen!$M$6,W25<Einstellungen!$K$6),0,IF(W25>Einstellungen!$M$6,Einstellungen!$M$6,W25)-IF(W24<Einstellungen!$K$6,Einstellungen!$K$6,W24)))*(1-Einstellungen!$K$7),"") ->  | X61: =IF(X24<>"",IF(Einstellungen!$K$6>Einstellungen!$M$6,(IF(X25<Einstellungen!$K$6,0,X25-IF(X24>Einstellungen!$K$6,X24,Einstellungen!$K$6)))+(IF(X25>Einstellungen!$M$6,Einstellungen!$M$6,X25)-X24),IF(OR(X24>Einstellungen!$M$6,X25<Einstellungen!$K$6),0,IF(X25>Einstellungen!$M$6,Einstellungen!$M$6,X25)-IF(X24<Einstellungen!$K$6,Einstellungen!$K$6,X24)))*(1-Einstellungen!$K$7),"") ->  | Y61: =IF(Y24<>"",IF(Einstellungen!$K$6>Einstellungen!$M$6,(IF(Y25<Einstellungen!$K$6,0,Y25-IF(Y24>Einstellungen!$K$6,Y24,Einstellungen!$K$6)))+(IF(Y25>Einstellungen!$M$6,Einstellungen!$M$6,Y25)-Y24),IF(OR(Y24>Einstellungen!$M$6,Y25<Einstellungen!$K$6),0,IF(Y25>Einstellungen!$M$6,Einstellungen!$M$6,Y25)-IF(Y24<Einstellungen!$K$6,Einstellungen!$K$6,Y24)))*(1-Einstellungen!$K$7),"") ->  | Z61: =IF(Z24<>"",IF(Einstellungen!$K$6>Einstellungen!$M$6,(IF(Z25<Einstellungen!$K$6,0,Z25-IF(Z24>Einstellungen!$K$6,Z24,Einstellungen!$K$6)))+(IF(Z25>Einstellungen!$M$6,Einstellungen!$M$6,Z25)-Z24),IF(OR(Z24>Einstellungen!$M$6,Z25<Einstellungen!$K$6),0,IF(Z25>Einstellungen!$M$6,Einstellungen!$M$6,Z25)-IF(Z24<Einstellungen!$K$6,Einstellungen!$K$6,Z24)))*(1-Einstellungen!$K$7),"") ->  | AA61: =IF(AA24<>"",IF(Einstellungen!$K$6>Einstellungen!$M$6,(IF(AA25<Einstellungen!$K$6,0,AA25-IF(AA24>Einstellungen!$K$6,AA24,Einstellungen!$K$6)))+(IF(AA25>Einstellungen!$M$6,Einstellungen!$M$6,AA25)-AA24),IF(OR(AA24>Einstellungen!$M$6,AA25<Einstellungen!$K$6),0,IF(AA25>Einstellungen!$M$6,Einstellungen!$M$6,AA25)-IF(AA24<Einstellungen!$K$6,Einstellungen!$K$6,AA24)))*(1-Einstellungen!$K$7),"") ->  | AB61: =IF(AB24<>"",IF(Einstellungen!$K$6>Einstellungen!$M$6,(IF(AB25<Einstellungen!$K$6,0,AB25-IF(AB24>Einstellungen!$K$6,AB24,Einstellungen!$K$6)))+(IF(AB25>Einstellungen!$M$6,Einstellungen!$M$6,AB25)-AB24),IF(OR(AB24>Einstellungen!$M$6,AB25<Einstellungen!$K$6),0,IF(AB25>Einstellungen!$M$6,Einstellungen!$M$6,AB25)-IF(AB24<Einstellungen!$K$6,Einstellungen!$K$6,AB24)))*(1-Einstellungen!$K$7),"") ->  | AC61: =IF(AC24<>"",IF(Einstellungen!$K$6>Einstellungen!$M$6,(IF(AC25<Einstellungen!$K$6,0,AC25-IF(AC24>Einstellungen!$K$6,AC24,Einstellungen!$K$6)))+(IF(AC25>Einstellungen!$M$6,Einstellungen!$M$6,AC25)-AC24),IF(OR(AC24>Einstellungen!$M$6,AC25<Einstellungen!$K$6),0,IF(AC25>Einstellungen!$M$6,Einstellungen!$M$6,AC25)-IF(AC24<Einstellungen!$K$6,Einstellungen!$K$6,AC24)))*(1-Einstellungen!$K$7),"") ->  | AD61: =IF(AD24<>"",IF(Einstellungen!$K$6>Einstellungen!$M$6,(IF(AD25<Einstellungen!$K$6,0,AD25-IF(AD24>Einstellungen!$K$6,AD24,Einstellungen!$K$6)))+(IF(AD25>Einstellungen!$M$6,Einstellungen!$M$6,AD25)-AD24),IF(OR(AD24>Einstellungen!$M$6,AD25<Einstellungen!$K$6),0,IF(AD25>Einstellungen!$M$6,Einstellungen!$M$6,AD25)-IF(AD24<Einstellungen!$K$6,Einstellungen!$K$6,AD24)))*(1-Einstellungen!$K$7),"") ->  | AE61: =IF(AE24<>"",IF(Einstellungen!$K$6>Einstellungen!$M$6,(IF(AE25<Einstellungen!$K$6,0,AE25-IF(AE24>Einstellungen!$K$6,AE24,Einstellungen!$K$6)))+(IF(AE25>Einstellungen!$M$6,Einstellungen!$M$6,AE25)-AE24),IF(OR(AE24>Einstellungen!$M$6,AE25<Einstellungen!$K$6),0,IF(AE25>Einstellungen!$M$6,Einstellungen!$M$6,AE25)-IF(AE24<Einstellungen!$K$6,Einstellungen!$K$6,AE24)))*(1-Einstellungen!$K$7),"") ->  | AF61: =IF(AF24<>"",IF(Einstellungen!$K$6>Einstellungen!$M$6,(IF(AF25<Einstellungen!$K$6,0,AF25-IF(AF24>Einstellungen!$K$6,AF24,Einstellungen!$K$6)))+(IF(AF25>Einstellungen!$M$6,Einstellungen!$M$6,AF25)-AF24),IF(OR(AF24>Einstellungen!$M$6,AF25<Einstellungen!$K$6),0,IF(AF25>Einstellungen!$M$6,Einstellungen!$M$6,AF25)-IF(AF24<Einstellungen!$K$6,Einstellungen!$K$6,AF24)))*(1-Einstellungen!$K$7),"") ->  | AG61: =IF(AG24<>"",IF(Einstellungen!$K$6>Einstellungen!$M$6,(IF(AG25<Einstellungen!$K$6,0,AG25-IF(AG24>Einstellungen!$K$6,AG24,Einstellungen!$K$6)))+(IF(AG25>Einstellungen!$M$6,Einstellungen!$M$6,AG25)-AG24),IF(OR(AG24>Einstellungen!$M$6,AG25<Einstellungen!$K$6),0,IF(AG25>Einstellungen!$M$6,Einstellungen!$M$6,AG25)-IF(AG24<Einstellungen!$K$6,Einstellungen!$K$6,AG24)))*(1-Einstellungen!$K$7),"") -> 
B62: =IF(Einstellungen!$B$5>2,"3","") -> 3 | C62: =IF(C28<>"",IF(Einstellungen!$K$6>Einstellungen!$M$6,(IF(C29<Einstellungen!$K$6,0,C29-IF(C28>Einstellungen!$K$6,C28,Einstellungen!$K$6)))+(IF(C29>Einstellungen!$M$6,Einstellungen!$M$6,C29)-C28),IF(OR(C28>Einstellungen!$M$6,C29<Einstellungen!$K$6),0,IF(C29>Einstellungen!$M$6,Einstellungen!$M$6,C29)-IF(C28<Einstellungen!$K$6,Einstellungen!$K$6,C28)))*(1-Einstellungen!$K$7),"") ->  | D62: =IF(D28<>"",IF(Einstellungen!$K$6>Einstellungen!$M$6,(IF(D29<Einstellungen!$K$6,0,D29-IF(D28>Einstellungen!$K$6,D28,Einstellungen!$K$6)))+(IF(D29>Einstellungen!$M$6,Einstellungen!$M$6,D29)-D28),IF(OR(D28>Einstellungen!$M$6,D29<Einstellungen!$K$6),0,IF(D29>Einstellungen!$M$6,Einstellungen!$M$6,D29)-IF(D28<Einstellungen!$K$6,Einstellungen!$K$6,D28)))*(1-Einstellungen!$K$7),"") ->  | E62: =IF(E28<>"",IF(Einstellungen!$K$6>Einstellungen!$M$6,(IF(E29<Einstellungen!$K$6,0,E29-IF(E28>Einstellungen!$K$6,E28,Einstellungen!$K$6)))+(IF(E29>Einstellungen!$M$6,Einstellungen!$M$6,E29)-E28),IF(OR(E28>Einstellungen!$M$6,E29<Einstellungen!$K$6),0,IF(E29>Einstellungen!$M$6,Einstellungen!$M$6,E29)-IF(E28<Einstellungen!$K$6,Einstellungen!$K$6,E28)))*(1-Einstellungen!$K$7),"") ->  | F62: =IF(F28<>"",IF(Einstellungen!$K$6>Einstellungen!$M$6,(IF(F29<Einstellungen!$K$6,0,F29-IF(F28>Einstellungen!$K$6,F28,Einstellungen!$K$6)))+(IF(F29>Einstellungen!$M$6,Einstellungen!$M$6,F29)-F28),IF(OR(F28>Einstellungen!$M$6,F29<Einstellungen!$K$6),0,IF(F29>Einstellungen!$M$6,Einstellungen!$M$6,F29)-IF(F28<Einstellungen!$K$6,Einstellungen!$K$6,F28)))*(1-Einstellungen!$K$7),"") ->  | G62: =IF(G28<>"",IF(Einstellungen!$K$6>Einstellungen!$M$6,(IF(G29<Einstellungen!$K$6,0,G29-IF(G28>Einstellungen!$K$6,G28,Einstellungen!$K$6)))+(IF(G29>Einstellungen!$M$6,Einstellungen!$M$6,G29)-G28),IF(OR(G28>Einstellungen!$M$6,G29<Einstellungen!$K$6),0,IF(G29>Einstellungen!$M$6,Einstellungen!$M$6,G29)-IF(G28<Einstellungen!$K$6,Einstellungen!$K$6,G28)))*(1-Einstellungen!$K$7),"") ->  | H62: =IF(H28<>"",IF(Einstellungen!$K$6>Einstellungen!$M$6,(IF(H29<Einstellungen!$K$6,0,H29-IF(H28>Einstellungen!$K$6,H28,Einstellungen!$K$6)))+(IF(H29>Einstellungen!$M$6,Einstellungen!$M$6,H29)-H28),IF(OR(H28>Einstellungen!$M$6,H29<Einstellungen!$K$6),0,IF(H29>Einstellungen!$M$6,Einstellungen!$M$6,H29)-IF(H28<Einstellungen!$K$6,Einstellungen!$K$6,H28)))*(1-Einstellungen!$K$7),"") ->  | I62: =IF(I28<>"",IF(Einstellungen!$K$6>Einstellungen!$M$6,(IF(I29<Einstellungen!$K$6,0,I29-IF(I28>Einstellungen!$K$6,I28,Einstellungen!$K$6)))+(IF(I29>Einstellungen!$M$6,Einstellungen!$M$6,I29)-I28),IF(OR(I28>Einstellungen!$M$6,I29<Einstellungen!$K$6),0,IF(I29>Einstellungen!$M$6,Einstellungen!$M$6,I29)-IF(I28<Einstellungen!$K$6,Einstellungen!$K$6,I28)))*(1-Einstellungen!$K$7),"") ->  | J62: =IF(J28<>"",IF(Einstellungen!$K$6>Einstellungen!$M$6,(IF(J29<Einstellungen!$K$6,0,J29-IF(J28>Einstellungen!$K$6,J28,Einstellungen!$K$6)))+(IF(J29>Einstellungen!$M$6,Einstellungen!$M$6,J29)-J28),IF(OR(J28>Einstellungen!$M$6,J29<Einstellungen!$K$6),0,IF(J29>Einstellungen!$M$6,Einstellungen!$M$6,J29)-IF(J28<Einstellungen!$K$6,Einstellungen!$K$6,J28)))*(1-Einstellungen!$K$7),"") ->  | K62: =IF(K28<>"",IF(Einstellungen!$K$6>Einstellungen!$M$6,(IF(K29<Einstellungen!$K$6,0,K29-IF(K28>Einstellungen!$K$6,K28,Einstellungen!$K$6)))+(IF(K29>Einstellungen!$M$6,Einstellungen!$M$6,K29)-K28),IF(OR(K28>Einstellungen!$M$6,K29<Einstellungen!$K$6),0,IF(K29>Einstellungen!$M$6,Einstellungen!$M$6,K29)-IF(K28<Einstellungen!$K$6,Einstellungen!$K$6,K28)))*(1-Einstellungen!$K$7),"") ->  | L62: =IF(L28<>"",IF(Einstellungen!$K$6>Einstellungen!$M$6,(IF(L29<Einstellungen!$K$6,0,L29-IF(L28>Einstellungen!$K$6,L28,Einstellungen!$K$6)))+(IF(L29>Einstellungen!$M$6,Einstellungen!$M$6,L29)-L28),IF(OR(L28>Einstellungen!$M$6,L29<Einstellungen!$K$6),0,IF(L29>Einstellungen!$M$6,Einstellungen!$M$6,L29)-IF(L28<Einstellungen!$K$6,Einstellungen!$K$6,L28)))*(1-Einstellungen!$K$7),"") ->  | M62: =IF(M28<>"",IF(Einstellungen!$K$6>Einstellungen!$M$6,(IF(M29<Einstellungen!$K$6,0,M29-IF(M28>Einstellungen!$K$6,M28,Einstellungen!$K$6)))+(IF(M29>Einstellungen!$M$6,Einstellungen!$M$6,M29)-M28),IF(OR(M28>Einstellungen!$M$6,M29<Einstellungen!$K$6),0,IF(M29>Einstellungen!$M$6,Einstellungen!$M$6,M29)-IF(M28<Einstellungen!$K$6,Einstellungen!$K$6,M28)))*(1-Einstellungen!$K$7),"") ->  | N62: =IF(N28<>"",IF(Einstellungen!$K$6>Einstellungen!$M$6,(IF(N29<Einstellungen!$K$6,0,N29-IF(N28>Einstellungen!$K$6,N28,Einstellungen!$K$6)))+(IF(N29>Einstellungen!$M$6,Einstellungen!$M$6,N29)-N28),IF(OR(N28>Einstellungen!$M$6,N29<Einstellungen!$K$6),0,IF(N29>Einstellungen!$M$6,Einstellungen!$M$6,N29)-IF(N28<Einstellungen!$K$6,Einstellungen!$K$6,N28)))*(1-Einstellungen!$K$7),"") ->  | O62: =IF(O28<>"",IF(Einstellungen!$K$6>Einstellungen!$M$6,(IF(O29<Einstellungen!$K$6,0,O29-IF(O28>Einstellungen!$K$6,O28,Einstellungen!$K$6)))+(IF(O29>Einstellungen!$M$6,Einstellungen!$M$6,O29)-O28),IF(OR(O28>Einstellungen!$M$6,O29<Einstellungen!$K$6),0,IF(O29>Einstellungen!$M$6,Einstellungen!$M$6,O29)-IF(O28<Einstellungen!$K$6,Einstellungen!$K$6,O28)))*(1-Einstellungen!$K$7),"") ->  | P62: =IF(P28<>"",IF(Einstellungen!$K$6>Einstellungen!$M$6,(IF(P29<Einstellungen!$K$6,0,P29-IF(P28>Einstellungen!$K$6,P28,Einstellungen!$K$6)))+(IF(P29>Einstellungen!$M$6,Einstellungen!$M$6,P29)-P28),IF(OR(P28>Einstellungen!$M$6,P29<Einstellungen!$K$6),0,IF(P29>Einstellungen!$M$6,Einstellungen!$M$6,P29)-IF(P28<Einstellungen!$K$6,Einstellungen!$K$6,P28)))*(1-Einstellungen!$K$7),"") ->  | Q62: =IF(Q28<>"",IF(Einstellungen!$K$6>Einstellungen!$M$6,(IF(Q29<Einstellungen!$K$6,0,Q29-IF(Q28>Einstellungen!$K$6,Q28,Einstellungen!$K$6)))+(IF(Q29>Einstellungen!$M$6,Einstellungen!$M$6,Q29)-Q28),IF(OR(Q28>Einstellungen!$M$6,Q29<Einstellungen!$K$6),0,IF(Q29>Einstellungen!$M$6,Einstellungen!$M$6,Q29)-IF(Q28<Einstellungen!$K$6,Einstellungen!$K$6,Q28)))*(1-Einstellungen!$K$7),"") ->  | R62: =IF(R28<>"",IF(Einstellungen!$K$6>Einstellungen!$M$6,(IF(R29<Einstellungen!$K$6,0,R29-IF(R28>Einstellungen!$K$6,R28,Einstellungen!$K$6)))+(IF(R29>Einstellungen!$M$6,Einstellungen!$M$6,R29)-R28),IF(OR(R28>Einstellungen!$M$6,R29<Einstellungen!$K$6),0,IF(R29>Einstellungen!$M$6,Einstellungen!$M$6,R29)-IF(R28<Einstellungen!$K$6,Einstellungen!$K$6,R28)))*(1-Einstellungen!$K$7),"") ->  | S62: =IF(S28<>"",IF(Einstellungen!$K$6>Einstellungen!$M$6,(IF(S29<Einstellungen!$K$6,0,S29-IF(S28>Einstellungen!$K$6,S28,Einstellungen!$K$6)))+(IF(S29>Einstellungen!$M$6,Einstellungen!$M$6,S29)-S28),IF(OR(S28>Einstellungen!$M$6,S29<Einstellungen!$K$6),0,IF(S29>Einstellungen!$M$6,Einstellungen!$M$6,S29)-IF(S28<Einstellungen!$K$6,Einstellungen!$K$6,S28)))*(1-Einstellungen!$K$7),"") ->  | T62: =IF(T28<>"",IF(Einstellungen!$K$6>Einstellungen!$M$6,(IF(T29<Einstellungen!$K$6,0,T29-IF(T28>Einstellungen!$K$6,T28,Einstellungen!$K$6)))+(IF(T29>Einstellungen!$M$6,Einstellungen!$M$6,T29)-T28),IF(OR(T28>Einstellungen!$M$6,T29<Einstellungen!$K$6),0,IF(T29>Einstellungen!$M$6,Einstellungen!$M$6,T29)-IF(T28<Einstellungen!$K$6,Einstellungen!$K$6,T28)))*(1-Einstellungen!$K$7),"") ->  | U62: =IF(U28<>"",IF(Einstellungen!$K$6>Einstellungen!$M$6,(IF(U29<Einstellungen!$K$6,0,U29-IF(U28>Einstellungen!$K$6,U28,Einstellungen!$K$6)))+(IF(U29>Einstellungen!$M$6,Einstellungen!$M$6,U29)-U28),IF(OR(U28>Einstellungen!$M$6,U29<Einstellungen!$K$6),0,IF(U29>Einstellungen!$M$6,Einstellungen!$M$6,U29)-IF(U28<Einstellungen!$K$6,Einstellungen!$K$6,U28)))*(1-Einstellungen!$K$7),"") ->  | V62: =IF(V28<>"",IF(Einstellungen!$K$6>Einstellungen!$M$6,(IF(V29<Einstellungen!$K$6,0,V29-IF(V28>Einstellungen!$K$6,V28,Einstellungen!$K$6)))+(IF(V29>Einstellungen!$M$6,Einstellungen!$M$6,V29)-V28),IF(OR(V28>Einstellungen!$M$6,V29<Einstellungen!$K$6),0,IF(V29>Einstellungen!$M$6,Einstellungen!$M$6,V29)-IF(V28<Einstellungen!$K$6,Einstellungen!$K$6,V28)))*(1-Einstellungen!$K$7),"") ->  | W62: =IF(W28<>"",IF(Einstellungen!$K$6>Einstellungen!$M$6,(IF(W29<Einstellungen!$K$6,0,W29-IF(W28>Einstellungen!$K$6,W28,Einstellungen!$K$6)))+(IF(W29>Einstellungen!$M$6,Einstellungen!$M$6,W29)-W28),IF(OR(W28>Einstellungen!$M$6,W29<Einstellungen!$K$6),0,IF(W29>Einstellungen!$M$6,Einstellungen!$M$6,W29)-IF(W28<Einstellungen!$K$6,Einstellungen!$K$6,W28)))*(1-Einstellungen!$K$7),"") ->  | X62: =IF(X28<>"",IF(Einstellungen!$K$6>Einstellungen!$M$6,(IF(X29<Einstellungen!$K$6,0,X29-IF(X28>Einstellungen!$K$6,X28,Einstellungen!$K$6)))+(IF(X29>Einstellungen!$M$6,Einstellungen!$M$6,X29)-X28),IF(OR(X28>Einstellungen!$M$6,X29<Einstellungen!$K$6),0,IF(X29>Einstellungen!$M$6,Einstellungen!$M$6,X29)-IF(X28<Einstellungen!$K$6,Einstellungen!$K$6,X28)))*(1-Einstellungen!$K$7),"") ->  | Y62: =IF(Y28<>"",IF(Einstellungen!$K$6>Einstellungen!$M$6,(IF(Y29<Einstellungen!$K$6,0,Y29-IF(Y28>Einstellungen!$K$6,Y28,Einstellungen!$K$6)))+(IF(Y29>Einstellungen!$M$6,Einstellungen!$M$6,Y29)-Y28),IF(OR(Y28>Einstellungen!$M$6,Y29<Einstellungen!$K$6),0,IF(Y29>Einstellungen!$M$6,Einstellungen!$M$6,Y29)-IF(Y28<Einstellungen!$K$6,Einstellungen!$K$6,Y28)))*(1-Einstellungen!$K$7),"") ->  | Z62: =IF(Z28<>"",IF(Einstellungen!$K$6>Einstellungen!$M$6,(IF(Z29<Einstellungen!$K$6,0,Z29-IF(Z28>Einstellungen!$K$6,Z28,Einstellungen!$K$6)))+(IF(Z29>Einstellungen!$M$6,Einstellungen!$M$6,Z29)-Z28),IF(OR(Z28>Einstellungen!$M$6,Z29<Einstellungen!$K$6),0,IF(Z29>Einstellungen!$M$6,Einstellungen!$M$6,Z29)-IF(Z28<Einstellungen!$K$6,Einstellungen!$K$6,Z28)))*(1-Einstellungen!$K$7),"") ->  | AA62: =IF(AA28<>"",IF(Einstellungen!$K$6>Einstellungen!$M$6,(IF(AA29<Einstellungen!$K$6,0,AA29-IF(AA28>Einstellungen!$K$6,AA28,Einstellungen!$K$6)))+(IF(AA29>Einstellungen!$M$6,Einstellungen!$M$6,AA29)-AA28),IF(OR(AA28>Einstellungen!$M$6,AA29<Einstellungen!$K$6),0,IF(AA29>Einstellungen!$M$6,Einstellungen!$M$6,AA29)-IF(AA28<Einstellungen!$K$6,Einstellungen!$K$6,AA28)))*(1-Einstellungen!$K$7),"") ->  | AB62: =IF(AB28<>"",IF(Einstellungen!$K$6>Einstellungen!$M$6,(IF(AB29<Einstellungen!$K$6,0,AB29-IF(AB28>Einstellungen!$K$6,AB28,Einstellungen!$K$6)))+(IF(AB29>Einstellungen!$M$6,Einstellungen!$M$6,AB29)-AB28),IF(OR(AB28>Einstellungen!$M$6,AB29<Einstellungen!$K$6),0,IF(AB29>Einstellungen!$M$6,Einstellungen!$M$6,AB29)-IF(AB28<Einstellungen!$K$6,Einstellungen!$K$6,AB28)))*(1-Einstellungen!$K$7),"") ->  | AC62: =IF(AC28<>"",IF(Einstellungen!$K$6>Einstellungen!$M$6,(IF(AC29<Einstellungen!$K$6,0,AC29-IF(AC28>Einstellungen!$K$6,AC28,Einstellungen!$K$6)))+(IF(AC29>Einstellungen!$M$6,Einstellungen!$M$6,AC29)-AC28),IF(OR(AC28>Einstellungen!$M$6,AC29<Einstellungen!$K$6),0,IF(AC29>Einstellungen!$M$6,Einstellungen!$M$6,AC29)-IF(AC28<Einstellungen!$K$6,Einstellungen!$K$6,AC28)))*(1-Einstellungen!$K$7),"") ->  | AD62: =IF(AD28<>"",IF(Einstellungen!$K$6>Einstellungen!$M$6,(IF(AD29<Einstellungen!$K$6,0,AD29-IF(AD28>Einstellungen!$K$6,AD28,Einstellungen!$K$6)))+(IF(AD29>Einstellungen!$M$6,Einstellungen!$M$6,AD29)-AD28),IF(OR(AD28>Einstellungen!$M$6,AD29<Einstellungen!$K$6),0,IF(AD29>Einstellungen!$M$6,Einstellungen!$M$6,AD29)-IF(AD28<Einstellungen!$K$6,Einstellungen!$K$6,AD28)))*(1-Einstellungen!$K$7),"") ->  | AE62: =IF(AE28<>"",IF(Einstellungen!$K$6>Einstellungen!$M$6,(IF(AE29<Einstellungen!$K$6,0,AE29-IF(AE28>Einstellungen!$K$6,AE28,Einstellungen!$K$6)))+(IF(AE29>Einstellungen!$M$6,Einstellungen!$M$6,AE29)-AE28),IF(OR(AE28>Einstellungen!$M$6,AE29<Einstellungen!$K$6),0,IF(AE29>Einstellungen!$M$6,Einstellungen!$M$6,AE29)-IF(AE28<Einstellungen!$K$6,Einstellungen!$K$6,AE28)))*(1-Einstellungen!$K$7),"") ->  | AF62: =IF(AF28<>"",IF(Einstellungen!$K$6>Einstellungen!$M$6,(IF(AF29<Einstellungen!$K$6,0,AF29-IF(AF28>Einstellungen!$K$6,AF28,Einstellungen!$K$6)))+(IF(AF29>Einstellungen!$M$6,Einstellungen!$M$6,AF29)-AF28),IF(OR(AF28>Einstellungen!$M$6,AF29<Einstellungen!$K$6),0,IF(AF29>Einstellungen!$M$6,Einstellungen!$M$6,AF29)-IF(AF28<Einstellungen!$K$6,Einstellungen!$K$6,AF28)))*(1-Einstellungen!$K$7),"") ->  | AG62: =IF(AG28<>"",IF(Einstellungen!$K$6>Einstellungen!$M$6,(IF(AG29<Einstellungen!$K$6,0,AG29-IF(AG28>Einstellungen!$K$6,AG28,Einstellungen!$K$6)))+(IF(AG29>Einstellungen!$M$6,Einstellungen!$M$6,AG29)-AG28),IF(OR(AG28>Einstellungen!$M$6,AG29<Einstellungen!$K$6),0,IF(AG29>Einstellungen!$M$6,Einstellungen!$M$6,AG29)-IF(AG28<Einstellungen!$K$6,Einstellungen!$K$6,AG28)))*(1-Einstellungen!$K$7),"") -> 
B63: =IF(Einstellungen!$B$5>3,"4","") ->  | C63: =IF(C32<>"",IF(Einstellungen!$K$6>Einstellungen!$M$6,(IF(C33<Einstellungen!$K$6,0,C33-IF(C32>Einstellungen!$K$6,C32,Einstellungen!$K$6)))+(IF(C33>Einstellungen!$M$6,Einstellungen!$M$6,C33)-C32),IF(OR(C32>Einstellungen!$M$6,C33<Einstellungen!$K$6),0,IF(C33>Einstellungen!$M$6,Einstellungen!$M$6,C33)-IF(C32<Einstellungen!$K$6,Einstellungen!$K$6,C32)))*(1-Einstellungen!$K$7),"") ->  | D63: =IF(D32<>"",IF(Einstellungen!$K$6>Einstellungen!$M$6,(IF(D33<Einstellungen!$K$6,0,D33-IF(D32>Einstellungen!$K$6,D32,Einstellungen!$K$6)))+(IF(D33>Einstellungen!$M$6,Einstellungen!$M$6,D33)-D32),IF(OR(D32>Einstellungen!$M$6,D33<Einstellungen!$K$6),0,IF(D33>Einstellungen!$M$6,Einstellungen!$M$6,D33)-IF(D32<Einstellungen!$K$6,Einstellungen!$K$6,D32)))*(1-Einstellungen!$K$7),"") ->  | E63: =IF(E32<>"",IF(Einstellungen!$K$6>Einstellungen!$M$6,(IF(E33<Einstellungen!$K$6,0,E33-IF(E32>Einstellungen!$K$6,E32,Einstellungen!$K$6)))+(IF(E33>Einstellungen!$M$6,Einstellungen!$M$6,E33)-E32),IF(OR(E32>Einstellungen!$M$6,E33<Einstellungen!$K$6),0,IF(E33>Einstellungen!$M$6,Einstellungen!$M$6,E33)-IF(E32<Einstellungen!$K$6,Einstellungen!$K$6,E32)))*(1-Einstellungen!$K$7),"") ->  | F63: =IF(F32<>"",IF(Einstellungen!$K$6>Einstellungen!$M$6,(IF(F33<Einstellungen!$K$6,0,F33-IF(F32>Einstellungen!$K$6,F32,Einstellungen!$K$6)))+(IF(F33>Einstellungen!$M$6,Einstellungen!$M$6,F33)-F32),IF(OR(F32>Einstellungen!$M$6,F33<Einstellungen!$K$6),0,IF(F33>Einstellungen!$M$6,Einstellungen!$M$6,F33)-IF(F32<Einstellungen!$K$6,Einstellungen!$K$6,F32)))*(1-Einstellungen!$K$7),"") ->  | G63: =IF(G32<>"",IF(Einstellungen!$K$6>Einstellungen!$M$6,(IF(G33<Einstellungen!$K$6,0,G33-IF(G32>Einstellungen!$K$6,G32,Einstellungen!$K$6)))+(IF(G33>Einstellungen!$M$6,Einstellungen!$M$6,G33)-G32),IF(OR(G32>Einstellungen!$M$6,G33<Einstellungen!$K$6),0,IF(G33>Einstellungen!$M$6,Einstellungen!$M$6,G33)-IF(G32<Einstellungen!$K$6,Einstellungen!$K$6,G32)))*(1-Einstellungen!$K$7),"") ->  | H63: =IF(H32<>"",IF(Einstellungen!$K$6>Einstellungen!$M$6,(IF(H33<Einstellungen!$K$6,0,H33-IF(H32>Einstellungen!$K$6,H32,Einstellungen!$K$6)))+(IF(H33>Einstellungen!$M$6,Einstellungen!$M$6,H33)-H32),IF(OR(H32>Einstellungen!$M$6,H33<Einstellungen!$K$6),0,IF(H33>Einstellungen!$M$6,Einstellungen!$M$6,H33)-IF(H32<Einstellungen!$K$6,Einstellungen!$K$6,H32)))*(1-Einstellungen!$K$7),"") ->  | I63: =IF(I32<>"",IF(Einstellungen!$K$6>Einstellungen!$M$6,(IF(I33<Einstellungen!$K$6,0,I33-IF(I32>Einstellungen!$K$6,I32,Einstellungen!$K$6)))+(IF(I33>Einstellungen!$M$6,Einstellungen!$M$6,I33)-I32),IF(OR(I32>Einstellungen!$M$6,I33<Einstellungen!$K$6),0,IF(I33>Einstellungen!$M$6,Einstellungen!$M$6,I33)-IF(I32<Einstellungen!$K$6,Einstellungen!$K$6,I32)))*(1-Einstellungen!$K$7),"") ->  | J63: =IF(J32<>"",IF(Einstellungen!$K$6>Einstellungen!$M$6,(IF(J33<Einstellungen!$K$6,0,J33-IF(J32>Einstellungen!$K$6,J32,Einstellungen!$K$6)))+(IF(J33>Einstellungen!$M$6,Einstellungen!$M$6,J33)-J32),IF(OR(J32>Einstellungen!$M$6,J33<Einstellungen!$K$6),0,IF(J33>Einstellungen!$M$6,Einstellungen!$M$6,J33)-IF(J32<Einstellungen!$K$6,Einstellungen!$K$6,J32)))*(1-Einstellungen!$K$7),"") ->  | K63: =IF(K32<>"",IF(Einstellungen!$K$6>Einstellungen!$M$6,(IF(K33<Einstellungen!$K$6,0,K33-IF(K32>Einstellungen!$K$6,K32,Einstellungen!$K$6)))+(IF(K33>Einstellungen!$M$6,Einstellungen!$M$6,K33)-K32),IF(OR(K32>Einstellungen!$M$6,K33<Einstellungen!$K$6),0,IF(K33>Einstellungen!$M$6,Einstellungen!$M$6,K33)-IF(K32<Einstellungen!$K$6,Einstellungen!$K$6,K32)))*(1-Einstellungen!$K$7),"") ->  | L63: =IF(L32<>"",IF(Einstellungen!$K$6>Einstellungen!$M$6,(IF(L33<Einstellungen!$K$6,0,L33-IF(L32>Einstellungen!$K$6,L32,Einstellungen!$K$6)))+(IF(L33>Einstellungen!$M$6,Einstellungen!$M$6,L33)-L32),IF(OR(L32>Einstellungen!$M$6,L33<Einstellungen!$K$6),0,IF(L33>Einstellungen!$M$6,Einstellungen!$M$6,L33)-IF(L32<Einstellungen!$K$6,Einstellungen!$K$6,L32)))*(1-Einstellungen!$K$7),"") ->  | M63: =IF(M32<>"",IF(Einstellungen!$K$6>Einstellungen!$M$6,(IF(M33<Einstellungen!$K$6,0,M33-IF(M32>Einstellungen!$K$6,M32,Einstellungen!$K$6)))+(IF(M33>Einstellungen!$M$6,Einstellungen!$M$6,M33)-M32),IF(OR(M32>Einstellungen!$M$6,M33<Einstellungen!$K$6),0,IF(M33>Einstellungen!$M$6,Einstellungen!$M$6,M33)-IF(M32<Einstellungen!$K$6,Einstellungen!$K$6,M32)))*(1-Einstellungen!$K$7),"") ->  | N63: =IF(N32<>"",IF(Einstellungen!$K$6>Einstellungen!$M$6,(IF(N33<Einstellungen!$K$6,0,N33-IF(N32>Einstellungen!$K$6,N32,Einstellungen!$K$6)))+(IF(N33>Einstellungen!$M$6,Einstellungen!$M$6,N33)-N32),IF(OR(N32>Einstellungen!$M$6,N33<Einstellungen!$K$6),0,IF(N33>Einstellungen!$M$6,Einstellungen!$M$6,N33)-IF(N32<Einstellungen!$K$6,Einstellungen!$K$6,N32)))*(1-Einstellungen!$K$7),"") ->  | O63: =IF(O32<>"",IF(Einstellungen!$K$6>Einstellungen!$M$6,(IF(O33<Einstellungen!$K$6,0,O33-IF(O32>Einstellungen!$K$6,O32,Einstellungen!$K$6)))+(IF(O33>Einstellungen!$M$6,Einstellungen!$M$6,O33)-O32),IF(OR(O32>Einstellungen!$M$6,O33<Einstellungen!$K$6),0,IF(O33>Einstellungen!$M$6,Einstellungen!$M$6,O33)-IF(O32<Einstellungen!$K$6,Einstellungen!$K$6,O32)))*(1-Einstellungen!$K$7),"") ->  | P63: =IF(P32<>"",IF(Einstellungen!$K$6>Einstellungen!$M$6,(IF(P33<Einstellungen!$K$6,0,P33-IF(P32>Einstellungen!$K$6,P32,Einstellungen!$K$6)))+(IF(P33>Einstellungen!$M$6,Einstellungen!$M$6,P33)-P32),IF(OR(P32>Einstellungen!$M$6,P33<Einstellungen!$K$6),0,IF(P33>Einstellungen!$M$6,Einstellungen!$M$6,P33)-IF(P32<Einstellungen!$K$6,Einstellungen!$K$6,P32)))*(1-Einstellungen!$K$7),"") ->  | Q63: =IF(Q32<>"",IF(Einstellungen!$K$6>Einstellungen!$M$6,(IF(Q33<Einstellungen!$K$6,0,Q33-IF(Q32>Einstellungen!$K$6,Q32,Einstellungen!$K$6)))+(IF(Q33>Einstellungen!$M$6,Einstellungen!$M$6,Q33)-Q32),IF(OR(Q32>Einstellungen!$M$6,Q33<Einstellungen!$K$6),0,IF(Q33>Einstellungen!$M$6,Einstellungen!$M$6,Q33)-IF(Q32<Einstellungen!$K$6,Einstellungen!$K$6,Q32)))*(1-Einstellungen!$K$7),"") ->  | R63: =IF(R32<>"",IF(Einstellungen!$K$6>Einstellungen!$M$6,(IF(R33<Einstellungen!$K$6,0,R33-IF(R32>Einstellungen!$K$6,R32,Einstellungen!$K$6)))+(IF(R33>Einstellungen!$M$6,Einstellungen!$M$6,R33)-R32),IF(OR(R32>Einstellungen!$M$6,R33<Einstellungen!$K$6),0,IF(R33>Einstellungen!$M$6,Einstellungen!$M$6,R33)-IF(R32<Einstellungen!$K$6,Einstellungen!$K$6,R32)))*(1-Einstellungen!$K$7),"") ->  | S63: =IF(S32<>"",IF(Einstellungen!$K$6>Einstellungen!$M$6,(IF(S33<Einstellungen!$K$6,0,S33-IF(S32>Einstellungen!$K$6,S32,Einstellungen!$K$6)))+(IF(S33>Einstellungen!$M$6,Einstellungen!$M$6,S33)-S32),IF(OR(S32>Einstellungen!$M$6,S33<Einstellungen!$K$6),0,IF(S33>Einstellungen!$M$6,Einstellungen!$M$6,S33)-IF(S32<Einstellungen!$K$6,Einstellungen!$K$6,S32)))*(1-Einstellungen!$K$7),"") ->  | T63: =IF(T32<>"",IF(Einstellungen!$K$6>Einstellungen!$M$6,(IF(T33<Einstellungen!$K$6,0,T33-IF(T32>Einstellungen!$K$6,T32,Einstellungen!$K$6)))+(IF(T33>Einstellungen!$M$6,Einstellungen!$M$6,T33)-T32),IF(OR(T32>Einstellungen!$M$6,T33<Einstellungen!$K$6),0,IF(T33>Einstellungen!$M$6,Einstellungen!$M$6,T33)-IF(T32<Einstellungen!$K$6,Einstellungen!$K$6,T32)))*(1-Einstellungen!$K$7),"") ->  | U63: =IF(U32<>"",IF(Einstellungen!$K$6>Einstellungen!$M$6,(IF(U33<Einstellungen!$K$6,0,U33-IF(U32>Einstellungen!$K$6,U32,Einstellungen!$K$6)))+(IF(U33>Einstellungen!$M$6,Einstellungen!$M$6,U33)-U32),IF(OR(U32>Einstellungen!$M$6,U33<Einstellungen!$K$6),0,IF(U33>Einstellungen!$M$6,Einstellungen!$M$6,U33)-IF(U32<Einstellungen!$K$6,Einstellungen!$K$6,U32)))*(1-Einstellungen!$K$7),"") ->  | V63: =IF(V32<>"",IF(Einstellungen!$K$6>Einstellungen!$M$6,(IF(V33<Einstellungen!$K$6,0,V33-IF(V32>Einstellungen!$K$6,V32,Einstellungen!$K$6)))+(IF(V33>Einstellungen!$M$6,Einstellungen!$M$6,V33)-V32),IF(OR(V32>Einstellungen!$M$6,V33<Einstellungen!$K$6),0,IF(V33>Einstellungen!$M$6,Einstellungen!$M$6,V33)-IF(V32<Einstellungen!$K$6,Einstellungen!$K$6,V32)))*(1-Einstellungen!$K$7),"") ->  | W63: =IF(W32<>"",IF(Einstellungen!$K$6>Einstellungen!$M$6,(IF(W33<Einstellungen!$K$6,0,W33-IF(W32>Einstellungen!$K$6,W32,Einstellungen!$K$6)))+(IF(W33>Einstellungen!$M$6,Einstellungen!$M$6,W33)-W32),IF(OR(W32>Einstellungen!$M$6,W33<Einstellungen!$K$6),0,IF(W33>Einstellungen!$M$6,Einstellungen!$M$6,W33)-IF(W32<Einstellungen!$K$6,Einstellungen!$K$6,W32)))*(1-Einstellungen!$K$7),"") ->  | X63: =IF(X32<>"",IF(Einstellungen!$K$6>Einstellungen!$M$6,(IF(X33<Einstellungen!$K$6,0,X33-IF(X32>Einstellungen!$K$6,X32,Einstellungen!$K$6)))+(IF(X33>Einstellungen!$M$6,Einstellungen!$M$6,X33)-X32),IF(OR(X32>Einstellungen!$M$6,X33<Einstellungen!$K$6),0,IF(X33>Einstellungen!$M$6,Einstellungen!$M$6,X33)-IF(X32<Einstellungen!$K$6,Einstellungen!$K$6,X32)))*(1-Einstellungen!$K$7),"") ->  | Y63: =IF(Y32<>"",IF(Einstellungen!$K$6>Einstellungen!$M$6,(IF(Y33<Einstellungen!$K$6,0,Y33-IF(Y32>Einstellungen!$K$6,Y32,Einstellungen!$K$6)))+(IF(Y33>Einstellungen!$M$6,Einstellungen!$M$6,Y33)-Y32),IF(OR(Y32>Einstellungen!$M$6,Y33<Einstellungen!$K$6),0,IF(Y33>Einstellungen!$M$6,Einstellungen!$M$6,Y33)-IF(Y32<Einstellungen!$K$6,Einstellungen!$K$6,Y32)))*(1-Einstellungen!$K$7),"") ->  | Z63: =IF(Z32<>"",IF(Einstellungen!$K$6>Einstellungen!$M$6,(IF(Z33<Einstellungen!$K$6,0,Z33-IF(Z32>Einstellungen!$K$6,Z32,Einstellungen!$K$6)))+(IF(Z33>Einstellungen!$M$6,Einstellungen!$M$6,Z33)-Z32),IF(OR(Z32>Einstellungen!$M$6,Z33<Einstellungen!$K$6),0,IF(Z33>Einstellungen!$M$6,Einstellungen!$M$6,Z33)-IF(Z32<Einstellungen!$K$6,Einstellungen!$K$6,Z32)))*(1-Einstellungen!$K$7),"") ->  | AA63: =IF(AA32<>"",IF(Einstellungen!$K$6>Einstellungen!$M$6,(IF(AA33<Einstellungen!$K$6,0,AA33-IF(AA32>Einstellungen!$K$6,AA32,Einstellungen!$K$6)))+(IF(AA33>Einstellungen!$M$6,Einstellungen!$M$6,AA33)-AA32),IF(OR(AA32>Einstellungen!$M$6,AA33<Einstellungen!$K$6),0,IF(AA33>Einstellungen!$M$6,Einstellungen!$M$6,AA33)-IF(AA32<Einstellungen!$K$6,Einstellungen!$K$6,AA32)))*(1-Einstellungen!$K$7),"") ->  | AB63: =IF(AB32<>"",IF(Einstellungen!$K$6>Einstellungen!$M$6,(IF(AB33<Einstellungen!$K$6,0,AB33-IF(AB32>Einstellungen!$K$6,AB32,Einstellungen!$K$6)))+(IF(AB33>Einstellungen!$M$6,Einstellungen!$M$6,AB33)-AB32),IF(OR(AB32>Einstellungen!$M$6,AB33<Einstellungen!$K$6),0,IF(AB33>Einstellungen!$M$6,Einstellungen!$M$6,AB33)-IF(AB32<Einstellungen!$K$6,Einstellungen!$K$6,AB32)))*(1-Einstellungen!$K$7),"") ->  | AC63: =IF(AC32<>"",IF(Einstellungen!$K$6>Einstellungen!$M$6,(IF(AC33<Einstellungen!$K$6,0,AC33-IF(AC32>Einstellungen!$K$6,AC32,Einstellungen!$K$6)))+(IF(AC33>Einstellungen!$M$6,Einstellungen!$M$6,AC33)-AC32),IF(OR(AC32>Einstellungen!$M$6,AC33<Einstellungen!$K$6),0,IF(AC33>Einstellungen!$M$6,Einstellungen!$M$6,AC33)-IF(AC32<Einstellungen!$K$6,Einstellungen!$K$6,AC32)))*(1-Einstellungen!$K$7),"") ->  | AD63: =IF(AD32<>"",IF(Einstellungen!$K$6>Einstellungen!$M$6,(IF(AD33<Einstellungen!$K$6,0,AD33-IF(AD32>Einstellungen!$K$6,AD32,Einstellungen!$K$6)))+(IF(AD33>Einstellungen!$M$6,Einstellungen!$M$6,AD33)-AD32),IF(OR(AD32>Einstellungen!$M$6,AD33<Einstellungen!$K$6),0,IF(AD33>Einstellungen!$M$6,Einstellungen!$M$6,AD33)-IF(AD32<Einstellungen!$K$6,Einstellungen!$K$6,AD32)))*(1-Einstellungen!$K$7),"") ->  | AE63: =IF(AE32<>"",IF(Einstellungen!$K$6>Einstellungen!$M$6,(IF(AE33<Einstellungen!$K$6,0,AE33-IF(AE32>Einstellungen!$K$6,AE32,Einstellungen!$K$6)))+(IF(AE33>Einstellungen!$M$6,Einstellungen!$M$6,AE33)-AE32),IF(OR(AE32>Einstellungen!$M$6,AE33<Einstellungen!$K$6),0,IF(AE33>Einstellungen!$M$6,Einstellungen!$M$6,AE33)-IF(AE32<Einstellungen!$K$6,Einstellungen!$K$6,AE32)))*(1-Einstellungen!$K$7),"") ->  | AF63: =IF(AF32<>"",IF(Einstellungen!$K$6>Einstellungen!$M$6,(IF(AF33<Einstellungen!$K$6,0,AF33-IF(AF32>Einstellungen!$K$6,AF32,Einstellungen!$K$6)))+(IF(AF33>Einstellungen!$M$6,Einstellungen!$M$6,AF33)-AF32),IF(OR(AF32>Einstellungen!$M$6,AF33<Einstellungen!$K$6),0,IF(AF33>Einstellungen!$M$6,Einstellungen!$M$6,AF33)-IF(AF32<Einstellungen!$K$6,Einstellungen!$K$6,AF32)))*(1-Einstellungen!$K$7),"") ->  | AG63: =IF(AG32<>"",IF(Einstellungen!$K$6>Einstellungen!$M$6,(IF(AG33<Einstellungen!$K$6,0,AG33-IF(AG32>Einstellungen!$K$6,AG32,Einstellungen!$K$6)))+(IF(AG33>Einstellungen!$M$6,Einstellungen!$M$6,AG33)-AG32),IF(OR(AG32>Einstellungen!$M$6,AG33<Einstellungen!$K$6),0,IF(AG33>Einstellungen!$M$6,Einstellungen!$M$6,AG33)-IF(AG32<Einstellungen!$K$6,Einstellungen!$K$6,AG32)))*(1-Einstellungen!$K$7),"") -> 
B64: =IF(Einstellungen!$B$5>4,"5","") ->  | C64: =IF(C36<>"",IF(Einstellungen!$K$6>Einstellungen!$M$6,(IF(C37<Einstellungen!$K$6,0,C37-IF(C36>Einstellungen!$K$6,C36,Einstellungen!$K$6)))+(IF(C37>Einstellungen!$M$6,Einstellungen!$M$6,C37)-C36),IF(OR(C36>Einstellungen!$M$6,C37<Einstellungen!$K$6),0,IF(C37>Einstellungen!$M$6,Einstellungen!$M$6,C37)-IF(C36<Einstellungen!$K$6,Einstellungen!$K$6,C36)))*(1-Einstellungen!$K$7),"") ->  | D64: =IF(D36<>"",IF(Einstellungen!$K$6>Einstellungen!$M$6,(IF(D37<Einstellungen!$K$6,0,D37-IF(D36>Einstellungen!$K$6,D36,Einstellungen!$K$6)))+(IF(D37>Einstellungen!$M$6,Einstellungen!$M$6,D37)-D36),IF(OR(D36>Einstellungen!$M$6,D37<Einstellungen!$K$6),0,IF(D37>Einstellungen!$M$6,Einstellungen!$M$6,D37)-IF(D36<Einstellungen!$K$6,Einstellungen!$K$6,D36)))*(1-Einstellungen!$K$7),"") ->  | E64: =IF(E36<>"",IF(Einstellungen!$K$6>Einstellungen!$M$6,(IF(E37<Einstellungen!$K$6,0,E37-IF(E36>Einstellungen!$K$6,E36,Einstellungen!$K$6)))+(IF(E37>Einstellungen!$M$6,Einstellungen!$M$6,E37)-E36),IF(OR(E36>Einstellungen!$M$6,E37<Einstellungen!$K$6),0,IF(E37>Einstellungen!$M$6,Einstellungen!$M$6,E37)-IF(E36<Einstellungen!$K$6,Einstellungen!$K$6,E36)))*(1-Einstellungen!$K$7),"") ->  | F64: =IF(F36<>"",IF(Einstellungen!$K$6>Einstellungen!$M$6,(IF(F37<Einstellungen!$K$6,0,F37-IF(F36>Einstellungen!$K$6,F36,Einstellungen!$K$6)))+(IF(F37>Einstellungen!$M$6,Einstellungen!$M$6,F37)-F36),IF(OR(F36>Einstellungen!$M$6,F37<Einstellungen!$K$6),0,IF(F37>Einstellungen!$M$6,Einstellungen!$M$6,F37)-IF(F36<Einstellungen!$K$6,Einstellungen!$K$6,F36)))*(1-Einstellungen!$K$7),"") ->  | G64: =IF(G36<>"",IF(Einstellungen!$K$6>Einstellungen!$M$6,(IF(G37<Einstellungen!$K$6,0,G37-IF(G36>Einstellungen!$K$6,G36,Einstellungen!$K$6)))+(IF(G37>Einstellungen!$M$6,Einstellungen!$M$6,G37)-G36),IF(OR(G36>Einstellungen!$M$6,G37<Einstellungen!$K$6),0,IF(G37>Einstellungen!$M$6,Einstellungen!$M$6,G37)-IF(G36<Einstellungen!$K$6,Einstellungen!$K$6,G36)))*(1-Einstellungen!$K$7),"") ->  | H64: =IF(H36<>"",IF(Einstellungen!$K$6>Einstellungen!$M$6,(IF(H37<Einstellungen!$K$6,0,H37-IF(H36>Einstellungen!$K$6,H36,Einstellungen!$K$6)))+(IF(H37>Einstellungen!$M$6,Einstellungen!$M$6,H37)-H36),IF(OR(H36>Einstellungen!$M$6,H37<Einstellungen!$K$6),0,IF(H37>Einstellungen!$M$6,Einstellungen!$M$6,H37)-IF(H36<Einstellungen!$K$6,Einstellungen!$K$6,H36)))*(1-Einstellungen!$K$7),"") ->  | I64: =IF(I36<>"",IF(Einstellungen!$K$6>Einstellungen!$M$6,(IF(I37<Einstellungen!$K$6,0,I37-IF(I36>Einstellungen!$K$6,I36,Einstellungen!$K$6)))+(IF(I37>Einstellungen!$M$6,Einstellungen!$M$6,I37)-I36),IF(OR(I36>Einstellungen!$M$6,I37<Einstellungen!$K$6),0,IF(I37>Einstellungen!$M$6,Einstellungen!$M$6,I37)-IF(I36<Einstellungen!$K$6,Einstellungen!$K$6,I36)))*(1-Einstellungen!$K$7),"") ->  | J64: =IF(J36<>"",IF(Einstellungen!$K$6>Einstellungen!$M$6,(IF(J37<Einstellungen!$K$6,0,J37-IF(J36>Einstellungen!$K$6,J36,Einstellungen!$K$6)))+(IF(J37>Einstellungen!$M$6,Einstellungen!$M$6,J37)-J36),IF(OR(J36>Einstellungen!$M$6,J37<Einstellungen!$K$6),0,IF(J37>Einstellungen!$M$6,Einstellungen!$M$6,J37)-IF(J36<Einstellungen!$K$6,Einstellungen!$K$6,J36)))*(1-Einstellungen!$K$7),"") ->  | K64: =IF(K36<>"",IF(Einstellungen!$K$6>Einstellungen!$M$6,(IF(K37<Einstellungen!$K$6,0,K37-IF(K36>Einstellungen!$K$6,K36,Einstellungen!$K$6)))+(IF(K37>Einstellungen!$M$6,Einstellungen!$M$6,K37)-K36),IF(OR(K36>Einstellungen!$M$6,K37<Einstellungen!$K$6),0,IF(K37>Einstellungen!$M$6,Einstellungen!$M$6,K37)-IF(K36<Einstellungen!$K$6,Einstellungen!$K$6,K36)))*(1-Einstellungen!$K$7),"") ->  | L64: =IF(L36<>"",IF(Einstellungen!$K$6>Einstellungen!$M$6,(IF(L37<Einstellungen!$K$6,0,L37-IF(L36>Einstellungen!$K$6,L36,Einstellungen!$K$6)))+(IF(L37>Einstellungen!$M$6,Einstellungen!$M$6,L37)-L36),IF(OR(L36>Einstellungen!$M$6,L37<Einstellungen!$K$6),0,IF(L37>Einstellungen!$M$6,Einstellungen!$M$6,L37)-IF(L36<Einstellungen!$K$6,Einstellungen!$K$6,L36)))*(1-Einstellungen!$K$7),"") ->  | M64: =IF(M36<>"",IF(Einstellungen!$K$6>Einstellungen!$M$6,(IF(M37<Einstellungen!$K$6,0,M37-IF(M36>Einstellungen!$K$6,M36,Einstellungen!$K$6)))+(IF(M37>Einstellungen!$M$6,Einstellungen!$M$6,M37)-M36),IF(OR(M36>Einstellungen!$M$6,M37<Einstellungen!$K$6),0,IF(M37>Einstellungen!$M$6,Einstellungen!$M$6,M37)-IF(M36<Einstellungen!$K$6,Einstellungen!$K$6,M36)))*(1-Einstellungen!$K$7),"") ->  | N64: =IF(N36<>"",IF(Einstellungen!$K$6>Einstellungen!$M$6,(IF(N37<Einstellungen!$K$6,0,N37-IF(N36>Einstellungen!$K$6,N36,Einstellungen!$K$6)))+(IF(N37>Einstellungen!$M$6,Einstellungen!$M$6,N37)-N36),IF(OR(N36>Einstellungen!$M$6,N37<Einstellungen!$K$6),0,IF(N37>Einstellungen!$M$6,Einstellungen!$M$6,N37)-IF(N36<Einstellungen!$K$6,Einstellungen!$K$6,N36)))*(1-Einstellungen!$K$7),"") ->  | O64: =IF(O36<>"",IF(Einstellungen!$K$6>Einstellungen!$M$6,(IF(O37<Einstellungen!$K$6,0,O37-IF(O36>Einstellungen!$K$6,O36,Einstellungen!$K$6)))+(IF(O37>Einstellungen!$M$6,Einstellungen!$M$6,O37)-O36),IF(OR(O36>Einstellungen!$M$6,O37<Einstellungen!$K$6),0,IF(O37>Einstellungen!$M$6,Einstellungen!$M$6,O37)-IF(O36<Einstellungen!$K$6,Einstellungen!$K$6,O36)))*(1-Einstellungen!$K$7),"") ->  | P64: =IF(P36<>"",IF(Einstellungen!$K$6>Einstellungen!$M$6,(IF(P37<Einstellungen!$K$6,0,P37-IF(P36>Einstellungen!$K$6,P36,Einstellungen!$K$6)))+(IF(P37>Einstellungen!$M$6,Einstellungen!$M$6,P37)-P36),IF(OR(P36>Einstellungen!$M$6,P37<Einstellungen!$K$6),0,IF(P37>Einstellungen!$M$6,Einstellungen!$M$6,P37)-IF(P36<Einstellungen!$K$6,Einstellungen!$K$6,P36)))*(1-Einstellungen!$K$7),"") ->  | Q64: =IF(Q36<>"",IF(Einstellungen!$K$6>Einstellungen!$M$6,(IF(Q37<Einstellungen!$K$6,0,Q37-IF(Q36>Einstellungen!$K$6,Q36,Einstellungen!$K$6)))+(IF(Q37>Einstellungen!$M$6,Einstellungen!$M$6,Q37)-Q36),IF(OR(Q36>Einstellungen!$M$6,Q37<Einstellungen!$K$6),0,IF(Q37>Einstellungen!$M$6,Einstellungen!$M$6,Q37)-IF(Q36<Einstellungen!$K$6,Einstellungen!$K$6,Q36)))*(1-Einstellungen!$K$7),"") ->  | R64: =IF(R36<>"",IF(Einstellungen!$K$6>Einstellungen!$M$6,(IF(R37<Einstellungen!$K$6,0,R37-IF(R36>Einstellungen!$K$6,R36,Einstellungen!$K$6)))+(IF(R37>Einstellungen!$M$6,Einstellungen!$M$6,R37)-R36),IF(OR(R36>Einstellungen!$M$6,R37<Einstellungen!$K$6),0,IF(R37>Einstellungen!$M$6,Einstellungen!$M$6,R37)-IF(R36<Einstellungen!$K$6,Einstellungen!$K$6,R36)))*(1-Einstellungen!$K$7),"") ->  | S64: =IF(S36<>"",IF(Einstellungen!$K$6>Einstellungen!$M$6,(IF(S37<Einstellungen!$K$6,0,S37-IF(S36>Einstellungen!$K$6,S36,Einstellungen!$K$6)))+(IF(S37>Einstellungen!$M$6,Einstellungen!$M$6,S37)-S36),IF(OR(S36>Einstellungen!$M$6,S37<Einstellungen!$K$6),0,IF(S37>Einstellungen!$M$6,Einstellungen!$M$6,S37)-IF(S36<Einstellungen!$K$6,Einstellungen!$K$6,S36)))*(1-Einstellungen!$K$7),"") ->  | T64: =IF(T36<>"",IF(Einstellungen!$K$6>Einstellungen!$M$6,(IF(T37<Einstellungen!$K$6,0,T37-IF(T36>Einstellungen!$K$6,T36,Einstellungen!$K$6)))+(IF(T37>Einstellungen!$M$6,Einstellungen!$M$6,T37)-T36),IF(OR(T36>Einstellungen!$M$6,T37<Einstellungen!$K$6),0,IF(T37>Einstellungen!$M$6,Einstellungen!$M$6,T37)-IF(T36<Einstellungen!$K$6,Einstellungen!$K$6,T36)))*(1-Einstellungen!$K$7),"") ->  | U64: =IF(U36<>"",IF(Einstellungen!$K$6>Einstellungen!$M$6,(IF(U37<Einstellungen!$K$6,0,U37-IF(U36>Einstellungen!$K$6,U36,Einstellungen!$K$6)))+(IF(U37>Einstellungen!$M$6,Einstellungen!$M$6,U37)-U36),IF(OR(U36>Einstellungen!$M$6,U37<Einstellungen!$K$6),0,IF(U37>Einstellungen!$M$6,Einstellungen!$M$6,U37)-IF(U36<Einstellungen!$K$6,Einstellungen!$K$6,U36)))*(1-Einstellungen!$K$7),"") ->  | V64: =IF(V36<>"",IF(Einstellungen!$K$6>Einstellungen!$M$6,(IF(V37<Einstellungen!$K$6,0,V37-IF(V36>Einstellungen!$K$6,V36,Einstellungen!$K$6)))+(IF(V37>Einstellungen!$M$6,Einstellungen!$M$6,V37)-V36),IF(OR(V36>Einstellungen!$M$6,V37<Einstellungen!$K$6),0,IF(V37>Einstellungen!$M$6,Einstellungen!$M$6,V37)-IF(V36<Einstellungen!$K$6,Einstellungen!$K$6,V36)))*(1-Einstellungen!$K$7),"") ->  | W64: =IF(W36<>"",IF(Einstellungen!$K$6>Einstellungen!$M$6,(IF(W37<Einstellungen!$K$6,0,W37-IF(W36>Einstellungen!$K$6,W36,Einstellungen!$K$6)))+(IF(W37>Einstellungen!$M$6,Einstellungen!$M$6,W37)-W36),IF(OR(W36>Einstellungen!$M$6,W37<Einstellungen!$K$6),0,IF(W37>Einstellungen!$M$6,Einstellungen!$M$6,W37)-IF(W36<Einstellungen!$K$6,Einstellungen!$K$6,W36)))*(1-Einstellungen!$K$7),"") ->  | X64: =IF(X36<>"",IF(Einstellungen!$K$6>Einstellungen!$M$6,(IF(X37<Einstellungen!$K$6,0,X37-IF(X36>Einstellungen!$K$6,X36,Einstellungen!$K$6)))+(IF(X37>Einstellungen!$M$6,Einstellungen!$M$6,X37)-X36),IF(OR(X36>Einstellungen!$M$6,X37<Einstellungen!$K$6),0,IF(X37>Einstellungen!$M$6,Einstellungen!$M$6,X37)-IF(X36<Einstellungen!$K$6,Einstellungen!$K$6,X36)))*(1-Einstellungen!$K$7),"") ->  | Y64: =IF(Y36<>"",IF(Einstellungen!$K$6>Einstellungen!$M$6,(IF(Y37<Einstellungen!$K$6,0,Y37-IF(Y36>Einstellungen!$K$6,Y36,Einstellungen!$K$6)))+(IF(Y37>Einstellungen!$M$6,Einstellungen!$M$6,Y37)-Y36),IF(OR(Y36>Einstellungen!$M$6,Y37<Einstellungen!$K$6),0,IF(Y37>Einstellungen!$M$6,Einstellungen!$M$6,Y37)-IF(Y36<Einstellungen!$K$6,Einstellungen!$K$6,Y36)))*(1-Einstellungen!$K$7),"") ->  | Z64: =IF(Z36<>"",IF(Einstellungen!$K$6>Einstellungen!$M$6,(IF(Z37<Einstellungen!$K$6,0,Z37-IF(Z36>Einstellungen!$K$6,Z36,Einstellungen!$K$6)))+(IF(Z37>Einstellungen!$M$6,Einstellungen!$M$6,Z37)-Z36),IF(OR(Z36>Einstellungen!$M$6,Z37<Einstellungen!$K$6),0,IF(Z37>Einstellungen!$M$6,Einstellungen!$M$6,Z37)-IF(Z36<Einstellungen!$K$6,Einstellungen!$K$6,Z36)))*(1-Einstellungen!$K$7),"") ->  | AA64: =IF(AA36<>"",IF(Einstellungen!$K$6>Einstellungen!$M$6,(IF(AA37<Einstellungen!$K$6,0,AA37-IF(AA36>Einstellungen!$K$6,AA36,Einstellungen!$K$6)))+(IF(AA37>Einstellungen!$M$6,Einstellungen!$M$6,AA37)-AA36),IF(OR(AA36>Einstellungen!$M$6,AA37<Einstellungen!$K$6),0,IF(AA37>Einstellungen!$M$6,Einstellungen!$M$6,AA37)-IF(AA36<Einstellungen!$K$6,Einstellungen!$K$6,AA36)))*(1-Einstellungen!$K$7),"") ->  | AB64: =IF(AB36<>"",IF(Einstellungen!$K$6>Einstellungen!$M$6,(IF(AB37<Einstellungen!$K$6,0,AB37-IF(AB36>Einstellungen!$K$6,AB36,Einstellungen!$K$6)))+(IF(AB37>Einstellungen!$M$6,Einstellungen!$M$6,AB37)-AB36),IF(OR(AB36>Einstellungen!$M$6,AB37<Einstellungen!$K$6),0,IF(AB37>Einstellungen!$M$6,Einstellungen!$M$6,AB37)-IF(AB36<Einstellungen!$K$6,Einstellungen!$K$6,AB36)))*(1-Einstellungen!$K$7),"") ->  | AC64: =IF(AC36<>"",IF(Einstellungen!$K$6>Einstellungen!$M$6,(IF(AC37<Einstellungen!$K$6,0,AC37-IF(AC36>Einstellungen!$K$6,AC36,Einstellungen!$K$6)))+(IF(AC37>Einstellungen!$M$6,Einstellungen!$M$6,AC37)-AC36),IF(OR(AC36>Einstellungen!$M$6,AC37<Einstellungen!$K$6),0,IF(AC37>Einstellungen!$M$6,Einstellungen!$M$6,AC37)-IF(AC36<Einstellungen!$K$6,Einstellungen!$K$6,AC36)))*(1-Einstellungen!$K$7),"") ->  | AD64: =IF(AD36<>"",IF(Einstellungen!$K$6>Einstellungen!$M$6,(IF(AD37<Einstellungen!$K$6,0,AD37-IF(AD36>Einstellungen!$K$6,AD36,Einstellungen!$K$6)))+(IF(AD37>Einstellungen!$M$6,Einstellungen!$M$6,AD37)-AD36),IF(OR(AD36>Einstellungen!$M$6,AD37<Einstellungen!$K$6),0,IF(AD37>Einstellungen!$M$6,Einstellungen!$M$6,AD37)-IF(AD36<Einstellungen!$K$6,Einstellungen!$K$6,AD36)))*(1-Einstellungen!$K$7),"") ->  | AE64: =IF(AE36<>"",IF(Einstellungen!$K$6>Einstellungen!$M$6,(IF(AE37<Einstellungen!$K$6,0,AE37-IF(AE36>Einstellungen!$K$6,AE36,Einstellungen!$K$6)))+(IF(AE37>Einstellungen!$M$6,Einstellungen!$M$6,AE37)-AE36),IF(OR(AE36>Einstellungen!$M$6,AE37<Einstellungen!$K$6),0,IF(AE37>Einstellungen!$M$6,Einstellungen!$M$6,AE37)-IF(AE36<Einstellungen!$K$6,Einstellungen!$K$6,AE36)))*(1-Einstellungen!$K$7),"") ->  | AF64: =IF(AF36<>"",IF(Einstellungen!$K$6>Einstellungen!$M$6,(IF(AF37<Einstellungen!$K$6,0,AF37-IF(AF36>Einstellungen!$K$6,AF36,Einstellungen!$K$6)))+(IF(AF37>Einstellungen!$M$6,Einstellungen!$M$6,AF37)-AF36),IF(OR(AF36>Einstellungen!$M$6,AF37<Einstellungen!$K$6),0,IF(AF37>Einstellungen!$M$6,Einstellungen!$M$6,AF37)-IF(AF36<Einstellungen!$K$6,Einstellungen!$K$6,AF36)))*(1-Einstellungen!$K$7),"") ->  | AG64: =IF(AG36<>"",IF(Einstellungen!$K$6>Einstellungen!$M$6,(IF(AG37<Einstellungen!$K$6,0,AG37-IF(AG36>Einstellungen!$K$6,AG36,Einstellungen!$K$6)))+(IF(AG37>Einstellungen!$M$6,Einstellungen!$M$6,AG37)-AG36),IF(OR(AG36>Einstellungen!$M$6,AG37<Einstellungen!$K$6),0,IF(AG37>Einstellungen!$M$6,Einstellungen!$M$6,AG37)-IF(AG36<Einstellungen!$K$6,Einstellungen!$K$6,AG36)))*(1-Einstellungen!$K$7),"") -> 
A66: Sonn-/Feiertags-zuschlag | B66: 1 | C66: =IF(AND(Einstellungen!$K$9=1,OR(C$4=1,C$2<>""),C20<>""),C21-C20,"") ->  | D66: =IF(AND(Einstellungen!$K$9=1,OR(D$4=1,D$2<>""),D20<>""),D21-D20,"") ->  | E66: =IF(AND(Einstellungen!$K$9=1,OR(E$4=1,E$2<>""),E20<>""),E21-E20,"") ->  | F66: =IF(AND(Einstellungen!$K$9=1,OR(F$4=1,F$2<>""),F20<>""),F21-F20,"") ->  | G66: =IF(AND(Einstellungen!$K$9=1,OR(G$4=1,G$2<>""),G20<>""),G21-G20,"") ->  | H66: =IF(AND(Einstellungen!$K$9=1,OR(H$4=1,H$2<>""),H20<>""),H21-H20,"") ->  | I66: =IF(AND(Einstellungen!$K$9=1,OR(I$4=1,I$2<>""),I20<>""),I21-I20,"") ->  | J66: =IF(AND(Einstellungen!$K$9=1,OR(J$4=1,J$2<>""),J20<>""),J21-J20,"") ->  | K66: =IF(AND(Einstellungen!$K$9=1,OR(K$4=1,K$2<>""),K20<>""),K21-K20,"") ->  | L66: =IF(AND(Einstellungen!$K$9=1,OR(L$4=1,L$2<>""),L20<>""),L21-L20,"") ->  | M66: =IF(AND(Einstellungen!$K$9=1,OR(M$4=1,M$2<>""),M20<>""),M21-M20,"") ->  | N66: =IF(AND(Einstellungen!$K$9=1,OR(N$4=1,N$2<>""),N20<>""),N21-N20,"") ->  | O66: =IF(AND(Einstellungen!$K$9=1,OR(O$4=1,O$2<>""),O20<>""),O21-O20,"") ->  | P66: =IF(AND(Einstellungen!$K$9=1,OR(P$4=1,P$2<>""),P20<>""),P21-P20,"") ->  | Q66: =IF(AND(Einstellungen!$K$9=1,OR(Q$4=1,Q$2<>""),Q20<>""),Q21-Q20,"") ->  | R66: =IF(AND(Einstellungen!$K$9=1,OR(R$4=1,R$2<>""),R20<>""),R21-R20,"") ->  | S66: =IF(AND(Einstellungen!$K$9=1,OR(S$4=1,S$2<>""),S20<>""),S21-S20,"") ->  | T66: =IF(AND(Einstellungen!$K$9=1,OR(T$4=1,T$2<>""),T20<>""),T21-T20,"") ->  | U66: =IF(AND(Einstellungen!$K$9=1,OR(U$4=1,U$2<>""),U20<>""),U21-U20,"") ->  | V66: =IF(AND(Einstellungen!$K$9=1,OR(V$4=1,V$2<>""),V20<>""),V21-V20,"") ->  | W66: =IF(AND(Einstellungen!$K$9=1,OR(W$4=1,W$2<>""),W20<>""),W21-W20,"") ->  | X66: =IF(AND(Einstellungen!$K$9=1,OR(X$4=1,X$2<>""),X20<>""),X21-X20,"") ->  | Y66: =IF(AND(Einstellungen!$K$9=1,OR(Y$4=1,Y$2<>""),Y20<>""),Y21-Y20,"") ->  | Z66: =IF(AND(Einstellungen!$K$9=1,OR(Z$4=1,Z$2<>""),Z20<>""),Z21-Z20,"") ->  | AA66: =IF(AND(Einstellungen!$K$9=1,OR(AA$4=1,AA$2<>""),AA20<>""),AA21-AA20,"") ->  | AB66: =IF(AND(Einstellungen!$K$9=1,OR(AB$4=1,AB$2<>""),AB20<>""),AB21-AB20,"") ->  | AC66: =IF(AND(Einstellungen!$K$9=1,OR(AC$4=1,AC$2<>""),AC20<>""),AC21-AC20,"") ->  | AD66: =IF(AND(Einstellungen!$K$9=1,OR(AD$4=1,AD$2<>""),AD20<>""),AD21-AD20,"") ->  | AE66: =IF(AND(Einstellungen!$K$9=1,OR(AE$4=1,AE$2<>""),AE20<>""),AE21-AE20,"") ->  | AF66: =IF(AND(Einstellungen!$K$9=1,OR(AF$4=1,AF$2<>""),AF20<>""),AF21-AF20,"") ->  | AG66: =IF(AND(Einstellungen!$K$9=1,OR(AG$4=1,AG$2<>""),AG20<>""),AG21-AG20,"") -> 
B67: =IF(Einstellungen!$B$5>1,"2","") -> 2 | C67: =IF(AND(Einstellungen!$K$9=1,OR(C$4=1,C$2<>""),C24<>""),C25-C24,"") ->  | D67: =IF(AND(Einstellungen!$K$9=1,OR(D$4=1,D$2<>""),D24<>""),D25-D24,"") ->  | E67: =IF(AND(Einstellungen!$K$9=1,OR(E$4=1,E$2<>""),E24<>""),E25-E24,"") ->  | F67: =IF(AND(Einstellungen!$K$9=1,OR(F$4=1,F$2<>""),F24<>""),F25-F24,"") ->  | G67: =IF(AND(Einstellungen!$K$9=1,OR(G$4=1,G$2<>""),G24<>""),G25-G24,"") ->  | H67: =IF(AND(Einstellungen!$K$9=1,OR(H$4=1,H$2<>""),H24<>""),H25-H24,"") ->  | I67: =IF(AND(Einstellungen!$K$9=1,OR(I$4=1,I$2<>""),I24<>""),I25-I24,"") ->  | J67: =IF(AND(Einstellungen!$K$9=1,OR(J$4=1,J$2<>""),J24<>""),J25-J24,"") ->  | K67: =IF(AND(Einstellungen!$K$9=1,OR(K$4=1,K$2<>""),K24<>""),K25-K24,"") ->  | L67: =IF(AND(Einstellungen!$K$9=1,OR(L$4=1,L$2<>""),L24<>""),L25-L24,"") ->  | M67: =IF(AND(Einstellungen!$K$9=1,OR(M$4=1,M$2<>""),M24<>""),M25-M24,"") ->  | N67: =IF(AND(Einstellungen!$K$9=1,OR(N$4=1,N$2<>""),N24<>""),N25-N24,"") ->  | O67: =IF(AND(Einstellungen!$K$9=1,OR(O$4=1,O$2<>""),O24<>""),O25-O24,"") ->  | P67: =IF(AND(Einstellungen!$K$9=1,OR(P$4=1,P$2<>""),P24<>""),P25-P24,"") ->  | Q67: =IF(AND(Einstellungen!$K$9=1,OR(Q$4=1,Q$2<>""),Q24<>""),Q25-Q24,"") ->  | R67: =IF(AND(Einstellungen!$K$9=1,OR(R$4=1,R$2<>""),R24<>""),R25-R24,"") ->  | S67: =IF(AND(Einstellungen!$K$9=1,OR(S$4=1,S$2<>""),S24<>""),S25-S24,"") ->  | T67: =IF(AND(Einstellungen!$K$9=1,OR(T$4=1,T$2<>""),T24<>""),T25-T24,"") ->  | U67: =IF(AND(Einstellungen!$K$9=1,OR(U$4=1,U$2<>""),U24<>""),U25-U24,"") ->  | V67: =IF(AND(Einstellungen!$K$9=1,OR(V$4=1,V$2<>""),V24<>""),V25-V24,"") ->  | W67: =IF(AND(Einstellungen!$K$9=1,OR(W$4=1,W$2<>""),W24<>""),W25-W24,"") ->  | X67: =IF(AND(Einstellungen!$K$9=1,OR(X$4=1,X$2<>""),X24<>""),X25-X24,"") ->  | Y67: =IF(AND(Einstellungen!$K$9=1,OR(Y$4=1,Y$2<>""),Y24<>""),Y25-Y24,"") ->  | Z67: =IF(AND(Einstellungen!$K$9=1,OR(Z$4=1,Z$2<>""),Z24<>""),Z25-Z24,"") ->  | AA67: =IF(AND(Einstellungen!$K$9=1,OR(AA$4=1,AA$2<>""),AA24<>""),AA25-AA24,"") ->  | AB67: =IF(AND(Einstellungen!$K$9=1,OR(AB$4=1,AB$2<>""),AB24<>""),AB25-AB24,"") ->  | AC67: =IF(AND(Einstellungen!$K$9=1,OR(AC$4=1,AC$2<>""),AC24<>""),AC25-AC24,"") ->  | AD67: =IF(AND(Einstellungen!$K$9=1,OR(AD$4=1,AD$2<>""),AD24<>""),AD25-AD24,"") ->  | AE67: =IF(AND(Einstellungen!$K$9=1,OR(AE$4=1,AE$2<>""),AE24<>""),AE25-AE24,"") ->  | AF67: =IF(AND(Einstellungen!$K$9=1,OR(AF$4=1,AF$2<>""),AF24<>""),AF25-AF24,"") ->  | AG67: =IF(AND(Einstellungen!$K$9=1,OR(AG$4=1,AG$2<>""),AG24<>""),AG25-AG24,"") -> 
B68: =IF(Einstellungen!$B$5>2,"3","") -> 3 | C68: =IF(AND(Einstellungen!$K$9=1,OR(C$4=1,C$2<>""),C28<>""),C29-C28,"") ->  | D68: =IF(AND(Einstellungen!$K$9=1,OR(D$4=1,D$2<>""),D28<>""),D29-D28,"") ->  | E68: =IF(AND(Einstellungen!$K$9=1,OR(E$4=1,E$2<>""),E28<>""),E29-E28,"") ->  | F68: =IF(AND(Einstellungen!$K$9=1,OR(F$4=1,F$2<>""),F28<>""),F29-F28,"") ->  | G68: =IF(AND(Einstellungen!$K$9=1,OR(G$4=1,G$2<>""),G28<>""),G29-G28,"") ->  | H68: =IF(AND(Einstellungen!$K$9=1,OR(H$4=1,H$2<>""),H28<>""),H29-H28,"") ->  | I68: =IF(AND(Einstellungen!$K$9=1,OR(I$4=1,I$2<>""),I28<>""),I29-I28,"") ->  | J68: =IF(AND(Einstellungen!$K$9=1,OR(J$4=1,J$2<>""),J28<>""),J29-J28,"") ->  | K68: =IF(AND(Einstellungen!$K$9=1,OR(K$4=1,K$2<>""),K28<>""),K29-K28,"") ->  | L68: =IF(AND(Einstellungen!$K$9=1,OR(L$4=1,L$2<>""),L28<>""),L29-L28,"") ->  | M68: =IF(AND(Einstellungen!$K$9=1,OR(M$4=1,M$2<>""),M28<>""),M29-M28,"") ->  | N68: =IF(AND(Einstellungen!$K$9=1,OR(N$4=1,N$2<>""),N28<>""),N29-N28,"") ->  | O68: =IF(AND(Einstellungen!$K$9=1,OR(O$4=1,O$2<>""),O28<>""),O29-O28,"") ->  | P68: =IF(AND(Einstellungen!$K$9=1,OR(P$4=1,P$2<>""),P28<>""),P29-P28,"") ->  | Q68: =IF(AND(Einstellungen!$K$9=1,OR(Q$4=1,Q$2<>""),Q28<>""),Q29-Q28,"") ->  | R68: =IF(AND(Einstellungen!$K$9=1,OR(R$4=1,R$2<>""),R28<>""),R29-R28,"") ->  | S68: =IF(AND(Einstellungen!$K$9=1,OR(S$4=1,S$2<>""),S28<>""),S29-S28,"") ->  | T68: =IF(AND(Einstellungen!$K$9=1,OR(T$4=1,T$2<>""),T28<>""),T29-T28,"") ->  | U68: =IF(AND(Einstellungen!$K$9=1,OR(U$4=1,U$2<>""),U28<>""),U29-U28,"") ->  | V68: =IF(AND(Einstellungen!$K$9=1,OR(V$4=1,V$2<>""),V28<>""),V29-V28,"") ->  | W68: =IF(AND(Einstellungen!$K$9=1,OR(W$4=1,W$2<>""),W28<>""),W29-W28,"") ->  | X68: =IF(AND(Einstellungen!$K$9=1,OR(X$4=1,X$2<>""),X28<>""),X29-X28,"") ->  | Y68: =IF(AND(Einstellungen!$K$9=1,OR(Y$4=1,Y$2<>""),Y28<>""),Y29-Y28,"") ->  | Z68: =IF(AND(Einstellungen!$K$9=1,OR(Z$4=1,Z$2<>""),Z28<>""),Z29-Z28,"") ->  | AA68: =IF(AND(Einstellungen!$K$9=1,OR(AA$4=1,AA$2<>""),AA28<>""),AA29-AA28,"") ->  | AB68: =IF(AND(Einstellungen!$K$9=1,OR(AB$4=1,AB$2<>""),AB28<>""),AB29-AB28,"") ->  | AC68: =IF(AND(Einstellungen!$K$9=1,OR(AC$4=1,AC$2<>""),AC28<>""),AC29-AC28,"") ->  | AD68: =IF(AND(Einstellungen!$K$9=1,OR(AD$4=1,AD$2<>""),AD28<>""),AD29-AD28,"") ->  | AE68: =IF(AND(Einstellungen!$K$9=1,OR(AE$4=1,AE$2<>""),AE28<>""),AE29-AE28,"") ->  | AF68: =IF(AND(Einstellungen!$K$9=1,OR(AF$4=1,AF$2<>""),AF28<>""),AF29-AF28,"") ->  | AG68: =IF(AND(Einstellungen!$K$9=1,OR(AG$4=1,AG$2<>""),AG28<>""),AG29-AG28,"") -> 
B69: =IF(Einstellungen!$B$5>3,"4","") ->  | C69: =IF(AND(Einstellungen!$K$9=1,OR(C$4=1,C$2<>""),C32<>""),C33-C32,"") ->  | D69: =IF(AND(Einstellungen!$K$9=1,OR(D$4=1,D$2<>""),D32<>""),D33-D32,"") ->  | E69: =IF(AND(Einstellungen!$K$9=1,OR(E$4=1,E$2<>""),E32<>""),E33-E32,"") ->  | F69: =IF(AND(Einstellungen!$K$9=1,OR(F$4=1,F$2<>""),F32<>""),F33-F32,"") ->  | G69: =IF(AND(Einstellungen!$K$9=1,OR(G$4=1,G$2<>""),G32<>""),G33-G32,"") ->  | H69: =IF(AND(Einstellungen!$K$9=1,OR(H$4=1,H$2<>""),H32<>""),H33-H32,"") ->  | I69: =IF(AND(Einstellungen!$K$9=1,OR(I$4=1,I$2<>""),I32<>""),I33-I32,"") ->  | J69: =IF(AND(Einstellungen!$K$9=1,OR(J$4=1,J$2<>""),J32<>""),J33-J32,"") ->  | K69: =IF(AND(Einstellungen!$K$9=1,OR(K$4=1,K$2<>""),K32<>""),K33-K32,"") ->  | L69: =IF(AND(Einstellungen!$K$9=1,OR(L$4=1,L$2<>""),L32<>""),L33-L32,"") ->  | M69: =IF(AND(Einstellungen!$K$9=1,OR(M$4=1,M$2<>""),M32<>""),M33-M32,"") ->  | N69: =IF(AND(Einstellungen!$K$9=1,OR(N$4=1,N$2<>""),N32<>""),N33-N32,"") ->  | O69: =IF(AND(Einstellungen!$K$9=1,OR(O$4=1,O$2<>""),O32<>""),O33-O32,"") ->  | P69: =IF(AND(Einstellungen!$K$9=1,OR(P$4=1,P$2<>""),P32<>""),P33-P32,"") ->  | Q69: =IF(AND(Einstellungen!$K$9=1,OR(Q$4=1,Q$2<>""),Q32<>""),Q33-Q32,"") ->  | R69: =IF(AND(Einstellungen!$K$9=1,OR(R$4=1,R$2<>""),R32<>""),R33-R32,"") ->  | S69: =IF(AND(Einstellungen!$K$9=1,OR(S$4=1,S$2<>""),S32<>""),S33-S32,"") ->  | T69: =IF(AND(Einstellungen!$K$9=1,OR(T$4=1,T$2<>""),T32<>""),T33-T32,"") ->  | U69: =IF(AND(Einstellungen!$K$9=1,OR(U$4=1,U$2<>""),U32<>""),U33-U32,"") ->  | V69: =IF(AND(Einstellungen!$K$9=1,OR(V$4=1,V$2<>""),V32<>""),V33-V32,"") ->  | W69: =IF(AND(Einstellungen!$K$9=1,OR(W$4=1,W$2<>""),W32<>""),W33-W32,"") ->  | X69: =IF(AND(Einstellungen!$K$9=1,OR(X$4=1,X$2<>""),X32<>""),X33-X32,"") ->  | Y69: =IF(AND(Einstellungen!$K$9=1,OR(Y$4=1,Y$2<>""),Y32<>""),Y33-Y32,"") ->  | Z69: =IF(AND(Einstellungen!$K$9=1,OR(Z$4=1,Z$2<>""),Z32<>""),Z33-Z32,"") ->  | AA69: =IF(AND(Einstellungen!$K$9=1,OR(AA$4=1,AA$2<>""),AA32<>""),AA33-AA32,"") ->  | AB69: =IF(AND(Einstellungen!$K$9=1,OR(AB$4=1,AB$2<>""),AB32<>""),AB33-AB32,"") ->  | AC69: =IF(AND(Einstellungen!$K$9=1,OR(AC$4=1,AC$2<>""),AC32<>""),AC33-AC32,"") ->  | AD69: =IF(AND(Einstellungen!$K$9=1,OR(AD$4=1,AD$2<>""),AD32<>""),AD33-AD32,"") ->  | AE69: =IF(AND(Einstellungen!$K$9=1,OR(AE$4=1,AE$2<>""),AE32<>""),AE33-AE32,"") ->  | AF69: =IF(AND(Einstellungen!$K$9=1,OR(AF$4=1,AF$2<>""),AF32<>""),AF33-AF32,"") ->  | AG69: =IF(AND(Einstellungen!$K$9=1,OR(AG$4=1,AG$2<>""),AG32<>""),AG33-AG32,"") -> 
B70: =IF(Einstellungen!$B$5>4,"5","") ->  | C70: =IF(AND(Einstellungen!$K$9=1,OR(C$4=1,C$2<>""),C36<>""),C37-C36,"") ->  | D70: =IF(AND(Einstellungen!$K$9=1,OR(D$4=1,D$2<>""),D36<>""),D37-D36,"") ->  | E70: =IF(AND(Einstellungen!$K$9=1,OR(E$4=1,E$2<>""),E36<>""),E37-E36,"") ->  | F70: =IF(AND(Einstellungen!$K$9=1,OR(F$4=1,F$2<>""),F36<>""),F37-F36,"") ->  | G70: =IF(AND(Einstellungen!$K$9=1,OR(G$4=1,G$2<>""),G36<>""),G37-G36,"") ->  | H70: =IF(AND(Einstellungen!$K$9=1,OR(H$4=1,H$2<>""),H36<>""),H37-H36,"") ->  | I70: =IF(AND(Einstellungen!$K$9=1,OR(I$4=1,I$2<>""),I36<>""),I37-I36,"") ->  | J70: =IF(AND(Einstellungen!$K$9=1,OR(J$4=1,J$2<>""),J36<>""),J37-J36,"") ->  | K70: =IF(AND(Einstellungen!$K$9=1,OR(K$4=1,K$2<>""),K36<>""),K37-K36,"") ->  | L70: =IF(AND(Einstellungen!$K$9=1,OR(L$4=1,L$2<>""),L36<>""),L37-L36,"") ->  | M70: =IF(AND(Einstellungen!$K$9=1,OR(M$4=1,M$2<>""),M36<>""),M37-M36,"") ->  | N70: =IF(AND(Einstellungen!$K$9=1,OR(N$4=1,N$2<>""),N36<>""),N37-N36,"") ->  | O70: =IF(AND(Einstellungen!$K$9=1,OR(O$4=1,O$2<>""),O36<>""),O37-O36,"") ->  | P70: =IF(AND(Einstellungen!$K$9=1,OR(P$4=1,P$2<>""),P36<>""),P37-P36,"") ->  | Q70: =IF(AND(Einstellungen!$K$9=1,OR(Q$4=1,Q$2<>""),Q36<>""),Q37-Q36,"") ->  | R70: =IF(AND(Einstellungen!$K$9=1,OR(R$4=1,R$2<>""),R36<>""),R37-R36,"") ->  | S70: =IF(AND(Einstellungen!$K$9=1,OR(S$4=1,S$2<>""),S36<>""),S37-S36,"") ->  | T70: =IF(AND(Einstellungen!$K$9=1,OR(T$4=1,T$2<>""),T36<>""),T37-T36,"") ->  | U70: =IF(AND(Einstellungen!$K$9=1,OR(U$4=1,U$2<>""),U36<>""),U37-U36,"") ->  | V70: =IF(AND(Einstellungen!$K$9=1,OR(V$4=1,V$2<>""),V36<>""),V37-V36,"") ->  | W70: =IF(AND(Einstellungen!$K$9=1,OR(W$4=1,W$2<>""),W36<>""),W37-W36,"") ->  | X70: =IF(AND(Einstellungen!$K$9=1,OR(X$4=1,X$2<>""),X36<>""),X37-X36,"") ->  | Y70: =IF(AND(Einstellungen!$K$9=1,OR(Y$4=1,Y$2<>""),Y36<>""),Y37-Y36,"") ->  | Z70: =IF(AND(Einstellungen!$K$9=1,OR(Z$4=1,Z$2<>""),Z36<>""),Z37-Z36,"") ->  | AA70: =IF(AND(Einstellungen!$K$9=1,OR(AA$4=1,AA$2<>""),AA36<>""),AA37-AA36,"") ->  | AB70: =IF(AND(Einstellungen!$K$9=1,OR(AB$4=1,AB$2<>""),AB36<>""),AB37-AB36,"") ->  | AC70: =IF(AND(Einstellungen!$K$9=1,OR(AC$4=1,AC$2<>""),AC36<>""),AC37-AC36,"") ->  | AD70: =IF(AND(Einstellungen!$K$9=1,OR(AD$4=1,AD$2<>""),AD36<>""),AD37-AD36,"") ->  | AE70: =IF(AND(Einstellungen!$K$9=1,OR(AE$4=1,AE$2<>""),AE36<>""),AE37-AE36,"") ->  | AF70: =IF(AND(Einstellungen!$K$9=1,OR(AF$4=1,AF$2<>""),AF36<>""),AF37-AF36,"") ->  | AG70: =IF(AND(Einstellungen!$K$9=1,OR(AG$4=1,AG$2<>""),AG36<>""),AG37-AG36,"") -> 
A72: Pausenabzug | B72: =IF(Einstellungen!$K$14=1,"1","") -> 1 | C72: =IF(AND(Einstellungen!$K$14=1,C20<>""),IF((C21-C20)-IF(Einstellungen!$K$6>Einstellungen!$M$6,(IF(C21<Einstellungen!$K$6,0,C21-IF(C20>Einstellungen!$K$6,C20,Einstellungen!$K$6)))+(IF(C21>Einstellungen!$M$6,Einstellungen!$M$6,C21)-C20),IF(OR(C20>Einstellungen!$M$6,C21<Einstellungen!$K$6),0,IF(C21>Einstellungen!$M$6,Einstellungen!$M$6,C21)-IF(C20<Einstellungen!$K$6,Einstellungen!$K$6,C20)))>Einstellungen!$K$16,Einstellungen!$O$16,IF((C21-C20)-IF(Einstellungen!$K$6>Einstellungen!$M$6,(IF(C21<Einstellungen!$K$6,0,C21-IF(C20>Einstellungen!$K$6,C20,Einstellungen!$K$6)))+(IF(C21>Einstellungen!$M$6,Einstellungen!$M$6,C21)-C20),IF(OR(C20>Einstellungen!$M$6,C21<Einstellungen!$K$6),0,IF(C21>Einstellungen!$M$6,Einstellungen!$M$6,C21)-IF(C20<Einstellungen!$K$6,Einstellungen!$K$6,C20)))>Einstellungen!$K$15,Einstellungen!$O$15,0)),0) -> 0 | D72: =IF(AND(Einstellungen!$K$14=1,D20<>""),IF((D21-D20)-IF(Einstellungen!$K$6>Einstellungen!$M$6,(IF(D21<Einstellungen!$K$6,0,D21-IF(D20>Einstellungen!$K$6,D20,Einstellungen!$K$6)))+(IF(D21>Einstellungen!$M$6,Einstellungen!$M$6,D21)-D20),IF(OR(D20>Einstellungen!$M$6,D21<Einstellungen!$K$6),0,IF(D21>Einstellungen!$M$6,Einstellungen!$M$6,D21)-IF(D20<Einstellungen!$K$6,Einstellungen!$K$6,D20)))>Einstellungen!$K$16,Einstellungen!$O$16,IF((D21-D20)-IF(Einstellungen!$K$6>Einstellungen!$M$6,(IF(D21<Einstellungen!$K$6,0,D21-IF(D20>Einstellungen!$K$6,D20,Einstellungen!$K$6)))+(IF(D21>Einstellungen!$M$6,Einstellungen!$M$6,D21)-D20),IF(OR(D20>Einstellungen!$M$6,D21<Einstellungen!$K$6),0,IF(D21>Einstellungen!$M$6,Einstellungen!$M$6,D21)-IF(D20<Einstellungen!$K$6,Einstellungen!$K$6,D20)))>Einstellungen!$K$15,Einstellungen!$O$15,0)),0) -> 0 | E72: =IF(AND(Einstellungen!$K$14=1,E20<>""),IF((E21-E20)-IF(Einstellungen!$K$6>Einstellungen!$M$6,(IF(E21<Einstellungen!$K$6,0,E21-IF(E20>Einstellungen!$K$6,E20,Einstellungen!$K$6)))+(IF(E21>Einstellungen!$M$6,Einstellungen!$M$6,E21)-E20),IF(OR(E20>Einstellungen!$M$6,E21<Einstellungen!$K$6),0,IF(E21>Einstellungen!$M$6,Einstellungen!$M$6,E21)-IF(E20<Einstellungen!$K$6,Einstellungen!$K$6,E20)))>Einstellungen!$K$16,Einstellungen!$O$16,IF((E21-E20)-IF(Einstellungen!$K$6>Einstellungen!$M$6,(IF(E21<Einstellungen!$K$6,0,E21-IF(E20>Einstellungen!$K$6,E20,Einstellungen!$K$6)))+(IF(E21>Einstellungen!$M$6,Einstellungen!$M$6,E21)-E20),IF(OR(E20>Einstellungen!$M$6,E21<Einstellungen!$K$6),0,IF(E21>Einstellungen!$M$6,Einstellungen!$M$6,E21)-IF(E20<Einstellungen!$K$6,Einstellungen!$K$6,E20)))>Einstellungen!$K$15,Einstellungen!$O$15,0)),0) -> 0 | F72: =IF(AND(Einstellungen!$K$14=1,F20<>""),IF((F21-F20)-IF(Einstellungen!$K$6>Einstellungen!$M$6,(IF(F21<Einstellungen!$K$6,0,F21-IF(F20>Einstellungen!$K$6,F20,Einstellungen!$K$6)))+(IF(F21>Einstellungen!$M$6,Einstellungen!$M$6,F21)-F20),IF(OR(F20>Einstellungen!$M$6,F21<Einstellungen!$K$6),0,IF(F21>Einstellungen!$M$6,Einstellungen!$M$6,F21)-IF(F20<Einstellungen!$K$6,Einstellungen!$K$6,F20)))>Einstellungen!$K$16,Einstellungen!$O$16,IF((F21-F20)-IF(Einstellungen!$K$6>Einstellungen!$M$6,(IF(F21<Einstellungen!$K$6,0,F21-IF(F20>Einstellungen!$K$6,F20,Einstellungen!$K$6)))+(IF(F21>Einstellungen!$M$6,Einstellungen!$M$6,F21)-F20),IF(OR(F20>Einstellungen!$M$6,F21<Einstellungen!$K$6),0,IF(F21>Einstellungen!$M$6,Einstellungen!$M$6,F21)-IF(F20<Einstellungen!$K$6,Einstellungen!$K$6,F20)))>Einstellungen!$K$15,Einstellungen!$O$15,0)),0) -> 0 | G72: =IF(AND(Einstellungen!$K$14=1,G20<>""),IF((G21-G20)-IF(Einstellungen!$K$6>Einstellungen!$M$6,(IF(G21<Einstellungen!$K$6,0,G21-IF(G20>Einstellungen!$K$6,G20,Einstellungen!$K$6)))+(IF(G21>Einstellungen!$M$6,Einstellungen!$M$6,G21)-G20),IF(OR(G20>Einstellungen!$M$6,G21<Einstellungen!$K$6),0,IF(G21>Einstellungen!$M$6,Einstellungen!$M$6,G21)-IF(G20<Einstellungen!$K$6,Einstellungen!$K$6,G20)))>Einstellungen!$K$16,Einstellungen!$O$16,IF((G21-G20)-IF(Einstellungen!$K$6>Einstellungen!$M$6,(IF(G21<Einstellungen!$K$6,0,G21-IF(G20>Einstellungen!$K$6,G20,Einstellungen!$K$6)))+(IF(G21>Einstellungen!$M$6,Einstellungen!$M$6,G21)-G20),IF(OR(G20>Einstellungen!$M$6,G21<Einstellungen!$K$6),0,IF(G21>Einstellungen!$M$6,Einstellungen!$M$6,G21)-IF(G20<Einstellungen!$K$6,Einstellungen!$K$6,G20)))>Einstellungen!$K$15,Einstellungen!$O$15,0)),0) -> 0 | H72: =IF(AND(Einstellungen!$K$14=1,H20<>""),IF((H21-H20)-IF(Einstellungen!$K$6>Einstellungen!$M$6,(IF(H21<Einstellungen!$K$6,0,H21-IF(H20>Einstellungen!$K$6,H20,Einstellungen!$K$6)))+(IF(H21>Einstellungen!$M$6,Einstellungen!$M$6,H21)-H20),IF(OR(H20>Einstellungen!$M$6,H21<Einstellungen!$K$6),0,IF(H21>Einstellungen!$M$6,Einstellungen!$M$6,H21)-IF(H20<Einstellungen!$K$6,Einstellungen!$K$6,H20)))>Einstellungen!$K$16,Einstellungen!$O$16,IF((H21-H20)-IF(Einstellungen!$K$6>Einstellungen!$M$6,(IF(H21<Einstellungen!$K$6,0,H21-IF(H20>Einstellungen!$K$6,H20,Einstellungen!$K$6)))+(IF(H21>Einstellungen!$M$6,Einstellungen!$M$6,H21)-H20),IF(OR(H20>Einstellungen!$M$6,H21<Einstellungen!$K$6),0,IF(H21>Einstellungen!$M$6,Einstellungen!$M$6,H21)-IF(H20<Einstellungen!$K$6,Einstellungen!$K$6,H20)))>Einstellungen!$K$15,Einstellungen!$O$15,0)),0) -> 0 | I72: =IF(AND(Einstellungen!$K$14=1,I20<>""),IF((I21-I20)-IF(Einstellungen!$K$6>Einstellungen!$M$6,(IF(I21<Einstellungen!$K$6,0,I21-IF(I20>Einstellungen!$K$6,I20,Einstellungen!$K$6)))+(IF(I21>Einstellungen!$M$6,Einstellungen!$M$6,I21)-I20),IF(OR(I20>Einstellungen!$M$6,I21<Einstellungen!$K$6),0,IF(I21>Einstellungen!$M$6,Einstellungen!$M$6,I21)-IF(I20<Einstellungen!$K$6,Einstellungen!$K$6,I20)))>Einstellungen!$K$16,Einstellungen!$O$16,IF((I21-I20)-IF(Einstellungen!$K$6>Einstellungen!$M$6,(IF(I21<Einstellungen!$K$6,0,I21-IF(I20>Einstellungen!$K$6,I20,Einstellungen!$K$6)))+(IF(I21>Einstellungen!$M$6,Einstellungen!$M$6,I21)-I20),IF(OR(I20>Einstellungen!$M$6,I21<Einstellungen!$K$6),0,IF(I21>Einstellungen!$M$6,Einstellungen!$M$6,I21)-IF(I20<Einstellungen!$K$6,Einstellungen!$K$6,I20)))>Einstellungen!$K$15,Einstellungen!$O$15,0)),0) -> 0 | J72: =IF(AND(Einstellungen!$K$14=1,J20<>""),IF((J21-J20)-IF(Einstellungen!$K$6>Einstellungen!$M$6,(IF(J21<Einstellungen!$K$6,0,J21-IF(J20>Einstellungen!$K$6,J20,Einstellungen!$K$6)))+(IF(J21>Einstellungen!$M$6,Einstellungen!$M$6,J21)-J20),IF(OR(J20>Einstellungen!$M$6,J21<Einstellungen!$K$6),0,IF(J21>Einstellungen!$M$6,Einstellungen!$M$6,J21)-IF(J20<Einstellungen!$K$6,Einstellungen!$K$6,J20)))>Einstellungen!$K$16,Einstellungen!$O$16,IF((J21-J20)-IF(Einstellungen!$K$6>Einstellungen!$M$6,(IF(J21<Einstellungen!$K$6,0,J21-IF(J20>Einstellungen!$K$6,J20,Einstellungen!$K$6)))+(IF(J21>Einstellungen!$M$6,Einstellungen!$M$6,J21)-J20),IF(OR(J20>Einstellungen!$M$6,J21<Einstellungen!$K$6),0,IF(J21>Einstellungen!$M$6,Einstellungen!$M$6,J21)-IF(J20<Einstellungen!$K$6,Einstellungen!$K$6,J20)))>Einstellungen!$K$15,Einstellungen!$O$15,0)),0) -> 0 | K72: =IF(AND(Einstellungen!$K$14=1,K20<>""),IF((K21-K20)-IF(Einstellungen!$K$6>Einstellungen!$M$6,(IF(K21<Einstellungen!$K$6,0,K21-IF(K20>Einstellungen!$K$6,K20,Einstellungen!$K$6)))+(IF(K21>Einstellungen!$M$6,Einstellungen!$M$6,K21)-K20),IF(OR(K20>Einstellungen!$M$6,K21<Einstellungen!$K$6),0,IF(K21>Einstellungen!$M$6,Einstellungen!$M$6,K21)-IF(K20<Einstellungen!$K$6,Einstellungen!$K$6,K20)))>Einstellungen!$K$16,Einstellungen!$O$16,IF((K21-K20)-IF(Einstellungen!$K$6>Einstellungen!$M$6,(IF(K21<Einstellungen!$K$6,0,K21-IF(K20>Einstellungen!$K$6,K20,Einstellungen!$K$6)))+(IF(K21>Einstellungen!$M$6,Einstellungen!$M$6,K21)-K20),IF(OR(K20>Einstellungen!$M$6,K21<Einstellungen!$K$6),0,IF(K21>Einstellungen!$M$6,Einstellungen!$M$6,K21)-IF(K20<Einstellungen!$K$6,Einstellungen!$K$6,K20)))>Einstellungen!$K$15,Einstellungen!$O$15,0)),0) -> 0 | L72: =IF(AND(Einstellungen!$K$14=1,L20<>""),IF((L21-L20)-IF(Einstellungen!$K$6>Einstellungen!$M$6,(IF(L21<Einstellungen!$K$6,0,L21-IF(L20>Einstellungen!$K$6,L20,Einstellungen!$K$6)))+(IF(L21>Einstellungen!$M$6,Einstellungen!$M$6,L21)-L20),IF(OR(L20>Einstellungen!$M$6,L21<Einstellungen!$K$6),0,IF(L21>Einstellungen!$M$6,Einstellungen!$M$6,L21)-IF(L20<Einstellungen!$K$6,Einstellungen!$K$6,L20)))>Einstellungen!$K$16,Einstellungen!$O$16,IF((L21-L20)-IF(Einstellungen!$K$6>Einstellungen!$M$6,(IF(L21<Einstellungen!$K$6,0,L21-IF(L20>Einstellungen!$K$6,L20,Einstellungen!$K$6)))+(IF(L21>Einstellungen!$M$6,Einstellungen!$M$6,L21)-L20),IF(OR(L20>Einstellungen!$M$6,L21<Einstellungen!$K$6),0,IF(L21>Einstellungen!$M$6,Einstellungen!$M$6,L21)-IF(L20<Einstellungen!$K$6,Einstellungen!$K$6,L20)))>Einstellungen!$K$15,Einstellungen!$O$15,0)),0) -> 0 | M72: =IF(AND(Einstellungen!$K$14=1,M20<>""),IF((M21-M20)-IF(Einstellungen!$K$6>Einstellungen!$M$6,(IF(M21<Einstellungen!$K$6,0,M21-IF(M20>Einstellungen!$K$6,M20,Einstellungen!$K$6)))+(IF(M21>Einstellungen!$M$6,Einstellungen!$M$6,M21)-M20),IF(OR(M20>Einstellungen!$M$6,M21<Einstellungen!$K$6),0,IF(M21>Einstellungen!$M$6,Einstellungen!$M$6,M21)-IF(M20<Einstellungen!$K$6,Einstellungen!$K$6,M20)))>Einstellungen!$K$16,Einstellungen!$O$16,IF((M21-M20)-IF(Einstellungen!$K$6>Einstellungen!$M$6,(IF(M21<Einstellungen!$K$6,0,M21-IF(M20>Einstellungen!$K$6,M20,Einstellungen!$K$6)))+(IF(M21>Einstellungen!$M$6,Einstellungen!$M$6,M21)-M20),IF(OR(M20>Einstellungen!$M$6,M21<Einstellungen!$K$6),0,IF(M21>Einstellungen!$M$6,Einstellungen!$M$6,M21)-IF(M20<Einstellungen!$K$6,Einstellungen!$K$6,M20)))>Einstellungen!$K$15,Einstellungen!$O$15,0)),0) -> 0 | N72: =IF(AND(Einstellungen!$K$14=1,N20<>""),IF((N21-N20)-IF(Einstellungen!$K$6>Einstellungen!$M$6,(IF(N21<Einstellungen!$K$6,0,N21-IF(N20>Einstellungen!$K$6,N20,Einstellungen!$K$6)))+(IF(N21>Einstellungen!$M$6,Einstellungen!$M$6,N21)-N20),IF(OR(N20>Einstellungen!$M$6,N21<Einstellungen!$K$6),0,IF(N21>Einstellungen!$M$6,Einstellungen!$M$6,N21)-IF(N20<Einstellungen!$K$6,Einstellungen!$K$6,N20)))>Einstellungen!$K$16,Einstellungen!$O$16,IF((N21-N20)-IF(Einstellungen!$K$6>Einstellungen!$M$6,(IF(N21<Einstellungen!$K$6,0,N21-IF(N20>Einstellungen!$K$6,N20,Einstellungen!$K$6)))+(IF(N21>Einstellungen!$M$6,Einstellungen!$M$6,N21)-N20),IF(OR(N20>Einstellungen!$M$6,N21<Einstellungen!$K$6),0,IF(N21>Einstellungen!$M$6,Einstellungen!$M$6,N21)-IF(N20<Einstellungen!$K$6,Einstellungen!$K$6,N20)))>Einstellungen!$K$15,Einstellungen!$O$15,0)),0) -> 0 | O72: =IF(AND(Einstellungen!$K$14=1,O20<>""),IF((O21-O20)-IF(Einstellungen!$K$6>Einstellungen!$M$6,(IF(O21<Einstellungen!$K$6,0,O21-IF(O20>Einstellungen!$K$6,O20,Einstellungen!$K$6)))+(IF(O21>Einstellungen!$M$6,Einstellungen!$M$6,O21)-O20),IF(OR(O20>Einstellungen!$M$6,O21<Einstellungen!$K$6),0,IF(O21>Einstellungen!$M$6,Einstellungen!$M$6,O21)-IF(O20<Einstellungen!$K$6,Einstellungen!$K$6,O20)))>Einstellungen!$K$16,Einstellungen!$O$16,IF((O21-O20)-IF(Einstellungen!$K$6>Einstellungen!$M$6,(IF(O21<Einstellungen!$K$6,0,O21-IF(O20>Einstellungen!$K$6,O20,Einstellungen!$K$6)))+(IF(O21>Einstellungen!$M$6,Einstellungen!$M$6,O21)-O20),IF(OR(O20>Einstellungen!$M$6,O21<Einstellungen!$K$6),0,IF(O21>Einstellungen!$M$6,Einstellungen!$M$6,O21)-IF(O20<Einstellungen!$K$6,Einstellungen!$K$6,O20)))>Einstellungen!$K$15,Einstellungen!$O$15,0)),0) -> 0 | P72: =IF(AND(Einstellungen!$K$14=1,P20<>""),IF((P21-P20)-IF(Einstellungen!$K$6>Einstellungen!$M$6,(IF(P21<Einstellungen!$K$6,0,P21-IF(P20>Einstellungen!$K$6,P20,Einstellungen!$K$6)))+(IF(P21>Einstellungen!$M$6,Einstellungen!$M$6,P21)-P20),IF(OR(P20>Einstellungen!$M$6,P21<Einstellungen!$K$6),0,IF(P21>Einstellungen!$M$6,Einstellungen!$M$6,P21)-IF(P20<Einstellungen!$K$6,Einstellungen!$K$6,P20)))>Einstellungen!$K$16,Einstellungen!$O$16,IF((P21-P20)-IF(Einstellungen!$K$6>Einstellungen!$M$6,(IF(P21<Einstellungen!$K$6,0,P21-IF(P20>Einstellungen!$K$6,P20,Einstellungen!$K$6)))+(IF(P21>Einstellungen!$M$6,Einstellungen!$M$6,P21)-P20),IF(OR(P20>Einstellungen!$M$6,P21<Einstellungen!$K$6),0,IF(P21>Einstellungen!$M$6,Einstellungen!$M$6,P21)-IF(P20<Einstellungen!$K$6,Einstellungen!$K$6,P20)))>Einstellungen!$K$15,Einstellungen!$O$15,0)),0) -> 0 | Q72: =IF(AND(Einstellungen!$K$14=1,Q20<>""),IF((Q21-Q20)-IF(Einstellungen!$K$6>Einstellungen!$M$6,(IF(Q21<Einstellungen!$K$6,0,Q21-IF(Q20>Einstellungen!$K$6,Q20,Einstellungen!$K$6)))+(IF(Q21>Einstellungen!$M$6,Einstellungen!$M$6,Q21)-Q20),IF(OR(Q20>Einstellungen!$M$6,Q21<Einstellungen!$K$6),0,IF(Q21>Einstellungen!$M$6,Einstellungen!$M$6,Q21)-IF(Q20<Einstellungen!$K$6,Einstellungen!$K$6,Q20)))>Einstellungen!$K$16,Einstellungen!$O$16,IF((Q21-Q20)-IF(Einstellungen!$K$6>Einstellungen!$M$6,(IF(Q21<Einstellungen!$K$6,0,Q21-IF(Q20>Einstellungen!$K$6,Q20,Einstellungen!$K$6)))+(IF(Q21>Einstellungen!$M$6,Einstellungen!$M$6,Q21)-Q20),IF(OR(Q20>Einstellungen!$M$6,Q21<Einstellungen!$K$6),0,IF(Q21>Einstellungen!$M$6,Einstellungen!$M$6,Q21)-IF(Q20<Einstellungen!$K$6,Einstellungen!$K$6,Q20)))>Einstellungen!$K$15,Einstellungen!$O$15,0)),0) -> 0 | R72: =IF(AND(Einstellungen!$K$14=1,R20<>""),IF((R21-R20)-IF(Einstellungen!$K$6>Einstellungen!$M$6,(IF(R21<Einstellungen!$K$6,0,R21-IF(R20>Einstellungen!$K$6,R20,Einstellungen!$K$6)))+(IF(R21>Einstellungen!$M$6,Einstellungen!$M$6,R21)-R20),IF(OR(R20>Einstellungen!$M$6,R21<Einstellungen!$K$6),0,IF(R21>Einstellungen!$M$6,Einstellungen!$M$6,R21)-IF(R20<Einstellungen!$K$6,Einstellungen!$K$6,R20)))>Einstellungen!$K$16,Einstellungen!$O$16,IF((R21-R20)-IF(Einstellungen!$K$6>Einstellungen!$M$6,(IF(R21<Einstellungen!$K$6,0,R21-IF(R20>Einstellungen!$K$6,R20,Einstellungen!$K$6)))+(IF(R21>Einstellungen!$M$6,Einstellungen!$M$6,R21)-R20),IF(OR(R20>Einstellungen!$M$6,R21<Einstellungen!$K$6),0,IF(R21>Einstellungen!$M$6,Einstellungen!$M$6,R21)-IF(R20<Einstellungen!$K$6,Einstellungen!$K$6,R20)))>Einstellungen!$K$15,Einstellungen!$O$15,0)),0) -> 0 | S72: =IF(AND(Einstellungen!$K$14=1,S20<>""),IF((S21-S20)-IF(Einstellungen!$K$6>Einstellungen!$M$6,(IF(S21<Einstellungen!$K$6,0,S21-IF(S20>Einstellungen!$K$6,S20,Einstellungen!$K$6)))+(IF(S21>Einstellungen!$M$6,Einstellungen!$M$6,S21)-S20),IF(OR(S20>Einstellungen!$M$6,S21<Einstellungen!$K$6),0,IF(S21>Einstellungen!$M$6,Einstellungen!$M$6,S21)-IF(S20<Einstellungen!$K$6,Einstellungen!$K$6,S20)))>Einstellungen!$K$16,Einstellungen!$O$16,IF((S21-S20)-IF(Einstellungen!$K$6>Einstellungen!$M$6,(IF(S21<Einstellungen!$K$6,0,S21-IF(S20>Einstellungen!$K$6,S20,Einstellungen!$K$6)))+(IF(S21>Einstellungen!$M$6,Einstellungen!$M$6,S21)-S20),IF(OR(S20>Einstellungen!$M$6,S21<Einstellungen!$K$6),0,IF(S21>Einstellungen!$M$6,Einstellungen!$M$6,S21)-IF(S20<Einstellungen!$K$6,Einstellungen!$K$6,S20)))>Einstellungen!$K$15,Einstellungen!$O$15,0)),0) -> 0 | T72: =IF(AND(Einstellungen!$K$14=1,T20<>""),IF((T21-T20)-IF(Einstellungen!$K$6>Einstellungen!$M$6,(IF(T21<Einstellungen!$K$6,0,T21-IF(T20>Einstellungen!$K$6,T20,Einstellungen!$K$6)))+(IF(T21>Einstellungen!$M$6,Einstellungen!$M$6,T21)-T20),IF(OR(T20>Einstellungen!$M$6,T21<Einstellungen!$K$6),0,IF(T21>Einstellungen!$M$6,Einstellungen!$M$6,T21)-IF(T20<Einstellungen!$K$6,Einstellungen!$K$6,T20)))>Einstellungen!$K$16,Einstellungen!$O$16,IF((T21-T20)-IF(Einstellungen!$K$6>Einstellungen!$M$6,(IF(T21<Einstellungen!$K$6,0,T21-IF(T20>Einstellungen!$K$6,T20,Einstellungen!$K$6)))+(IF(T21>Einstellungen!$M$6,Einstellungen!$M$6,T21)-T20),IF(OR(T20>Einstellungen!$M$6,T21<Einstellungen!$K$6),0,IF(T21>Einstellungen!$M$6,Einstellungen!$M$6,T21)-IF(T20<Einstellungen!$K$6,Einstellungen!$K$6,T20)))>Einstellungen!$K$15,Einstellungen!$O$15,0)),0) -> 0 | U72: =IF(AND(Einstellungen!$K$14=1,U20<>""),IF((U21-U20)-IF(Einstellungen!$K$6>Einstellungen!$M$6,(IF(U21<Einstellungen!$K$6,0,U21-IF(U20>Einstellungen!$K$6,U20,Einstellungen!$K$6)))+(IF(U21>Einstellungen!$M$6,Einstellungen!$M$6,U21)-U20),IF(OR(U20>Einstellungen!$M$6,U21<Einstellungen!$K$6),0,IF(U21>Einstellungen!$M$6,Einstellungen!$M$6,U21)-IF(U20<Einstellungen!$K$6,Einstellungen!$K$6,U20)))>Einstellungen!$K$16,Einstellungen!$O$16,IF((U21-U20)-IF(Einstellungen!$K$6>Einstellungen!$M$6,(IF(U21<Einstellungen!$K$6,0,U21-IF(U20>Einstellungen!$K$6,U20,Einstellungen!$K$6)))+(IF(U21>Einstellungen!$M$6,Einstellungen!$M$6,U21)-U20),IF(OR(U20>Einstellungen!$M$6,U21<Einstellungen!$K$6),0,IF(U21>Einstellungen!$M$6,Einstellungen!$M$6,U21)-IF(U20<Einstellungen!$K$6,Einstellungen!$K$6,U20)))>Einstellungen!$K$15,Einstellungen!$O$15,0)),0) -> 0 | V72: =IF(AND(Einstellungen!$K$14=1,V20<>""),IF((V21-V20)-IF(Einstellungen!$K$6>Einstellungen!$M$6,(IF(V21<Einstellungen!$K$6,0,V21-IF(V20>Einstellungen!$K$6,V20,Einstellungen!$K$6)))+(IF(V21>Einstellungen!$M$6,Einstellungen!$M$6,V21)-V20),IF(OR(V20>Einstellungen!$M$6,V21<Einstellungen!$K$6),0,IF(V21>Einstellungen!$M$6,Einstellungen!$M$6,V21)-IF(V20<Einstellungen!$K$6,Einstellungen!$K$6,V20)))>Einstellungen!$K$16,Einstellungen!$O$16,IF((V21-V20)-IF(Einstellungen!$K$6>Einstellungen!$M$6,(IF(V21<Einstellungen!$K$6,0,V21-IF(V20>Einstellungen!$K$6,V20,Einstellungen!$K$6)))+(IF(V21>Einstellungen!$M$6,Einstellungen!$M$6,V21)-V20),IF(OR(V20>Einstellungen!$M$6,V21<Einstellungen!$K$6),0,IF(V21>Einstellungen!$M$6,Einstellungen!$M$6,V21)-IF(V20<Einstellungen!$K$6,Einstellungen!$K$6,V20)))>Einstellungen!$K$15,Einstellungen!$O$15,0)),0) -> 0 | W72: =IF(AND(Einstellungen!$K$14=1,W20<>""),IF((W21-W20)-IF(Einstellungen!$K$6>Einstellungen!$M$6,(IF(W21<Einstellungen!$K$6,0,W21-IF(W20>Einstellungen!$K$6,W20,Einstellungen!$K$6)))+(IF(W21>Einstellungen!$M$6,Einstellungen!$M$6,W21)-W20),IF(OR(W20>Einstellungen!$M$6,W21<Einstellungen!$K$6),0,IF(W21>Einstellungen!$M$6,Einstellungen!$M$6,W21)-IF(W20<Einstellungen!$K$6,Einstellungen!$K$6,W20)))>Einstellungen!$K$16,Einstellungen!$O$16,IF((W21-W20)-IF(Einstellungen!$K$6>Einstellungen!$M$6,(IF(W21<Einstellungen!$K$6,0,W21-IF(W20>Einstellungen!$K$6,W20,Einstellungen!$K$6)))+(IF(W21>Einstellungen!$M$6,Einstellungen!$M$6,W21)-W20),IF(OR(W20>Einstellungen!$M$6,W21<Einstellungen!$K$6),0,IF(W21>Einstellungen!$M$6,Einstellungen!$M$6,W21)-IF(W20<Einstellungen!$K$6,Einstellungen!$K$6,W20)))>Einstellungen!$K$15,Einstellungen!$O$15,0)),0) -> 0 | X72: =IF(AND(Einstellungen!$K$14=1,X20<>""),IF((X21-X20)-IF(Einstellungen!$K$6>Einstellungen!$M$6,(IF(X21<Einstellungen!$K$6,0,X21-IF(X20>Einstellungen!$K$6,X20,Einstellungen!$K$6)))+(IF(X21>Einstellungen!$M$6,Einstellungen!$M$6,X21)-X20),IF(OR(X20>Einstellungen!$M$6,X21<Einstellungen!$K$6),0,IF(X21>Einstellungen!$M$6,Einstellungen!$M$6,X21)-IF(X20<Einstellungen!$K$6,Einstellungen!$K$6,X20)))>Einstellungen!$K$16,Einstellungen!$O$16,IF((X21-X20)-IF(Einstellungen!$K$6>Einstellungen!$M$6,(IF(X21<Einstellungen!$K$6,0,X21-IF(X20>Einstellungen!$K$6,X20,Einstellungen!$K$6)))+(IF(X21>Einstellungen!$M$6,Einstellungen!$M$6,X21)-X20),IF(OR(X20>Einstellungen!$M$6,X21<Einstellungen!$K$6),0,IF(X21>Einstellungen!$M$6,Einstellungen!$M$6,X21)-IF(X20<Einstellungen!$K$6,Einstellungen!$K$6,X20)))>Einstellungen!$K$15,Einstellungen!$O$15,0)),0) -> 0 | Y72: =IF(AND(Einstellungen!$K$14=1,Y20<>""),IF((Y21-Y20)-IF(Einstellungen!$K$6>Einstellungen!$M$6,(IF(Y21<Einstellungen!$K$6,0,Y21-IF(Y20>Einstellungen!$K$6,Y20,Einstellungen!$K$6)))+(IF(Y21>Einstellungen!$M$6,Einstellungen!$M$6,Y21)-Y20),IF(OR(Y20>Einstellungen!$M$6,Y21<Einstellungen!$K$6),0,IF(Y21>Einstellungen!$M$6,Einstellungen!$M$6,Y21)-IF(Y20<Einstellungen!$K$6,Einstellungen!$K$6,Y20)))>Einstellungen!$K$16,Einstellungen!$O$16,IF((Y21-Y20)-IF(Einstellungen!$K$6>Einstellungen!$M$6,(IF(Y21<Einstellungen!$K$6,0,Y21-IF(Y20>Einstellungen!$K$6,Y20,Einstellungen!$K$6)))+(IF(Y21>Einstellungen!$M$6,Einstellungen!$M$6,Y21)-Y20),IF(OR(Y20>Einstellungen!$M$6,Y21<Einstellungen!$K$6),0,IF(Y21>Einstellungen!$M$6,Einstellungen!$M$6,Y21)-IF(Y20<Einstellungen!$K$6,Einstellungen!$K$6,Y20)))>Einstellungen!$K$15,Einstellungen!$O$15,0)),0) -> 0 | Z72: =IF(AND(Einstellungen!$K$14=1,Z20<>""),IF((Z21-Z20)-IF(Einstellungen!$K$6>Einstellungen!$M$6,(IF(Z21<Einstellungen!$K$6,0,Z21-IF(Z20>Einstellungen!$K$6,Z20,Einstellungen!$K$6)))+(IF(Z21>Einstellungen!$M$6,Einstellungen!$M$6,Z21)-Z20),IF(OR(Z20>Einstellungen!$M$6,Z21<Einstellungen!$K$6),0,IF(Z21>Einstellungen!$M$6,Einstellungen!$M$6,Z21)-IF(Z20<Einstellungen!$K$6,Einstellungen!$K$6,Z20)))>Einstellungen!$K$16,Einstellungen!$O$16,IF((Z21-Z20)-IF(Einstellungen!$K$6>Einstellungen!$M$6,(IF(Z21<Einstellungen!$K$6,0,Z21-IF(Z20>Einstellungen!$K$6,Z20,Einstellungen!$K$6)))+(IF(Z21>Einstellungen!$M$6,Einstellungen!$M$6,Z21)-Z20),IF(OR(Z20>Einstellungen!$M$6,Z21<Einstellungen!$K$6),0,IF(Z21>Einstellungen!$M$6,Einstellungen!$M$6,Z21)-IF(Z20<Einstellungen!$K$6,Einstellungen!$K$6,Z20)))>Einstellungen!$K$15,Einstellungen!$O$15,0)),0) -> 0 | AA72: =IF(AND(Einstellungen!$K$14=1,AA20<>""),IF((AA21-AA20)-IF(Einstellungen!$K$6>Einstellungen!$M$6,(IF(AA21<Einstellungen!$K$6,0,AA21-IF(AA20>Einstellungen!$K$6,AA20,Einstellungen!$K$6)))+(IF(AA21>Einstellungen!$M$6,Einstellungen!$M$6,AA21)-AA20),IF(OR(AA20>Einstellungen!$M$6,AA21<Einstellungen!$K$6),0,IF(AA21>Einstellungen!$M$6,Einstellungen!$M$6,AA21)-IF(AA20<Einstellungen!$K$6,Einstellungen!$K$6,AA20)))>Einstellungen!$K$16,Einstellungen!$O$16,IF((AA21-AA20)-IF(Einstellungen!$K$6>Einstellungen!$M$6,(IF(AA21<Einstellungen!$K$6,0,AA21-IF(AA20>Einstellungen!$K$6,AA20,Einstellungen!$K$6)))+(IF(AA21>Einstellungen!$M$6,Einstellungen!$M$6,AA21)-AA20),IF(OR(AA20>Einstellungen!$M$6,AA21<Einstellungen!$K$6),0,IF(AA21>Einstellungen!$M$6,Einstellungen!$M$6,AA21)-IF(AA20<Einstellungen!$K$6,Einstellungen!$K$6,AA20)))>Einstellungen!$K$15,Einstellungen!$O$15,0)),0) -> 0 | AB72: =IF(AND(Einstellungen!$K$14=1,AB20<>""),IF((AB21-AB20)-IF(Einstellungen!$K$6>Einstellungen!$M$6,(IF(AB21<Einstellungen!$K$6,0,AB21-IF(AB20>Einstellungen!$K$6,AB20,Einstellungen!$K$6)))+(IF(AB21>Einstellungen!$M$6,Einstellungen!$M$6,AB21)-AB20),IF(OR(AB20>Einstellungen!$M$6,AB21<Einstellungen!$K$6),0,IF(AB21>Einstellungen!$M$6,Einstellungen!$M$6,AB21)-IF(AB20<Einstellungen!$K$6,Einstellungen!$K$6,AB20)))>Einstellungen!$K$16,Einstellungen!$O$16,IF((AB21-AB20)-IF(Einstellungen!$K$6>Einstellungen!$M$6,(IF(AB21<Einstellungen!$K$6,0,AB21-IF(AB20>Einstellungen!$K$6,AB20,Einstellungen!$K$6)))+(IF(AB21>Einstellungen!$M$6,Einstellungen!$M$6,AB21)-AB20),IF(OR(AB20>Einstellungen!$M$6,AB21<Einstellungen!$K$6),0,IF(AB21>Einstellungen!$M$6,Einstellungen!$M$6,AB21)-IF(AB20<Einstellungen!$K$6,Einstellungen!$K$6,AB20)))>Einstellungen!$K$15,Einstellungen!$O$15,0)),0) -> 0 | AC72: =IF(AND(Einstellungen!$K$14=1,AC20<>""),IF((AC21-AC20)-IF(Einstellungen!$K$6>Einstellungen!$M$6,(IF(AC21<Einstellungen!$K$6,0,AC21-IF(AC20>Einstellungen!$K$6,AC20,Einstellungen!$K$6)))+(IF(AC21>Einstellungen!$M$6,Einstellungen!$M$6,AC21)-AC20),IF(OR(AC20>Einstellungen!$M$6,AC21<Einstellungen!$K$6),0,IF(AC21>Einstellungen!$M$6,Einstellungen!$M$6,AC21)-IF(AC20<Einstellungen!$K$6,Einstellungen!$K$6,AC20)))>Einstellungen!$K$16,Einstellungen!$O$16,IF((AC21-AC20)-IF(Einstellungen!$K$6>Einstellungen!$M$6,(IF(AC21<Einstellungen!$K$6,0,AC21-IF(AC20>Einstellungen!$K$6,AC20,Einstellungen!$K$6)))+(IF(AC21>Einstellungen!$M$6,Einstellungen!$M$6,AC21)-AC20),IF(OR(AC20>Einstellungen!$M$6,AC21<Einstellungen!$K$6),0,IF(AC21>Einstellungen!$M$6,Einstellungen!$M$6,AC21)-IF(AC20<Einstellungen!$K$6,Einstellungen!$K$6,AC20)))>Einstellungen!$K$15,Einstellungen!$O$15,0)),0) -> 0 | AD72: =IF(AND(Einstellungen!$K$14=1,AD20<>""),IF((AD21-AD20)-IF(Einstellungen!$K$6>Einstellungen!$M$6,(IF(AD21<Einstellungen!$K$6,0,AD21-IF(AD20>Einstellungen!$K$6,AD20,Einstellungen!$K$6)))+(IF(AD21>Einstellungen!$M$6,Einstellungen!$M$6,AD21)-AD20),IF(OR(AD20>Einstellungen!$M$6,AD21<Einstellungen!$K$6),0,IF(AD21>Einstellungen!$M$6,Einstellungen!$M$6,AD21)-IF(AD20<Einstellungen!$K$6,Einstellungen!$K$6,AD20)))>Einstellungen!$K$16,Einstellungen!$O$16,IF((AD21-AD20)-IF(Einstellungen!$K$6>Einstellungen!$M$6,(IF(AD21<Einstellungen!$K$6,0,AD21-IF(AD20>Einstellungen!$K$6,AD20,Einstellungen!$K$6)))+(IF(AD21>Einstellungen!$M$6,Einstellungen!$M$6,AD21)-AD20),IF(OR(AD20>Einstellungen!$M$6,AD21<Einstellungen!$K$6),0,IF(AD21>Einstellungen!$M$6,Einstellungen!$M$6,AD21)-IF(AD20<Einstellungen!$K$6,Einstellungen!$K$6,AD20)))>Einstellungen!$K$15,Einstellungen!$O$15,0)),0) -> 0 | AE72: =IF(AND(Einstellungen!$K$14=1,AE20<>""),IF((AE21-AE20)-IF(Einstellungen!$K$6>Einstellungen!$M$6,(IF(AE21<Einstellungen!$K$6,0,AE21-IF(AE20>Einstellungen!$K$6,AE20,Einstellungen!$K$6)))+(IF(AE21>Einstellungen!$M$6,Einstellungen!$M$6,AE21)-AE20),IF(OR(AE20>Einstellungen!$M$6,AE21<Einstellungen!$K$6),0,IF(AE21>Einstellungen!$M$6,Einstellungen!$M$6,AE21)-IF(AE20<Einstellungen!$K$6,Einstellungen!$K$6,AE20)))>Einstellungen!$K$16,Einstellungen!$O$16,IF((AE21-AE20)-IF(Einstellungen!$K$6>Einstellungen!$M$6,(IF(AE21<Einstellungen!$K$6,0,AE21-IF(AE20>Einstellungen!$K$6,AE20,Einstellungen!$K$6)))+(IF(AE21>Einstellungen!$M$6,Einstellungen!$M$6,AE21)-AE20),IF(OR(AE20>Einstellungen!$M$6,AE21<Einstellungen!$K$6),0,IF(AE21>Einstellungen!$M$6,Einstellungen!$M$6,AE21)-IF(AE20<Einstellungen!$K$6,Einstellungen!$K$6,AE20)))>Einstellungen!$K$15,Einstellungen!$O$15,0)),0) -> 0 | AF72: =IF(AND(Einstellungen!$K$14=1,AF20<>""),IF((AF21-AF20)-IF(Einstellungen!$K$6>Einstellungen!$M$6,(IF(AF21<Einstellungen!$K$6,0,AF21-IF(AF20>Einstellungen!$K$6,AF20,Einstellungen!$K$6)))+(IF(AF21>Einstellungen!$M$6,Einstellungen!$M$6,AF21)-AF20),IF(OR(AF20>Einstellungen!$M$6,AF21<Einstellungen!$K$6),0,IF(AF21>Einstellungen!$M$6,Einstellungen!$M$6,AF21)-IF(AF20<Einstellungen!$K$6,Einstellungen!$K$6,AF20)))>Einstellungen!$K$16,Einstellungen!$O$16,IF((AF21-AF20)-IF(Einstellungen!$K$6>Einstellungen!$M$6,(IF(AF21<Einstellungen!$K$6,0,AF21-IF(AF20>Einstellungen!$K$6,AF20,Einstellungen!$K$6)))+(IF(AF21>Einstellungen!$M$6,Einstellungen!$M$6,AF21)-AF20),IF(OR(AF20>Einstellungen!$M$6,AF21<Einstellungen!$K$6),0,IF(AF21>Einstellungen!$M$6,Einstellungen!$M$6,AF21)-IF(AF20<Einstellungen!$K$6,Einstellungen!$K$6,AF20)))>Einstellungen!$K$15,Einstellungen!$O$15,0)),0) -> 0 | AG72: =IF(AND(Einstellungen!$K$14=1,AG20<>""),IF((AG21-AG20)-IF(Einstellungen!$K$6>Einstellungen!$M$6,(IF(AG21<Einstellungen!$K$6,0,AG21-IF(AG20>Einstellungen!$K$6,AG20,Einstellungen!$K$6)))+(IF(AG21>Einstellungen!$M$6,Einstellungen!$M$6,AG21)-AG20),IF(OR(AG20>Einstellungen!$M$6,AG21<Einstellungen!$K$6),0,IF(AG21>Einstellungen!$M$6,Einstellungen!$M$6,AG21)-IF(AG20<Einstellungen!$K$6,Einstellungen!$K$6,AG20)))>Einstellungen!$K$16,Einstellungen!$O$16,IF((AG21-AG20)-IF(Einstellungen!$K$6>Einstellungen!$M$6,(IF(AG21<Einstellungen!$K$6,0,AG21-IF(AG20>Einstellungen!$K$6,AG20,Einstellungen!$K$6)))+(IF(AG21>Einstellungen!$M$6,Einstellungen!$M$6,AG21)-AG20),IF(OR(AG20>Einstellungen!$M$6,AG21<Einstellungen!$K$6),0,IF(AG21>Einstellungen!$M$6,Einstellungen!$M$6,AG21)-IF(AG20<Einstellungen!$K$6,Einstellungen!$K$6,AG20)))>Einstellungen!$K$15,Einstellungen!$O$15,0)),0) -> 0
